Workbook

Sheet Ficha Estandar
B1: FECHA DE REGISTRO: | N1: Soporte: opmi@mtc.gob.pe
B2: =NOW() -> 2023-08-22T18:23:48.780
V4: 064 VIAS NACIONALES | W4: Nacional
V5: 065 VIAS DEPARTAMENTALES | W5: Departamental
V6: 066 VIAS VECINALES | W6: Vecinal
V8: =VLOOKUP(E33,$V$4:$W$6,2,0) -> Vecinal
B12: I. ASPECTOS GENERALES
B15: 1. NOMBRE DEL PROYECTO
B17: 1.1 Naturaleza de intervención
B19: 1.2 Enunciado del nombre del proyecto
C21: =UPPER(CONCATENATE( F17," DEL SERVICIO DE TRANSITABILIDAD VIAL", " DEL/LA ",B81," DEL DISTRITO DE ",E69,", DE LA PROVINCIA DE ",D69,", DEL DEPARTAMENTO DE ",C69)) -> DEL SERVICIO DE TRANSITABILIDAD VIAL DEL/LA DEL DISTRITO DE , DE LA PROVINCIA DE , DEL DEPARTAMENTO DE
B23: 1.3 ¿El proyecto pertenece a un Programa de Inversión?
B25: En caso sea afirmativo, poner nombre y codigo del Programa: | L25: Cod. Prog.
B27: 2. ALINEAMIENTO Y CONTRIBUCIÓN AL CIERRE DE BRECHAS PRIORITARIAS
B29: 2.1 Responsabilidad Funcional (Según Anexo Nº 02 – Decreto Supremo Nº 284-2018-EF )
C31: FUNCIÓN | E31: 015 TRANSPORTE
C32: DIVISION FUNCIONAL | E32: 033 TRANSPORTE TERRESTRE
C33: GRUPO FUNCIONAL | E33: 066 VIAS VECINALES
C34: SECTOR RESPONSABLE | E34: TRANSPORTES Y COMUNICACIONES
B38: 2.2 Servicios públicos con brecha identificada y priorizada: | F38: SERVICIO DE TRANSITABILIDAD VIAL INTERURBANO
B40: 2.3 Indicador de producto asociado a la brecha de servicios: | F40: "PORCENTAJE DE LA RED VIAL VECINAL CON INADECUADAS CONDICIONES DE SERVICIO" | N40: Valor de contribución al cierre de brechas | P40: =+C86 -> 1
B42: 2.4 Definición del servicio público
C43: =CONCATENATE("Es la provisión de la infraestructura vial que asegura las condiciones adecuadas que permiten un flujo vehicular regular a lo lardo de la via de la Red Vial ",V8," del Sistema Nacional de Carreteras (SINAC)") -> Es la provisión de la infraestructura vial que asegura las condiciones adecuadas que permiten un flujo vehicular regular a lo lardo de la via de la Red Vial Vecinal del Sistema Nacional de Carreteras (SINAC)
B45: 3. INSTITUCIONALIDAD
C47: OFICINA DE PROGRAMACIÓN MULTIANUAL DE INVERSIONES (OPMI)
C48: Entidad :
C49: Nombre de la OPMI: (Nombre de la Unidad Orgánica a la que pertenece la OPMI)
C50: Responsable de la OPMI:
C52: UNIDAD FORMULADORA DEL PROYECTO DE INVERSIÓN (UF)
C53: Entidad
C54: Nombre de la UF: (Nombre de la Unidad Orgánica a la que pertenece la UF)
C55: Responsable de la UF:
C57: UNIDAD EJECUTORA DE INVERSIONES (UEI)
C58: Entidad :
C59: Nombre de la UEI: (Nombre de la Unidad Orgánica a la que pertenece la UEI)
C60: Responsable de la UEI:
C62: UNIDAD EJECUTORA PRESUPUESTAL (UEP)
C63: Entidad
C64: Nombre de la UEP:
B66: 4. UBICACIÓN GEOGRÁFICA
B68: Tramo | C68: Departamento | D68: Provincia | E68: Distrito | F68: Región Geográfica (1) | G68: Coordenadas geográficas de la intervención (2) | H68: Centro Poblado (3) | I68: Ubigeo (4)
B69: 1 - Origen
B70: 2 -Destino
B71: (1)Seleccionar en caso que el proyecto abarque más de una región geográfica
B72: (2)Consignar la latitud y longitud del punto de origen y destino del proyecto (WGS84)
B73: (3) Llenar la información en caso corresponda
B74: (4) Especificar si el Ubigeo es a nivel de Departamento, Provincia y Distrito → | F74: https://n9.cl/ub1xr
B76: II. IDENTIFICACIÓN
B78: 5. DIAGNÓSTICO DE LA UNIDAD PRODUCTORA (UP) | H78: Insertar mapa o esquema del trazo según fuentes oficiales
E79: http://portal.mtc.gob.pe/transportes/caminos/normas_carreteras/mapas_viales.html
B80: Tramo - Denominacón de la vía (*)
B83: (*) Según Regitro Nacional de Carreteras del SINAC:
B84: https://portal.mtc.gob.pe/transportes/caminos/renac.html
B86: Longitud: | C86: 1
C88: =F69 -> 0
B89: Progresiva (inicio de tramo):
C90: =+F70 -> 0
B91: Progresiva (fin de tramo):
B93: Código de la UP | D93: https://portal.mtc.gob.pe/transportes/caminos/renac.html
B95: 6. DIAGNOSTICO DE LA POBLACIÓN BENEFICIADA Y ÁREA DE INFLUENCIA
B97: Población beneficiaria directa
B99: Cantidad
B101: Link de consulta
B102: https://www.inei.gob.pe/media/MenuRecursivo/publicaciones_digitales/Est/Lib1541/index.htm
B104: 7. DIAGNOSTICO DE OTROS AGENTES INVOLUCRADOS
B106: Involucrado | D106: Ámbito del participante | E106: Entidad a la que pertenece | G106: Posición (Cooperante, Beneficiario, Oponente, Perjudicado) | I106: Intereses | K106: Contribución
B113: 8. PROBLEMA CENTRAL, CAUSAS Y EFECTOS
B115: Descripción del problema central
B116: =CONCATENATE("Inadecuadas Condiciones de Transitabilidad Vial de la Carretera "," del ",B81," del Distrito de ",E69,", de la Provincia de ",D69,", del Departamento de ",C69) -> Inadecuadas Condiciones de Transitabilidad Vial de la Carretera del del Distrito de , de la Provincia de , del Departamento de
E118: Causas directas | G118: Causas Indirectas | J118: Marcar
E119: Deficiente infraestructura vial | G119: Inadecuadas condiciones del pavimento
G120: Inadecuadas condiciones del puente
G121: Inadecuadas obras de artes y drenaje
G122: Limitadas actividades de conservación Vial
E123: Deficiente seguridad vial | G123: Inadecuada geometría vial
G124: Inadecuada señalización
E126: Efectos directos | G126: Efectos Indirecto | J126: Marcar
E127: Dificultad en la articulación de mercados locales y regionales | G127: Bajos ingresos y pérdidas económicas de la población
G128: Deficiente acceso de servicios básicos
E129: Limitada circulación vehicular | G129: Aumento de los costos asociados al transporte
G130: Incremento de los tiempos de viaje
G131: Incremento de los accidentes de tránsito
B133: 9. DEFINICION DE LOS OBJETIVOS DEL PROYECTO
A135: 1 | B135: 9.1. Objetivo
B137: Descripción del Objetivo central
B138: =CONCATENATE("Adecuadas condiciones de transitabilidad vial del ",B81," del Distrito de ",E69,", de la Provincia de ",D69,", del Departamento de ",C69) -> Adecuadas condiciones de transitabilidad vial del del Distrito de , de la Provincia de , del Departamento de
B141: Principales indicadores del objetivo | E141: Unidad de medida | F141: Magnitud sin Proyecto | G141: Magnitud con Proyecto | H141: Fuente de verificación
B142: IMDA | E142: Veh/día | H142: Estudio de Tráfico
B143: Tiempo de viaje | E143: Min | H143: Estudio de Tráfico
B144: Costos de Operación Vehicular acumumlado anual | E144: Soles | H144: Estudio de Tráfico y Evaluación Económica
B146: 9.2. Medios fundamentales
B147: N° | C147: Medios fundamentales | I147: Marcar
B148: 1 | C148: Mejoramiento o recuperación del pavimento
B149: 2 | C149: Adecuación y/o dotación de obras de arte y drenaje
B150: 3 | C150: Adecuación y/o dotación de la señalización
B152: 10. DESCRIPCIÓN DE LA(S) ALTERNATIVA(S) DE SOLUCIÓN | T152: 1 | U152: 2 | V152: 3
B154: Alternativa (*) | C154: Descripción
B155: Alternativa de Solución 1
B157: Alternativa de Solución 2
B159: (*): La alternativa de solución deberá considerar un enfoque sostenible ante cambios climáticos y gestión de desastres
B160: NOTA: De evidenciarse solo una alternativa de solución, el formulador deberá sustentar las razones.
B162: 11. REQUERIMIENTOS TÉCNICOS, REGULATORIOS Y/O NORMATIVOS
B164: DOCUMENTOS A GESTIONAR EN LA FASE DE EJECUCIÓN | E164: MARQUE CON (x)
B165: Acta de Libre disponibilidad del Terreno (Acuerdo Institucional)
B166: Plan de Compensación y Reasentamiento Involuntario - (PACRI)
B167: Estudio de Impacto Ambiental o lo requerido según nivel de estudio.
B168: Estudio de Factibilidad de los Servicios (Interferencias)
B169: Certificado de Inexistencia de Restos Arqueológicos (CIRA)
B170: Otros (Señale)
B172: NORMAS TÉCNICAS RELACIONADAS
B174: (*): Revisar ejemplo detallado en el instructivo
B176: III. FORMULACIÓN Y EVALUACIÓN
B178: 12. HORIZONTE DE EVALUACIÓN
B180: Número de años del horizonte de evaluación | F180: 10
B182: 13. ESTUDIO DE MERCADO DEL SERVICIO PÚBLICO | F182: (De ser el Proyecto en Tramos, clasificados por demanda) | K182: Nro de Tramos | L182: 3
B185: 13.1 Análisis de la demanda (*)
B187: Descripción | E187: Unidad de Medida | F187: 1 | G187: 2 | H187: 3 | I187: 4 | J187: 5 | K187: 6 | L187: 7 | M187: 8 | N187: 9 | O187: 10
B188: =+B81 -> 0 | E188: Veh/día | F188: =+'A2.Demanda'!D230 -> 0 | G188: =+'A2.Demanda'!E230 -> 0 | H188: =+'A2.Demanda'!F230 -> 0 | I188: =+'A2.Demanda'!G230 -> 0 | J188: =+'A2.Demanda'!H230 -> 0 | K188: =+'A2.Demanda'!I230 -> 0 | L188: =+'A2.Demanda'!J230 -> 0 | M188: =+'A2.Demanda'!K230 -> 0 | N188: =+'A2.Demanda'!L230 -> 0 | O188: =+'A2.Demanda'!M230 -> 0
F189: 11 | G189: 12 | H189: 13 | I189: 14 | J189: 15 | K189: 16 | L189: 17 | M189: 18 | N189: 19 | O189: 20
F190: =+'A2.Demanda'!N230 -> 0 | G190: =+'A2.Demanda'!O230 -> 0 | H190: =+'A2.Demanda'!P230 -> 0 | I190: =+'A2.Demanda'!Q230 -> 0 | J190: =+'A2.Demanda'!R230 -> 0 | K190: =+'A2.Demanda'!S230 -> 0 | L190: =+'A2.Demanda'!T230 -> 0 | M190: =+'A2.Demanda'!U230 -> 0 | N190: =+'A2.Demanda'!V230 -> 0 | O190: =+'A2.Demanda'!W230 -> 0
B192: 13.2 Análisis de la oferta (*)
B194: Descripción | E194: Unidad de Medida | F194: 1 | G194: 2 | H194: 3 | I194: 4 | J194: 5 | K194: 6 | L194: 7 | M194: 8 | N194: 9 | O194: 10
B195: =B81 -> 0 | E195: Veh/día | F195: =+'A2.Demanda'!D137 -> 0 | G195: =+'A2.Demanda'!E137 -> 0 | H195: =+'A2.Demanda'!F137 -> 0 | I195: =+'A2.Demanda'!G137 -> 0 | J195: =+'A2.Demanda'!H137 -> 0 | K195: =+'A2.Demanda'!I137 -> 0 | L195: =+'A2.Demanda'!J137 -> 0 | M195: =+'A2.Demanda'!K137 -> 0 | N195: =+'A2.Demanda'!L137 -> 0 | O195: =+'A2.Demanda'!M137 -> 0
F196: 11 | G196: 12 | H196: 13 | I196: 14 | J196: 15 | K196: 16 | L196: 17 | M196: 18 | N196: 19 | O196: 20
F197: =+'A2.Demanda'!N137 -> 0 | G197: =+'A2.Demanda'!O137 -> 0 | H197: =+'A2.Demanda'!P137 -> 0 | I197: =+'A2.Demanda'!Q137 -> 0 | J197: =+'A2.Demanda'!R137 -> 0 | K197: =+'A2.Demanda'!S137 -> 0 | L197: =+'A2.Demanda'!T137 -> 0 | M197: =+'A2.Demanda'!U137 -> 0 | N197: =+'A2.Demanda'!V137 -> 0 | O197: =+'A2.Demanda'!W137 -> 0
B199: (*) La Oferta y Demanda puede contabilizarse en tramos de ser el caso.
B201: 13.3 Brecha Oferta - Demanda
B202: Descripción | E202: Unidad de Medida | F202: 1 | G202: 2 | H202: 3 | I202: 4 | J202: 5 | K202: 6 | L202: 7 | M202: 8 | N202: 9 | O202: 10
B203: =+B81 -> 0 | E203: Veh/día | F203: =+F195-F188 -> 0 | G203: =+G195-G188 -> 0 | H203: 0 | I203: 0 | J203: 0 | K203: 0 | L203: 0 | M203: 0 | N203: 0 | O203: 0
F204: 11 | G204: 12 | H204: 13 | I204: 14 | J204: 15 | K204: 16 | L204: 17 | M204: 18 | N204: 19 | O204: 20
F205: =+F197-F190 -> 0 | G205: =+G197-G190 -> 0 | H205: 0 | I205: 0 | J205: 0 | K205: 0 | L205: 0 | M205: 0 | N205: 0 | O205: 0
B207: 14. ANÁLISIS TÉCNICO DE LAS ALTERNATIVAS:
B211: 15. COSTO DEL PROYECTO
B213: 15.1 Costos de inversión
B214: PRODUCTO / PROYECTO | F214: Unidad de medida representativa | H214: Cantidad | I214: Costo/km | J214: Inversión total
B215: =+C21 -> DEL SERVICIO DE TRANSITABILIDAD VIAL DEL/LA DEL DISTRITO DE , DE LA PROVINCIA DE , DEL DEPARTAMENTO DE | F215: Km | H215: =C86 -> 1 | I215: =+IFERROR(J215/H215,"") -> 0 | J215: =+'C. Costos'!J55 -> 0
B216: ACCIONES | F216: Unidad de medida | H216: Cantidad | I216: Costo/km | J216: Costo por Componente (soles)
B217: Región Geográfica | C217: =$C$88 -> 0
B218: Tramo 01 | C218: Carretera | F218: Km | H218: =+'C. Costos'!H11 -> 0 | I218: =IFERROR(J218/H218," ") ->  | J218: =+'C. Costos'!J11 -> 0
C219: Puente | F219: Km | H219: =+'C. Costos'!H19 -> 0 | J219: =+'C. Costos'!J19 -> 0
B220: Tramo 02 | C220: Carretera | F220: Km | H220: =+'C. Costos'!H22 -> 0 | J220: =+'C. Costos'!J22 -> 0
C221: Puente | F221: Km | H221: =+'C. Costos'!H30 -> 0 | J221: =+'C. Costos'!J30 -> 0
B222: Tramo 03 | C222: Carretera | F222: Km | H222: =+'C. Costos'!H33 -> 0 | J222: =+'C. Costos'!J33 -> 0
C223: Puente | F223: Km | H223: =+'C. Costos'!H41 -> 0 | J223: =+'C. Costos'!J41 -> 0
B226: 15.2 Cronograma de ejecución financiera
B228: Región Geográfica | C228: =$C$88 -> 0 | F228: Cronograma
B229: Proyecto/ Tramo | C229: Actividad | E229: Costo por Componente (soles) | F229: 1 | G229: 2 | H229: 3 | I229: 4 | J229: 5 | K229: 6 | L229: 7 | M229: 8 | N229: 9 | O229: 10 | P229: 11 | Q229: 12
B230: Tramo 01 | C230: =+C218 -> Carretera | E230: =+J218 -> 0 | F230: =IFERROR(F243*$E230," ") -> 0 | G230: 0 | H230: 0 | I230: 0 | J230: 0 | K230: 0 | L230: 0 | M230: 0 | N230: 0 | O230: 0 | P230: 0 | Q230: 0
C231: Puente | E231: =+J219 -> 0 | F231: =IFERROR(F244*$E231," ") -> 0 | G231: 0 | H231: 0 | I231: 0 | J231: 0 | K231: 0 | L231: 0 | M231: 0 | N231: 0 | O231: 0 | P231: 0 | Q231: 0
B232: Tramo 02 | C232: =+C230 -> Carretera | E232: 0 | F232: =IFERROR(F245*$E232," ") -> 0 | G232: 0 | H232: 0 | I232: 0 | J232: 0 | K232: 0 | L232: 0 | M232: 0 | N232: 0 | O232: 0 | P232: 0 | Q232: 0
C233: Puente | E233: 0 | F233: =IFERROR(F246*$E233," ") -> 0 | G233: 0 | H233: 0 | I233: 0 | J233: 0 | K233: 0 | L233: 0 | M233: 0 | N233: 0 | O233: 0 | P233: 0 | Q233: 0
B234: Tramo 03 | C234: =+C232 -> Carretera | E234: 0 | F234: =IFERROR(F247*$E234," ") -> 0 | G234: 0 | H234: 0 | I234: 0 | J234: 0 | K234: 0 | L234: 0 | M234: 0 | N234: 0 | O234: 0 | P234: 0 | Q234: 0
C235: Puente | E235: 0 | F235: =IFERROR(F248*$E235," ") -> 0 | G235: 0 | H235: 0 | I235: 0 | J235: 0 | K235: 0 | L235: 0 | M235: 0 | N235: 0 | O235: 0 | P235: 0 | Q235: 0
B236: Costo total | E236: =+SUM(E230:E235) -> 0 | F236: 0 | G236: 0 | H236: 0 | I236: 0 | J236: 0 | K236: 0 | L236: 0 | M236: 0 | N236: =+SUM(N230:N235) -> 0 | O236: 0 | P236: 0 | Q236: 0
B239: 15.3 Cronograma de ejecución física
B241: Región Geográfica | C241: =$C$88 -> 0 | F241: Cronograma
B242: Proyecto/ Tramo | C242: Actividad | D242: Unidad de medida | E242: Meta | F242: 1 | G242: 2 | H242: 3 | I242: 4 | J242: 5 | K242: 6 | L242: 7 | M242: 8 | N242: 9 | O242: 10 | P242: 11 | Q242: 12
B243: Tramo 01 | C243: =+C230 -> Carretera | D243: =+F218 -> Km | E243: =+SUM(F243:Q243) -> 0
C244: Puente | D244: Km | E244: =+SUM(F244:Q244) -> 0
B245: Tramo 02 | C245: =+C232 -> Carretera | D245: Km | E245: 0
C246: Puente | D246: Km | E246: 0
B247: Tramo 03 | C247: =+C234 -> Carretera | D247: Km | E247: 0
C248: Puente | D248: Km | E248: 0
B251: 15.4 Costos de operación y mantenimiento con y sin proyecto
R252: 1 | S252: 2 | T252: 3 | U252: 4 | V252: 5 | W252: 6 | X252: 7 | Y252: 8 | Z252: 9 | AA252: 10 | AB252: 11 | AC252: 12 | AD252: 13 | AE252: 14 | AF252: 15 | AG252: 16 | AH252: 17 | AI252: 18 | AJ252: 19 | AK252: 20
B253: COSTOS | D253: AÑOS (Soles) | R253: 4 | S253: =+R253+1 -> 5 | T253: 6 | U253: 7 | V253: 8 | W253: 9 | X253: 10 | Y253: 11 | Z253: 12 | AA253: 13 | AB253: 14 | AC253: 15 | AD253: 16 | AE253: 17 | AF253: 18 | AG253: 19 | AH253: 20 | AI253: =+AH253+1 -> 21 | AJ253: =+AI253+1 -> 22 | AK253: =+AJ253+1 -> 23
D254: 1 | E254: 2 | F254: 3 | G254: 4 | H254: 5 | I254: 6 | J254: 7 | K254: 8 | L254: 9 | M254: 10
B255: SIN PROYECTO | C255: OPERACIÓN | D255: =0 -> 0 | E255: =0 -> 0 | F255: =0 -> 0 | G255: =0 -> 0 | H255: =0 -> 0 | I255: =0 -> 0 | J255: =0 -> 0 | K255: =0 -> 0 | L255: =0 -> 0 | M255: =0 -> 0
C256: MANTENIMIENTO | D256: =VLOOKUP($F$273,'E1.Evaluación (B-C)'!$B$196:$X$201,R253,0) -> 0 | E256: =VLOOKUP($F$273,'E1.Evaluación (B-C)'!$B$196:$X$201,S253,0) -> 0 | F256: =VLOOKUP($F$273,'E1.Evaluación (B-C)'!$B$196:$X$201,T253,0) -> 0 | G256: =VLOOKUP($F$273,'E1.Evaluación (B-C)'!$B$196:$X$201,U253,0) -> 0 | H256: =VLOOKUP($F$273,'E1.Evaluación (B-C)'!$B$196:$X$201,V253,0) -> 0 | I256: =VLOOKUP($F$273,'E1.Evaluación (B-C)'!$B$196:$X$201,W253,0) -> 0 | J256: =VLOOKUP($F$273,'E1.Evaluación (B-C)'!$B$196:$X$201,X253,0) -> 0 | K256: =VLOOKUP($F$273,'E1.Evaluación (B-C)'!$B$196:$X$201,Y253,0) -> 0 | L256: =VLOOKUP($F$273,'E1.Evaluación (B-C)'!$B$196:$X$201,Z253,0) -> 0 | M256: =VLOOKUP($F$273,'E1.Evaluación (B-C)'!$B$196:$X$201,AA253,0) -> 0
B257: CON PROYECTO | C257: OPERACIÓN | D257: =0 -> 0 | E257: =0 -> 0 | F257: =0 -> 0 | G257: =0 -> 0 | H257: =0 -> 0 | I257: =0 -> 0 | J257: =0 -> 0 | K257: =0 -> 0 | L257: =0 -> 0 | M257: =0 -> 0
C258: MANTENIMIENTO | D258: =VLOOKUP($F$272,'E1.Evaluación (B-C)'!$B$196:$X$201,R253,0) -> 0 | E258: =VLOOKUP($F$272,'E1.Evaluación (B-C)'!$B$196:$X$201,S253,0) -> 0 | F258: =VLOOKUP($F$272,'E1.Evaluación (B-C)'!$B$196:$X$201,T253,0) -> 0 | G258: =VLOOKUP($F$272,'E1.Evaluación (B-C)'!$B$196:$X$201,U253,0) -> 0 | H258: =VLOOKUP($F$272,'E1.Evaluación (B-C)'!$B$196:$X$201,V253,0) -> 0 | I258: =VLOOKUP($F$272,'E1.Evaluación (B-C)'!$B$196:$X$201,W253,0) -> 0 | J258: =VLOOKUP($F$272,'E1.Evaluación (B-C)'!$B$196:$X$201,X253,0) -> 0 | K258: =VLOOKUP($F$272,'E1.Evaluación (B-C)'!$B$196:$X$201,Y253,0) -> 0 | L258: =VLOOKUP($F$272,'E1.Evaluación (B-C)'!$B$196:$X$201,Z253,0) -> 0 | M258: =VLOOKUP($F$272,'E1.Evaluación (B-C)'!$B$196:$X$201,AA253,0) -> 0
B259: INCREMENTAL | C259: OPERACIÓN | D259: =0 -> 0 | E259: =0 -> 0 | F259: =0 -> 0 | G259: =0 -> 0 | H259: =0 -> 0 | I259: =0 -> 0 | J259: =0 -> 0 | K259: =0 -> 0 | L259: =0 -> 0 | M259: =0 -> 0
C260: MANTENIMIENTO | D260: =VLOOKUP($F$271,'E1.Evaluación (B-C)'!$B$196:$X$201,R253,0) -> 0 | E260: =VLOOKUP($F$271,'E1.Evaluación (B-C)'!$B$196:$X$201,S253,0) -> 0 | F260: =VLOOKUP($F$271,'E1.Evaluación (B-C)'!$B$196:$X$201,T253,0) -> 0 | G260: =VLOOKUP($F$271,'E1.Evaluación (B-C)'!$B$196:$X$201,U253,0) -> 0 | H260: =VLOOKUP($F$271,'E1.Evaluación (B-C)'!$B$196:$X$201,V253,0) -> 0 | I260: =VLOOKUP($F$271,'E1.Evaluación (B-C)'!$B$196:$X$201,W253,0) -> 0 | J260: =VLOOKUP($F$271,'E1.Evaluación (B-C)'!$B$196:$X$201,X253,0) -> 0 | K260: =VLOOKUP($F$271,'E1.Evaluación (B-C)'!$B$196:$X$201,Y253,0) -> 0 | L260: =VLOOKUP($F$271,'E1.Evaluación (B-C)'!$B$196:$X$201,Z253,0) -> 0 | M260: =VLOOKUP($F$271,'E1.Evaluación (B-C)'!$B$196:$X$201,AA253,0) -> 0
B262: COSTOS | D262: AÑOS (Soles)
D263: 11 | E263: 12 | F263: 13 | G263: 14 | H263: 15 | I263: 16 | J263: 17 | K263: 18 | L263: 19 | M263: 20
B264: SIN PROYECTO | C264: OPERACIÓN | D264: =0 -> 0 | E264: =0 -> 0 | F264: =0 -> 0 | G264: =0 -> 0 | H264: =0 -> 0 | I264: =0 -> 0 | J264: =0 -> 0 | K264: =0 -> 0 | L264: =0 -> 0 | M264: =0 -> 0
C265: MANTENIMIENTO | D265: =VLOOKUP($F$273,'E1.Evaluación (B-C)'!$B$196:$X$201,AB253,0) -> 0 | E265: =VLOOKUP($F$273,'E1.Evaluación (B-C)'!$B$196:$X$201,AC253,0) -> 0 | F265: =VLOOKUP($F$273,'E1.Evaluación (B-C)'!$B$196:$X$201,AD253,0) -> 0 | G265: =VLOOKUP($F$273,'E1.Evaluación (B-C)'!$B$196:$X$201,AE253,0) -> 0 | H265: =VLOOKUP($F$273,'E1.Evaluación (B-C)'!$B$196:$X$201,AF253,0) -> 0 | I265: =VLOOKUP($F$273,'E1.Evaluación (B-C)'!$B$196:$X$201,AG253,0) -> 0 | J265: =VLOOKUP($F$273,'E1.Evaluación (B-C)'!$B$196:$X$201,AH253,0) -> 0 | K265: =VLOOKUP($F$273,'E1.Evaluación (B-C)'!$B$196:$X$201,AI253,0) -> 0 | L265: =VLOOKUP($F$273,'E1.Evaluación (B-C)'!$B$196:$X$201,AJ253,0) -> 0 | M265: =VLOOKUP($F$273,'E1.Evaluación (B-C)'!$B$196:$X$201,AK253,0) -> 0
B266: CON PROYECTO | C266: OPERACIÓN | D266: =0 -> 0 | E266: =0 -> 0 | F266: =0 -> 0 | G266: =0 -> 0 | H266: =0 -> 0 | I266: =0 -> 0 | J266: =0 -> 0 | K266: =0 -> 0 | L266: =0 -> 0 | M266: =0 -> 0
C267: MANTENIMIENTO | D267: =VLOOKUP($F$272,'E1.Evaluación (B-C)'!$B$196:$X$201,AB253,0) -> 0 | E267: =VLOOKUP($F$272,'E1.Evaluación (B-C)'!$B$196:$X$201,AC253,0) -> 0 | F267: =VLOOKUP($F$272,'E1.Evaluación (B-C)'!$B$196:$X$201,AD253,0) -> 0 | G267: =VLOOKUP($F$272,'E1.Evaluación (B-C)'!$B$196:$X$201,AE253,0) -> 0 | H267: =VLOOKUP($F$272,'E1.Evaluación (B-C)'!$B$196:$X$201,AF253,0) -> 0 | I267: =VLOOKUP($F$272,'E1.Evaluación (B-C)'!$B$196:$X$201,AG253,0) -> 0 | J267: =VLOOKUP($F$272,'E1.Evaluación (B-C)'!$B$196:$X$201,AH253,0) -> 0 | K267: =VLOOKUP($F$272,'E1.Evaluación (B-C)'!$B$196:$X$201,AI253,0) -> 0 | L267: =VLOOKUP($F$272,'E1.Evaluación (B-C)'!$B$196:$X$201,AJ253,0) -> 0 | M267: =VLOOKUP($F$272,'E1.Evaluación (B-C)'!$B$196:$X$201,AK253,0) -> 0
B268: INCREMENTAL | C268: OPERACIÓN | D268: =0 -> 0 | E268: =0 -> 0 | F268: =0 -> 0 | G268: =0 -> 0 | H268: =0 -> 0 | I268: =0 -> 0 | J268: =0 -> 0 | K268: =0 -> 0 | L268: =0 -> 0 | M268: =0 -> 0
C269: MANTENIMIENTO | D269: =VLOOKUP($F$271,'E1.Evaluación (B-C)'!$B$196:$X$201,AB253,0) -> 0 | E269: =VLOOKUP($F$271,'E1.Evaluación (B-C)'!$B$196:$X$201,AC253,0) -> 0 | F269: =VLOOKUP($F$271,'E1.Evaluación (B-C)'!$B$196:$X$201,AD253,0) -> 0 | G269: =VLOOKUP($F$271,'E1.Evaluación (B-C)'!$B$196:$X$201,AE253,0) -> 0 | H269: =VLOOKUP($F$271,'E1.Evaluación (B-C)'!$B$196:$X$201,AF253,0) -> 0 | I269: =VLOOKUP($F$271,'E1.Evaluación (B-C)'!$B$196:$X$201,AG253,0) -> 0 | J269: =VLOOKUP($F$271,'E1.Evaluación (B-C)'!$B$196:$X$201,AH253,0) -> 0 | K269: =VLOOKUP($F$271,'E1.Evaluación (B-C)'!$B$196:$X$201,AI253,0) -> 0 | L269: =VLOOKUP($F$271,'E1.Evaluación (B-C)'!$B$196:$X$201,AJ253,0) -> 0 | M269: =VLOOKUP($F$271,'E1.Evaluación (B-C)'!$B$196:$X$201,AK253,0) -> 0
B271: 16. CRITERIO DE DECISIÓN DE INVERSIÓN | F271: =D272&B259 -> Costo/EficienciaINCREMENTAL
D272: Costo/Eficiencia | F272: =D272&B257 -> Costo/EficienciaCON PROYECTO
F273: =D272&B255 -> Costo/EficienciaSIN PROYECTO
B274: 17. EVALUACION SOCIAL
B276: Tipo* | F276: Alternativa 1 | H276: Alternativa 2
B277: Beneficio/Costo | D277: VAN | F277: =+'E1.Evaluación (B-C)'!F185 -> 0 | H277: =+'E1.Evaluación (B-C)'!V185 -> 0
D278: B/C | F278: =+'E1.Evaluación (B-C)'!F186 -> 0 | H278: =+'E1.Evaluación (B-C)'!V186 -> 0
D279: TIR | F279: =+'E1.Evaluación (B-C)'!F187 -> 0 | H279: =+'E1.Evaluación (B-C)'!V187 -> 0
B280: Costo/Eficiencia | D280: Valor Actual de los Costos (VACS) | F280: =+'D1.Evaluación (C-E)'!C62 -> 0 | H280: =+'D1.Evaluación (C-E)'!I62 -> 0
D281: Costo Anual Equivalente (CAE) | F281: =+'D1.Evaluación (C-E)'!C64 -> 0 | H281: =+'D1.Evaluación (C-E)'!I64 -> 0
D282: VACS/Km | F282: =+'D1.Evaluación (C-E)'!C65 -> 0 | H282: =+'D1.Evaluación (C-E)'!I65 -> 0
D283: Línea de Corte | F283: 0 | H283: 0
D284: Cumple Linea de Corte (S/ / Km) | F284: =IF(F282="0","",IF(F283<=F282,"SI CUMPLE"," NO CUMPLE")) -> SI CUMPLE | H284: =IF(H282="0","",IF(H283<=H282,"SI CUMPLE"," NO CUMPLE")) -> SI CUMPLE
B285: * A precios sociales
B287: 18. SOSTENIBILIDAD
B289: 18.1 Responsable de la operación y mantenimiento del proyecto
B292: 18.2 ¿Es la Unidad Ejecutora de Inversiones la responsable de la Operación y Mantenimiento del proyecto de inversión con cargo a su Presupuesto Institucional?
B296: Documento | D296: Entidad / Organización | F296: Compromiso
B303: 18.3 ¿El área donde se ubica el proyecto ha sido afectada por algún desastre?
... 64 more rows

Sheet A1.Trafico
B5: FORMATO DE CLASIFICACION VEHICULAR | AA5: FORMATO DE CLASIFICACION VEHICULAR | AW5: FORMATO DE CLASIFICACION VEHICULAR | BT5: FORMATO DE CLASIFICACION VEHICULAR | CQ5: FORMATO DE CLASIFICACION VEHICULAR | DN5: FORMATO DE CLASIFICACION VEHICULAR | EK5: FORMATO DE CLASIFICACION VEHICULAR
B6: ESTUDIO DE TRAFICO - ESTACIÓN PRINCIPAL 1 - LUNES | Y6: ESTUDIO DE TRAFICO - ESTACIÓN PRINCIPAL 1 - MARTES | AV6: ESTUDIO DE TRAFICO - ESTACIÓN PRINCIPAL 1 - MIERCOLES | BS6: ESTUDIO DE TRAFICO - ESTACIÓN PRINCIPAL 1 - JUEVES | CP6: ESTUDIO DE TRAFICO - ESTACIÓN PRINCIPAL 1 - VIERNES | DM6: ESTUDIO DE TRAFICO - ESTACIÓN PRINCIPAL 1 - SABADO | EJ6: ESTUDIO DE TRAFICO - ESTACIÓN PRINCIPAL 1 - DOMINGO
B8: ESTACIÓN PRINCIPAL DE LA CARRETERA | F8: 1 | Q8: ESTACION | Y8: ESTACIÓN PRINCIPAL DE LA CARRETERA | AC8: 1 | AN8: ESTACION | AV8: ESTACIÓN PRINCIPAL DE LA CARRETERA | AZ8: 1 | BK8: ESTACION | BS8: ESTACIÓN PRINCIPAL DE LA CARRETERA | BW8: 1 | CH8: ESTACION | CP8: ESTACIÓN PRINCIPAL DE LA CARRETERA | CT8: 1 | DE8: ESTACION | DM8: ESTACIÓN PRINCIPAL DE LA CARRETERA | DQ8: 1 | EB8: ESTACION | EJ8: ESTACIÓN PRINCIPAL DE LA CARRETERA | EN8: 1 | EY8: ESTACION
B9: SENTIDO | H9: E | M9: S | Q9: CODIGO DE LA ESTACION | Y9: SENTIDO | AE9: E | AI9: S | AN9: CODIGO DE LA ESTACION | AV9: SENTIDO | BB9: E | BF9: S | BK9: CODIGO DE LA ESTACION | BS9: SENTIDO | BY9: E | CC9: S | CH9: CODIGO DE LA ESTACION | CP9: SENTIDO | CV9: E | CZ9: S | DE9: CODIGO DE LA ESTACION | DM9: SENTIDO | DS9: E | DW9: S | EB9: CODIGO DE LA ESTACION | EJ9: SENTIDO | EP9: E | ET9: S | EY9: CODIGO DE LA ESTACION
B10: UBICACIÓN | Q10: DIA Y FECHA | Y10: UBICACIÓN | AN10: DIA Y FECHA | AV10: UBICACIÓN | BK10: DIA Y FECHA | BS10: UBICACIÓN | CH10: DIA Y FECHA | CP10: UBICACIÓN | DE10: DIA Y FECHA | DM10: UBICACIÓN | EB10: DIA Y FECHA | EJ10: UBICACIÓN | EY10: DIA Y FECHA
B11: DIA | C11: Lunes | Y11: DIA | Z11: Martes | AV11: DIA | AW11: Miércoles | BS11: DIA | BT11: Jueves | CP11: DIA | CQ11: Viernes | DM11: DIA | DN11: Sábado | EJ11: DIA | EK11: Domingo
B13: HORA | C13: SENTI DO | D13: AUTO | E13: STATION WAGON | F13: CAMIONETAS | H13: RURAL Combi | I13: MICRO | J13: BUS | M13: CAMION | P13: SEMI TRAYLER | T13: TRAYLER | Y13: HORA | Z13: SENTI DO | AA13: AUTO | AB13: STATION WAGON | AC13: CAMIONETAS | AE13: RURAL Combi | AF13: MICRO | AG13: BUS | AJ13: CAMION | AM13: SEMI TRAYLER | AQ13: TRAYLER | AV13: HORA | AW13: SENTI DO | AX13: AUTO | AY13: STATION WAGON | AZ13: CAMIONETAS | BB13: RURAL Combi | BC13: MICRO | BD13: BUS | BG13: CAMION | BJ13: SEMI TRAYLER | BN13: TRAYLER | BS13: HORA | BT13: SENTI DO | BU13: AUTO | BV13: STATION WAGON | BW13: CAMIONETAS | BY13: RURAL Combi | BZ13: MICRO | CA13: BUS | CD13: CAMION | CG13: SEMI TRAYLER | CK13: TRAYLER | CP13: HORA | CQ13: SENTI DO | CR13: AUTO | CS13: STATION WAGON | CT13: CAMIONETAS | CV13: RURAL Combi | CW13: MICRO | CX13: BUS | DA13: CAMION | DD13: SEMI TRAYLER | DH13: TRAYLER | DM13: HORA | DN13: SENTI DO | DO13: AUTO | DP13: STATION WAGON | DQ13: CAMIONETAS | DS13: RURAL Combi | DT13: MICRO | DU13: BUS | DX13: CAMION | EA13: SEMI TRAYLER | EE13: TRAYLER | EJ13: HORA | EK13: SENTI DO | EL13: AUTO | EM13: STATION WAGON | EN13: CAMIONETAS | EP13: RURAL Combi | EQ13: MICRO | ER13: BUS | EU13: CAMION | EX13: SEMI TRAYLER | FB13: TRAYLER
F14: PICK UP | G14: PANEL | J14: 2 E | K14: 3 E | L14: 4 E | M14: 2 E | N14: 3 E | O14: 4 E | P14: 2S1/2S2 | Q14: 2S3 | R14: 3S1/3S2 | S14: >= 3S3 | T14: 2T2 | U14: 2T3 | V14: 3T2 | W14: >=3T3 | AC14: PICK UP | AD14: PANEL | AG14: 2 E | AH14: 3 E | AI14: 4 E | AJ14: 2 E | AK14: 3 E | AL14: 4 E | AM14: 2S1/2S2 | AN14: 2S3 | AO14: 3S1/3S2 | AP14: >= 3S3 | AQ14: 2T2 | AR14: 2T3 | AS14: 3T2 | AT14: >=3T3 | AZ14: PICK UP | BA14: PANEL | BD14: 2 E | BE14: 3 E | BF14: 4 E | BG14: 2 E | BH14: 3 E | BI14: 4 E | BJ14: 2S1/2S2 | BK14: 2S3 | BL14: 3S1/3S2 | BM14: >= 3S3 | BN14: 2T2 | BO14: 2T3 | BP14: 3T2 | BQ14: >=3T3 | BW14: PICK UP | BX14: PANEL | CA14: 2 E | CB14: 3 E | CC14: 4 E | CD14: 2 E | CE14: 3 E | CF14: 4 E | CG14: 2S1/2S2 | CH14: 2S3 | CI14: 3S1/3S2 | CJ14: >= 3S3 | CK14: 2T2 | CL14: 2T3 | CM14: 3T2 | CN14: >=3T3 | CT14: PICK UP | CU14: PANEL | CX14: 2 E | CY14: 3 E | CZ14: 4 E | DA14: 2 E | DB14: 3 E | DC14: 4 E | DD14: 2S1/2S2 | DE14: 2S3 | DF14: 3S1/3S2 | DG14: >= 3S3 | DH14: 2T2 | DI14: 2T3 | DJ14: 3T2 | DK14: >=3T3 | DQ14: PICK UP | DR14: PANEL | DU14: 2 E | DV14: 3 E | DW14: 4 E | DX14: 2 E | DY14: 3 E | DZ14: 4 E | EA14: 2S1/2S2 | EB14: 2S3 | EC14: 3S1/3S2 | ED14: >= 3S3 | EE14: 2T2 | EF14: 2T3 | EG14: 3T2 | EH14: >=3T3 | EN14: PICK UP | EO14: PANEL | ER14: 2 E | ES14: 3 E | ET14: 4 E | EU14: 2 E | EV14: 3 E | EW14: 4 E | EX14: 2S1/2S2 | EY14: 2S3 | EZ14: 3S1/3S2 | FA14: >= 3S3 | FB14: 2T2 | FC14: 2T3 | FD14: 3T2 | FE14: >=3T3
B15: 00-01 | C15: E | Y15: 00-01 | Z15: E | AV15: 00-01 | AW15: E | BS15: 00-01 | BT15: E | CP15: 00-01 | CQ15: E | DM15: 00-01 | DN15: E | EJ15: 00-01 | EK15: E
C16: S | Z16: S | AW16: S | BT16: S | CQ16: S | DN16: S | EK16: S
B17: 01-02 | C17: E | Y17: 01-02 | Z17: E | AV17: 01-02 | AW17: E | BS17: 01-02 | BT17: E | CP17: 01-02 | CQ17: E | DM17: 01-02 | DN17: E | EJ17: 01-02 | EK17: E
C18: S | Z18: S | AW18: S | BT18: S | CQ18: S | DN18: S | EK18: S
B19: 02-03 | C19: E | Y19: 02-03 | Z19: E | AV19: 02-03 | AW19: E | BS19: 02-03 | BT19: E | CP19: 02-03 | CQ19: E | DM19: 02-03 | DN19: E | EJ19: 02-03 | EK19: E
C20: S | Z20: S | AW20: S | BT20: S | CQ20: S | DN20: S | EK20: S
B21: 03-04 | C21: E | Y21: 03-04 | Z21: E | AV21: 03-04 | AW21: E | BS21: 03-04 | BT21: E | CP21: 03-04 | CQ21: E | DM21: 03-04 | DN21: E | EJ21: 03-04 | EK21: E
C22: S | Z22: S | AW22: S | BT22: S | CQ22: S | DN22: S | EK22: S
B23: 04-05 | C23: E | Y23: 04-05 | Z23: E | AV23: 04-05 | AW23: E | BS23: 04-05 | BT23: E | CP23: 04-05 | CQ23: E | DM23: 04-05 | DN23: E | EJ23: 04-05 | EK23: E
C24: S | Z24: S | AW24: S | BT24: S | CQ24: S | DN24: S | EK24: S
B25: 05-06 | C25: E | Y25: 05-06 | Z25: E | AV25: 05-06 | AW25: E | BS25: 05-06 | BT25: E | CP25: 05-06 | CQ25: E | DM25: 05-06 | DN25: E | EJ25: 05-06 | EK25: E
C26: S | Z26: S | AW26: S | BT26: S | CQ26: S | DN26: S | EK26: S
B27: 06-07 | C27: E | Y27: 06-07 | Z27: E | AV27: 06-07 | AW27: E | BS27: 06-07 | BT27: E | CP27: 06-07 | CQ27: E | DM27: 06-07 | DN27: E | EJ27: 06-07 | EK27: E
C28: S | Z28: S | AW28: S | BT28: S | CQ28: S | DN28: S | EK28: S
B29: 07-08 | C29: E | Y29: 07-08 | Z29: E | AV29: 07-08 | AW29: E | BS29: 07-08 | BT29: E | CP29: 07-08 | CQ29: E | DM29: 07-08 | DN29: E | EJ29: 07-08 | EK29: E
C30: S | Z30: S | AW30: S | BT30: S | CQ30: S | DN30: S | EK30: S
B31: 08-09 | C31: E | Y31: 08-09 | Z31: E | AV31: 08-09 | AW31: E | BS31: 08-09 | BT31: E | CP31: 08-09 | CQ31: E | DM31: 08-09 | DN31: E | EJ31: 08-09 | EK31: E
C32: S | Z32: S | AW32: S | BT32: S | CQ32: S | DN32: S | EK32: S
B33: 09-10 | C33: E | Y33: 09-10 | Z33: E | AV33: 09-10 | AW33: E | BS33: 09-10 | BT33: E | CP33: 09-10 | CQ33: E | DM33: 09-10 | DN33: E | EJ33: 09-10 | EK33: E
C34: S | Z34: S | AW34: S | BT34: S | CQ34: S | DN34: S | EK34: S
B35: 10-11 | C35: E | Y35: 10-11 | Z35: E | AV35: 10-11 | AW35: E | BS35: 10-11 | BT35: E | CP35: 10-11 | CQ35: E | DM35: 10-11 | DN35: E | EJ35: 10-11 | EK35: E
C36: S | Z36: S | AW36: S | BT36: S | CQ36: S | DN36: S | EK36: S
B37: 11-12 | C37: E | Y37: 11-12 | Z37: E | AV37: 11-12 | AW37: E | BS37: 11-12 | BT37: E | CP37: 11-12 | CQ37: E | DM37: 11-12 | DN37: E | EJ37: 11-12 | EK37: E
C38: S | Z38: S | AW38: S | BT38: S | CQ38: S | DN38: S | EK38: S
B39: 12-13 | C39: E | Y39: 12-13 | Z39: E | AV39: 12-13 | AW39: E | BS39: 12-13 | BT39: E | CP39: 12-13 | CQ39: E | DM39: 12-13 | DN39: E | EJ39: 12-13 | EK39: E
C40: S | Z40: S | AW40: S | BT40: S | CQ40: S | DN40: S | EK40: S
B41: 13-14 | C41: E | Y41: 13-14 | Z41: E | AV41: 13-14 | AW41: E | BS41: 13-14 | BT41: E | CP41: 13-14 | CQ41: E | DM41: 13-14 | DN41: E | EJ41: 13-14 | EK41: E
C42: S | Z42: S | AW42: S | BT42: S | CQ42: S | DN42: S | EK42: S
B43: 14-15 | C43: E | Y43: 14-15 | Z43: E | AV43: 14-15 | AW43: E | BS43: 14-15 | BT43: E | CP43: 14-15 | CQ43: E | DM43: 14-15 | DN43: E | EJ43: 14-15 | EK43: E
C44: S | Z44: S | AW44: S | BT44: S | CQ44: S | DN44: S | EK44: S
B45: 15-16 | C45: E | Y45: 15-16 | Z45: E | AV45: 15-16 | AW45: E | BS45: 15-16 | BT45: E | CP45: 15-16 | CQ45: E | DM45: 15-16 | DN45: E | EJ45: 15-16 | EK45: E
C46: S | Z46: S | AW46: S | BT46: S | CQ46: S | DN46: S | EK46: S
B47: 16-17 | C47: E | Y47: 16-17 | Z47: E | AV47: 16-17 | AW47: E | BS47: 16-17 | BT47: E | CP47: 16-17 | CQ47: E | DM47: 16-17 | DN47: E | EJ47: 16-17 | EK47: E
C48: S | Z48: S | AW48: S | BT48: S | CQ48: S | DN48: S | EK48: S
B49: 17-18 | C49: E | Y49: 17-18 | Z49: E | AV49: 17-18 | AW49: E | BS49: 17-18 | BT49: E | CP49: 17-18 | CQ49: E | DM49: 17-18 | DN49: E | EJ49: 17-18 | EK49: E
C50: S | Z50: S | AW50: S | BT50: S | CQ50: S | DN50: S | EK50: S
B51: 18-19 | C51: E | Y51: 18-19 | Z51: E | AV51: 18-19 | AW51: E | BS51: 18-19 | BT51: E | CP51: 18-19 | CQ51: E | DM51: 18-19 | DN51: E | EJ51: 18-19 | EK51: E
C52: S | Z52: S | AW52: S | BT52: S | CQ52: S | DN52: S | EK52: S
B53: 19-20 | C53: E | Y53: 19-20 | Z53: E | AV53: 19-20 | AW53: E | BS53: 19-20 | BT53: E | CP53: 19-20 | CQ53: E | DM53: 19-20 | DN53: E | EJ53: 19-20 | EK53: E
C54: S | Z54: S | AW54: S | BT54: S | CQ54: S | DN54: S | EK54: S
B55: 20-21 | C55: E | Y55: 20-21 | Z55: E | AV55: 20-21 | AW55: E | BS55: 20-21 | BT55: E | CP55: 20-21 | CQ55: E | DM55: 20-21 | DN55: E | EJ55: 20-21 | EK55: E
C56: S | Z56: S | AW56: S | BT56: S | CQ56: S | DN56: S | EK56: S
B57: 21-22 | C57: E | Y57: 21-22 | Z57: E | AV57: 21-22 | AW57: E | BS57: 21-22 | BT57: E | CP57: 21-22 | CQ57: E | DM57: 21-22 | DN57: E | EJ57: 21-22 | EK57: E
C58: S | Z58: S | AW58: S | BT58: S | CQ58: S | DN58: S | EK58: S
B59: 22-23 | C59: E | Y59: 22-23 | Z59: E | AV59: 22-23 | AW59: E | BS59: 22-23 | BT59: E | CP59: 22-23 | CQ59: E | DM59: 22-23 | DN59: E | EJ59: 22-23 | EK59: E
C60: S | Z60: S | AW60: S | BT60: S | CQ60: S | DN60: S | EK60: S
B61: 23-24 | C61: E | Y61: 23-24 | Z61: E | AV61: 23-24 | AW61: E | BS61: 23-24 | BT61: E | CP61: 23-24 | CQ61: E | DM61: 23-24 | DN61: E | EJ61: 23-24 | EK61: E
C62: S | Z62: S | AW62: S | BT62: S | CQ62: S | DN62: S | EK62: S
B63: PARCIAL: | D63: =SUM(D15:D62) -> 0 | E63: 0 | F63: 0 | G63: 0 | H63: 0 | I63: 0 | J63: 0 | K63: 0 | L63: 0 | M63: 0 | N63: 0 | O63: 0 | P63: 0 | Q63: 0 | R63: 0 | S63: 0 | T63: 0 | U63: 0 | V63: 0 | W63: 0 | Y63: PARCIAL: | AA63: =SUM(AA15:AA62) -> 0 | AB63: 0 | AC63: 0 | AD63: 0 | AE63: 0 | AF63: 0 | AG63: 0 | AH63: 0 | AI63: =SUM(AI15:AI62) -> 0 | AJ63: =SUM(AJ15:AJ62) -> 0 | AK63: 0 | AL63: 0 | AM63: 0 | AN63: 0 | AO63: 0 | AP63: 0 | AQ63: 0 | AR63: 0 | AS63: 0 | AT63: 0 | AV63: PARCIAL: | AX63: =SUM(AX15:AX62) -> 0 | AY63: 0 | AZ63: 0 | BA63: 0 | BB63: 0 | BC63: 0 | BD63: 0 | BE63: 0 | BF63: 0 | BG63: 0 | BH63: 0 | BI63: 0 | BJ63: 0 | BK63: 0 | BL63: 0 | BM63: 0 | BN63: 0 | BO63: 0 | BP63: 0 | BQ63: 0 | BS63: PARCIAL: | BU63: =SUM(BU15:BU62) -> 0 | BV63: 0 | BW63: 0 | BX63: 0 | BY63: 0 | BZ63: 0 | CA63: 0 | CB63: 0 | CC63: 0 | CD63: 0 | CE63: 0 | CF63: 0 | CG63: 0 | CH63: 0 | CI63: 0 | CJ63: 0 | CK63: 0 | CL63: 0 | CM63: 0 | CN63: 0 | CP63: PARCIAL: | CR63: =SUM(CR15:CR62) -> 0 | CS63: 0 | CT63: 0 | CU63: 0 | CV63: 0 | CW63: 0 | CX63: 0 | CY63: 0 | CZ63: 0 | DA63: 0 | DB63: 0 | DC63: 0 | DD63: 0 | DE63: 0 | DF63: 0 | DG63: 0 | DH63: 0 | DI63: 0 | DJ63: 0 | DK63: 0 | DM63: PARCIAL: | DO63: =SUM(DO15:DO62) -> 0 | DP63: 0 | DQ63: 0 | DR63: 0 | DS63: 0 | DT63: 0 | DU63: 0 | DV63: 0 | DW63: 0 | DX63: 0 | DY63: 0 | DZ63: 0 | EA63: 0 | EB63: 0 | EC63: 0 | ED63: 0 | EE63: 0 | EF63: 0 | EG63: 0 | EH63: 0 | EJ63: PARCIAL: | EL63: =SUM(EL15:EL62) -> 0 | EM63: 0 | EN63: 0 | EO63: 0 | EP63: 0 | EQ63: 0 | ER63: 0 | ES63: 0 | ET63: 0 | EU63: 0 | EV63: 0 | EW63: 0 | EX63: 0 | EY63: 0 | EZ63: 0 | FA63: 0 | FB63: 0 | FC63: 0 | FD63: 0 | FE63: 0 | FG63: =SUM(D63:W63,AA63:AT63,AX63:BQ63,BU63:CN63,CR63:DK63,DO63:EH63,EL63:FE63) -> 0
B64: ENCUESTADOR : ______________________ | G64: JEFE DE BRIGADA : ____________________ | M64: ING.RESPONS: __________________ | S64: SUPERV.MTC : ________________________ | Y64: ENCUESTADOR : ______________________ | AD64: JEFE DE BRIGADA : ____________________ | AI64: ING.RESPONS: __________________ | AP64: SUPERV.MTC : ________________________ | AV64: ENCUESTADOR : ______________________ | BA64: JEFE DE BRIGADA : ____________________ | BF64: ING.RESPONS: __________________ | BM64: SUPERV.MTC : ________________________ | BS64: ENCUESTADOR : ______________________ | BX64: JEFE DE BRIGADA : ____________________ | CC64: ING.RESPONS: __________________ | CJ64: SUPERV.MTC : ________________________ | CP64: ENCUESTADOR : ______________________ | CU64: JEFE DE BRIGADA : ____________________ | CZ64: ING.RESPONS: __________________ | DG64: SUPERV.MTC : ________________________ | DM64: ENCUESTADOR : ______________________ | DR64: JEFE DE BRIGADA : ____________________ | DW64: ING.RESPONS: __________________ | ED64: SUPERV.MTC : ________________________ | EJ64: ENCUESTADOR : ______________________ | EO64: JEFE DE BRIGADA : ____________________ | ET64: ING.RESPONS: __________________ | FA64: SUPERV.MTC : ________________________
B67: ESTUDIO DE TRAFICO - ESTACIÓN PRINCIPAL 2 - LUNES | Y67: ESTUDIO DE TRAFICO - ESTACIÓN PRINCIPAL 2 - MARTES | AV67: ESTUDIO DE TRAFICO - ESTACIÓN PRINCIPAL 2 - MIERCOLES | BS67: ESTUDIO DE TRAFICO - ESTACIÓN PRINCIPAL 2 - JUEVES | CP67: ESTUDIO DE TRAFICO - ESTACIÓN PRINCIPAL 2 - VIERNES | DM67: ESTUDIO DE TRAFICO - ESTACIÓN PRINCIPAL 2 - SABADO | EJ67: ESTUDIO DE TRAFICO - ESTACIÓN PRINCIPAL 2 - DOMINGO
B69: ESTACIÓN PRINCIPAL DE LA CARRETERA | F69: 2 | Q69: ESTACION | Y69: ESTACIÓN PRINCIPAL DE LA CARRETERA | AC69: 2 | AN69: ESTACION | AV69: ESTACIÓN PRINCIPAL DE LA CARRETERA | AZ69: 2 | BK69: ESTACION | BS69: ESTACIÓN PRINCIPAL DE LA CARRETERA | BW69: 2 | CH69: ESTACION | CP69: ESTACIÓN PRINCIPAL DE LA CARRETERA | CT69: 2 | DE69: ESTACION | DM69: ESTACIÓN PRINCIPAL DE LA CARRETERA | DQ69: 2 | EB69: ESTACION | EJ69: ESTACIÓN PRINCIPAL DE LA CARRETERA | EN69: 2 | EY69: ESTACION
B70: SENTIDO | H70: E | M70: S | Q70: CODIGO DE LA ESTACION | Y70: SENTIDO | AE70: E | AI70: S | AN70: CODIGO DE LA ESTACION | AV70: SENTIDO | BB70: E | BF70: S | BK70: CODIGO DE LA ESTACION | BS70: SENTIDO | BY70: E | CC70: S | CH70: CODIGO DE LA ESTACION | CP70: SENTIDO | CV70: E | CZ70: S | DE70: CODIGO DE LA ESTACION | DM70: SENTIDO | DS70: E | DW70: S | EB70: CODIGO DE LA ESTACION | EJ70: SENTIDO | EP70: E | ET70: S | EY70: CODIGO DE LA ESTACION
B71: UBICACIÓN | Q71: DIA Y FECHA | Y71: UBICACIÓN | AN71: DIA Y FECHA | AV71: UBICACIÓN | BK71: DIA Y FECHA | BS71: UBICACIÓN | CH71: DIA Y FECHA | CP71: UBICACIÓN | DE71: DIA Y FECHA | DM71: UBICACIÓN | EB71: DIA Y FECHA | EJ71: UBICACIÓN | EY71: DIA Y FECHA
B72: DIA | C72: Lunes | Y72: DIA | Z72: Martes | AV72: DIA | AW72: Miércoles | BS72: DIA | BT72: Jueves | CP72: DIA | CQ72: Viernes | DM72: DIA | DN72: Sábado | EJ72: DIA | EK72: Domingo
B74: HORA | C74: SENTI DO | D74: AUTO | E74: STATION WAGON | F74: CAMIONETAS | H74: RURAL Combi | I74: MICRO | J74: BUS | M74: CAMION | P74: SEMI TRAYLER | T74: TRAYLER | Y74: HORA | Z74: SENTI DO | AA74: AUTO | AB74: STATION WAGON | AC74: CAMIONETAS | AE74: RURAL Combi | AF74: MICRO | AG74: BUS | AJ74: CAMION | AM74: SEMI TRAYLER | AQ74: TRAYLER | AV74: HORA | AW74: SENTI DO | AX74: AUTO | AY74: STATION WAGON | AZ74: CAMIONETAS | BB74: RURAL Combi | BC74: MICRO | BD74: BUS | BG74: CAMION | BJ74: SEMI TRAYLER | BN74: TRAYLER | BS74: HORA | BT74: SENTI DO | BU74: AUTO | BV74: STATION WAGON | BW74: CAMIONETAS | BY74: RURAL Combi | BZ74: MICRO | CA74: BUS | CD74: CAMION | CG74: SEMI TRAYLER | CK74: TRAYLER | CP74: HORA | CQ74: SENTI DO | CR74: AUTO | CS74: STATION WAGON | CT74: CAMIONETAS | CV74: RURAL Combi | CW74: MICRO | CX74: BUS | DA74: CAMION | DD74: SEMI TRAYLER | DH74: TRAYLER | DM74: HORA | DN74: SENTI DO | DO74: AUTO | DP74: STATION WAGON | DQ74: CAMIONETAS | DS74: RURAL Combi | DT74: MICRO | DU74: BUS | DX74: CAMION | EA74: SEMI TRAYLER | EE74: TRAYLER | EJ74: HORA | EK74: SENTI DO | EL74: AUTO | EM74: STATION WAGON | EN74: CAMIONETAS | EP74: RURAL Combi | EQ74: MICRO | ER74: BUS | EU74: CAMION | EX74: SEMI TRAYLER | FB74: TRAYLER
F75: PICK UP | G75: PANEL | J75: 2 E | K75: 3 E | L75: 4 E | M75: 2 E | N75: 3 E | O75: 4 E | P75: 2S1/2S2 | Q75: 2S3 | R75: 3S1/3S2 | S75: >= 3S3 | T75: 2T2 | U75: 2T3 | V75: 3T2 | W75: >=3T3 | AC75: PICK UP | AD75: PANEL | AG75: 2 E | AH75: 3 E | AI75: 4 E | AJ75: 2 E | AK75: 3 E | AL75: 4 E | AM75: 2S1/2S2 | AN75: 2S3 | AO75: 3S1/3S2 | AP75: >= 3S3 | AQ75: 2T2 | AR75: 2T3 | AS75: 3T2 | AT75: >=3T3 | AZ75: PICK UP | BA75: PANEL | BD75: 2 E | BE75: 3 E | BF75: 4 E | BG75: 2 E | BH75: 3 E | BI75: 4 E | BJ75: 2S1/2S2 | BK75: 2S3 | BL75: 3S1/3S2 | BM75: >= 3S3 | BN75: 2T2 | BO75: 2T3 | BP75: 3T2 | BQ75: >=3T3 | BW75: PICK UP | BX75: PANEL | CA75: 2 E | CB75: 3 E | CC75: 4 E | CD75: 2 E | CE75: 3 E | CF75: 4 E | CG75: 2S1/2S2 | CH75: 2S3 | CI75: 3S1/3S2 | CJ75: >= 3S3 | CK75: 2T2 | CL75: 2T3 | CM75: 3T2 | CN75: >=3T3 | CT75: PICK UP | CU75: PANEL | CX75: 2 E | CY75: 3 E | CZ75: 4 E | DA75: 2 E | DB75: 3 E | DC75: 4 E | DD75: 2S1/2S2 | DE75: 2S3 | DF75: 3S1/3S2 | DG75: >= 3S3 | DH75: 2T2 | DI75: 2T3 | DJ75: 3T2 | DK75: >=3T3 | DQ75: PICK UP | DR75: PANEL | DU75: 2 E | DV75: 3 E | DW75: 4 E | DX75: 2 E | DY75: 3 E | DZ75: 4 E | EA75: 2S1/2S2 | EB75: 2S3 | EC75: 3S1/3S2 | ED75: >= 3S3 | EE75: 2T2 | EF75: 2T3 | EG75: 3T2 | EH75: >=3T3 | EN75: PICK UP | EO75: PANEL | ER75: 2 E | ES75: 3 E | ET75: 4 E | EU75: 2 E | EV75: 3 E | EW75: 4 E | EX75: 2S1/2S2 | EY75: 2S3 | EZ75: 3S1/3S2 | FA75: >= 3S3 | FB75: 2T2 | FC75: 2T3 | FD75: 3T2 | FE75: >=3T3
B76: 00-01 | C76: E | Y76: 00-01 | Z76: E | AV76: 00-01 | AW76: E | BS76: 00-01 | BT76: E | CP76: 00-01 | CQ76: E | DM76: 00-01 | DN76: E | EJ76: 00-01 | EK76: E
C77: S | Z77: S | AW77: S | BT77: S | CQ77: S | DN77: S | EK77: S
B78: 01-02 | C78: E | Y78: 01-02 | Z78: E | AV78: 01-02 | AW78: E | BS78: 01-02 | BT78: E | CP78: 01-02 | CQ78: E | DM78: 01-02 | DN78: E | EJ78: 01-02 | EK78: E
C79: S | Z79: S | AW79: S | BT79: S | CQ79: S | DN79: S | EK79: S
B80: 02-03 | C80: E | Y80: 02-03 | Z80: E | AV80: 02-03 | AW80: E | BS80: 02-03 | BT80: E | CP80: 02-03 | CQ80: E | DM80: 02-03 | DN80: E | EJ80: 02-03 | EK80: E
C81: S | Z81: S | AW81: S | BT81: S | CQ81: S | DN81: S | EK81: S
B82: 03-04 | C82: E | Y82: 03-04 | Z82: E | AV82: 03-04 | AW82: E | BS82: 03-04 | BT82: E | CP82: 03-04 | CQ82: E | DM82: 03-04 | DN82: E | EJ82: 03-04 | EK82: E
C83: S | Z83: S | AW83: S | BT83: S | CQ83: S | DN83: S | EK83: S
B84: 04-05 | C84: E | Y84: 04-05 | Z84: E | AV84: 04-05 | AW84: E | BS84: 04-05 | BT84: E | CP84: 04-05 | CQ84: E | DM84: 04-05 | DN84: E | EJ84: 04-05 | EK84: E
C85: S | Z85: S | AW85: S | BT85: S | CQ85: S | DN85: S | EK85: S
B86: 05-06 | C86: E | Y86: 05-06 | Z86: E | AV86: 05-06 | AW86: E | BS86: 05-06 | BT86: E | CP86: 05-06 | CQ86: E | DM86: 05-06 | DN86: E | EJ86: 05-06 | EK86: E
C87: S | Z87: S | AW87: S | BT87: S | CQ87: S | DN87: S | EK87: S
B88: 06-07 | C88: E | Y88: 06-07 | Z88: E | AV88: 06-07 | AW88: E | BS88: 06-07 | BT88: E | CP88: 06-07 | CQ88: E | DM88: 06-07 | DN88: E | EJ88: 06-07 | EK88: E
C89: S | Z89: S | AW89: S | BT89: S | CQ89: S | DN89: S | EK89: S
B90: 07-08 | C90: E | Y90: 07-08 | Z90: E | AV90: 07-08 | AW90: E | BS90: 07-08 | BT90: E | CP90: 07-08 | CQ90: E | DM90: 07-08 | DN90: E | EJ90: 07-08 | EK90: E
C91: S | Z91: S | AW91: S | BT91: S | CQ91: S | DN91: S | EK91: S
B92: 08-09 | C92: E | Y92: 08-09 | Z92: E | AV92: 08-09 | AW92: E | BS92: 08-09 | BT92: E | CP92: 08-09 | CQ92: E | DM92: 08-09 | DN92: E | EJ92: 08-09 | EK92: E
C93: S | Z93: S | AW93: S | BT93: S | CQ93: S | DN93: S | EK93: S
B94: 09-10 | C94: E | Y94: 09-10 | Z94: E | AV94: 09-10 | AW94: E | BS94: 09-10 | BT94: E | CP94: 09-10 | CQ94: E | DM94: 09-10 | DN94: E | EJ94: 09-10 | EK94: E
C95: S | Z95: S | AW95: S | BT95: S | CQ95: S | DN95: S | EK95: S
B96: 10-11 | C96: E | Y96: 10-11 | Z96: E | AV96: 10-11 | AW96: E | BS96: 10-11 | BT96: E | CP96: 10-11 | CQ96: E | DM96: 10-11 | DN96: E | EJ96: 10-11 | EK96: E
C97: S | Z97: S | AW97: S | BT97: S | CQ97: S | DN97: S | EK97: S
B98: 11-12 | C98: E | Y98: 11-12 | Z98: E | AV98: 11-12 | AW98: E | BS98: 11-12 | BT98: E | CP98: 11-12 | CQ98: E | DM98: 11-12 | DN98: E | EJ98: 11-12 | EK98: E
C99: S | Z99: S | AW99: S | BT99: S | CQ99: S | DN99: S | EK99: S
B100: 12-13 | C100: E | Y100: 12-13 | Z100: E | AV100: 12-13 | AW100: E | BS100: 12-13 | BT100: E | CP100: 12-13 | CQ100: E | DM100: 12-13 | DN100: E | EJ100: 12-13 | EK100: E
C101: S | Z101: S | AW101: S | BT101: S | CQ101: S | DN101: S | EK101: S
B102: 13-14 | C102: E | Y102: 13-14 | Z102: E | AV102: 13-14 | AW102: E | BS102: 13-14 | BT102: E | CP102: 13-14 | CQ102: E | DM102: 13-14 | DN102: E | EJ102: 13-14 | EK102: E
C103: S | Z103: S | AW103: S | BT103: S | CQ103: S | DN103: S | EK103: S
B104: 14-15 | C104: E | Y104: 14-15 | Z104: E | AV104: 14-15 | AW104: E | BS104: 14-15 | BT104: E | CP104: 14-15 | CQ104: E | DM104: 14-15 | DN104: E | EJ104: 14-15 | EK104: E
C105: S | Z105: S | AW105: S | BT105: S | CQ105: S | DN105: S | EK105: S
B106: 15-16 | C106: E | Y106: 15-16 | Z106: E | AV106: 15-16 | AW106: E | BS106: 15-16 | BT106: E | CP106: 15-16 | CQ106: E | DM106: 15-16 | DN106: E | EJ106: 15-16 | EK106: E
C107: S | Z107: S | AW107: S | BT107: S | CQ107: S | DN107: S | EK107: S
B108: 16-17 | C108: E | Y108: 16-17 | Z108: E | AV108: 16-17 | AW108: E | BS108: 16-17 | BT108: E | CP108: 16-17 | CQ108: E | DM108: 16-17 | DN108: E | EJ108: 16-17 | EK108: E
C109: S | Z109: S | AW109: S | BT109: S | CQ109: S | DN109: S | EK109: S
B110: 17-18 | C110: E | Y110: 17-18 | Z110: E | AV110: 17-18 | AW110: E | BS110: 17-18 | BT110: E | CP110: 17-18 | CQ110: E | DM110: 17-18 | DN110: E | EJ110: 17-18 | EK110: E
C111: S | Z111: S | AW111: S | BT111: S | CQ111: S | DN111: S | EK111: S
B112: 18-19 | C112: E | Y112: 18-19 | Z112: E | AV112: 18-19 | AW112: E | BS112: 18-19 | BT112: E | CP112: 18-19 | CQ112: E | DM112: 18-19 | DN112: E | EJ112: 18-19 | EK112: E
C113: S | Z113: S | AW113: S | BT113: S | CQ113: S | DN113: S | EK113: S
B114: 19-20 | C114: E | Y114: 19-20 | Z114: E | AV114: 19-20 | AW114: E | BS114: 19-20 | BT114: E | CP114: 19-20 | CQ114: E | DM114: 19-20 | DN114: E | EJ114: 19-20 | EK114: E
C115: S | Z115: S | AW115: S | BT115: S | CQ115: S | DN115: S | EK115: S
B116: 20-21 | C116: E | Y116: 20-21 | Z116: E | AV116: 20-21 | AW116: E | BS116: 20-21 | BT116: E | CP116: 20-21 | CQ116: E | DM116: 20-21 | DN116: E | EJ116: 20-21 | EK116: E
C117: S | Z117: S | AW117: S | BT117: S | CQ117: S | DN117: S | EK117: S
B118: 21-22 | C118: E | Y118: 21-22 | Z118: E | AV118: 21-22 | AW118: E | BS118: 21-22 | BT118: E | CP118: 21-22 | CQ118: E | DM118: 21-22 | DN118: E | EJ118: 21-22 | EK118: E
C119: S | Z119: S | AW119: S | BT119: S | CQ119: S | DN119: S | EK119: S
B120: 22-23 | C120: E | Y120: 22-23 | Z120: E | AV120: 22-23 | AW120: E | BS120: 22-23 | BT120: E | CP120: 22-23 | CQ120: E | DM120: 22-23 | DN120: E | EJ120: 22-23 | EK120: E
C121: S | Z121: S | AW121: S | BT121: S | CQ121: S | DN121: S | EK121: S
B122: 23-24 | C122: E | Y122: 23-24 | Z122: E | AV122: 23-24 | AW122: E | BS122: 23-24 | BT122: E | CP122: 23-24 | CQ122: E | DM122: 23-24 | DN122: E | EJ122: 23-24 | EK122: E
C123: S | Z123: S | AW123: S | BT123: S | CQ123: S | DN123: S | EK123: S
B124: PARCIAL: | D124: =SUM(D76:D123) -> 0 | E124: 0 | F124: 0 | G124: 0 | H124: 0 | I124: 0 | J124: 0 | K124: 0 | L124: 0 | M124: 0 | N124: 0 | O124: 0 | P124: 0 | Q124: 0 | R124: 0 | S124: 0 | T124: 0 | U124: 0 | V124: 0 | W124: 0 | Y124: PARCIAL: | AA124: =SUM(AA76:AA123) -> 0 | AB124: 0 | AC124: 0 | AD124: 0 | AE124: 0 | AF124: 0 | AG124: 0 | AH124: 0 | AI124: 0 | AJ124: 0 | AK124: 0 | AL124: 0 | AM124: 0 | AN124: 0 | AO124: 0 | AP124: 0 | AQ124: 0 | AR124: 0 | AS124: 0 | AT124: 0 | AV124: PARCIAL: | AX124: =SUM(AX76:AX123) -> 0 | AY124: 0 | AZ124: 0 | BA124: 0 | BB124: 0 | BC124: 0 | BD124: 0 | BE124: 0 | BF124: 0 | BG124: 0 | BH124: 0 | BI124: 0 | BJ124: 0 | BK124: 0 | BL124: 0 | BM124: 0 | BN124: 0 | BO124: 0 | BP124: 0 | BQ124: 0 | BS124: PARCIAL: | BU124: =SUM(BU76:BU123) -> 0 | BV124: 0 | BW124: 0 | BX124: 0 | BY124: 0 | BZ124: 0 | CA124: 0 | CB124: 0 | CC124: 0 | CD124: 0 | CE124: 0 | CF124: 0 | CG124: 0 | CH124: 0 | CI124: 0 | CJ124: 0 | CK124: 0 | CL124: 0 | CM124: 0 | CN124: 0 | CP124: PARCIAL: | CR124: =SUM(CR76:CR123) -> 0 | CS124: 0 | CT124: 0 | CU124: 0 | CV124: 0 | CW124: 0 | CX124: 0 | CY124: 0 | CZ124: 0 | DA124: 0 | DB124: 0 | DC124: 0 | DD124: 0 | DE124: 0 | DF124: 0 | DG124: 0 | DH124: 0 | DI124: 0 | DJ124: 0 | DK124: 0 | DM124: PARCIAL: | DO124: =SUM(DO76:DO123) -> 0 | DP124: 0 | DQ124: 0 | DR124: 0 | DS124: 0 | DT124: 0 | DU124: 0 | DV124: 0 | DW124: 0 | DX124: 0 | DY124: 0 | DZ124: 0 | EA124: 0 | EB124: 0 | EC124: 0 | ED124: 0 | EE124: 0 | EF124: 0 | EG124: 0 | EH124: 0 | EJ124: PARCIAL: | EL124: =SUM(EL76:EL123) -> 0 | EM124: 0 | EN124: 0 | EO124: 0 | EP124: 0 | EQ124: 0 | ER124: 0 | ES124: 0 | ET124: 0 | EU124: 0 | EV124: 0 | EW124: 0 | EX124: 0 | EY124: 0 | EZ124: 0 | FA124: 0 | FB124: 0 | FC124: 0 | FD124: 0 | FE124: 0 | FG124: =SUM(D124:W124,AA124:AT124,AX124:BQ124,BU124:CN124,CR124:DK124,DO124:EH124,EL124:FE124) -> 0
B125: ENCUESTADOR : ______________________ | G125: JEFE DE BRIGADA : ____________________ | M125: ING.RESPONS: __________________ | S125: SUPERV.MTC : ________________________ | Y125: ENCUESTADOR : ______________________ | AD125: JEFE DE BRIGADA : ____________________ | AI125: ING.RESPONS: __________________ | AP125: SUPERV.MTC : ________________________ | AV125: ENCUESTADOR : ______________________ | BA125: JEFE DE BRIGADA : ____________________ | BF125: ING.RESPONS: __________________ | BM125: SUPERV.MTC : ________________________ | BS125: ENCUESTADOR : ______________________ | BX125: JEFE DE BRIGADA : ____________________ | CC125: ING.RESPONS: __________________ | CJ125: SUPERV.MTC : ________________________ | CP125: ENCUESTADOR : ______________________ | CU125: JEFE DE BRIGADA : ____________________ | CZ125: ING.RESPONS: __________________ | DG125: SUPERV.MTC : ________________________ | DM125: ENCUESTADOR : ______________________ | DR125: JEFE DE BRIGADA : ____________________ | DW125: ING.RESPONS: __________________ | ED125: SUPERV.MTC : ________________________ | EJ125: ENCUESTADOR : ______________________ | EO125: JEFE DE BRIGADA : ____________________ | ET125: ING.RESPONS: __________________ | FA125: SUPERV.MTC : ________________________
B129: ESTUDIO DE TRAFICO - ESTACIÓN PRINCIPAL 3 - LUNES | Y129: ESTUDIO DE TRAFICO - ESTACIÓN PRINCIPAL 3 - MARTES | AV129: ESTUDIO DE TRAFICO - ESTACIÓN PRINCIPAL 3 - MIERCOLES | BS129: ESTUDIO DE TRAFICO - ESTACIÓN PRINCIPAL 3 - JUEVES | CP129: ESTUDIO DE TRAFICO - ESTACIÓN PRINCIPAL 3 - VIERNES | DM129: ESTUDIO DE TRAFICO - ESTACIÓN PRINCIPAL 3 - SABADO | EJ129: ESTUDIO DE TRAFICO - ESTACIÓN PRINCIPAL 3 - DOMINGO
B131: ESTACIÓN PRINCIPAL DE LA CARRETERA | F131: 3 | Q131: ESTACION | Y131: ESTACIÓN PRINCIPAL DE LA CARRETERA | AC131: 3 | AN131: ESTACION | AV131: ESTACIÓN PRINCIPAL DE LA CARRETERA | AZ131: 3 | BK131: ESTACION | BS131: ESTACIÓN PRINCIPAL DE LA CARRETERA | BW131: 3 | CH131: ESTACION | CP131: ESTACIÓN PRINCIPAL DE LA CARRETERA | CT131: 3 | DE131: ESTACION | DM131: ESTACIÓN PRINCIPAL DE LA CARRETERA | DQ131: 3 | EB131: ESTACION | EJ131: ESTACIÓN PRINCIPAL DE LA CARRETERA | EN131: 3 | EY131: ESTACION
B132: SENTIDO | H132: E | M132: S | Q132: CODIGO DE LA ESTACION | Y132: SENTIDO | AE132: E | AI132: S | AN132: CODIGO DE LA ESTACION | AV132: SENTIDO | BB132: E | BF132: S | BK132: CODIGO DE LA ESTACION | BS132: SENTIDO | BY132: E | CC132: S | CH132: CODIGO DE LA ESTACION | CP132: SENTIDO | CV132: E | CZ132: S | DE132: CODIGO DE LA ESTACION | DM132: SENTIDO | DS132: E | DW132: S | EB132: CODIGO DE LA ESTACION | EJ132: SENTIDO | EP132: E | ET132: S | EY132: CODIGO DE LA ESTACION
B133: UBICACIÓN | Q133: DIA Y FECHA | Y133: UBICACIÓN | AN133: DIA Y FECHA | AV133: UBICACIÓN | BK133: DIA Y FECHA | BS133: UBICACIÓN | CH133: DIA Y FECHA | CP133: UBICACIÓN | DE133: DIA Y FECHA | DM133: UBICACIÓN | EB133: DIA Y FECHA | EJ133: UBICACIÓN | EY133: DIA Y FECHA
B134: DIA | C134: Lunes | Y134: DIA | Z134: Martes | AV134: DIA | AW134: Miércoles | BS134: DIA | BT134: Jueves | CP134: DIA | CQ134: Viernes | DM134: DIA | DN134: Sábado | EJ134: DIA | EK134: Domingo
B136: HORA | C136: SENTI DO | D136: AUTO | E136: STATION WAGON | F136: CAMIONETAS | H136: RURAL Combi | I136: MICRO | J136: BUS | M136: CAMION | P136: SEMI TRAYLER | T136: TRAYLER | Y136: HORA | Z136: SENTI DO | AA136: AUTO | AB136: STATION WAGON | AC136: CAMIONETAS | AE136: RURAL Combi | AF136: MICRO | AG136: BUS | AJ136: CAMION | AM136: SEMI TRAYLER | AQ136: TRAYLER | AV136: HORA | AW136: SENTI DO | AX136: AUTO | AY136: STATION WAGON | AZ136: CAMIONETAS | BB136: RURAL Combi | BC136: MICRO | BD136: BUS | BG136: CAMION | BJ136: SEMI TRAYLER | BN136: TRAYLER | BS136: HORA | BT136: SENTI DO | BU136: AUTO | BV136: STATION WAGON | BW136: CAMIONETAS | BY136: RURAL Combi | BZ136: MICRO | CA136: BUS | CD136: CAMION | CG136: SEMI TRAYLER | CK136: TRAYLER | CP136: HORA | CQ136: SENTI DO | CR136: AUTO | CS136: STATION WAGON | CT136: CAMIONETAS | CV136: RURAL Combi | CW136: MICRO | CX136: BUS | DA136: CAMION | DD136: SEMI TRAYLER | DH136: TRAYLER | DM136: HORA | DN136: SENTI DO | DO136: AUTO | DP136: STATION WAGON | DQ136: CAMIONETAS | DS136: RURAL Combi | DT136: MICRO | DU136: BUS | DX136: CAMION | EA136: SEMI TRAYLER | EE136: TRAYLER | EJ136: HORA | EK136: SENTI DO | EL136: AUTO | EM136: STATION WAGON | EN136: CAMIONETAS | EP136: RURAL Combi | EQ136: MICRO | ER136: BUS | EU136: CAMION | EX136: SEMI TRAYLER | FB136: TRAYLER
F137: PICK UP | G137: PANEL | J137: 2 E | K137: 3 E | L137: 4 E | M137: 2 E | N137: 3 E | O137: 4 E | P137: 2S1/2S2 | Q137: 2S3 | R137: 3S1/3S2 | S137: >= 3S3 | T137: 2T2 | U137: 2T3 | V137: 3T2 | W137: >=3T3 | AC137: PICK UP | AD137: PANEL | AG137: 2 E | AH137: 3 E | AI137: 4 E | AJ137: 2 E | AK137: 3 E | AL137: 4 E | AM137: 2S1/2S2 | AN137: 2S3 | AO137: 3S1/3S2 | AP137: >= 3S3 | AQ137: 2T2 | AR137: 2T3 | AS137: 3T2 | AT137: >=3T3 | AZ137: PICK UP | BA137: PANEL | BD137: 2 E | BE137: 3 E | BF137: 4 E | BG137: 2 E | BH137: 3 E | BI137: 4 E | BJ137: 2S1/2S2 | BK137: 2S3 | BL137: 3S1/3S2 | BM137: >= 3S3 | BN137: 2T2 | BO137: 2T3 | BP137: 3T2 | BQ137: >=3T3 | BW137: PICK UP | BX137: PANEL | CA137: 2 E | CB137: 3 E | CC137: 4 E | CD137: 2 E | CE137: 3 E | CF137: 4 E | CG137: 2S1/2S2 | CH137: 2S3 | CI137: 3S1/3S2 | CJ137: >= 3S3 | CK137: 2T2 | CL137: 2T3 | CM137: 3T2 | CN137: >=3T3 | CT137: PICK UP | CU137: PANEL | CX137: 2 E | CY137: 3 E | CZ137: 4 E | DA137: 2 E | DB137: 3 E | DC137: 4 E | DD137: 2S1/2S2 | DE137: 2S3 | DF137: 3S1/3S2 | DG137: >= 3S3 | DH137: 2T2 | DI137: 2T3 | DJ137: 3T2 | DK137: >=3T3 | DQ137: PICK UP | DR137: PANEL | DU137: 2 E | DV137: 3 E | DW137: 4 E | DX137: 2 E | DY137: 3 E | DZ137: 4 E | EA137: 2S1/2S2 | EB137: 2S3 | EC137: 3S1/3S2 | ED137: >= 3S3 | EE137: 2T2 | EF137: 2T3 | EG137: 3T2 | EH137: >=3T3 | EN137: PICK UP | EO137: PANEL | ER137: 2 E | ES137: 3 E | ET137: 4 E | EU137: 2 E | EV137: 3 E | EW137: 4 E | EX137: 2S1/2S2 | EY137: 2S3 | EZ137: 3S1/3S2 | FA137: >= 3S3 | FB137: 2T2 | FC137: 2T3 | FD137: 3T2 | FE137: >=3T3
B138: 00-01 | C138: E | Y138: 00-01 | Z138: E | AV138: 00-01 | AW138: E | BS138: 00-01 | BT138: E | CP138: 00-01 | CQ138: E | DM138: 00-01 | DN138: E | EJ138: 00-01 | EK138: E
C139: S | Z139: S | AW139: S | BT139: S | CQ139: S | DN139: S | EK139: S
B140: 01-02 | C140: E | Y140: 01-02 | Z140: E | AV140: 01-02 | AW140: E | BS140: 01-02 | BT140: E | CP140: 01-02 | CQ140: E | DM140: 01-02 | DN140: E | EJ140: 01-02 | EK140: E
C141: S | Z141: S | AW141: S | BT141: S | CQ141: S | DN141: S | EK141: S
B142: 02-03 | C142: E | Y142: 02-03 | Z142: E | AV142: 02-03 | AW142: E | BS142: 02-03 | BT142: E | CP142: 02-03 | CQ142: E | DM142: 02-03 | DN142: E | EJ142: 02-03 | EK142: E
C143: S | Z143: S | AW143: S | BT143: S | CQ143: S | DN143: S | EK143: S
B144: 03-04 | C144: E | Y144: 03-04 | Z144: E | AV144: 03-04 | AW144: E | BS144: 03-04 | BT144: E | CP144: 03-04 | CQ144: E | DM144: 03-04 | DN144: E | EJ144: 03-04 | EK144: E
C145: S | Z145: S | AW145: S | BT145: S | CQ145: S | DN145: S | EK145: S
B146: 04-05 | C146: E | Y146: 04-05 | Z146: E | AV146: 04-05 | AW146: E | BS146: 04-05 | BT146: E | CP146: 04-05 | CQ146: E | DM146: 04-05 | DN146: E | EJ146: 04-05 | EK146: E
C147: S | Z147: S | AW147: S | BT147: S | CQ147: S | DN147: S | EK147: S
B148: 05-06 | C148: E | Y148: 05-06 | Z148: E | AV148: 05-06 | AW148: E | BS148: 05-06 | BT148: E | CP148: 05-06 | CQ148: E | DM148: 05-06 | DN148: E | EJ148: 05-06 | EK148: E
C149: S | Z149: S | AW149: S | BT149: S | CQ149: S | DN149: S | EK149: S
B150: 06-07 | C150: E | Y150: 06-07 | Z150: E | AV150: 06-07 | AW150: E | BS150: 06-07 | BT150: E | CP150: 06-07 | CQ150: E | DM150: 06-07 | DN150: E | EJ150: 06-07 | EK150: E
C151: S | Z151: S | AW151: S | BT151: S | CQ151: S | DN151: S | EK151: S
B152: 07-08 | C152: E | Y152: 07-08 | Z152: E | AV152: 07-08 | AW152: E | BS152: 07-08 | BT152: E | CP152: 07-08 | CQ152: E | DM152: 07-08 | DN152: E | EJ152: 07-08 | EK152: E
C153: S | Z153: S | AW153: S | BT153: S | CQ153: S | DN153: S | EK153: S
B154: 08-09 | C154: E | Y154: 08-09 | Z154: E | AV154: 08-09 | AW154: E | BS154: 08-09 | BT154: E | CP154: 08-09 | CQ154: E | DM154: 08-09 | DN154: E | EJ154: 08-09 | EK154: E
C155: S | Z155: S | AW155: S | BT155: S | CQ155: S | DN155: S | EK155: S
B156: 09-10 | C156: E | Y156: 09-10 | Z156: E | AV156: 09-10 | AW156: E | BS156: 09-10 | BT156: E | CP156: 09-10 | CQ156: E | DM156: 09-10 | DN156: E | EJ156: 09-10 | EK156: E
C157: S | Z157: S | AW157: S | BT157: S | CQ157: S | DN157: S | EK157: S
B158: 10-11 | C158: E | Y158: 10-11 | Z158: E | AV158: 10-11 | AW158: E | BS158: 10-11 | BT158: E | CP158: 10-11 | CQ158: E | DM158: 10-11 | DN158: E | EJ158: 10-11 | EK158: E
C159: S | Z159: S | AW159: S | BT159: S | CQ159: S | DN159: S | EK159: S
B160: 11-12 | C160: E | Y160: 11-12 | Z160: E | AV160: 11-12 | AW160: E | BS160: 11-12 | BT160: E | CP160: 11-12 | CQ160: E | DM160: 11-12 | DN160: E | EJ160: 11-12 | EK160: E
C161: S | Z161: S | AW161: S | BT161: S | CQ161: S | DN161: S | EK161: S
B162: 12-13 | C162: E | Y162: 12-13 | Z162: E | AV162: 12-13 | AW162: E | BS162: 12-13 | BT162: E | CP162: 12-13 | CQ162: E | DM162: 12-13 | DN162: E | EJ162: 12-13 | EK162: E
C163: S | Z163: S | AW163: S | BT163: S | CQ163: S | DN163: S | EK163: S
B164: 13-14 | C164: E | Y164: 13-14 | Z164: E | AV164: 13-14 | AW164: E | BS164: 13-14 | BT164: E | CP164: 13-14 | CQ164: E | DM164: 13-14 | DN164: E | EJ164: 13-14 | EK164: E
C165: S | Z165: S | AW165: S | BT165: S | CQ165: S | DN165: S | EK165: S
B166: 14-15 | C166: E | Y166: 14-15 | Z166: E | AV166: 14-15 | AW166: E | BS166: 14-15 | BT166: E | CP166: 14-15 | CQ166: E | DM166: 14-15 | DN166: E | EJ166: 14-15 | EK166: E
C167: S | Z167: S | AW167: S | BT167: S | CQ167: S | DN167: S | EK167: S
B168: 15-16 | C168: E | Y168: 15-16 | Z168: E | AV168: 15-16 | AW168: E | BS168: 15-16 | BT168: E | CP168: 15-16 | CQ168: E | DM168: 15-16 | DN168: E | EJ168: 15-16 | EK168: E
C169: S | Z169: S | AW169: S | BT169: S | CQ169: S | DN169: S | EK169: S
B170: 16-17 | C170: E | Y170: 16-17 | Z170: E | AV170: 16-17 | AW170: E | BS170: 16-17 | BT170: E | CP170: 16-17 | CQ170: E | DM170: 16-17 | DN170: E | EJ170: 16-17 | EK170: E
C171: S | Z171: S | AW171: S | BT171: S | CQ171: S | DN171: S | EK171: S
B172: 17-18 | C172: E | Y172: 17-18 | Z172: E | AV172: 17-18 | AW172: E | BS172: 17-18 | BT172: E | CP172: 17-18 | CQ172: E | DM172: 17-18 | DN172: E | EJ172: 17-18 | EK172: E
C173: S | Z173: S | AW173: S | BT173: S | CQ173: S | DN173: S | EK173: S
B174: 18-19 | C174: E | Y174: 18-19 | Z174: E | AV174: 18-19 | AW174: E | BS174: 18-19 | BT174: E | CP174: 18-19 | CQ174: E | DM174: 18-19 | DN174: E | EJ174: 18-19 | EK174: E
C175: S | Z175: S | AW175: S | BT175: S | CQ175: S | DN175: S | EK175: S
B176: 19-20 | C176: E | Y176: 19-20 | Z176: E | AV176: 19-20 | AW176: E | BS176: 19-20 | BT176: E | CP176: 19-20 | CQ176: E | DM176: 19-20 | DN176: E | EJ176: 19-20 | EK176: E
C177: S | Z177: S | AW177: S | BT177: S | CQ177: S | DN177: S | EK177: S
B178: 20-21 | C178: E | Y178: 20-21 | Z178: E | AV178: 20-21 | AW178: E | BS178: 20-21 | BT178: E | CP178: 20-21 | CQ178: E | DM178: 20-21 | DN178: E | EJ178: 20-21 | EK178: E
C179: S | Z179: S | AW179: S | BT179: S | CQ179: S | DN179: S | EK179: S
B180: 21-22 | C180: E | Y180: 21-22 | Z180: E | AV180: 21-22 | AW180: E | BS180: 21-22 | BT180: E | CP180: 21-22 | CQ180: E | DM180: 21-22 | DN180: E | EJ180: 21-22 | EK180: E
C181: S | Z181: S | AW181: S | BT181: S | CQ181: S | DN181: S | EK181: S
B182: 22-23 | C182: E | Y182: 22-23 | Z182: E | AV182: 22-23 | AW182: E | BS182: 22-23 | BT182: E | CP182: 22-23 | CQ182: E | DM182: 22-23 | DN182: E | EJ182: 22-23 | EK182: E
C183: S | Z183: S | AW183: S | BT183: S | CQ183: S | DN183: S | EK183: S
B184: 23-24 | C184: E | Y184: 23-24 | Z184: E | AV184: 23-24 | AW184: E | BS184: 23-24 | BT184: E | CP184: 23-24 | CQ184: E | DM184: 23-24 | DN184: E | EJ184: 23-24 | EK184: E
C185: S | Z185: S | AW185: S | BT185: S | CQ185: S | DN185: S | EK185: S
B186: PARCIAL: | D186: =SUM(D138:D185) -> 0 | E186: 0 | F186: 0 | G186: 0 | H186: 0 | I186: 0 | J186: 0 | K186: 0 | L186: 0 | M186: 0 | N186: 0 | O186: 0 | P186: 0 | Q186: 0 | R186: 0 | S186: 0 | T186: 0 | U186: 0 | V186: 0 | W186: 0 | Y186: PARCIAL: | AA186: =SUM(AA138:AA185) -> 0 | AB186: 0 | AC186: 0 | AD186: 0 | AE186: 0 | AF186: 0 | AG186: 0 | AH186: 0 | AI186: 0 | AJ186: 0 | AK186: 0 | AL186: 0 | AM186: 0 | AN186: 0 | AO186: 0 | AP186: 0 | AQ186: 0 | AR186: 0 | AS186: 0 | AT186: 0 | AV186: PARCIAL: | AX186: =SUM(AX138:AX185) -> 0 | AY186: 0 | AZ186: 0 | BA186: 0 | BB186: 0 | BC186: 0 | BD186: 0 | BE186: 0 | BF186: 0 | BG186: 0 | BH186: 0 | BI186: 0 | BJ186: 0 | BK186: 0 | BL186: 0 | BM186: 0 | BN186: 0 | BO186: 0 | BP186: 0 | BQ186: 0 | BS186: PARCIAL: | BU186: =SUM(BU138:BU185) -> 0 | BV186: 0 | BW186: 0 | BX186: 0 | BY186: 0 | BZ186: 0 | CA186: 0 | CB186: 0 | CC186: 0 | CD186: 0 | CE186: 0 | CF186: 0 | CG186: 0 | CH186: 0 | CI186: 0 | CJ186: 0 | CK186: 0 | CL186: 0 | CM186: 0 | CN186: 0 | CP186: PARCIAL: | CR186: =SUM(CR138:CR185) -> 0 | CS186: 0 | CT186: 0 | CU186: 0 | CV186: 0 | CW186: 0 | CX186: 0 | CY186: 0 | CZ186: 0 | DA186: 0 | DB186: 0 | DC186: 0 | DD186: 0 | DE186: 0 | DF186: 0 | DG186: 0 | DH186: 0 | DI186: 0 | DJ186: 0 | DK186: 0 | DM186: PARCIAL: | DO186: =SUM(DO138:DO185) -> 0 | DP186: 0 | DQ186: 0 | DR186: 0 | DS186: 0 | DT186: 0 | DU186: 0 | DV186: 0 | DW186: 0 | DX186: 0 | DY186: 0 | DZ186: 0 | EA186: 0 | EB186: 0 | EC186: 0 | ED186: 0 | EE186: 0 | EF186: 0 | EG186: 0 | EH186: 0 | EJ186: PARCIAL: | EL186: =SUM(EL138:EL185) -> 0 | EM186: 0 | EN186: 0 | EO186: 0 | EP186: 0 | EQ186: 0 | ER186: 0 | ES186: 0 | ET186: 0 | EU186: 0 | EV186: 0 | EW186: 0 | EX186: 0 | EY186: 0 | EZ186: 0 | FA186: 0 | FB186: 0 | FC186: 0 | FD186: 0 | FE186: 0 | FG186: =SUM(D186:W186,AA186:AT186,AX186:BQ186,BU186:CN186,CR186:DK186,DO186:EH186,EL186:FE186) -> 0
B187: ENCUESTADOR : ______________________ | G187: JEFE DE BRIGADA : ____________________ | M187: ING.RESPONS: __________________ | S187: SUPERV.MTC : ________________________ | Y187: ENCUESTADOR : ______________________ | AD187: JEFE DE BRIGADA : ____________________ | AI187: ING.RESPONS: __________________ | AP187: SUPERV.MTC : ________________________ | AV187: ENCUESTADOR : ______________________ | BA187: JEFE DE BRIGADA : ____________________ | BF187: ING.RESPONS: __________________ | BM187: SUPERV.MTC : ________________________ | BS187: ENCUESTADOR : ______________________ | BX187: JEFE DE BRIGADA : ____________________ | CC187: ING.RESPONS: __________________ | CJ187: SUPERV.MTC : ________________________ | CP187: ENCUESTADOR : ______________________ | CU187: JEFE DE BRIGADA : ____________________ | CZ187: ING.RESPONS: __________________ | DG187: SUPERV.MTC : ________________________ | DM187: ENCUESTADOR : ______________________ | DR187: JEFE DE BRIGADA : ____________________ | DW187: ING.RESPONS: __________________ | ED187: SUPERV.MTC : ________________________ | EJ187: ENCUESTADOR : ______________________ | EO187: JEFE DE BRIGADA : ____________________ | ET187: ING.RESPONS: __________________ | FA187: SUPERV.MTC : ________________________
C192: T1 | D192: =+D63 -> 0 | E192: =+E63 -> 0 | F192: 0 | G192: 0 | H192: 0 | I192: 0 | J192: 0 | K192: 0 | L192: 0 | M192: 0 | N192: 0 | O192: 0 | P192: 0 | Q192: 0 | R192: 0 | S192: 0 | T192: 0 | U192: 0 | V192: 0 | W192: 0 | Z192: T1 | AA192: 0 | AB192: 0 | AC192: 0 | AD192: 0 | AE192: 0 | AF192: 0 | AG192: 0 | AH192: 0 | AI192: 0 | AJ192: 0 | AK192: 0 | AL192: 0 | AM192: 0 | AN192: 0 | AO192: 0 | AP192: 0 | AQ192: 0 | AR192: 0 | AS192: 0 | AT192: 0 | AW192: T1 | AX192: 0 | AY192: 0 | AZ192: 0 | BA192: 0 | BB192: 0 | BC192: 0 | BD192: 0 | BE192: 0 | BF192: 0 | BG192: 0 | BH192: 0 | BI192: 0 | BJ192: 0 | BK192: 0 | BL192: 0 | BM192: 0 | BN192: 0 | BO192: 0 | BP192: 0 | BQ192: =+BQ63 -> 0 | BT192: T1 | BU192: 0 | BV192: 0 | BW192: 0 | BX192: 0 | BY192: 0 | BZ192: 0 | CA192: 0 | CB192: 0 | CC192: 0 | CD192: 0 | CE192: 0 | CF192: 0 | CG192: 0 | CH192: 0 | CI192: 0 | CJ192: 0 | CK192: 0 | CL192: 0 | CM192: 0 | CN192: 0 | CQ192: T1 | CR192: 0 | CS192: 0 | CT192: 0 | CU192: 0 | CV192: 0 | CW192: 0 | CX192: 0 | CY192: 0 | CZ192: 0 | DA192: 0 | DB192: 0 | DC192: 0 | DD192: 0 | DE192: 0 | DF192: 0 | DG192: 0 | DH192: 0 | DI192: 0 | DJ192: 0 | DK192: 0 | DN192: T1 | DO192: 0 | DP192: 0 | DQ192: 0 | DR192: 0 | DS192: 0 | DT192: 0 | DU192: 0 | DV192: 0 | DW192: 0 | DX192: 0 | DY192: 0 | DZ192: 0 | EA192: 0 | EB192: 0 | EC192: =+EC63 -> 0 | ED192: 0 | EE192: 0 | EF192: 0 | EG192: 0 | EH192: 0 | EK192: T1 | EL192: 0 | EM192: 0 | EN192: 0 | EO192: 0 | EP192: 0 | EQ192: 0 | ER192: 0 | ES192: 0 | ET192: 0 | EU192: 0 | EV192: 0 | EW192: 0 | EX192: 0 | EY192: 0 | EZ192: 0 | FA192: 0 | FB192: 0 | FC192: 0 | FD192: 0 | FE192: 0 | FG192: =MAX(FG186,FG124,FG63) -> 0
C193: T2 | D193: =+D124 -> 0 | E193: =+E124 -> 0 | F193: 0 | G193: 0 | H193: 0 | I193: 0 | J193: 0 | K193: 0 | L193: 0 | M193: 0 | N193: 0 | O193: 0 | P193: 0 | Q193: 0 | R193: 0 | S193: 0 | T193: 0 | U193: 0 | V193: 0 | W193: 0 | Z193: T2 | AA193: 0 | AB193: 0 | AC193: 0 | AD193: 0 | AE193: 0 | AF193: 0 | AG193: 0 | AH193: 0 | AI193: 0 | AJ193: 0 | AK193: 0 | AL193: 0 | AM193: 0 | AN193: 0 | AO193: 0 | AP193: 0 | AQ193: 0 | AR193: 0 | AS193: 0 | AT193: 0 | AW193: T2 | AX193: 0 | AY193: 0 | AZ193: 0 | BA193: 0 | BB193: 0 | BC193: 0 | BD193: 0 | BE193: 0 | BF193: 0 | BG193: 0 | BH193: 0 | BI193: 0 | BJ193: 0 | BK193: 0 | BL193: 0 | BM193: 0 | BN193: 0 | BO193: 0 | BP193: 0 | BQ193: =+BQ124 -> 0 | BT193: T2 | BU193: 0 | BV193: 0 | BW193: 0 | BX193: 0 | BY193: 0 | BZ193: 0 | CA193: 0 | CB193: 0 | CC193: 0 | CD193: 0 | CE193: 0 | CF193: 0 | CG193: 0 | CH193: 0 | CI193: 0 | CJ193: 0 | CK193: 0 | CL193: 0 | CM193: 0 | CN193: 0 | CQ193: T2 | CR193: 0 | CS193: 0 | CT193: 0 | CU193: 0 | CV193: 0 | CW193: 0 | CX193: 0 | CY193: 0 | CZ193: 0 | DA193: 0 | DB193: 0 | DC193: 0 | DD193: 0 | DE193: 0 | DF193: 0 | DG193: 0 | DH193: 0 | DI193: 0 | DJ193: 0 | DK193: 0 | DN193: T2 | DO193: 0 | DP193: 0 | DQ193: 0 | DR193: 0 | DS193: 0 | DT193: 0 | DU193: 0 | DV193: 0 | DW193: 0 | DX193: 0 | DY193: 0 | DZ193: 0 | EA193: 0 | EB193: 0 | EC193: =+EC124 -> 0 | ED193: 0 | EE193: 0 | EF193: 0 | EG193: 0 | EH193: 0 | EK193: T2 | EL193: 0 | EM193: 0 | EN193: 0 | EO193: 0 | EP193: 0 | EQ193: 0 | ER193: 0 | ES193: 0 | ET193: 0 | EU193: 0 | EV193: 0 | EW193: 0 | EX193: 0 | EY193: 0 | EZ193: 0 | FA193: 0 | FB193: 0 | FC193: 0 | FD193: 0 | FE193: 0
C194: T3 | D194: =+D186 -> 0 | E194: =+E186 -> 0 | F194: 0 | G194: 0 | H194: 0 | I194: 0 | J194: 0 | K194: 0 | L194: 0 | M194: 0 | N194: 0 | O194: 0 | P194: 0 | Q194: 0 | R194: 0 | S194: 0 | T194: 0 | U194: 0 | V194: 0 | W194: 0 | Z194: T3 | AA194: 0 | AB194: 0 | AC194: 0 | AD194: 0 | AE194: 0 | AF194: 0 | AG194: 0 | AH194: 0 | AI194: 0 | AJ194: 0 | AK194: 0 | AL194: 0 | AM194: 0 | AN194: 0 | AO194: 0 | AP194: 0 | AQ194: 0 | AR194: 0 | AS194: 0 | AT194: 0 | AW194: T3 | AX194: 0 | AY194: 0 | AZ194: 0 | BA194: 0 | BB194: 0 | BC194: 0 | BD194: 0 | BE194: 0 | BF194: 0 | BG194: 0 | BH194: 0 | BI194: 0 | BJ194: 0 | BK194: 0 | BL194: 0 | BM194: 0 | BN194: 0 | BO194: 0 | BP194: 0 | BQ194: =+BQ186 -> 0 | BT194: T3 | BU194: 0 | BV194: 0 | BW194: 0 | BX194: 0 | BY194: 0 | BZ194: 0 | CA194: 0 | CB194: 0 | CC194: 0 | CD194: 0 | CE194: 0 | CF194: 0 | CG194: 0 | CH194: 0 | CI194: 0 | CJ194: 0 | CK194: 0 | CL194: 0 | CM194: 0 | CN194: 0 | CQ194: T3 | CR194: 0 | CS194: 0 | CT194: 0 | CU194: 0 | CV194: 0 | CW194: 0 | CX194: 0 | CY194: 0 | CZ194: 0 | DA194: 0 | DB194: 0 | DC194: 0 | DD194: 0 | DE194: 0 | DF194: 0 | DG194: 0 | DH194: 0 | DI194: 0 | DJ194: 0 | DK194: 0 | DN194: T3 | DO194: 0 | DP194: 0 | DQ194: 0 | DR194: 0 | DS194: 0 | DT194: 0 | DU194: 0 | DV194: 0 | DW194: 0 | DX194: 0 | DY194: 0 | DZ194: 0 | EA194: 0 | EB194: 0 | EC194: =+EC186 -> 0 | ED194: 0 | EE194: 0 | EF194: 0 | EG194: 0 | EH194: 0 | EK194: T3 | EL194: 0 | EM194: 0 | EN194: 0 | EO194: 0 | EP194: 0 | EQ194: 0 | ER194: 0 | ES194: 0 | ET194: 0 | EU194: 0 | EV194: 0 | EW194: 0 | EX194: 0 | EY194: 0 | EZ194: 0 | FA194: 0 | FB194: 0 | FC194: 0 | FD194: 0 | FE194: 0
C196: T1 | D196: =+D192 -> 0 | E196: =+E192 -> 0 | F196: =+F192+G192 -> 0 | G196: =+H192 -> 0 | H196: =+I192 -> 0 | I196: 0 | J196: 0 | K196: 0 | L196: 0 | M196: 0 | N196: 0 | O196: 0 | P196: 0 | Q196: 0 | R196: 0 | S196: 0 | T196: 0 | U196: 0 | V196: 0 | Z196: T1 | AA196: =+AA192 -> 0 | AB196: =+AB192 -> 0 | AC196: =+AC192+AD192 -> 0 | AD196: =+AE192 -> 0 | AE196: =+AF192 -> 0 | AF196: 0 | AG196: 0 | AH196: 0 | AI196: 0 | AJ196: 0 | AK196: 0 | AL196: 0 | AM196: 0 | AN196: 0 | AO196: 0 | AP196: 0 | AQ196: 0 | AR196: 0 | AS196: 0 | AW196: T1 | AX196: =+AX192 -> 0 | AY196: =+AY192 -> 0 | AZ196: =+AZ192+BA192 -> 0 | BA196: =+BB192 -> 0 | BB196: =+BC192 -> 0 | BC196: 0 | BD196: 0 | BE196: 0 | BF196: 0 | BG196: 0 | BH196: 0 | BI196: 0 | BJ196: 0 | BK196: 0 | BL196: 0 | BM196: 0 | BN196: 0 | BO196: 0 | BP196: 0 | BT196: T1 | BU196: =+BU192 -> 0 | BV196: =+BV192 -> 0 | BW196: =+BW192+BX192 -> 0 | BX196: =+BY192 -> 0 | BY196: =+BZ192 -> 0 | BZ196: 0 | CA196: 0 | CB196: 0 | CC196: 0 | CD196: 0 | CE196: 0 | CF196: 0 | CG196: 0 | CH196: 0 | CI196: 0 | CJ196: 0 | CK196: 0 | CL196: 0 | CM196: 0 | CQ196: T1 | CR196: =+CR192 -> 0 | CS196: =+CS192 -> 0 | CT196: =+CT192+CU192 -> 0 | CU196: =+CV192 -> 0 | CV196: =+CW192 -> 0 | CW196: 0 | CX196: 0 | CY196: 0 | CZ196: 0 | DA196: 0 | DB196: 0 | DC196: 0 | DD196: 0 | DE196: 0 | DF196: 0 | DG196: 0 | DH196: 0 | DI196: 0 | DJ196: 0 | DN196: T1 | DO196: =+DO192 -> 0 | DP196: =+DP192 -> 0 | DQ196: =+DQ192+DR192 -> 0 | DR196: =+DS192 -> 0 | DS196: =+DT192 -> 0 | DT196: 0 | DU196: 0 | DV196: 0 | DW196: 0 | DX196: 0 | DY196: 0 | DZ196: 0 | EA196: 0 | EB196: 0 | EC196: 0 | ED196: 0 | EE196: 0 | EF196: 0 | EG196: 0 | EK196: T1 | EL196: =+EL192 -> 0 | EM196: =+EM192 -> 0 | EN196: =+EN192+EO192 -> 0 | EO196: =+EP192 -> 0 | EP196: =+EQ192 -> 0 | EQ196: 0 | ER196: 0 | ES196: 0 | ET196: 0 | EU196: 0 | EV196: 0 | EW196: 0 | EX196: 0 | EY196: 0 | EZ196: 0 | FA196: 0 | FB196: 0 | FC196: 0 | FD196: 0
C197: T2 | D197: =+D193 -> 0 | E197: 0 | F197: =+F193+G193 -> 0 | G197: =+H193 -> 0 | H197: 0 | I197: 0 | J197: 0 | K197: 0 | L197: 0 | M197: 0 | N197: 0 | O197: 0 | P197: 0 | Q197: 0 | R197: 0 | S197: 0 | T197: 0 | U197: 0 | V197: 0 | Z197: T2 | AA197: =+AA193 -> 0 | AB197: 0 | AC197: =+AC193+AD193 -> 0 | AD197: =+AE193 -> 0 | AE197: 0 | AF197: 0 | AG197: 0 | AH197: 0 | AI197: 0 | AJ197: 0 | AK197: 0 | AL197: 0 | AM197: 0 | AN197: 0 | AO197: 0 | AP197: 0 | AQ197: 0 | AR197: 0 | AS197: 0 | AW197: T2 | AX197: =+AX193 -> 0 | AY197: 0 | AZ197: =+AZ193+BA193 -> 0 | BA197: =+BB193 -> 0 | BB197: 0 | BC197: 0 | BD197: 0 | BE197: 0 | BF197: 0 | BG197: 0 | BH197: 0 | BI197: 0 | BJ197: 0 | BK197: 0 | BL197: 0 | BM197: 0 | BN197: 0 | BO197: 0 | BP197: 0 | BT197: T2 | BU197: =+BU193 -> 0 | BV197: 0 | BW197: =+BW193+BX193 -> 0 | BX197: =+BY193 -> 0 | BY197: 0 | BZ197: 0 | CA197: 0 | CB197: 0 | CC197: 0 | CD197: 0 | CE197: 0 | CF197: 0 | CG197: 0 | CH197: 0 | CI197: 0 | CJ197: 0 | CK197: 0 | CL197: 0 | CM197: 0 | CQ197: T2 | CR197: =+CR193 -> 0 | CS197: 0 | CT197: =+CT193+CU193 -> 0 | CU197: =+CV193 -> 0 | CV197: 0 | CW197: 0 | CX197: 0 | CY197: 0 | CZ197: 0 | DA197: 0 | DB197: 0 | DC197: 0 | DD197: 0 | DE197: 0 | DF197: 0 | DG197: 0 | DH197: 0 | DI197: 0 | DJ197: 0 | DN197: T2 | DO197: =+DO193 -> 0 | DP197: 0 | DQ197: =+DQ193+DR193 -> 0 | DR197: =+DS193 -> 0 | DS197: 0 | DT197: 0 | DU197: 0 | DV197: 0 | DW197: 0 | DX197: 0 | DY197: 0 | DZ197: 0 | EA197: 0 | EB197: 0 | EC197: 0 | ED197: 0 | EE197: 0 | EF197: 0 | EG197: 0 | EK197: T2 | EL197: =+EL193 -> 0 | EM197: 0 | EN197: =+EN193+EO193 -> 0 | EO197: =+EP193 -> 0 | EP197: 0 | EQ197: 0 | ER197: 0 | ES197: 0 | ET197: 0 | EU197: 0 | EV197: 0 | EW197: 0 | EX197: 0 | EY197: 0 | EZ197: 0 | FA197: 0 | FB197: 0 | FC197: 0 | FD197: 0
C198: T3 | D198: =+D194 -> 0 | E198: 0 | F198: 0 | G198: =+H194 -> 0 | H198: 0 | I198: 0 | J198: 0 | K198: 0 | L198: 0 | M198: 0 | N198: 0 | O198: 0 | P198: 0 | Q198: 0 | R198: 0 | S198: 0 | T198: 0 | U198: 0 | V198: 0 | Z198: T3 | AA198: =+AA194 -> 0 | AB198: 0 | AC198: 0 | AD198: =+AE194 -> 0 | AE198: 0 | AF198: 0 | AG198: 0 | AH198: 0 | AI198: 0 | AJ198: 0 | AK198: 0 | AL198: 0 | AM198: 0 | AN198: 0 | AO198: 0 | AP198: 0 | AQ198: 0 | AR198: 0 | AS198: 0 | AW198: T3 | AX198: =+AX194 -> 0 | AY198: 0 | AZ198: 0 | BA198: =+BB194 -> 0 | BB198: 0 | BC198: 0 | BD198: 0 | BE198: 0 | BF198: 0 | BG198: 0 | BH198: 0 | BI198: 0 | BJ198: 0 | BK198: 0 | BL198: 0 | BM198: 0 | BN198: 0 | BO198: 0 | BP198: 0 | BT198: T3 | BU198: =+BU194 -> 0 | BV198: 0 | BW198: 0 | BX198: =+BY194 -> 0 | BY198: 0 | BZ198: 0 | CA198: 0 | CB198: 0 | CC198: 0 | CD198: 0 | CE198: 0 | CF198: 0 | CG198: 0 | CH198: 0 | CI198: 0 | CJ198: 0 | CK198: 0 | CL198: 0 | CM198: 0 | CQ198: T3 | CR198: =+CR194 -> 0 | CS198: 0 | CT198: 0 | CU198: =+CV194 -> 0 | CV198: 0 | CW198: 0 | CX198: 0 | CY198: 0 | CZ198: 0 | DA198: 0 | DB198: 0 | DC198: 0 | DD198: 0 | DE198: 0 | DF198: 0 | DG198: 0 | DH198: 0 | DI198: 0 | DJ198: 0 | DN198: T3 | DO198: =+DO194 -> 0 | DP198: 0 | DQ198: 0 | DR198: =+DS194 -> 0 | DS198: 0 | DT198: 0 | DU198: 0 | DV198: 0 | DW198: 0 | DX198: 0 | DY198: 0 | DZ198: 0 | EA198: 0 | EB198: 0 | EC198: 0 | ED198: 0 | EE198: 0 | EF198: 0 | EG198: 0 | EK198: T3 | EL198: =+EL194 -> 0 | EM198: 0 | EN198: 0 | EO198: =+EP194 -> 0 | EP198: 0 | EQ198: 0 | ER198: 0 | ES198: 0 | ET198: 0 | EU198: 0 | EV198: 0 | EW198: 0 | EX198: 0 | EY198: 0 | EZ198: 0 | FA198: 0 | FB198: 0 | FC198: 0 | FD198: 0
D200: TRAMO 1 | E200: TRAMO 2 | F200: TRAMO 3 | AA200: TRAMO 1 | AB200: TRAMO 2 | AC200: TRAMO 3 | AX200: TRAMO 1 | AY200: TRAMO 2 | AZ200: TRAMO 3 | BU200: TRAMO 1 | BV200: TRAMO 2 | BW200: TRAMO 3 | CR200: TRAMO 1 | CS200: TRAMO 2 | CT200: TRAMO 3 | DO200: TRAMO 1 | DP200: TRAMO 2 | DQ200: TRAMO 3 | EL200: TRAMO 1 | EM200: TRAMO 2 | EN200: TRAMO 3
B201: Automovil | D201: =TRANSPOSE(D196:V198) -> 0 | E201: 0 | F201: 0 | Y201: Automovil | AA201: =TRANSPOSE(AA196:AS198) -> 0 | AB201: 0 | AC201: 0 | AV201: Automovil | AX201: =TRANSPOSE(AX196:BP198) -> 0 | AY201: 0 | AZ201: 0 | BS201: Automovil | BU201: =TRANSPOSE(BU196:CM198) -> 0 | BV201: 0 | BW201: 0 | CP201: Automovil | CR201: =TRANSPOSE(CR196:DJ198) -> 0 | CS201: 0 | CT201: 0 | DM201: Automovil | DO201: =TRANSPOSE(DO196:EG198) -> 0 | DP201: 0 | DQ201: 0 | EJ201: Automovil | EL201: =TRANSPOSE(EL196:FD198) -> 0 | EM201: 0 | EN201: 0
B202: Station Wagon | D202: 0 | E202: 0 | F202: 0 | Y202: Station Wagon | AA202: 0 | AB202: 0 | AC202: 0 | AV202: Station Wagon | AX202: 0 | AY202: 0 | AZ202: 0 | BS202: Station Wagon | BU202: 0 | BV202: 0 | BW202: 0 | CP202: Station Wagon | CR202: 0 | CS202: 0 | CT202: 0 | DM202: Station Wagon | DO202: 0 | DP202: 0 | DQ202: 0 | EJ202: Station Wagon | EL202: 0 | EM202: 0 | EN202: 0
B203: Camioneta (Pickup/Panel) | D203: 0 | E203: 0 | F203: 0 | Y203: Camioneta (Pickup/Panel) | AA203: 0 | AB203: 0 | AC203: 0 | AV203: Camioneta (Pickup/Panel) | AX203: 0 | AY203: 0 | AZ203: 0 | BS203: Camioneta (Pickup/Panel) | BU203: 0 | BV203: 0 | BW203: 0 | CP203: Camioneta (Pickup/Panel) | CR203: 0 | CS203: 0 | CT203: 0 | DM203: Camioneta (Pickup/Panel) | DO203: 0 | DP203: 0 | DQ203: 0 | EJ203: Camioneta (Pickup/Panel) | EL203: 0 | EM203: 0 | EN203: 0
B204: C.Rural (Combi) | D204: 0 | E204: 0 | F204: 0 | Y204: C.Rural (Combi) | AA204: 0 | AB204: 0 | AC204: 0 | AV204: C.Rural (Combi) | AX204: 0 | AY204: 0 | AZ204: 0 | BS204: C.Rural (Combi) | BU204: 0 | BV204: 0 | BW204: 0 | CP204: C.Rural (Combi) | CR204: 0 | CS204: 0 | CT204: 0 | DM204: C.Rural (Combi) | DO204: 0 | DP204: 0 | DQ204: 0 | EJ204: C.Rural (Combi) | EL204: 0 | EM204: 0 | EN204: 0
B205: Micro | D205: 0 | E205: 0 | F205: 0 | Y205: Micro | AA205: 0 | AB205: 0 | AC205: 0 | AV205: Micro | AX205: 0 | AY205: 0 | AZ205: 0 | BS205: Micro | BU205: 0 | BV205: 0 | BW205: 0 | CP205: Micro | CR205: 0 | CS205: 0 | CT205: 0 | DM205: Micro | DO205: 0 | DP205: 0 | DQ205: 0 | EJ205: Micro | EL205: 0 | EM205: 0 | EN205: 0
B206: Bus 2E | D206: 0 | E206: 0 | F206: 0 | Y206: Bus 2E | AA206: 0 | AB206: 0 | AC206: 0 | AV206: Bus 2E | AX206: 0 | AY206: 0 | AZ206: 0 | BS206: Bus 2E | BU206: 0 | BV206: 0 | BW206: 0 | CP206: Bus 2E | CR206: 0 | CS206: 0 | CT206: 0 | DM206: Bus 2E | DO206: 0 | DP206: 0 | DQ206: 0 | EJ206: Bus 2E | EL206: 0 | EM206: 0 | EN206: 0
B207: Bus 3E | D207: 0 | E207: 0 | F207: 0 | Y207: Bus 3E | AA207: 0 | AB207: 0 | AC207: 0 | AV207: Bus 3E | AX207: 0 | AY207: 0 | AZ207: 0 | BS207: Bus 3E | BU207: 0 | BV207: 0 | BW207: 0 | CP207: Bus 3E | CR207: 0 | CS207: 0 | CT207: 0 | DM207: Bus 3E | DO207: 0 | DP207: 0 | DQ207: 0 | EJ207: Bus 3E | EL207: 0 | EM207: 0 | EN207: 0
B208: Bus 4E | D208: 0 | E208: 0 | F208: 0 | Y208: Bus 4E | AA208: 0 | AB208: 0 | AC208: 0 | AV208: Bus 4E | AX208: 0 | AY208: 0 | AZ208: 0 | BS208: Bus 4E | BU208: 0 | BV208: 0 | BW208: 0 | CP208: Bus 4E | CR208: 0 | CS208: 0 | CT208: 0 | DM208: Bus 4E | DO208: 0 | DP208: 0 | DQ208: 0 | EJ208: Bus 4E | EL208: 0 | EM208: 0 | EN208: 0
B209: Camión 2E | D209: 0 | E209: 0 | F209: 0 | Y209: Camión 2E | AA209: 0 | AB209: 0 | AC209: 0 | AV209: Camión 2E | AX209: 0 | AY209: 0 | AZ209: 0 | BS209: Camión 2E | BU209: 0 | BV209: 0 | BW209: 0 | CP209: Camión 2E | CR209: 0 | CS209: 0 | CT209: 0 | DM209: Camión 2E | DO209: 0 | DP209: 0 | DQ209: 0 | EJ209: Camión 2E | EL209: 0 | EM209: 0 | EN209: 0
B210: Camión 3E | D210: 0 | E210: 0 | F210: 0 | Y210: Camión 3E | AA210: 0 | AB210: 0 | AC210: 0 | AV210: Camión 3E | AX210: 0 | AY210: 0 | AZ210: 0 | BS210: Camión 3E | BU210: 0 | BV210: 0 | BW210: 0 | CP210: Camión 3E | CR210: 0 | CS210: 0 | CT210: 0 | DM210: Camión 3E | DO210: 0 | DP210: 0 | DQ210: 0 | EJ210: Camión 3E | EL210: 0 | EM210: 0 | EN210: 0
B211: Camión 4E | D211: 0 | E211: 0 | F211: 0 | Y211: Camión 4E | AA211: 0 | AB211: 0 | AC211: 0 | AV211: Camión 4E | AX211: 0 | AY211: 0 | AZ211: 0 | BS211: Camión 4E | BU211: 0 | BV211: 0 | BW211: 0 | CP211: Camión 4E | CR211: 0 | CS211: 0 | CT211: 0 | DM211: Camión 4E | DO211: 0 | DP211: 0 | DQ211: 0 | EJ211: Camión 4E | EL211: 0 | EM211: 0 | EN211: 0
B212: Semitrayler (T2S1 / T2S2) | D212: 0 | E212: 0 | F212: 0 | Y212: Semitrayler (T2S1 / T2S2) | AA212: 0 | AB212: 0 | AC212: 0 | AV212: Semitrayler (T2S1 / T2S2) | AX212: 0 | AY212: 0 | AZ212: 0 | BS212: Semitrayler (T2S1 / T2S2) | BU212: 0 | BV212: 0 | BW212: 0 | CP212: Semitrayler (T2S1 / T2S2) | CR212: 0 | CS212: 0 | CT212: 0 | DM212: Semitrayler (T2S1 / T2S2) | DO212: 0 | DP212: 0 | DQ212: 0 | EJ212: Semitrayler (T2S1 / T2S2) | EL212: 0 | EM212: 0 | EN212: 0
B213: Semitrayler (T2S3) | D213: 0 | E213: 0 | F213: 0 | Y213: Semitrayler (T2S3) | AA213: 0 | AB213: 0 | AC213: 0 | AV213: Semitrayler (T2S3) | AX213: 0 | AY213: 0 | AZ213: 0 | BS213: Semitrayler (T2S3) | BU213: 0 | BV213: 0 | BW213: 0 | CP213: Semitrayler (T2S3) | CR213: 0 | CS213: 0 | CT213: 0 | DM213: Semitrayler (T2S3) | DO213: 0 | DP213: 0 | DQ213: 0 | EJ213: Semitrayler (T2S3) | EL213: 0 | EM213: 0 | EN213: 0
B214: Semitrayler (T3S1 / T3S2) | D214: 0 | E214: 0 | F214: 0 | Y214: Semitrayler (T3S1 / T3S2) | AA214: 0 | AB214: 0 | AC214: 0 | AV214: Semitrayler (T3S1 / T3S2) | AX214: 0 | AY214: 0 | AZ214: 0 | BS214: Semitrayler (T3S1 / T3S2) | BU214: 0 | BV214: 0 | BW214: 0 | CP214: Semitrayler (T3S1 / T3S2) | CR214: 0 | CS214: 0 | CT214: 0 | DM214: Semitrayler (T3S1 / T3S2) | DO214: 0 | DP214: 0 | DQ214: 0 | EJ214: Semitrayler (T3S1 / T3S2) | EL214: 0 | EM214: 0 | EN214: 0
B215: Semitrayler (T3S3) | D215: 0 | E215: 0 | F215: 0 | Y215: Semitrayler (T3S3) | AA215: 0 | AB215: 0 | AC215: 0 | AV215: Semitrayler (T3S3) | AX215: 0 | AY215: 0 | AZ215: 0 | BS215: Semitrayler (T3S3) | BU215: 0 | BV215: 0 | BW215: 0 | CP215: Semitrayler (T3S3) | CR215: 0 | CS215: 0 | CT215: 0 | DM215: Semitrayler (T3S3) | DO215: 0 | DP215: 0 | DQ215: 0 | EJ215: Semitrayler (T3S3) | EL215: 0 | EM215: 0 | EN215: 0
B216: Trayler (C2R2) | D216: 0 | E216: 0 | F216: 0 | Y216: Trayler (C2R2) | AA216: 0 | AB216: 0 | AC216: 0 | AV216: Trayler (C2R2) | AX216: 0 | AY216: 0 | AZ216: 0 | BS216: Trayler (C2R2) | BU216: 0 | BV216: 0 | BW216: 0 | CP216: Trayler (C2R2) | CR216: 0 | CS216: 0 | CT216: 0 | DM216: Trayler (C2R2) | DO216: 0 | DP216: 0 | DQ216: 0 | EJ216: Trayler (C2R2) | EL216: 0 | EM216: 0 | EN216: 0
B217: Trayler (C2R3) | D217: 0 | E217: 0 | F217: 0 | Y217: Trayler (C2R3) | AA217: 0 | AB217: 0 | AC217: 0 | AV217: Trayler (C2R3) | AX217: 0 | AY217: 0 | AZ217: 0 | BS217: Trayler (C2R3) | BU217: 0 | BV217: 0 | BW217: 0 | CP217: Trayler (C2R3) | CR217: 0 | CS217: 0 | CT217: 0 | DM217: Trayler (C2R3) | DO217: 0 | DP217: 0 | DQ217: 0 | EJ217: Trayler (C2R3) | EL217: 0 | EM217: 0 | EN217: 0
B218: Trayler (C3R2) | D218: 0 | E218: 0 | F218: 0 | Y218: Trayler (C3R2) | AA218: 0 | AB218: 0 | AC218: 0 | AV218: Trayler (C3R2) | AX218: 0 | AY218: 0 | AZ218: 0 | BS218: Trayler (C3R2) | BU218: 0 | BV218: 0 | BW218: 0 | CP218: Trayler (C3R2) | CR218: 0 | CS218: 0 | CT218: 0 | DM218: Trayler (C3R2) | DO218: 0 | DP218: 0 | DQ218: 0 | EJ218: Trayler (C3R2) | EL218: 0 | EM218: 0 | EN218: 0
B219: Trayler (C3R3) | D219: 0 | E219: 0 | F219: 0 | Y219: Trayler (C3R3) | AA219: 0 | AB219: 0 | AC219: 0 | AV219: Trayler (C3R3) | AX219: 0 | AY219: 0 | AZ219: 0 | BS219: Trayler (C3R3) | BU219: 0 | BV219: 0 | BW219: 0 | CP219: Trayler (C3R3) | CR219: 0 | CS219: 0 | CT219: 0 | DM219: Trayler (C3R3) | DO219: 0 | DP219: 0 | DQ219: 0 | EJ219: Trayler (C3R3) | EL219: 0 | EM219: 0 | EN219: 0

Sheet A2.Demanda
B1: ASPECTOS DE LA DEMANDA | T1: HOJA A2. Demanda
B2: 1.GENERALIDADES | E2: NOTA: USAR ESTA HOJA POR CADA ESTACIÓN
G3: CROQUIS DE ESTACIONES
B4: LEYENDA:
Y5: =IF(C10>10,"1",0) -> 0
C6: Datos a ingresar
B7: Departamento: | C7: ='Ficha Estandar'!C69 -> 0
B8: Provincia: | C8: ANTONIO RAYMONDI
B9: Distrito: | C9: CHACCHO
B10: Horizonte del Proyecto (en años): | C10: =+'Ficha Estandar'!F180 -> 10
B12: 1.1 Determinación del tráfico actual
B14: i) Resumir los conteos de tránsito a nivel del día y tipo de vehículo
B16: Resultados de los conteo de tráfico: | E16: Mes: | G16: Año:
B17: Tipo de Vehículo | C17: Lunes | D17: Martes | E17: Miércoles | F17: Jueves | G17: Viernes | H17: Sábado | I17: Domingo
B18: Automovil | C18: =+'A1.Trafico'!D201 -> 0 | D18: =+'A1.Trafico'!AA201 -> 0 | E18: =+'A1.Trafico'!AX201 -> 0 | F18: =+'A1.Trafico'!BU201 -> 0 | G18: =+'A1.Trafico'!CR201 -> 0 | H18: =+'A1.Trafico'!DO201 -> 0 | I18: =+'A1.Trafico'!EL201 -> 0
B19: Station Wagon | C19: =+'A1.Trafico'!D202 -> 0 | D19: =+'A1.Trafico'!AA202 -> 0 | E19: =+'A1.Trafico'!AX202 -> 0 | F19: =+'A1.Trafico'!BU202 -> 0 | G19: =+'A1.Trafico'!CR202 -> 0 | H19: =+'A1.Trafico'!DO202 -> 0 | I19: =+'A1.Trafico'!EL202 -> 0
B20: Camioneta (Pickup/Panel) | C20: =+'A1.Trafico'!D203 -> 0 | D20: =+'A1.Trafico'!AA203 -> 0 | E20: =+'A1.Trafico'!AX203 -> 0 | F20: =+'A1.Trafico'!BU203 -> 0 | G20: =+'A1.Trafico'!CR203 -> 0 | H20: =+'A1.Trafico'!DO203 -> 0 | I20: =+'A1.Trafico'!EL203 -> 0
B21: C.Rural (Combi) | C21: =+'A1.Trafico'!D204 -> 0 | D21: =+'A1.Trafico'!AA204 -> 0 | E21: =+'A1.Trafico'!AX204 -> 0 | F21: =+'A1.Trafico'!BU204 -> 0 | G21: =+'A1.Trafico'!CR204 -> 0 | H21: =+'A1.Trafico'!DO204 -> 0 | I21: =+'A1.Trafico'!EL204 -> 0
B22: Micro | C22: =+'A1.Trafico'!D205 -> 0 | D22: =+'A1.Trafico'!AA205 -> 0 | E22: =+'A1.Trafico'!AX205 -> 0 | F22: =+'A1.Trafico'!BU205 -> 0 | G22: =+'A1.Trafico'!CR205 -> 0 | H22: =+'A1.Trafico'!DO205 -> 0 | I22: =+'A1.Trafico'!EL205 -> 0
B23: Bus 2E | C23: =+'A1.Trafico'!D206 -> 0 | D23: =+'A1.Trafico'!AA206 -> 0 | E23: =+'A1.Trafico'!AX206 -> 0 | F23: =+'A1.Trafico'!BU206 -> 0 | G23: =+'A1.Trafico'!CR206 -> 0 | H23: =+'A1.Trafico'!DO206 -> 0 | I23: =+'A1.Trafico'!EL206 -> 0
B24: Bus 3E | C24: =+'A1.Trafico'!D207 -> 0 | D24: =+'A1.Trafico'!AA207 -> 0 | E24: =+'A1.Trafico'!AX207 -> 0 | F24: =+'A1.Trafico'!BU207 -> 0 | G24: =+'A1.Trafico'!CR207 -> 0 | H24: =+'A1.Trafico'!DO207 -> 0 | I24: =+'A1.Trafico'!EL207 -> 0
B25: Bus 4E | C25: =+'A1.Trafico'!D208 -> 0 | D25: =+'A1.Trafico'!AA208 -> 0 | E25: =+'A1.Trafico'!AX208 -> 0 | F25: =+'A1.Trafico'!BU208 -> 0 | G25: =+'A1.Trafico'!CR208 -> 0 | H25: =+'A1.Trafico'!DO208 -> 0 | I25: =+'A1.Trafico'!EL208 -> 0
B26: Camión 2E | C26: =+'A1.Trafico'!D209 -> 0 | D26: =+'A1.Trafico'!AA209 -> 0 | E26: =+'A1.Trafico'!AX209 -> 0 | F26: =+'A1.Trafico'!BU209 -> 0 | G26: =+'A1.Trafico'!CR209 -> 0 | H26: =+'A1.Trafico'!DO209 -> 0 | I26: =+'A1.Trafico'!EL209 -> 0
B27: Camión 3E | C27: =+'A1.Trafico'!D210 -> 0 | D27: =+'A1.Trafico'!AA210 -> 0 | E27: =+'A1.Trafico'!AX210 -> 0 | F27: =+'A1.Trafico'!BU210 -> 0 | G27: =+'A1.Trafico'!CR210 -> 0 | H27: =+'A1.Trafico'!DO210 -> 0 | I27: =+'A1.Trafico'!EL210 -> 0
B28: Camión 4E | C28: =+'A1.Trafico'!D211 -> 0 | D28: =+'A1.Trafico'!AA211 -> 0 | E28: =+'A1.Trafico'!AX211 -> 0 | F28: =+'A1.Trafico'!BU211 -> 0 | G28: =+'A1.Trafico'!CR211 -> 0 | H28: =+'A1.Trafico'!DO211 -> 0 | I28: =+'A1.Trafico'!EL211 -> 0
B29: Semitrayler (T2S1 / T2S2) | C29: =+'A1.Trafico'!D212 -> 0 | D29: =+'A1.Trafico'!AA212 -> 0 | E29: =+'A1.Trafico'!AX212 -> 0 | F29: =+'A1.Trafico'!BU212 -> 0 | G29: =+'A1.Trafico'!CR212 -> 0 | H29: =+'A1.Trafico'!DO212 -> 0 | I29: =+'A1.Trafico'!EL212 -> 0
B30: Semitrayler (T2S3) | C30: =+'A1.Trafico'!D213 -> 0 | D30: =+'A1.Trafico'!AA213 -> 0 | E30: =+'A1.Trafico'!AX213 -> 0 | F30: =+'A1.Trafico'!BU213 -> 0 | G30: =+'A1.Trafico'!CR213 -> 0 | H30: =+'A1.Trafico'!DO213 -> 0 | I30: =+'A1.Trafico'!EL213 -> 0
B31: Semitrayler (T3S1 / T3S2) | C31: =+'A1.Trafico'!D214 -> 0 | D31: =+'A1.Trafico'!AA214 -> 0 | E31: =+'A1.Trafico'!AX214 -> 0 | F31: =+'A1.Trafico'!BU214 -> 0 | G31: =+'A1.Trafico'!CR214 -> 0 | H31: =+'A1.Trafico'!DO214 -> 0 | I31: =+'A1.Trafico'!EL214 -> 0
B32: Semitrayler (T3S3) | C32: =+'A1.Trafico'!D215 -> 0 | D32: =+'A1.Trafico'!AA215 -> 0 | E32: =+'A1.Trafico'!AX215 -> 0 | F32: =+'A1.Trafico'!BU215 -> 0 | G32: =+'A1.Trafico'!CR215 -> 0 | H32: =+'A1.Trafico'!DO215 -> 0 | I32: =+'A1.Trafico'!EL215 -> 0
B33: Trayler (C2R2) | C33: =+'A1.Trafico'!D216 -> 0 | D33: =+'A1.Trafico'!AA216 -> 0 | E33: =+'A1.Trafico'!AX216 -> 0 | F33: =+'A1.Trafico'!BU216 -> 0 | G33: =+'A1.Trafico'!CR216 -> 0 | H33: =+'A1.Trafico'!DO216 -> 0 | I33: =+'A1.Trafico'!EL216 -> 0
B34: Trayler (C2R3) | C34: =+'A1.Trafico'!D217 -> 0 | D34: =+'A1.Trafico'!AA217 -> 0 | E34: =+'A1.Trafico'!AX217 -> 0 | F34: =+'A1.Trafico'!BU217 -> 0 | G34: =+'A1.Trafico'!CR217 -> 0 | H34: =+'A1.Trafico'!DO217 -> 0 | I34: =+'A1.Trafico'!EL217 -> 0
B35: Trayler (C3R2) | C35: =+'A1.Trafico'!D218 -> 0 | D35: =+'A1.Trafico'!AA218 -> 0 | E35: =+'A1.Trafico'!AX218 -> 0 | F35: =+'A1.Trafico'!BU218 -> 0 | G35: =+'A1.Trafico'!CR218 -> 0 | H35: =+'A1.Trafico'!DO218 -> 0 | I35: =+'A1.Trafico'!EL218 -> 0
B36: Trayler (C3R3) | C36: =+'A1.Trafico'!D219 -> 0 | D36: =+'A1.Trafico'!AA219 -> 0 | E36: =+'A1.Trafico'!AX219 -> 0 | F36: =+'A1.Trafico'!BU219 -> 0 | G36: =+'A1.Trafico'!CR219 -> 0 | H36: =+'A1.Trafico'!DO219 -> 0 | I36: =+'A1.Trafico'!EL219 -> 0
B37: TOTAL | C37: =SUM(C18:C36) -> 0 | D37: 0 | E37: 0 | F37: 0 | G37: 0 | H37: 0 | I37: 0
B55: ii) Determinar los factores de corrección estacional de una estación de peaje cercano al camino
B57: F.C.E. Vehículos ligeros: | C57: 1 | D57: Ver hoja A3. FC (Llenar campo manuamente)
B58: F.C.E. Vehículos pesados: | C58: 1 | D58: Ver hoja A3. FC (Llenar campo manuamente)
B62: iii) Aplicar la siguiente fórmula, para un conteo de 7 días
B65: Donde: | C65: IMDS = | D65: Índice Medio Diario Semanal de la Muestra Vehícular Tomada
C66: IMDA = | D66: Índice Medio Anual
C67: Vi = | D67: Volumen Vehícular diario de cada uno de los días de conteo
C68: FCE= | D68: Factores de Corrección Estacional
B70: Tipo de Vehículo | C70: Tráfico Vehícular en dos Sentidos por Día | J70: TOTAL | K70: IMDS | L70: FC | M70: IMDa | N70: Distribución (%)
C71: Lunes | D71: Martes | E71: Miércoles | F71: Jueves | G71: Viernes | H71: Sábado | I71: Domingo | J71: SEMANA
B72: Automovil | C72: =C18 -> 0 | D72: =D18 -> 0 | E72: 0 | F72: 0 | G72: 0 | H72: 0 | I72: 0 | J72: =SUM(C72:I72) -> 0 | K72: =J72/7 -> 0 | L72: =$C$57 -> 1 | M72: =ROUNDUP(K72*L72,0) -> 0 | N72: =IFERROR((M72*100)/M$91,"") -> 
B73: Station Wagon | C73: =C19 -> 0 | D73: 0 | E73: 0 | F73: 0 | G73: 0 | H73: 0 | I73: 0 | L73: 1 | M73: 0
B74: Camioneta (Pickup/Panel) | C74: 0 | D74: 0 | E74: 0 | F74: 0 | G74: 0 | H74: 0 | I74: 0 | J74: =SUM(C74:I74) -> 0 | K74: 0 | L74: 1 | M74: 0
B75: C.Rural (Combi) | C75: 0 | D75: 0 | E75: 0 | F75: 0 | G75: 0 | H75: 0 | I75: 0 | J75: 0 | K75: 0 | L75: 1 | M75: 0
B76: Micro | C76: 0 | D76: 0 | E76: 0 | F76: 0 | G76: 0 | H76: 0 | I76: 0 | J76: 0 | K76: 0 | L76: 1 | M76: 0
B77: Bus 2E | C77: 0 | D77: 0 | E77: 0 | F77: 0 | G77: 0 | H77: 0 | I77: 0 | J77: =SUM(C77:I77) -> 0 | K77: 0 | L77: 1 | M77: 0
B78: Bus 3E | C78: 0 | D78: 0 | E78: 0 | F78: 0 | G78: 0 | H78: 0 | I78: 0 | J78: 0 | K78: 0 | L78: 1 | M78: 0
B79: Bus 4E | C79: 0 | D79: 0 | E79: 0 | F79: 0 | G79: 0 | H79: 0 | I79: 0 | L79: 1 | M79: 0
B80: Camión 2E | C80: 0 | D80: 0 | E80: 0 | F80: 0 | G80: 0 | H80: 0 | I80: 0 | J80: 0 | K80: 0 | L80: =$C$58 -> 1 | M80: 0
B81: Camión 3E | C81: 0 | D81: 0 | E81: 0 | F81: 0 | G81: 0 | H81: 0 | I81: 0 | J81: 0 | K81: 0 | L81: =$C$58 -> 1 | M81: 0
B82: Camión 4E | C82: 0 | D82: 0 | E82: 0 | F82: 0 | G82: 0 | H82: 0 | I82: 0 | J82: =SUM(C82:I82) -> 0 | K82: =J82/7 -> 0 | L82: =$C$58 -> 1 | M82: 0 | N82: =IFERROR((M82*100)/M$91,"") -> 
B83: Semitrayler (T2S1 / T2S2) | C83: 0 | D83: 0 | E83: 0 | F83: 0 | G83: 0 | H83: 0 | I83: 0 | J83: 0 | K83: 0 | L83: 1 | M83: 0
B84: Semitrayler (T2S3) | C84: 0 | D84: 0 | E84: 0 | F84: 0 | G84: 0 | H84: 0 | I84: 0 | J84: 0 | K84: 0 | L84: 1 | M84: 0
B85: Semitrayler (T3S1 / T3S2) | C85: 0 | D85: 0 | E85: 0 | F85: 0 | G85: 0 | H85: 0 | I85: 0 | J85: 0 | K85: 0 | L85: 1 | M85: 0
B86: Semitrayler (T3S3) | C86: 0 | D86: 0 | E86: 0 | F86: 0 | G86: 0 | H86: 0 | I86: 0 | J86: 0 | K86: 0 | L86: 1 | M86: 0
B87: Trayler (C2R2) | C87: 0 | D87: 0 | E87: 0 | F87: 0 | G87: 0 | H87: 0 | I87: 0 | J87: 0 | K87: 0 | L87: 1 | M87: 0
B88: Trayler (C2R3) | C88: 0 | D88: 0 | E88: 0 | F88: 0 | G88: 0 | H88: 0 | I88: 0 | J88: 0 | K88: 0 | L88: 1 | M88: 0
B89: Trayler (C3R2) | C89: 0 | D89: 0 | E89: 0 | F89: 0 | G89: 0 | H89: 0 | I89: 0 | J89: 0 | K89: 0 | L89: 1 | M89: 0
B90: Trayler (C3R3) | C90: 0 | D90: 0 | E90: 0 | F90: 0 | G90: 0 | H90: 0 | I90: 0 | J90: 0 | K90: 0 | L90: 1 | M90: 0
B91: TOTAL | C91: =SUM(C72:C90) -> 0 | D91: =SUM(D72:D90) -> 0 | E91: 0 | F91: 0 | G91: 0 | H91: 0 | I91: 0 | J91: =SUM(J72:J90) -> 0 | K91: =SUM(K72:K90) -> 0 | M91: =SUM(M72:M90) -> 0 | N91: =SUM(N72:N90) -> 0
B93: 2. ANALISIS DE LA DEMANDA
B94: 2.1 Demanda Actual
B96: Tráfico Actual por Tipo de Vehículo
B98: Tipo de Vehículo | C98: IMD | D98: Distribución (%)
B100: Automovil | C100: =M72 -> 0 | D100: =IFERROR((C100*100)/$C$119,"") -> 
B101: Station Wagon | C101: =M73 -> 0 | D101: =IFERROR((C101*100)/$C$119,"") -> 
B102: Camioneta (Pickup/Panel) | C102: =M74 -> 0 | D102: =IFERROR((C102*100)/$C$119,"") -> 
B103: C.Rural (Combi) | C103: 0 | D103: =IFERROR((C103*100)/$C$119,"") -> 
B104: Micro | C104: 0 | D104: =IFERROR((C104*100)/$C$119,"") -> 
B105: Bus 2E | C105: =M77 -> 0
B106: Bus 3E | C106: 0
B107: Bus 4E | C107: 0
B108: Camión 2E | C108: 0
B109: Camión 3E | C109: 0
B110: Camión 4E | C110: 0 | D110: =IFERROR((C110*100)/$C$119,"") -> 
B111: Semitrayler (T2S1 / T2S2) | C111: 0
B112: Semitrayler (T2S3) | C112: 0
B113: Semitrayler (T3S1 / T3S2) | C113: 0
B114: Semitrayler (T3S3) | C114: 0
B115: Trayler (C2R2) | C115: 0
B116: Trayler (C2R3) | C116: 0
B117: Trayler (C3R2) | C117: 0
B118: Trayler (C3R3) | C118: 0
B119: IMD | C119: =SUM(C100:C118) -> 0 | D119: =SUM(D100:D118) -> 0
B122: 2.2 Demanda Proyectada
B126: Donde: | C126: Tn = | D126: Tránsito proyectado al año "n" en veh/día
C127: T0 = | D127: Tránsito actual (año base) en veh/día
C128: n = | D128: año futuro de proyeccción
C129: r = | D129: tasa anual de crecimiento de tránsito
B131: Tasa de Crecimiento x Región en % | D131: rvp = | E131: =VLOOKUP(C7,'A4. Tasa de Crec'!B4:C27,2,0) ->  | F131: (Ver A4.TC - Tasa de Crecimiento Anual de la Población) | K131: (para vehículos de pasajeros)
D132: rvc = | E132: =VLOOKUP(C7,'A4. Tasa de Crec'!E4:F27,2,0) ->  | F132: (Ver A4.TC - Tasa de Crecimiento Anual del PBI Regional) | K132: (para vehículos de carga)
B134: Proyección de Tráfico - Situación Sin Proyecto
N135: 11 | O135: =+N135+1 -> 12 | P135: =+O135+1 -> 13 | Q135: 14 | R135: 15 | S135: 16 | T135: 17 | U135: 18 | V135: 19 | W135: 20
B136: Tipo de Vehículo | C136: Año 0 | D136: 1 | E136: 2 | F136: 3 | G136: 4 | H136: 5 | I136: 6 | J136: 7 | K136: 8 | L136: 9 | M136: 10 | N136: 11 | O136: 12 | P136: 13 | Q136: 14 | R136: 15 | S136: 16 | T136: 17 | U136: 18 | V136: 19 | W136: 20
B137: Tráfico Normal | C137: =ROUND(SUM(C138:C156),0) -> 0 | D137: =ROUND(SUM(D138:D156),0) -> 0 | E137: 0 | F137: 0 | G137: 0 | H137: 0 | I137: 0 | J137: 0 | K137: 0 | L137: 0 | M137: 0 | N137: =ROUND(SUM(N138:N156),0) -> 0 | O137: 0 | P137: 0 | Q137: 0 | R137: 0 | S137: 0 | T137: 0 | U137: 0 | V137: 0 | W137: 0
B138: Automovil | C138: =C100 -> 0 | D138: =IFERROR(ROUND($C138*POWER((1+$E$131),D$136),0),0) -> 0 | E138: =IFERROR(ROUND($C138*POWER((1+$E$131),E$136),0),0) -> 0 | F138: 0 | G138: 0 | H138: 0 | I138: 0 | J138: 0 | K138: 0 | L138: 0 | M138: 0 | N138: =IFERROR(IF(N$136=0,0,ROUND($C138*POWER((1+$E$131),N$136),0)),0) -> 0 | O138: =IFERROR(IF(O$136=0,0,ROUND($C138*POWER((1+$E$131),O$136),0)),0) -> 0 | P138: 0 | Q138: 0 | R138: 0 | S138: 0 | T138: 0 | U138: 0 | V138: 0 | W138: 0
B139: Station Wagon | C139: =C101 -> 0 | D139: =IFERROR(ROUND($C139*POWER((1+$E$131),D$136),0),0) -> 0 | E139: 0 | F139: 0 | G139: 0 | H139: 0 | I139: 0 | J139: 0 | K139: 0 | L139: 0 | M139: 0 | N139: =IFERROR(IF(N$136=0,0,ROUND($C139*POWER((1+$E$131),N$136),0)),0) -> 0 | O139: 0 | P139: 0 | Q139: 0 | R139: 0 | S139: 0 | T139: 0 | U139: 0 | V139: 0 | W139: 0
B140: Camioneta (Pickup/Panel) | C140: 0 | D140: 0 | E140: 0 | F140: 0 | G140: 0 | H140: 0 | I140: 0 | J140: 0 | K140: 0 | L140: 0 | M140: 0 | N140: 0 | O140: 0 | P140: 0 | Q140: 0 | R140: 0 | S140: 0 | T140: 0 | U140: 0 | V140: 0 | W140: 0
B141: C.Rural (Combi) | C141: 0 | D141: 0 | E141: 0 | F141: 0 | G141: 0 | H141: 0 | I141: 0 | J141: 0 | K141: 0 | L141: 0 | M141: 0 | N141: 0 | O141: 0 | P141: 0 | Q141: 0 | R141: 0 | S141: 0 | T141: 0 | U141: 0 | V141: 0 | W141: 0
B142: Micro | C142: 0 | D142: 0 | E142: 0 | F142: 0 | G142: 0 | H142: 0 | I142: 0 | J142: 0 | K142: 0 | L142: 0 | M142: 0 | N142: 0 | O142: 0 | P142: 0 | Q142: 0 | R142: 0 | S142: 0 | T142: 0 | U142: 0 | V142: 0 | W142: 0
B143: Bus 2E | C143: 0 | D143: 0 | E143: 0 | F143: 0 | G143: 0 | H143: 0 | I143: 0 | J143: 0 | K143: 0 | L143: 0 | M143: 0 | N143: 0 | O143: 0 | P143: 0 | Q143: 0 | R143: 0 | S143: 0 | T143: 0 | U143: 0 | V143: 0 | W143: 0
B144: Bus 3E | C144: 0 | D144: 0 | E144: 0 | F144: 0 | G144: 0 | H144: 0 | I144: 0 | J144: 0 | K144: 0 | L144: 0 | M144: 0 | N144: 0 | O144: 0 | P144: 0 | Q144: 0 | R144: 0 | S144: 0 | T144: 0 | U144: 0 | V144: 0 | W144: 0
B145: Bus 4E | C145: 0 | D145: 0 | E145: 0 | F145: 0 | G145: 0 | H145: 0 | I145: 0 | J145: 0 | K145: 0 | L145: 0 | M145: 0 | N145: 0 | O145: 0 | P145: 0 | Q145: 0 | R145: 0 | S145: 0 | T145: 0 | U145: 0 | V145: 0 | W145: 0
B146: Camión 2E | C146: 0 | D146: 0 | E146: 0 | F146: 0 | G146: 0 | H146: 0 | I146: 0 | J146: 0 | K146: 0 | L146: 0 | M146: 0 | N146: 0 | O146: 0 | P146: 0 | Q146: 0 | R146: 0 | S146: 0 | T146: 0 | U146: 0 | V146: 0 | W146: 0
B147: Camión 3E | C147: 0 | D147: 0 | E147: 0 | F147: 0 | G147: 0 | H147: 0 | I147: 0 | J147: 0 | K147: 0 | L147: 0 | M147: 0 | N147: 0 | O147: 0 | P147: 0 | Q147: 0 | R147: 0 | S147: 0 | T147: 0 | U147: 0 | V147: 0 | W147: 0
B148: Camión 4E | C148: 0 | D148: 0 | E148: 0 | F148: 0 | G148: 0 | H148: 0 | I148: 0 | J148: 0 | K148: 0 | L148: 0 | M148: 0 | N148: 0 | O148: 0 | P148: 0 | Q148: 0 | R148: 0 | S148: 0 | T148: 0 | U148: 0 | V148: 0 | W148: 0
B149: Semitrayler (T2S1 / T2S2) | C149: 0 | D149: 0 | E149: 0 | F149: 0 | G149: 0 | H149: 0 | I149: 0 | J149: 0 | K149: 0 | L149: 0 | M149: 0 | N149: 0 | O149: 0 | P149: 0 | Q149: 0 | R149: 0 | S149: 0 | T149: 0 | U149: 0 | V149: 0 | W149: 0
B150: Semitrayler (T2S3) | C150: 0 | D150: 0 | E150: 0 | F150: 0 | G150: 0 | H150: 0 | I150: 0 | J150: 0 | K150: 0 | L150: 0 | M150: 0 | N150: 0 | O150: 0 | P150: 0 | Q150: 0 | R150: 0 | S150: 0 | T150: 0 | U150: 0 | V150: 0 | W150: 0
B151: Semitrayler (T3S1 / T3S2) | C151: 0 | D151: 0 | E151: 0 | F151: 0 | G151: 0 | H151: 0 | I151: 0 | J151: 0 | K151: 0 | L151: 0 | M151: 0 | N151: 0 | O151: 0 | P151: 0 | Q151: 0 | R151: 0 | S151: 0 | T151: 0 | U151: 0 | V151: 0 | W151: 0
B152: Semitrayler (T3S3) | C152: 0 | D152: 0 | E152: 0 | F152: 0 | G152: 0 | H152: 0 | I152: 0 | J152: 0 | K152: 0 | L152: 0 | M152: 0 | N152: 0 | O152: 0 | P152: 0 | Q152: 0 | R152: 0 | S152: 0 | T152: 0 | U152: 0 | V152: 0 | W152: 0
B153: Trayler (C2R2) | C153: 0 | D153: 0 | E153: 0 | F153: 0 | G153: 0 | H153: 0 | I153: 0 | J153: 0 | K153: 0 | L153: 0 | M153: 0 | N153: 0 | O153: 0 | P153: 0 | Q153: 0 | R153: 0 | S153: 0 | T153: 0 | U153: 0 | V153: 0 | W153: 0
B154: Trayler (C2R3) | C154: 0 | D154: 0 | E154: 0 | F154: 0 | G154: 0 | H154: 0 | I154: 0 | J154: 0 | K154: 0 | L154: 0 | M154: 0 | N154: 0 | O154: 0 | P154: 0 | Q154: 0 | R154: 0 | S154: 0 | T154: 0 | U154: 0 | V154: 0 | W154: 0
B155: Trayler (C3R2) | C155: 0 | D155: 0 | E155: 0 | F155: 0 | G155: 0 | H155: 0 | I155: 0 | J155: 0 | K155: 0 | L155: 0 | M155: 0 | N155: 0 | O155: 0 | P155: 0 | Q155: 0 | R155: 0 | S155: 0 | T155: 0 | U155: 0 | V155: 0 | W155: 0
B156: Trayler (C3R3) | C156: 0 | D156: 0 | E156: 0 | F156: 0 | G156: 0 | H156: 0 | I156: 0 | J156: 0 | K156: 0 | L156: 0 | M156: 0 | N156: 0 | O156: 0 | P156: 0 | Q156: 0 | R156: 0 | S156: 0 | T156: 0 | U156: 0 | V156: 0 | W156: 0
B159: 2.3 Demanda Proyectada "Con Proyecto"
B161: Tráfico Generado por Tipo de Proyecto
B163: Tipo de Intervención | C163: % de Tráfico | E163: ¿Existe vía alterna? | I163: NO
C164: Normal | H164: =IF(I163="NO"," "," Se recomienda llenar el Formato 1.4 y Formato 1.5") -> 
B165: =+'Ficha Estandar'!F17 -> 0 | C165: 15
B167: Tráfico Proyectado - Con Proyecto
B169: Tipo de Vehículo | C169: Año 0 | D169: Año 1 | E169: Año 2 | F169: Año 3 | G169: Año 4 | H169: Año 5 | I169: Año 6 | J169: Año 7 | K169: Año 8 | L169: Año 9 | M169: Año 10 | N169: 11 | O169: 12 | P169: 13 | Q169: 14 | R169: 15 | S169: 16 | T169: 17 | U169: 18 | V169: 19 | W169: 20
B170: Tráfico Normal | C170: =SUM(C171:C189) -> 0 | D170: 0 | E170: 0 | F170: 0 | G170: 0 | H170: 0 | I170: 0 | J170: 0 | K170: 0 | L170: 0 | M170: 0 | N170: 0 | O170: 0 | P170: 0 | Q170: 0 | R170: 0 | S170: 0 | T170: 0 | U170: 0 | V170: 0 | W170: 0
B171: Automovil | C171: =C138 -> 0 | D171: =D138 -> 0 | E171: 0 | F171: 0 | G171: 0 | H171: 0 | I171: 0 | J171: 0 | K171: 0 | L171: 0 | M171: 0 | N171: 0 | O171: 0 | P171: 0 | Q171: 0 | R171: 0 | S171: 0 | T171: 0 | U171: 0 | V171: 0 | W171: 0
B172: Station Wagon | C172: =C139 -> 0 | D172: 0 | E172: 0 | F172: 0 | G172: 0 | H172: 0 | I172: 0 | J172: 0 | K172: 0 | L172: 0 | M172: 0 | N172: 0 | O172: 0 | P172: 0 | Q172: 0 | R172: 0 | S172: 0 | T172: 0 | U172: 0 | V172: 0 | W172: 0
B173: Camioneta (Pickup/Panel) | C173: 0 | D173: 0 | E173: 0 | F173: 0 | G173: 0 | H173: 0 | I173: 0 | J173: 0 | K173: 0 | L173: 0 | M173: 0 | N173: 0 | O173: 0 | P173: 0 | Q173: 0 | R173: 0 | S173: 0 | T173: 0 | U173: 0 | V173: 0 | W173: 0
B174: C.Rural (Combi) | C174: 0 | D174: 0 | E174: 0 | F174: 0 | G174: 0 | H174: 0 | I174: 0 | J174: 0 | K174: 0 | L174: 0 | M174: 0 | N174: 0 | O174: 0 | P174: 0 | Q174: 0 | R174: 0 | S174: 0 | T174: 0 | U174: 0 | V174: 0 | W174: 0
B175: Micro | C175: 0 | D175: 0 | E175: 0 | F175: 0 | G175: 0 | H175: 0 | I175: 0 | J175: 0 | K175: 0 | L175: 0 | M175: 0 | N175: 0 | O175: 0 | P175: 0 | Q175: 0 | R175: 0 | S175: 0 | T175: 0 | U175: 0 | V175: 0 | W175: 0
B176: Bus 2E | C176: 0 | D176: 0 | E176: 0 | F176: 0 | G176: 0 | H176: 0 | I176: 0 | J176: 0 | K176: 0 | L176: 0 | M176: 0 | N176: 0 | O176: 0 | P176: 0 | Q176: 0 | R176: 0 | S176: 0 | T176: 0 | U176: 0 | V176: 0 | W176: 0
B177: Bus 3E | C177: 0 | D177: 0 | E177: 0 | F177: 0 | G177: 0 | H177: 0 | I177: 0 | J177: 0 | K177: 0 | L177: 0 | M177: 0 | N177: 0 | O177: 0 | P177: 0 | Q177: 0 | R177: 0 | S177: 0 | T177: 0 | U177: 0 | V177: 0 | W177: 0
B178: Bus 4E | C178: 0 | D178: 0 | E178: 0 | F178: 0 | G178: 0 | H178: 0 | I178: 0 | J178: 0 | K178: 0 | L178: 0 | M178: 0 | N178: 0 | O178: 0 | P178: 0 | Q178: 0 | R178: 0 | S178: 0 | T178: 0 | U178: 0 | V178: 0 | W178: 0
B179: Camión 2E | C179: 0 | D179: 0 | E179: 0 | F179: 0 | G179: 0 | H179: 0 | I179: 0 | J179: 0 | K179: 0 | L179: 0 | M179: 0 | N179: 0 | O179: 0 | P179: 0 | Q179: 0 | R179: 0 | S179: 0 | T179: 0 | U179: 0 | V179: 0 | W179: 0
B180: Camión 3E | C180: 0 | D180: 0 | E180: 0 | F180: 0 | G180: 0 | H180: 0 | I180: 0 | J180: 0 | K180: 0 | L180: 0 | M180: 0 | N180: 0 | O180: 0 | P180: 0 | Q180: 0 | R180: 0 | S180: 0 | T180: 0 | U180: 0 | V180: 0 | W180: 0
B181: Camión 4E | C181: 0 | D181: 0 | E181: 0 | F181: 0 | G181: 0 | H181: 0 | I181: 0 | J181: 0 | K181: 0 | L181: 0 | M181: 0 | N181: 0 | O181: 0 | P181: 0 | Q181: 0 | R181: 0 | S181: 0 | T181: 0 | U181: 0 | V181: 0 | W181: 0
B182: Semitrayler (T2S1 / T2S2) | C182: 0 | D182: 0 | E182: 0 | F182: 0 | G182: 0 | H182: 0 | I182: 0 | J182: 0 | K182: 0 | L182: 0 | M182: 0 | N182: 0 | O182: 0 | P182: 0 | Q182: 0 | R182: 0 | S182: 0 | T182: 0 | U182: 0 | V182: 0 | W182: 0
B183: Semitrayler (T2S3) | C183: 0 | D183: 0 | E183: 0 | F183: 0 | G183: 0 | H183: 0 | I183: 0 | J183: 0 | K183: 0 | L183: 0 | M183: 0 | N183: 0 | O183: 0 | P183: 0 | Q183: 0 | R183: 0 | S183: 0 | T183: 0 | U183: 0 | V183: 0 | W183: 0
B184: Semitrayler (T3S1 / T3S2) | C184: 0 | D184: 0 | E184: 0 | F184: 0 | G184: 0 | H184: 0 | I184: 0 | J184: 0 | K184: 0 | L184: 0 | M184: 0 | N184: =N151 -> 0 | O184: 0 | P184: 0 | Q184: 0 | R184: 0 | S184: 0 | T184: 0 | U184: 0 | V184: 0 | W184: 0
B185: Semitrayler (T3S3) | C185: 0 | D185: 0 | E185: 0 | F185: 0 | G185: 0 | H185: 0 | I185: 0 | J185: 0 | K185: 0 | L185: 0 | M185: 0 | N185: 0 | O185: 0 | P185: 0 | Q185: 0 | R185: 0 | S185: 0 | T185: 0 | U185: 0 | V185: 0 | W185: 0
B186: Trayler (C2R2) | C186: 0 | D186: 0 | E186: 0 | F186: 0 | G186: 0 | H186: 0 | I186: 0 | J186: 0 | K186: 0 | L186: 0 | M186: 0 | N186: 0 | O186: 0 | P186: 0 | Q186: 0 | R186: 0 | S186: 0 | T186: 0 | U186: 0 | V186: 0 | W186: 0
B187: Trayler (C2R3) | C187: 0 | D187: 0 | E187: 0 | F187: 0 | G187: 0 | H187: 0 | I187: 0 | J187: 0 | K187: 0 | L187: 0 | M187: 0 | N187: 0 | O187: 0 | P187: 0 | Q187: 0 | R187: 0 | S187: 0 | T187: 0 | U187: 0 | V187: 0 | W187: 0
B188: Trayler (C3R2) | C188: 0 | D188: 0 | E188: 0 | F188: 0 | G188: 0 | H188: 0 | I188: 0 | J188: 0 | K188: 0 | L188: 0 | M188: 0 | N188: 0 | O188: 0 | P188: 0 | Q188: 0 | R188: 0 | S188: 0 | T188: 0 | U188: 0 | V188: 0 | W188: 0
B189: Trayler (C3R3) | C189: 0 | D189: 0 | E189: 0 | F189: 0 | G189: 0 | H189: 0 | I189: 0 | J189: 0 | K189: 0 | L189: 0 | M189: 0 | N189: 0 | O189: 0 | P189: 0 | Q189: 0 | R189: 0 | S189: 0 | T189: 0 | U189: 0 | V189: 0 | W189: 0
B190: Tráfico Generado | C190: =SUM(C191:C209) -> 0 | D190: =SUM(D191:D209) -> 0 | E190: 0 | F190: 0 | G190: 0 | H190: 0 | I190: 0 | J190: 0 | K190: 0 | L190: 0 | M190: 0 | N190: 0 | O190: 0 | P190: 0 | Q190: 0 | R190: 0 | S190: 0 | T190: 0 | U190: 0 | V190: 0 | W190: 0
B191: Automovil | C191: =+ROUNDUP(C171*($C$165/100),0) -> 0 | D191: =+ROUNDUP(D171*($C$165/100),0) -> 0 | E191: 0 | F191: 0 | G191: 0 | H191: 0 | I191: 0 | J191: 0 | K191: 0 | L191: 0 | M191: 0 | N191: 0 | O191: 0 | P191: 0 | Q191: 0 | R191: 0 | S191: 0 | T191: 0 | U191: 0 | V191: 0 | W191: 0
B192: Station Wagon | C192: =+ROUNDUP(C172*($C$165/100),0) -> 0 | D192: =+ROUNDUP(D172*($C$165/100),0) -> 0 | E192: 0 | F192: 0 | G192: 0 | H192: 0 | I192: 0 | J192: 0 | K192: 0 | L192: 0 | M192: 0 | N192: 0 | O192: 0 | P192: 0 | Q192: 0 | R192: 0 | S192: 0 | T192: 0 | U192: 0 | V192: 0 | W192: 0
B193: Camioneta (Pickup/Panel) | C193: =+ROUNDUP(C173*($C$165/100),0) -> 0 | D193: =+ROUNDUP(D173*($C$165/100),0) -> 0 | E193: 0 | F193: 0 | G193: 0 | H193: 0 | I193: 0 | J193: 0 | K193: 0 | L193: 0 | M193: 0 | N193: 0 | O193: 0 | P193: 0 | Q193: 0 | R193: 0 | S193: 0 | T193: 0 | U193: 0 | V193: 0 | W193: 0
B194: C.Rural (Combi) | C194: =+ROUNDUP(C174*($C$165/100),0) -> 0 | D194: =+ROUNDUP(D174*($C$165/100),0) -> 0 | E194: 0 | F194: 0 | G194: 0 | H194: 0 | I194: 0 | J194: 0 | K194: 0 | L194: 0 | M194: 0 | N194: 0 | O194: 0 | P194: 0 | Q194: 0 | R194: 0 | S194: 0 | T194: 0 | U194: 0 | V194: 0 | W194: 0
B195: Micro | C195: =+ROUNDUP(C175*($C$165/100),0) -> 0 | D195: =+ROUNDUP(D175*($C$165/100),0) -> 0 | E195: 0 | F195: 0 | G195: 0 | H195: 0 | I195: 0 | J195: 0 | K195: 0 | L195: 0 | M195: 0 | N195: 0 | O195: 0 | P195: 0 | Q195: 0 | R195: 0 | S195: 0 | T195: 0 | U195: 0 | V195: 0 | W195: 0
B196: Bus 2E | C196: =+ROUNDUP(C176*($C$165/100),0) -> 0 | D196: =+ROUNDUP(D176*($C$165/100),0) -> 0 | E196: 0 | F196: 0 | G196: 0 | H196: 0 | I196: 0 | J196: 0 | K196: 0 | L196: 0 | M196: 0 | N196: 0 | O196: 0 | P196: 0 | Q196: 0 | R196: 0 | S196: 0 | T196: 0 | U196: 0 | V196: 0 | W196: 0
B197: Bus 3E | C197: =+ROUNDUP(C177*($C$165/100),0) -> 0 | D197: =+ROUNDUP(D177*($C$165/100),0) -> 0 | E197: 0 | F197: 0 | G197: 0 | H197: 0 | I197: 0 | J197: 0 | K197: 0 | L197: 0 | M197: 0 | N197: 0 | O197: 0 | P197: 0 | Q197: 0 | R197: 0 | S197: 0 | T197: 0 | U197: 0 | V197: 0 | W197: 0
B198: Bus 4E | C198: =+ROUNDUP(C178*($C$165/100),0) -> 0 | D198: =+ROUNDUP(D178*($C$165/100),0) -> 0 | E198: 0 | F198: 0 | G198: 0 | H198: 0 | I198: 0 | J198: 0 | K198: 0 | L198: 0 | M198: 0 | N198: 0 | O198: 0 | P198: 0 | Q198: 0 | R198: 0 | S198: 0 | T198: 0 | U198: 0 | V198: 0 | W198: 0
B199: Camión 2E | C199: =+ROUNDUP(C179*($C$165/100),0) -> 0 | D199: =+ROUNDUP(D179*($C$165/100),0) -> 0 | E199: 0 | F199: 0 | G199: 0 | H199: 0 | I199: 0 | J199: 0 | K199: 0 | L199: 0 | M199: 0 | N199: 0 | O199: 0 | P199: 0 | Q199: 0 | R199: 0 | S199: 0 | T199: 0 | U199: 0 | V199: 0 | W199: 0
B200: Camión 3E | C200: =+ROUNDUP(C180*($C$165/100),0) -> 0 | D200: =+ROUNDUP(D180*($C$165/100),0) -> 0 | E200: 0 | F200: 0 | G200: 0 | H200: 0 | I200: 0 | J200: 0 | K200: 0 | L200: 0 | M200: 0 | N200: 0 | O200: 0 | P200: 0 | Q200: 0 | R200: 0 | S200: 0 | T200: 0 | U200: 0 | V200: 0 | W200: 0
B201: Camión 4E | C201: =+ROUNDUP(C181*($C$165/100),0) -> 0 | D201: =+ROUNDUP(D181*($C$165/100),0) -> 0 | E201: 0 | F201: 0 | G201: 0 | H201: 0 | I201: 0 | J201: 0 | K201: 0 | L201: 0 | M201: 0 | N201: 0 | O201: 0 | P201: 0 | Q201: 0 | R201: 0 | S201: 0 | T201: 0 | U201: 0 | V201: 0 | W201: 0
B202: Semitrayler (T2S1 / T2S2) | C202: =+ROUNDUP(C182*($C$165/100),0) -> 0 | D202: =+ROUNDUP(D182*($C$165/100),0) -> 0 | E202: 0 | F202: 0 | G202: 0 | H202: 0 | I202: 0 | J202: 0 | K202: 0 | L202: 0 | M202: 0 | N202: 0 | O202: 0 | P202: 0 | Q202: 0 | R202: 0 | S202: 0 | T202: 0 | U202: 0 | V202: 0 | W202: 0
B203: Semitrayler (T2S3) | C203: =+ROUNDUP(C183*($C$165/100),0) -> 0 | D203: =+ROUNDUP(D183*($C$165/100),0) -> 0 | E203: 0 | F203: 0 | G203: 0 | H203: 0 | I203: 0 | J203: 0 | K203: 0 | L203: 0 | M203: 0 | N203: 0 | O203: 0 | P203: 0 | Q203: 0 | R203: 0 | S203: 0 | T203: 0 | U203: 0 | V203: 0 | W203: 0
B204: Semitrayler (T3S1 / T3S2) | C204: =+ROUNDUP(C184*($C$165/100),0) -> 0 | D204: =+ROUNDUP(D184*($C$165/100),0) -> 0 | E204: 0 | F204: 0 | G204: 0 | H204: 0 | I204: 0 | J204: 0 | K204: 0 | L204: 0 | M204: 0 | N204: 0 | O204: 0 | P204: 0 | Q204: 0 | R204: 0 | S204: 0 | T204: 0 | U204: 0 | V204: 0 | W204: 0
B205: Semitrayler (T3S3) | C205: =+ROUNDUP(C185*($C$165/100),0) -> 0 | D205: =+ROUNDUP(D185*($C$165/100),0) -> 0 | E205: 0 | F205: 0 | G205: 0 | H205: 0 | I205: 0 | J205: 0 | K205: 0 | L205: 0 | M205: 0 | N205: 0 | O205: 0 | P205: 0 | Q205: 0 | R205: 0 | S205: 0 | T205: 0 | U205: 0 | V205: 0 | W205: 0
B206: Trayler (C2R2) | C206: =+ROUNDUP(C186*($C$165/100),0) -> 0 | D206: =+ROUNDUP(D186*($C$165/100),0) -> 0 | E206: 0 | F206: 0 | G206: 0 | H206: 0 | I206: 0 | J206: 0 | K206: 0 | L206: 0 | M206: 0 | N206: 0 | O206: 0 | P206: 0 | Q206: 0 | R206: 0 | S206: 0 | T206: 0 | U206: 0 | V206: 0 | W206: 0
B207: Trayler (C2R3) | C207: =+ROUNDUP(C187*($C$165/100),0) -> 0 | D207: =+ROUNDUP(D187*($C$165/100),0) -> 0 | E207: 0 | F207: 0 | G207: 0 | H207: 0 | I207: 0 | J207: 0 | K207: 0 | L207: 0 | M207: 0 | N207: 0 | O207: 0 | P207: 0 | Q207: 0 | R207: 0 | S207: 0 | T207: 0 | U207: 0 | V207: 0 | W207: 0
B208: Trayler (C3R2) | C208: =+ROUNDUP(C188*($C$165/100),0) -> 0 | D208: =+ROUNDUP(D188*($C$165/100),0) -> 0 | E208: 0 | F208: 0 | G208: 0 | H208: 0 | I208: 0 | J208: 0 | K208: 0 | L208: 0 | M208: 0 | N208: 0 | O208: 0 | P208: 0 | Q208: 0 | R208: 0 | S208: 0 | T208: 0 | U208: 0 | V208: 0 | W208: 0
B209: Trayler (C3R3) | C209: =+ROUNDUP(C189*($C$165/100),0) -> 0 | D209: =+ROUNDUP(D189*($C$165/100),0) -> 0 | E209: 0 | F209: 0 | G209: 0 | H209: 0 | I209: 0 | J209: 0 | K209: 0 | L209: 0 | M209: 0 | N209: 0 | O209: 0 | P209: 0 | Q209: 0 | R209: 0 | S209: 0 | T209: 0 | U209: 0 | V209: 0 | W209: 0
B210: Tráfico Desviado | C210: =SUM(C211:C229) -> 0 | D210: 0 | E210: 0 | F210: 0 | G210: 0 | H210: 0 | I210: 0 | J210: 0 | K210: 0 | L210: 0 | M210: 0 | N210: =SUM(N211:N229) -> 0 | O210: =SUM(O211:O229) -> 0 | P210: 0 | Q210: 0 | R210: 0 | S210: 0 | T210: 0 | U210: 0 | V210: 0 | W210: 0
B211: Automovil
B212: Station Wagon
B213: Camioneta (Pickup/Panel)
B214: C.Rural (Combi)
B215: Micro
B216: Bus 2E
B217: Bus 3E
B218: Bus 4E
B219: Camión 2E
B220: Camión 3E
B221: Camión 4E
B222: Semitrayler (T2S1 / T2S2)
B223: Semitrayler (T2S3)
B224: Semitrayler (T3S1 / T3S2)
B225: Semitrayler (T3S3)
B226: Trayler (C2R2)
B227: Trayler (C2R3)
B228: Trayler (C3R2)
B229: Trayler (C3R3)
B230: IMD TOTAL | C230: =+C170+C210+C190 -> 0 | D230: =+D170+D210+D190 -> 0 | E230: 0 | F230: 0 | G230: 0 | H230: 0 | I230: 0 | J230: 0 | K230: 0 | L230: 0 | M230: 0 | N230: 0 | O230: 0 | P230: 0 | Q230: 0 | R230: 0 | S230: 0 | T230: 0 | U230: 0 | V230: 0 | W230: 0
B234: TRÁFICO TOTAL
B235: Tipo de Vehículo | C235: Año 0 | D235: Año 1 | E235: Año 2 | F235: Año 3 | G235: Año 4 | H235: Año 5 | I235: Año 6 | J235: Año 7 | K235: Año 8 | L235: Año 9 | M235: Año 10 | N235: 11 | O235: 12 | P235: 13 | Q235: 14 | R235: 15 | S235: 16 | T235: 17 | U235: 18 | V235: 19 | W235: 20
B236: Automovil | C236: =+C171+C191+C211 -> 0 | D236: =+D171+D191+D211 -> 0 | E236: 0 | F236: 0 | G236: 0 | H236: 0 | I236: 0 | J236: 0 | K236: 0 | L236: 0 | M236: 0 | N236: 0 | O236: 0 | P236: 0 | Q236: 0 | R236: 0 | S236: 0 | T236: 0 | U236: 0 | V236: 0 | W236: 0
B237: Station Wagon | C237: =+C172+C192+C212 -> 0 | D237: 0 | E237: 0 | F237: 0 | G237: 0 | H237: 0 | I237: 0 | J237: 0 | K237: 0 | L237: 0 | M237: 0 | N237: 0 | O237: 0 | P237: 0 | Q237: 0 | R237: 0 | S237: 0 | T237: 0 | U237: 0 | V237: 0 | W237: 0
B238: Camioneta (Pickup/Panel) | C238: 0 | D238: 0 | E238: 0 | F238: 0 | G238: 0 | H238: 0 | I238: 0 | J238: 0 | K238: 0 | L238: 0 | M238: 0 | N238: 0 | O238: 0 | P238: 0 | Q238: 0 | R238: 0 | S238: 0 | T238: 0 | U238: 0 | V238: 0 | W238: 0
B239: C.Rural (Combi) | C239: 0 | D239: 0 | E239: 0 | F239: 0 | G239: 0 | H239: 0 | I239: 0 | J239: 0 | K239: 0 | L239: 0 | M239: 0 | N239: 0 | O239: 0 | P239: 0 | Q239: 0 | R239: 0 | S239: 0 | T239: 0 | U239: 0 | V239: 0 | W239: 0
B240: Micro | C240: 0 | D240: 0 | E240: 0 | F240: 0 | G240: 0 | H240: 0 | I240: 0 | J240: 0 | K240: 0 | L240: 0 | M240: 0 | N240: 0 | O240: 0 | P240: 0 | Q240: 0 | R240: 0 | S240: 0 | T240: 0 | U240: 0 | V240: 0 | W240: 0
B241: Bus 2E | C241: 0 | D241: 0 | E241: 0 | F241: 0 | G241: 0 | H241: 0 | I241: 0 | J241: 0 | K241: 0 | L241: 0 | M241: 0 | N241: 0 | O241: 0 | P241: 0 | Q241: 0 | R241: 0 | S241: 0 | T241: 0 | U241: 0 | V241: 0 | W241: 0
B242: Bus 3E | C242: 0 | D242: 0 | E242: 0 | F242: 0 | G242: 0 | H242: 0 | I242: 0 | J242: 0 | K242: 0 | L242: 0 | M242: 0 | N242: 0 | O242: 0 | P242: 0 | Q242: 0 | R242: 0 | S242: 0 | T242: 0 | U242: 0 | V242: 0 | W242: 0
B243: Bus 4E | C243: 0 | D243: 0 | E243: 0 | F243: 0 | G243: 0 | H243: 0 | I243: 0 | J243: 0 | K243: 0 | L243: 0 | M243: 0 | N243: 0 | O243: 0 | P243: 0 | Q243: 0 | R243: 0 | S243: 0 | T243: 0 | U243: 0 | V243: 0 | W243: 0
B244: Camión 2E | C244: 0 | D244: 0 | E244: 0 | F244: 0 | G244: 0 | H244: 0 | I244: 0 | J244: 0 | K244: 0 | L244: 0 | M244: 0 | N244: 0 | O244: 0 | P244: 0 | Q244: 0 | R244: 0 | S244: 0 | T244: 0 | U244: 0 | V244: 0 | W244: 0
B245: Camión 3E | C245: 0 | D245: 0 | E245: 0 | F245: 0 | G245: 0 | H245: 0 | I245: 0 | J245: 0 | K245: 0 | L245: 0 | M245: 0 | N245: 0 | O245: 0 | P245: 0 | Q245: 0 | R245: 0 | S245: 0 | T245: 0 | U245: 0 | V245: 0 | W245: 0
B246: Camión 4E | C246: 0 | D246: 0 | E246: 0 | F246: 0 | G246: 0 | H246: 0 | I246: 0 | J246: 0 | K246: 0 | L246: 0 | M246: 0 | N246: 0 | O246: 0 | P246: 0 | Q246: 0 | R246: 0 | S246: 0 | T246: 0 | U246: 0 | V246: 0 | W246: 0
B247: Semitrayler (T2S1 / T2S2) | C247: 0 | D247: 0 | E247: 0 | F247: 0 | G247: 0 | H247: 0 | I247: 0 | J247: 0 | K247: 0 | L247: 0 | M247: 0 | N247: 0 | O247: 0 | P247: 0 | Q247: 0 | R247: 0 | S247: 0 | T247: 0 | U247: 0 | V247: 0 | W247: 0
... 124 more rows

Sheet P1.Ejes Equivalentes
B1: DETERMINACIÓN DE EJES EQUIVALENTES (EE) | T1: HOJA P1. EJES EQUIVALENTES
AA2: 111 | AB2: 1 | AC2: 1
A3: =CONCATENATE(C3,F3,K3) -> 121 | B3: Número de Calzadas | C3: 1 | E3: Nro de Sentidos | F3: 2 | H3: Nro de Carriles - Sentido | K3: 1 | AA3: 112 | AB3: 1 | AC3: 0.8
AA4: 113 | AB4: 1 | AC4: 0.6
AA5: 114 | AB5: 1 | AC5: 0.5
B6: FD | C6: =IFERROR(VLOOKUP($A$3,$AA$2:$AC$11,2,0),"Verificar") -> 0.5 | E6: FC | F6: =IFERROR(VLOOKUP($A$3,$AA$2:$AC$11,3,0),"Verificar") -> 1 | H6: Tipo de pavimento | K6: Rígido | AA6: 121 | AB6: 0.5 | AC6: 1
AA7: 122 | AB7: 0.5 | AC7: 0.8
B8: TRÁFICO TOTAL | AA8: 221 | AB8: 0.5 | AC8: 1
B9: Tipo de Vehículo | C9: Año 0 | D9: Año 1 | E9: Año 2 | F9: Año 3 | G9: Año 4 | H9: Año 5 | I9: Año 6 | J9: Año 7 | K9: Año 8 | L9: Año 9 | M9: Año 10 | N9: 11 | O9: 12 | P9: 13 | Q9: 14 | R9: 15 | S9: 16 | T9: 17 | U9: 18 | V9: 19 | W9: 20 | AA9: 222 | AB9: 0.5 | AC9: 0.8
B10: Automovil | C10: =+'A2.Demanda'!C236*365 -> 0 | D10: =+'A2.Demanda'!D236*365 -> 0 | E10: =+'A2.Demanda'!E236*365 -> 0 | F10: =+'A2.Demanda'!F236*365 -> 0 | G10: =+'A2.Demanda'!G236*365 -> 0 | H10: =+'A2.Demanda'!H236*365 -> 0 | I10: =+'A2.Demanda'!I236*365 -> 0 | J10: =+'A2.Demanda'!J236*365 -> 0 | K10: =+'A2.Demanda'!K236*365 -> 0 | L10: =+'A2.Demanda'!L236*365 -> 0 | M10: =+'A2.Demanda'!M236*365 -> 0 | N10: =+'A2.Demanda'!N236*365 -> 0 | O10: =+'A2.Demanda'!O236*365 -> 0 | P10: =+'A2.Demanda'!P236*365 -> 0 | Q10: =+'A2.Demanda'!Q236*365 -> 0 | R10: =+'A2.Demanda'!R236*365 -> 0 | S10: =+'A2.Demanda'!S236*365 -> 0 | T10: =+'A2.Demanda'!T236*365 -> 0 | U10: =+'A2.Demanda'!U236*365 -> 0 | V10: =+'A2.Demanda'!V236*365 -> 0 | W10: =+'A2.Demanda'!W236*365 -> 0 | AA10: 223 | AB10: 0.5 | AC10: 0.6
B11: Station Wagon | C11: =+'A2.Demanda'!C237*365 -> 0 | D11: =+'A2.Demanda'!D237*365 -> 0 | E11: =+'A2.Demanda'!E237*365 -> 0 | F11: =+'A2.Demanda'!F237*365 -> 0 | G11: =+'A2.Demanda'!G237*365 -> 0 | H11: =+'A2.Demanda'!H237*365 -> 0 | I11: =+'A2.Demanda'!I237*365 -> 0 | J11: =+'A2.Demanda'!J237*365 -> 0 | K11: =+'A2.Demanda'!K237*365 -> 0 | L11: =+'A2.Demanda'!L237*365 -> 0 | M11: =+'A2.Demanda'!M237*365 -> 0 | N11: =+'A2.Demanda'!N237*365 -> 0 | O11: =+'A2.Demanda'!O237*365 -> 0 | P11: =+'A2.Demanda'!P237*365 -> 0 | Q11: =+'A2.Demanda'!Q237*365 -> 0 | R11: =+'A2.Demanda'!R237*365 -> 0 | S11: =+'A2.Demanda'!S237*365 -> 0 | T11: =+'A2.Demanda'!T237*365 -> 0 | U11: =+'A2.Demanda'!U237*365 -> 0 | V11: =+'A2.Demanda'!V237*365 -> 0 | W11: =+'A2.Demanda'!W237*365 -> 0 | AA11: 224 | AB11: 0.5 | AC11: 0.5
B12: Camioneta (Pickup/Panel) | C12: =+'A2.Demanda'!C238*365 -> 0 | D12: =+'A2.Demanda'!D238*365 -> 0 | E12: =+'A2.Demanda'!E238*365 -> 0 | F12: =+'A2.Demanda'!F238*365 -> 0 | G12: =+'A2.Demanda'!G238*365 -> 0 | H12: =+'A2.Demanda'!H238*365 -> 0 | I12: =+'A2.Demanda'!I238*365 -> 0 | J12: =+'A2.Demanda'!J238*365 -> 0 | K12: =+'A2.Demanda'!K238*365 -> 0 | L12: =+'A2.Demanda'!L238*365 -> 0 | M12: =+'A2.Demanda'!M238*365 -> 0 | N12: =+'A2.Demanda'!N238*365 -> 0 | O12: =+'A2.Demanda'!O238*365 -> 0 | P12: =+'A2.Demanda'!P238*365 -> 0 | Q12: =+'A2.Demanda'!Q238*365 -> 0 | R12: =+'A2.Demanda'!R238*365 -> 0 | S12: =+'A2.Demanda'!S238*365 -> 0 | T12: =+'A2.Demanda'!T238*365 -> 0 | U12: =+'A2.Demanda'!U238*365 -> 0 | V12: =+'A2.Demanda'!V238*365 -> 0 | W12: =+'A2.Demanda'!W238*365 -> 0
B13: C.Rural (Combi) | C13: =+'A2.Demanda'!C239*365 -> 0 | D13: =+'A2.Demanda'!D239*365 -> 0 | E13: =+'A2.Demanda'!E239*365 -> 0 | F13: =+'A2.Demanda'!F239*365 -> 0 | G13: =+'A2.Demanda'!G239*365 -> 0 | H13: =+'A2.Demanda'!H239*365 -> 0 | I13: =+'A2.Demanda'!I239*365 -> 0 | J13: =+'A2.Demanda'!J239*365 -> 0 | K13: =+'A2.Demanda'!K239*365 -> 0 | L13: =+'A2.Demanda'!L239*365 -> 0 | M13: =+'A2.Demanda'!M239*365 -> 0 | N13: =+'A2.Demanda'!N239*365 -> 0 | O13: =+'A2.Demanda'!O239*365 -> 0 | P13: =+'A2.Demanda'!P239*365 -> 0 | Q13: =+'A2.Demanda'!Q239*365 -> 0 | R13: =+'A2.Demanda'!R239*365 -> 0 | S13: =+'A2.Demanda'!S239*365 -> 0 | T13: =+'A2.Demanda'!T239*365 -> 0 | U13: =+'A2.Demanda'!U239*365 -> 0 | V13: =+'A2.Demanda'!V239*365 -> 0 | W13: =+'A2.Demanda'!W239*365 -> 0
B14: Micro | C14: =+'A2.Demanda'!C240*365 -> 0 | D14: =+'A2.Demanda'!D240*365 -> 0 | E14: =+'A2.Demanda'!E240*365 -> 0 | F14: =+'A2.Demanda'!F240*365 -> 0 | G14: =+'A2.Demanda'!G240*365 -> 0 | H14: =+'A2.Demanda'!H240*365 -> 0 | I14: =+'A2.Demanda'!I240*365 -> 0 | J14: =+'A2.Demanda'!J240*365 -> 0 | K14: =+'A2.Demanda'!K240*365 -> 0 | L14: =+'A2.Demanda'!L240*365 -> 0 | M14: =+'A2.Demanda'!M240*365 -> 0 | N14: =+'A2.Demanda'!N240*365 -> 0 | O14: =+'A2.Demanda'!O240*365 -> 0 | P14: =+'A2.Demanda'!P240*365 -> 0 | Q14: =+'A2.Demanda'!Q240*365 -> 0 | R14: =+'A2.Demanda'!R240*365 -> 0 | S14: =+'A2.Demanda'!S240*365 -> 0 | T14: =+'A2.Demanda'!T240*365 -> 0 | U14: =+'A2.Demanda'!U240*365 -> 0 | V14: =+'A2.Demanda'!V240*365 -> 0 | W14: =+'A2.Demanda'!W240*365 -> 0 | AB14: =IF(K6=AB15,2,3) -> 3
B15: Bus 2E | C15: =+'A2.Demanda'!C241*365 -> 0 | D15: =+'A2.Demanda'!D241*365 -> 0 | E15: =+'A2.Demanda'!E241*365 -> 0 | F15: =+'A2.Demanda'!F241*365 -> 0 | G15: =+'A2.Demanda'!G241*365 -> 0 | H15: =+'A2.Demanda'!H241*365 -> 0 | I15: =+'A2.Demanda'!I241*365 -> 0 | J15: =+'A2.Demanda'!J241*365 -> 0 | K15: =+'A2.Demanda'!K241*365 -> 0 | L15: =+'A2.Demanda'!L241*365 -> 0 | M15: =+'A2.Demanda'!M241*365 -> 0 | N15: =+'A2.Demanda'!N241*365 -> 0 | O15: =+'A2.Demanda'!O241*365 -> 0 | P15: =+'A2.Demanda'!P241*365 -> 0 | Q15: =+'A2.Demanda'!Q241*365 -> 0 | R15: =+'A2.Demanda'!R241*365 -> 0 | S15: =+'A2.Demanda'!S241*365 -> 0 | T15: =+'A2.Demanda'!T241*365 -> 0 | U15: =+'A2.Demanda'!U241*365 -> 0 | V15: =+'A2.Demanda'!V241*365 -> 0 | W15: =+'A2.Demanda'!W241*365 -> 0 | AB15: Flexible | AC15: Rígido
B16: Bus 3E | C16: =+'A2.Demanda'!C242*365 -> 0 | D16: =+'A2.Demanda'!D242*365 -> 0 | E16: =+'A2.Demanda'!E242*365 -> 0 | F16: =+'A2.Demanda'!F242*365 -> 0 | G16: =+'A2.Demanda'!G242*365 -> 0 | H16: =+'A2.Demanda'!H242*365 -> 0 | I16: =+'A2.Demanda'!I242*365 -> 0 | J16: =+'A2.Demanda'!J242*365 -> 0 | K16: =+'A2.Demanda'!K242*365 -> 0 | L16: =+'A2.Demanda'!L242*365 -> 0 | M16: =+'A2.Demanda'!M242*365 -> 0 | N16: =+'A2.Demanda'!N242*365 -> 0 | O16: =+'A2.Demanda'!O242*365 -> 0 | P16: =+'A2.Demanda'!P242*365 -> 0 | Q16: =+'A2.Demanda'!Q242*365 -> 0 | R16: =+'A2.Demanda'!R242*365 -> 0 | S16: =+'A2.Demanda'!S242*365 -> 0 | T16: =+'A2.Demanda'!T242*365 -> 0 | U16: =+'A2.Demanda'!U242*365 -> 0 | V16: =+'A2.Demanda'!V242*365 -> 0 | W16: =+'A2.Demanda'!W242*365 -> 0 | AA16: Automovil | AB16: 0.001 | AC16: 0.001
B17: Bus 4E | C17: =+'A2.Demanda'!C243*365 -> 0 | D17: =+'A2.Demanda'!D243*365 -> 0 | E17: =+'A2.Demanda'!E243*365 -> 0 | F17: =+'A2.Demanda'!F243*365 -> 0 | G17: =+'A2.Demanda'!G243*365 -> 0 | H17: =+'A2.Demanda'!H243*365 -> 0 | I17: =+'A2.Demanda'!I243*365 -> 0 | J17: =+'A2.Demanda'!J243*365 -> 0 | K17: =+'A2.Demanda'!K243*365 -> 0 | L17: =+'A2.Demanda'!L243*365 -> 0 | M17: =+'A2.Demanda'!M243*365 -> 0 | N17: =+'A2.Demanda'!N243*365 -> 0 | O17: =+'A2.Demanda'!O243*365 -> 0 | P17: =+'A2.Demanda'!P243*365 -> 0 | Q17: =+'A2.Demanda'!Q243*365 -> 0 | R17: =+'A2.Demanda'!R243*365 -> 0 | S17: =+'A2.Demanda'!S243*365 -> 0 | T17: =+'A2.Demanda'!T243*365 -> 0 | U17: =+'A2.Demanda'!U243*365 -> 0 | V17: =+'A2.Demanda'!V243*365 -> 0 | W17: =+'A2.Demanda'!W243*365 -> 0 | AA17: Station Wagon | AB17: 0.001 | AC17: 0.001
B18: Camión 2E | C18: =+'A2.Demanda'!C244*365 -> 0 | D18: =+'A2.Demanda'!D244*365 -> 0 | E18: =+'A2.Demanda'!E244*365 -> 0 | F18: =+'A2.Demanda'!F244*365 -> 0 | G18: =+'A2.Demanda'!G244*365 -> 0 | H18: =+'A2.Demanda'!H244*365 -> 0 | I18: =+'A2.Demanda'!I244*365 -> 0 | J18: =+'A2.Demanda'!J244*365 -> 0 | K18: =+'A2.Demanda'!K244*365 -> 0 | L18: =+'A2.Demanda'!L244*365 -> 0 | M18: =+'A2.Demanda'!M244*365 -> 0 | N18: =+'A2.Demanda'!N244*365 -> 0 | O18: =+'A2.Demanda'!O244*365 -> 0 | P18: =+'A2.Demanda'!P244*365 -> 0 | Q18: =+'A2.Demanda'!Q244*365 -> 0 | R18: =+'A2.Demanda'!R244*365 -> 0 | S18: =+'A2.Demanda'!S244*365 -> 0 | T18: =+'A2.Demanda'!T244*365 -> 0 | U18: =+'A2.Demanda'!U244*365 -> 0 | V18: =+'A2.Demanda'!V244*365 -> 0 | W18: =+'A2.Demanda'!W244*365 -> 0 | AA18: Camioneta (Pickup/Panel) | AB18: =+AB17 -> 0.001 | AC18: 0.001
B19: Camión 3E | C19: =+'A2.Demanda'!C245*365 -> 0 | D19: =+'A2.Demanda'!D245*365 -> 0 | E19: =+'A2.Demanda'!E245*365 -> 0 | F19: =+'A2.Demanda'!F245*365 -> 0 | G19: =+'A2.Demanda'!G245*365 -> 0 | H19: =+'A2.Demanda'!H245*365 -> 0 | I19: =+'A2.Demanda'!I245*365 -> 0 | J19: =+'A2.Demanda'!J245*365 -> 0 | K19: =+'A2.Demanda'!K245*365 -> 0 | L19: =+'A2.Demanda'!L245*365 -> 0 | M19: =+'A2.Demanda'!M245*365 -> 0 | N19: =+'A2.Demanda'!N245*365 -> 0 | O19: =+'A2.Demanda'!O245*365 -> 0 | P19: =+'A2.Demanda'!P245*365 -> 0 | Q19: =+'A2.Demanda'!Q245*365 -> 0 | R19: =+'A2.Demanda'!R245*365 -> 0 | S19: =+'A2.Demanda'!S245*365 -> 0 | T19: =+'A2.Demanda'!T245*365 -> 0 | U19: =+'A2.Demanda'!U245*365 -> 0 | V19: =+'A2.Demanda'!V245*365 -> 0 | W19: =+'A2.Demanda'!W245*365 -> 0 | AA19: C.Rural (Combi) | AB19: 0.1 | AC19: 1.1
B20: Camión 4E | C20: =+'A2.Demanda'!C246*365 -> 0 | D20: =+'A2.Demanda'!D246*365 -> 0 | E20: =+'A2.Demanda'!E246*365 -> 0 | F20: =+'A2.Demanda'!F246*365 -> 0 | G20: =+'A2.Demanda'!G246*365 -> 0 | H20: =+'A2.Demanda'!H246*365 -> 0 | I20: =+'A2.Demanda'!I246*365 -> 0 | J20: =+'A2.Demanda'!J246*365 -> 0 | K20: =+'A2.Demanda'!K246*365 -> 0 | L20: =+'A2.Demanda'!L246*365 -> 0 | M20: =+'A2.Demanda'!M246*365 -> 0 | N20: =+'A2.Demanda'!N246*365 -> 0 | O20: =+'A2.Demanda'!O246*365 -> 0 | P20: =+'A2.Demanda'!P246*365 -> 0 | Q20: =+'A2.Demanda'!Q246*365 -> 0 | R20: =+'A2.Demanda'!R246*365 -> 0 | S20: =+'A2.Demanda'!S246*365 -> 0 | T20: =+'A2.Demanda'!T246*365 -> 0 | U20: =+'A2.Demanda'!U246*365 -> 0 | V20: =+'A2.Demanda'!V246*365 -> 0 | W20: =+'A2.Demanda'!W246*365 -> 0 | AA20: Micro | AB20: 4.504 | AC20: 4.607660451
B21: Semitrayler (T2S1 / T2S2) | C21: =+'A2.Demanda'!C247*365 -> 0 | D21: =+'A2.Demanda'!D247*365 -> 0 | E21: =+'A2.Demanda'!E247*365 -> 0 | F21: =+'A2.Demanda'!F247*365 -> 0 | G21: =+'A2.Demanda'!G247*365 -> 0 | H21: =+'A2.Demanda'!H247*365 -> 0 | I21: =+'A2.Demanda'!I247*365 -> 0 | J21: =+'A2.Demanda'!J247*365 -> 0 | K21: =+'A2.Demanda'!K247*365 -> 0 | L21: =+'A2.Demanda'!L247*365 -> 0 | M21: =+'A2.Demanda'!M247*365 -> 0 | N21: =+'A2.Demanda'!N247*365 -> 0 | O21: =+'A2.Demanda'!O247*365 -> 0 | P21: =+'A2.Demanda'!P247*365 -> 0 | Q21: =+'A2.Demanda'!Q247*365 -> 0 | R21: =+'A2.Demanda'!R247*365 -> 0 | S21: =+'A2.Demanda'!S247*365 -> 0 | T21: =+'A2.Demanda'!T247*365 -> 0 | U21: =+'A2.Demanda'!U247*365 -> 0 | V21: =+'A2.Demanda'!V247*365 -> 0 | W21: =+'A2.Demanda'!W247*365 -> 0 | AA21: Bus 2E | AB21: 4.504 | AC21: 4.607660451
B22: Semitrayler (T2S3) | C22: =+'A2.Demanda'!C248*365 -> 0 | D22: =+'A2.Demanda'!D248*365 -> 0 | E22: =+'A2.Demanda'!E248*365 -> 0 | F22: =+'A2.Demanda'!F248*365 -> 0 | G22: =+'A2.Demanda'!G248*365 -> 0 | H22: =+'A2.Demanda'!H248*365 -> 0 | I22: =+'A2.Demanda'!I248*365 -> 0 | J22: =+'A2.Demanda'!J248*365 -> 0 | K22: =+'A2.Demanda'!K248*365 -> 0 | L22: =+'A2.Demanda'!L248*365 -> 0 | M22: =+'A2.Demanda'!M248*365 -> 0 | N22: =+'A2.Demanda'!N248*365 -> 0 | O22: =+'A2.Demanda'!O248*365 -> 0 | P22: =+'A2.Demanda'!P248*365 -> 0 | Q22: =+'A2.Demanda'!Q248*365 -> 0 | R22: =+'A2.Demanda'!R248*365 -> 0 | S22: =+'A2.Demanda'!S248*365 -> 0 | T22: =+'A2.Demanda'!T248*365 -> 0 | U22: =+'A2.Demanda'!U248*365 -> 0 | V22: =+'A2.Demanda'!V248*365 -> 0 | W22: =+'A2.Demanda'!W248*365 -> 0 | AA22: Bus 3E | AB22: 3.285 | AC22: 4.730838589
B23: Semitrayler (T3S1 / T3S2) | C23: =+'A2.Demanda'!C249*365 -> 0 | D23: =+'A2.Demanda'!D249*365 -> 0 | E23: =+'A2.Demanda'!E249*365 -> 0 | F23: =+'A2.Demanda'!F249*365 -> 0 | G23: =+'A2.Demanda'!G249*365 -> 0 | H23: =+'A2.Demanda'!H249*365 -> 0 | I23: =+'A2.Demanda'!I249*365 -> 0 | J23: =+'A2.Demanda'!J249*365 -> 0 | K23: =+'A2.Demanda'!K249*365 -> 0 | L23: =+'A2.Demanda'!L249*365 -> 0 | M23: =+'A2.Demanda'!M249*365 -> 0 | N23: =+'A2.Demanda'!N249*365 -> 0 | O23: =+'A2.Demanda'!O249*365 -> 0 | P23: =+'A2.Demanda'!P249*365 -> 0 | Q23: =+'A2.Demanda'!Q249*365 -> 0 | R23: =+'A2.Demanda'!R249*365 -> 0 | S23: =+'A2.Demanda'!S249*365 -> 0 | T23: =+'A2.Demanda'!T249*365 -> 0 | U23: =+'A2.Demanda'!U249*365 -> 0 | V23: =+'A2.Demanda'!V249*365 -> 0 | W23: =+'A2.Demanda'!W249*365 -> 0 | AA23: Bus 4E | AB23: 2.774 | AC23: 4.958186321
B24: Semitrayler (T3S3) | C24: =+'A2.Demanda'!C250*365 -> 0 | D24: =+'A2.Demanda'!D250*365 -> 0 | E24: =+'A2.Demanda'!E250*365 -> 0 | F24: =+'A2.Demanda'!F250*365 -> 0 | G24: =+'A2.Demanda'!G250*365 -> 0 | H24: =+'A2.Demanda'!H250*365 -> 0 | I24: =+'A2.Demanda'!I250*365 -> 0 | J24: =+'A2.Demanda'!J250*365 -> 0 | K24: =+'A2.Demanda'!K250*365 -> 0 | L24: =+'A2.Demanda'!L250*365 -> 0 | M24: =+'A2.Demanda'!M250*365 -> 0 | N24: =+'A2.Demanda'!N250*365 -> 0 | O24: =+'A2.Demanda'!O250*365 -> 0 | P24: =+'A2.Demanda'!P250*365 -> 0 | Q24: =+'A2.Demanda'!Q250*365 -> 0 | R24: =+'A2.Demanda'!R250*365 -> 0 | S24: =+'A2.Demanda'!S250*365 -> 0 | T24: =+'A2.Demanda'!T250*365 -> 0 | U24: =+'A2.Demanda'!U250*365 -> 0 | V24: =+'A2.Demanda'!V250*365 -> 0 | W24: =+'A2.Demanda'!W250*365 -> 0 | AA24: Camión 2E | AB24: 4.504 | AC24: 4.607660451
B25: Trayler (C2R2) | C25: =+'A2.Demanda'!C251*365 -> 0 | D25: =+'A2.Demanda'!D251*365 -> 0 | E25: =+'A2.Demanda'!E251*365 -> 0 | F25: =+'A2.Demanda'!F251*365 -> 0 | G25: =+'A2.Demanda'!G251*365 -> 0 | H25: =+'A2.Demanda'!H251*365 -> 0 | I25: =+'A2.Demanda'!I251*365 -> 0 | J25: =+'A2.Demanda'!J251*365 -> 0 | K25: =+'A2.Demanda'!K251*365 -> 0 | L25: =+'A2.Demanda'!L251*365 -> 0 | M25: =+'A2.Demanda'!M251*365 -> 0 | N25: =+'A2.Demanda'!N251*365 -> 0 | O25: =+'A2.Demanda'!O251*365 -> 0 | P25: =+'A2.Demanda'!P251*365 -> 0 | Q25: =+'A2.Demanda'!Q251*365 -> 0 | R25: =+'A2.Demanda'!R251*365 -> 0 | S25: =+'A2.Demanda'!S251*365 -> 0 | T25: =+'A2.Demanda'!T251*365 -> 0 | U25: =+'A2.Demanda'!U251*365 -> 0 | V25: =+'A2.Demanda'!V251*365 -> 0 | W25: =+'A2.Demanda'!W251*365 -> 0 | AA25: Camión 3E | AB25: 3.285 | AC25: 4.730838589
B26: Trayler (C2R3) | C26: =+'A2.Demanda'!C252*365 -> 0 | D26: =+'A2.Demanda'!D252*365 -> 0 | E26: =+'A2.Demanda'!E252*365 -> 0 | F26: =+'A2.Demanda'!F252*365 -> 0 | G26: =+'A2.Demanda'!G252*365 -> 0 | H26: =+'A2.Demanda'!H252*365 -> 0 | I26: =+'A2.Demanda'!I252*365 -> 0 | J26: =+'A2.Demanda'!J252*365 -> 0 | K26: =+'A2.Demanda'!K252*365 -> 0 | L26: =+'A2.Demanda'!L252*365 -> 0 | M26: =+'A2.Demanda'!M252*365 -> 0 | N26: =+'A2.Demanda'!N252*365 -> 0 | O26: =+'A2.Demanda'!O252*365 -> 0 | P26: =+'A2.Demanda'!P252*365 -> 0 | Q26: =+'A2.Demanda'!Q252*365 -> 0 | R26: =+'A2.Demanda'!R252*365 -> 0 | S26: =+'A2.Demanda'!S252*365 -> 0 | T26: =+'A2.Demanda'!T252*365 -> 0 | U26: =+'A2.Demanda'!U252*365 -> 0 | V26: =+'A2.Demanda'!V252*365 -> 0 | W26: =+'A2.Demanda'!W252*365 -> 0 | AA26: Camión 4E | AB26: 2.774 | AC26: 4.958186321
B27: Trayler (C3R2) | C27: =+'A2.Demanda'!C253*365 -> 0 | D27: =+'A2.Demanda'!D253*365 -> 0 | E27: =+'A2.Demanda'!E253*365 -> 0 | F27: =+'A2.Demanda'!F253*365 -> 0 | G27: =+'A2.Demanda'!G253*365 -> 0 | H27: =+'A2.Demanda'!H253*365 -> 0 | I27: =+'A2.Demanda'!I253*365 -> 0 | J27: =+'A2.Demanda'!J253*365 -> 0 | K27: =+'A2.Demanda'!K253*365 -> 0 | L27: =+'A2.Demanda'!L253*365 -> 0 | M27: =+'A2.Demanda'!M253*365 -> 0 | N27: =+'A2.Demanda'!N253*365 -> 0 | O27: =+'A2.Demanda'!O253*365 -> 0 | P27: =+'A2.Demanda'!P253*365 -> 0 | Q27: =+'A2.Demanda'!Q253*365 -> 0 | R27: =+'A2.Demanda'!R253*365 -> 0 | S27: =+'A2.Demanda'!S253*365 -> 0 | T27: =+'A2.Demanda'!T253*365 -> 0 | U27: =+'A2.Demanda'!U253*365 -> 0 | V27: =+'A2.Demanda'!V253*365 -> 0 | W27: =+'A2.Demanda'!W253*365 -> 0 | AA27: Semitrayler (T2S1 / T2S2) | AB27: 6.522867163 | AC27: 8.065664862
B28: Trayler (C3R3) | C28: =+'A2.Demanda'!C254*365 -> 0 | D28: =+'A2.Demanda'!D254*365 -> 0 | E28: =+'A2.Demanda'!E254*365 -> 0 | F28: =+'A2.Demanda'!F254*365 -> 0 | G28: =+'A2.Demanda'!G254*365 -> 0 | H28: =+'A2.Demanda'!H254*365 -> 0 | I28: =+'A2.Demanda'!I254*365 -> 0 | J28: =+'A2.Demanda'!J254*365 -> 0 | K28: =+'A2.Demanda'!K254*365 -> 0 | L28: =+'A2.Demanda'!L254*365 -> 0 | M28: =+'A2.Demanda'!M254*365 -> 0 | N28: =+'A2.Demanda'!N254*365 -> 0 | O28: =+'A2.Demanda'!O254*365 -> 0 | P28: =+'A2.Demanda'!P254*365 -> 0 | Q28: =+'A2.Demanda'!Q254*365 -> 0 | R28: =+'A2.Demanda'!R254*365 -> 0 | S28: =+'A2.Demanda'!S254*365 -> 0 | T28: =+'A2.Demanda'!T254*365 -> 0 | U28: =+'A2.Demanda'!U254*365 -> 0 | V28: =+'A2.Demanda'!V254*365 -> 0 | W28: =+'A2.Demanda'!W254*365 -> 0 | AA28: Semitrayler (T2S3) | AB28: 6.209679958 | AC28: 8.772591729
AA29: Semitrayler (T3S1 / T3S2) | AB29: 5.303793656 | AC29: 8.188843
B30: 2.4 EJES EQUIVALENTES | AA30: Semitrayler (T3S3) | AB30: 4.990606451 | AC30: 8.895769868
B31: Tipo de Vehículo | C31: Factor Equivalencia | D31: FC | E31: FD | F31: Factor de Presión Neumático | G31: Ejes Equivalente | AA31: Trayler (C2R2) | AB31: 10.98022763 | AC31: 11.277313
B32: Automovil | C32: =VLOOKUP($B32,$AA$16:$AC$34,$AB$14,0) -> 0.001 | D32: =+C6 -> 0.5 | E32: =+F6 -> 1 | F32: 1 | G32: =+C32*D32*E32*F32*SUM(D10:W10) -> 0 | AA32: Trayler (C2R3) | AB32: 9.761154124 | AC32: 11.40049114
B33: Station Wagon | C33: 0.001 | D33: =+D32 -> 0.5 | E33: =+E32 -> 1 | F33: 1 | G33: =+C33*D33*E33*F33*SUM(D11:W11) -> 0 | AA33: Trayler (C3R2) | AB33: 9.761154124 | AC33: 11.40049114
B34: Camioneta (Pickup/Panel) | C34: 0.001 | D34: =+D33 -> 0.5 | E34: =+E33 -> 1 | F34: 1 | G34: 0 | AA34: Trayler (C3R3) | AB34: 8.542080617 | AC34: 11.52366927
B35: C.Rural (Combi) | C35: 1.1 | D35: 0.5 | E35: 1 | F35: 1 | G35: 0
B36: Micro | C36: 4.607660451 | D36: 0.5 | E36: 1 | F36: 1 | G36: 0
B37: Bus 2E | C37: 4.607660451 | D37: 0.5 | E37: 1 | F37: 1.1 | G37: 0
B38: Bus 3E | C38: 4.730838589 | D38: 0.5 | E38: 1 | F38: 1.1 | G38: 0
B39: Bus 4E | C39: 4.958186321 | D39: 0.5 | E39: 1 | F39: 1.1 | G39: 0
B40: Camión 2E | C40: 4.607660451 | D40: 0.5 | E40: 1 | F40: 1.1 | G40: 0
B41: Camión 3E | C41: 4.730838589 | D41: 0.5 | E41: 1 | F41: 1.1 | G41: 0
B42: Camión 4E | C42: 4.958186321 | D42: 0.5 | E42: 1 | F42: 1.1 | G42: 0
B43: Semitrayler (T2S1 / T2S2) | C43: 8.065664862 | D43: 0.5 | E43: 1 | F43: 1.1 | G43: 0
B44: Semitrayler (T2S3) | C44: 8.772591729 | D44: 0.5 | E44: 1 | F44: 1.1 | G44: 0
B45: Semitrayler (T3S1 / T3S2) | C45: 8.188843 | D45: 0.5 | E45: 1 | F45: 1.1 | G45: 0
B46: Semitrayler (T3S3) | C46: 8.895769868 | D46: 0.5 | E46: 1 | F46: 1.1 | G46: 0
B47: Trayler (C2R2) | C47: 11.277313 | D47: 0.5 | E47: 1 | F47: 1.1 | G47: 0
B48: Trayler (C2R3) | C48: 11.40049114 | D48: 0.5 | E48: 1 | F48: 1.1 | G48: 0
B49: Trayler (C3R2) | C49: 11.40049114 | D49: 0.5 | E49: 1 | F49: 1.1 | G49: 0
B50: Trayler (C3R3) | C50: 11.52366927 | D50: 0.5 | E50: 1 | F50: 1.1 | G50: 0
F51: E.E totales | G51: =SUM(G32:G50) -> 0
B54: NOTA: USAR ESTA HOJA POR TRAMO DE VÍA

Sheet A3.Factor de Correc
B1: Factores de corrección de vehículos ligeros por unidad de peaje - Promedio (2010-2020) | P1: HOJA A4. CF - Liviano | Q1: Factores de corrección de vehículos pesados por unidad de peaje - Promedio (2010-2020) | AD1: HOJA A4. CF - Pesado | AR1: HOJA A4. CF - Mapa
B2: Nº | C2: Peaje | D2: Enero | E2: Febrero | F2: Marzo | G2: Abril | H2: Mayo | I2: Junio | J2: Julio | K2: Agosto | L2: Setiembre | M2: Octubre | N2: Noviembre | O2: Diciembre | P2: Total | Q2: Nº | R2: Peaje | S2: Enero | T2: Febrero | U2: Marzo | V2: Abril | W2: Mayo | X2: Junio | Y2: Julio | Z2: Agosto | AA2: Setiembre | AB2: Octubre | AC2: Noviembre | AD2: Diciembre | AE2: Total
D3: Ligeros | E3: Ligeros | F3: Ligeros | G3: Ligeros | H3: Ligeros | I3: Ligeros | J3: Ligeros | K3: Ligeros | L3: Ligeros | M3: Ligeros | N3: Ligeros | O3: Ligeros | P3: Ligeros | S3: Pesados | T3: Pesados | U3: Pesados | V3: Pesados | W3: Pesados | X3: Pesados | Y3: Pesados | Z3: Pesados | AA3: Pesados | AB3: Pesados | AC3: Pesados | AD3: Pesados | AE3: Pesados
D4: FC | E4: FC | F4: FC | G4: FC | H4: FC | I4: FC | J4: FC | K4: FC | L4: FC | M4: FC | N4: FC | O4: FC | P4: FC | S4: FC | T4: FC | U4: FC | V4: FC | W4: FC | X4: FC | Y4: FC | Z4: FC | AA4: FC | AB4: FC | AC4: FC | AD4: FC | AE4: FC
B5: 1 | C5: AGUAS CALIENTES | D5: 0.936186253 | E5: 0.8625891487 | F5: 1.084950908 | G5: 1.092506595 | H5: 1.162649966 | I5: 1.175848985 | J5: 0.9508229833 | K5: 0.8845998844 | L5: 0.9454603992 | M5: 1.041763711 | N5: 1.0414204 | O5: 0.9898627274 | P5: 1 | Q5: 1 | R5: AGUAS CALIENTES | S5: 1.022005264 | T5: 0.9807681711 | U5: 1.032440477 | V5: 1.065281023 | W5: 1.069654302 | X5: 1.102751649 | Y5: 0.967835297 | Z5: 0.9554529584 | AA5: 0.9682132724 | AB5: 0.9530480793 | AC5: 0.9599476247 | AD5: 1.009846521 | AE5: 1
B6: 2 | C6: AGUAS CLARAS | D6: 1.001976281 | E6: 1.056682891 | F6: 1.103595637 | G6: 1.059183703 | H6: 1.00945912 | I6: 1.003029068 | J6: 0.8943481019 | K6: 0.9075416611 | L6: 1.012755218 | M6: 1.020937164 | N6: 1.07485725 | O6: 0.9282651744 | P6: 1 | Q6: 2 | R6: AGUAS CLARAS | S6: 1.04122289 | T6: 1.004927543 | U6: 1.024782015 | V6: 1.010656941 | W6: 0.9905441905 | X6: 0.9822937877 | Y6: 0.9916977079 | Z6: 0.9522966888 | AA6: 0.97675963 | AB6: 1.007025008 | AC6: 1.008041 | AD6: 1.034440317 | AE6: 1
B7: 3 | C7: AMBO | D7: 0.9780225602 | E7: 1.054622532 | F7: 1.187682609 | G7: 1.27697461 | H7: 1.017888912 | I7: 1.027765106 | J7: 0.9660999691 | K7: 0.954139857 | L7: 1.004524254 | M7: 0.9693427331 | N7: 0.9845680946 | O7: 0.8614801653 | P7: 1 | Q7: 3 | R7: AMBO | S7: 1.008686187 | T7: 0.9706548636 | U7: 1.128768605 | V7: 1.208645686 | W7: 1.01391859 | X7: 1.023830549 | Y7: 1.026776378 | Z7: 1.008617469 | AA7: 0.9899448056 | AB7: 0.9453364836 | AC7: 0.9401283237 | AD7: 0.9496735768 | AE7: 1
B8: 4 | C8: ATICO | D8: 0.8553888612 | E8: 0.7148303243 | F8: 1.03599129 | G8: 1.013932154 | H8: 1.14841772 | I8: 1.178106922 | J8: 0.9965095729 | K8: 0.9876819853 | L8: 1.139387631 | M8: 1.073425896 | N8: 1.145303505 | O8: 0.8830856645 | P8: 1 | Q8: 4 | R8: ATICO | S8: 1.033736315 | T8: 0.9913981463 | U8: 1.02980475 | V8: 1.040981856 | W8: 1.034237449 | X8: 1.030215511 | Y8: 1.027656256 | Z8: 0.9850920133 | AA8: 1.026495166 | AB8: 0.9618372024 | AC8: 0.9271311268 | AD8: 0.9440391064 | AE8: 1
B9: 5 | C9: AYAVIRI | D9: 0.9721514949 | E9: 0.9244056073 | F9: 1.073537698 | G9: 1.07727178 | H9: 1.109762947 | I9: 1.103509048 | J9: 0.9468884411 | K9: 0.9272424464 | L9: 0.9376214161 | M9: 1.049096289 | N9: 1.021533876 | O9: 0.960305004 | P9: 1 | Q9: 5 | R9: AYAVIRI | S9: 1.016704254 | T9: 1.003798483 | U9: 1.070762946 | V9: 1.057301741 | W9: 1.048623608 | X9: 1.036575792 | Y9: 0.966529579 | Z9: 0.952444825 | AA9: 0.9501470552 | AB9: 0.9638320943 | AC9: 0.9600776395 | AD9: 1.000690338 | AE9: 1
B10: 6 | C10: CAMANA | D10: 0.5957921333 | E10: 0.4990979803 | F10: 1.043399579 | G10: 1.243297298 | H10: 1.38249889 | I10: 1.407104956 | J10: 1.256228425 | K10: 1.219974375 | L10: 1.301768816 | M10: 1.255913585 | N10: 1.219901862 | O10: 0.972409916 | P10: 1 | Q10: 6 | R10: CAMANA | S10: 0.9512683366 | T10: 0.8972902576 | U10: 1.039233886 | V10: 1.064796558 | W10: 1.070157215 | X10: 1.090488856 | Y10: 1.108711259 | Z10: 0.9914053227 | AA10: 0.9996882622 | AB10: 0.9904665744 | AC10: 0.9708312259 | AD10: 0.9623971244 | AE10: 1
B11: 7 | C11: CANCAS | D11: 0.8618793431 | E11: 0.8637773749 | F11: 1.075451723 | G11: 1.115637548 | H11: 1.176924114 | I11: 1.225724985 | J11: 0.9733284957 | K11: 0.903953376 | L11: 1.056500775 | M11: 1.032300444 | N11: 1.028362665 | O11: 0.8896781779 | P11: 1 | Q11: 7 | R11: CANCAS | S11: 1.032339434 | T11: 0.98253934 | U11: 1.040039583 | V11: 1.041162106 | W11: 1.06037339 | X11: 1.047607047 | Y11: 1.011735801 | Z11: 0.9795088046 | AA11: 1.000647681 | AB11: 0.954962207 | AC11: 0.9461472385 | AD11: 0.9491442798 | AE11: 1
B12: 8 | C12: CARACOTO | D12: 1.051665063 | E12: 0.9814890721 | F12: 1.09776209 | G12: 1.054822467 | H12: 1.053960633 | I12: 1.046916418 | J12: 0.991429167 | K12: 0.878569338 | L12: 0.996212119 | M12: 0.9920284381 | N12: 0.9977384085 | O12: 0.8907158398 | P12: 1 | Q12: 8 | R12: CARACOTO | S12: 1.034315566 | T12: 1.001329144 | U12: 1.077696409 | V12: 1.034633067 | W12: 1.056816046 | X12: 1.044079981 | Y12: 0.9898114412 | Z12: 0.929718799 | AA12: 0.957209475 | AB12: 0.9481403258 | AC12: 1.007116825 | AD12: 0.954666225 | AE12: 1
B13: 9 | C13: CASARACRA | D13: 1.105721322 | E13: 1.17470521 | F13: 1.236331728 | G13: 1.013946803 | H13: 0.9312146161 | I13: 1.028661177 | J13: 0.8414676459 | K13: 0.8824755547 | L13: 1.060341371 | M13: 0.992972303 | N13: 1.124964503 | O13: 0.9775197298 | P13: 1 | Q13: 9 | R13: CASARACRA | S13: 1.09356369 | T13: 1.06702709 | U13: 1.109417059 | V13: 0.9826282797 | W13: 0.9903622543 | X13: 0.9900201083 | Y13: 0.9969022754 | Z13: 0.9699648231 | AA13: 0.975957259 | AB13: 0.9547871808 | AC13: 1.037318861 | AD13: 1.065170569 | AE13: 1
B14: 10 | C14: CATAC | D14: 1.095641937 | E14: 1.057498631 | F14: 1.354519632 | G14: 1.062820297 | H14: 1.076199546 | I14: 1.076747261 | J14: 0.8219724441 | K14: 0.8683698532 | L14: 0.9594637851 | M14: 0.9493577111 | N14: 1.113430661 | O14: 0.9558569088 | P14: 1 | Q14: 10 | R14: CATAC | S14: 1.0440907 | T14: 1.067774684 | U14: 1.199921151 | V14: 1.077188854 | W14: 1.173616143 | X14: 0.9552786772 | Y14: 0.9446201578 | Z14: 0.9252502014 | AA14: 0.956565579 | AB14: 0.9547116597 | AC14: 0.9809551166 | AD14: 0.9634337999 | AE14: 1
B15: 11 | C15: CCASACANCHA | D15: 1.004718853 | E15: 1.040790712 | F15: 1.082395638 | G15: 1.054776203 | H15: 1.080182235 | I15: 1.083703153 | J15: 0.9766933235 | K15: 0.9426405026 | L15: 0.9081178189 | M15: 0.9960707554 | N15: 0.9756300599 | O15: 0.9253576247 | P15: 1 | Q15: 11 | R15: CCASACANCHA | S15: 1.096846445 | T15: 1.085234007 | U15: 1.095719925 | V15: 1.080926357 | W15: 1.023948873 | X15: 0.9967282053 | Y15: 0.9386066906 | Z15: 0.9524663645 | AA15: 0.9554869731 | AB15: 0.9560205905 | AC15: 0.9331658291 | AD15: 0.9566183221 | AE15: 1
B16: 12 | C16: CHACAPAMPA | D16: 1.044579191 | E16: 0.9660684401 | F16: 0.9177522417 | G16: 1.017446622 | H16: 1.040461643 | I16: 1.125664163 | J16: 0.9549786625 | K16: 0.9887567476 | L16: 1.037818074 | M16: 1.011050908 | N16: 1.130475905 | O16: 1.021519096 | P16: 1 | Q16: 12 | R16: CHACAPAMPA | S16: 1.103125087 | T16: 0.9997627138 | U16: 0.9655328421 | V16: 0.9941401678 | W16: 1.010207382 | X16: 1.018616577 | Y16: 1.015526924 | Z16: 1.005129027 | AA16: 0.9766731695 | AB16: 0.9556281928 | AC16: 0.9706444487 | AD16: 1.06013243 | AE16: 1
B17: 13 | C17: CHALHUAPUQUIO | D17: 1.167050991 | E17: 1.20118657 | F17: 1.190865518 | G17: 1.056617565 | H17: 1.014618728 | I17: 1.044161824 | J17: 0.7924934631 | K17: 0.8345632142 | L17: 1.019750493 | M17: 0.972501729 | N17: 1.025882263 | O17: 0.9319049146 | P17: 1 | Q17: 13 | R17: CHALHUAPUQUIO | S17: 1.067980597 | T17: 1.069206195 | U17: 1.080725998 | V17: 1.068337551 | W17: 1.050684726 | X17: 0.9932819496 | Y17: 0.9468033006 | Z17: 0.9321363794 | AA17: 0.9564955495 | AB17: 0.9463204859 | AC17: 0.9497421357 | AD17: 0.9939447913 | AE17: 1
B18: 14 | C18: CHICAMA | D18: 0.9671479714 | E18: 0.9413726543 | F18: 1.112960831 | G18: 1.03942823 | H18: 1.077322319 | I18: 1.058509393 | J18: 0.9554404655 | K18: 1.008005204 | L18: 1.073119931 | M18: 1.04204571 | N18: 1.051986202 | O18: 0.8249344267 | P18: 1 | Q18: 14 | R18: CHICAMA | S18: 0.9908601766 | T18: 0.987386937 | U18: 1.092802897 | V18: 1.070793701 | W18: 1.054278359 | X18: 1.05726191 | Y18: 1.042334015 | Z18: 0.9933286394 | AA18: 1.001323348 | AB18: 0.9945885915 | AC18: 0.9510106165 | AD18: 0.8798689239 | AE18: 1
B19: 15 | C19: CHILCA | D19: 0.6162965094 | E19: 0.5814095209 | F19: 0.7890015078 | G19: 1.057702921 | H19: 1.527314289 | I19: 1.579573039 | J19: 1.284221099 | K19: 1.401545945 | L19: 1.483270183 | M19: 1.255421839 | N19: 1.187635097 | O19: 0.7400479057 | P19: 1 | Q19: 15 | R19: CHILCA | S19: 0.9571190046 | T19: 0.9724344518 | U19: 1.020299084 | V19: 1.038136638 | W19: 1.058336858 | X19: 1.053883853 | Y19: 1.037206478 | Z19: 0.9948159491 | AA19: 0.9992430412 | AB19: 0.987972824 | AC19: 0.9651670108 | AD19: 0.9396038559 | AE19: 1
B20: 16 | C20: CHULLQUI | D20: 1.042754956 | E20: 1.072793743 | F20: 1.050908932 | G20: 1.016292113 | H20: 1.050021636 | I20: 0.9407048214 | J20: 0.9831956597 | K20: 0.9316411036 | L20: 0.9915266781 | M20: 0.9206762454 | N20: 1.283203295 | O20: 0.8828758352 | P20: 1 | Q20: 16 | R20: CHULLQUI | S20: 0.9570529419 | T20: 0.965817296 | U20: 1.053405516 | V20: 1.077632156 | W20: 1.080916659 | X20: 1.040166491 | Y20: 1.017138613 | Z20: 0.9865027346 | AA20: 0.9731462747 | AB20: 0.9168975489 | AC20: 1.239962679 | AD20: 0.9257222784 | AE20: 1
B21: 17 | C21: CHULUCANAS | D21: 1.013525188 | E21: 1.06951075 | F21: 1.179770059 | G21: 1.150056188 | H21: 1.067927278 | I21: 1.0397762 | J21: 0.9751428496 | K21: 0.912692113 | L21: 0.977907088 | M21: 0.9473854443 | N21: 0.9119080753 | O21: 0.8681556777 | P21: 1 | Q21: 17 | R21: CHULUCANAS | S21: 0.9883861838 | T21: 0.9681875401 | U21: 1.138811805 | V21: 1.164131651 | W21: 1.093253399 | X21: 1.05081376 | Y21: 1.025642015 | Z21: 0.9679313845 | AA21: 0.9628494379 | AB21: 0.9204650335 | AC21: 0.8942940334 | AD21: 0.9220229873 | AE21: 1
B22: 18 | C22: CIUDAD DE DIOS | D22: 1.483152246 | E22: 0.9071147352 | F22: 1.171123573 | G22: 1.069786647 | H22: 1.002653987 | I22: 1.024514731 | J22: 0.9030704447 | K22: 0.9122930417 | L22: 1.073504861 | M22: 1.000550869 | N22: 1.202061569 | O22: 0.8986911914 | P22: 1 | Q22: 18 | R22: CIUDAD DE DIOS | S22: 1.439650839 | T22: 0.9382942438 | U22: 1.10264221 | V22: 0.9966489492 | W22: 0.9636876355 | X22: 1.034180021 | Y22: 1.042813625 | Z22: 1.026059807 | AA22: 1.041380021 | AB22: 0.9841020289 | AC22: 0.9930253896 | AD22: 0.9649194095 | AE22: 1
B23: 19 | C23: CORCONA | D23: 1.102366485 | E23: 1.164063238 | F23: 1.303344089 | G23: 1.033497269 | H23: 0.9767326995 | I23: 1.041075546 | J23: 0.7767002339 | K23: 0.8755070631 | L23: 1.014229112 | M23: 1.003473962 | N23: 1.166253206 | O23: 1.000067035 | P23: 1 | Q23: 19 | R23: CORCONA | S23: 1.098513306 | T23: 1.070948088 | U23: 1.112354437 | V23: 0.9592609903 | W23: 0.9673830169 | X23: 0.9840170408 | Y23: 0.9816305153 | Z23: 0.9626687233 | AA23: 0.9804331417 | AB23: 0.9766569569 | AC23: 1.06414772 | AD23: 1.086074435 | AE23: 1
B24: 20 | C24: CRUCE BAYOVAR | D24: 0.8733960635 | E24: 0.8855096828 | F24: 1.113641722 | G24: 1.108747521 | H24: 1.147006377 | I24: 1.182792043 | J24: 0.8641065892 | K24: 0.9783457925 | L24: 1.146943505 | M24: 1.00236448 | N24: 1.077735511 | O24: 0.7715141633 | P24: 1 | Q24: 20 | R24: CRUCE BAYOVAR | S24: 0.9845017191 | T24: 0.9606229983 | U24: 1.058444177 | V24: 1.065455221 | W24: 1.03113602 | X24: 1.036063213 | Y24: 1.015652319 | Z24: 0.9820940432 | AA24: 1.016697048 | AB24: 0.977424667 | AC24: 0.9230843943 | AD24: 0.9028055019 | AE24: 1
B25: 21 | C25: CUCULI | D25: 0.9947730126 | E25: 1.034570048 | F25: 1.159432819 | G25: 1.117996864 | H25: 1.105901012 | I25: 0.9573365355 | J25: 0.9651801861 | K25: 0.9184704874 | L25: 0.9474831188 | M25: 0.9719067133 | N25: 0.9647380599 | O25: 0.9955043181 | P25: 1 | Q25: 21 | R25: CUCULI | S25: 0.9424043373 | T25: 1.041852813 | U25: 1.204252483 | V25: 1.155982564 | W25: 1.084844259 | X25: 0.9782788506 | Y25: 0.9812022358 | Z25: 0.9397587807 | AA25: 0.9206542818 | AB25: 0.9302192967 | AC25: 0.9383549392 | AD25: 1.074892772 | AE25: 1
B26: 22 | C26: DESVIO OLMOS | D26: 0.9496609906 | E26: 1.005747489 | F26: 1.167178274 | G26: 1.193875643 | H26: 1.149379961 | I26: 1.096036627 | J26: 0.9410594823 | K26: 0.8681470528 | L26: 0.9965418726 | M26: 0.9617523747 | N26: 1.011905344 | O26: 0.8221906104 | P26: 1 | Q26: 22 | R26: DESVIO OLMOS | S26: 1.046950263 | T26: 1.040064802 | U26: 1.098612331 | V26: 1.077456821 | W26: 1.039282875 | X26: 1.017630407 | Y26: 0.9897858178 | Z26: 0.9217351035 | AA26: 0.9405354066 | AB26: 0.9578552928 | AC26: 0.9500109543 | AD26: 0.9817132866 | AE26: 1
B27: 23 | C27: DESVIO TALARA | D27: 0.8704857305 | E27: 0.8862794037 | F27: 1.124435671 | G27: 1.083981095 | H27: 1.143776324 | I27: 1.175352799 | J27: 0.9963391725 | K27: 0.9873540613 | L27: 1.105725722 | M27: 1.028809501 | N27: 1.03094098 | O27: 0.8165767156 | P27: 1 | Q27: 23 | R27: DESVIO TALARA | S27: 1.00632916 | T27: 0.9721553196 | U27: 1.041822539 | V27: 1.040548229 | W27: 1.03432763 | X27: 1.019586373 | Y27: 1.072119336 | Z27: 0.9782464826 | AA27: 0.998368827 | AB27: 0.9791697864 | AC27: 0.9631422159 | AD27: 0.9516029728 | AE27: 1
B28: 24 | C28: EL FISCAL | D28: 0.9108910755 | E28: 0.8548625312 | F28: 1.060629728 | G28: 1.060148662 | H28: 1.069145989 | I28: 1.125981643 | J28: 0.9958023062 | K28: 0.98530617 | L28: 1.074981603 | M28: 1.066231851 | N28: 1.064704448 | O28: 0.9479365481 | P28: 1 | Q28: 24 | R28: EL FISCAL | S28: 0.9889125321 | T28: 0.9326104027 | U28: 1.020055891 | V28: 1.035468717 | W28: 1.021571122 | X28: 1.08552432 | Y28: 1.066458697 | Z28: 1.020864584 | AA28: 1.014958156 | AB28: 0.9799268572 | AC28: 0.9618059482 | AD28: 0.9818717299 | AE28: 1
B29: 25 | C29: EL PARAISO | D29: 0.9134734199 | E29: 0.8984300904 | F29: 1.043177164 | G29: 0.9974138946 | H29: 1.118333916 | I29: 1.152959589 | J29: 0.9140894977 | K29: 0.981096198 | L29: 1.096424276 | M29: 1.038376045 | N29: 1.093509229 | O29: 0.8746719385 | P29: 1 | Q29: 25 | R29: EL PARAISO | S29: 1.008442318 | T29: 0.9860363636 | U29: 1.060680899 | V29: 1.047079993 | W29: 1.024999573 | X29: 1.015346141 | Y29: 1.010493668 | Z29: 0.9788395141 | AA29: 0.9973119487 | AB29: 0.9800589075 | AC29: 0.9625382448 | AD29: 0.9429460007 | AE29: 1
B30: 26 | C30: FORTALEZA | D30: 0.8868534856 | E30: 0.8317268576 | F30: 1.007410079 | G30: 1.022658121 | H30: 1.156778147 | I30: 1.196488022 | J30: 0.898604154 | K30: 1.011882801 | L30: 1.183739553 | M30: 1.102211174 | N30: 1.170150233 | O30: 0.7935917243 | P30: 1 | Q30: 26 | R30: FORTALEZA | S30: 0.9937788235 | T30: 0.956038053 | U30: 1.01543315 | V30: 1.034614315 | W30: 1.038409498 | X30: 1.301832409 | Y30: 1.024911858 | Z30: 0.9742680015 | AA30: 0.9948171286 | AB30: 0.9788544175 | AC30: 0.9539498494 | AD30: 0.9355629427 | AE30: 1
B31: 27 | C31: HUACRAPUQUIO | D31: 1.119311787 | E31: 1.157019813 | F31: 1.064859234 | G31: 1.048614378 | H31: 1.150405411 | I31: 0.9951398747 | J31: 0.8704904134 | K31: 0.9487140917 | L31: 0.9944684235 | M31: 0.9710114711 | N31: 1.152876902 | O31: 0.8270204686 | P31: 1 | Q31: 27 | R31: HUACRAPUQUIO | S31: 1.084995503 | T31: 1.126432615 | U31: 1.052872572 | V31: 1.046459162 | W31: 1.160281792 | X31: 1.025438383 | Y31: 0.9225694811 | Z31: 0.9778077385 | AA31: 0.9217617199 | AB31: 0.9085167745 | AC31: 1.119416242 | AD31: 0.9333887157 | AE31: 1
B32: 28 | C32: HUARMEY | D32: 0.8815638646 | E32: 0.9056072568 | F32: 1.112043261 | G32: 1.124864766 | H32: 1.255738086 | I32: 1.204817029 | J32: 0.8789525186 | K32: 0.9703483817 | L32: 1.148293758 | M32: 1.083095707 | N32: 1.163388013 | O32: 0.7903053588 | P32: 1 | Q32: 28 | R32: HUARMEY | S32: 1.04556392 | T32: 1.025247867 | U32: 1.113247349 | V32: 1.141635926 | W32: 1.127164396 | X32: 1.03033276 | Y32: 0.9991359554 | Z32: 0.9554380692 | AA32: 0.9756611703 | AB32: 0.961746576 | AC32: 0.9397374815 | AD32: 0.9169280249 | AE32: 1
B33: 29 | C33: HUATAYA | F33: 2.360910551 | G33: 0.9599821791 | H33: 0.8746683464 | I33: 0.8704874842 | J33: 0.7535525106 | K33: 0.7577674701 | M33: 0.7931131207 | N33: 0.878837029 | O33: 0.835253467 | P33: 1 | Q33: 29 | R33: HUATAYA | U33: 5.113202384 | V33: 1.341481174 | W33: 1.056654146 | X33: 1.118300943 | Y33: 0.7106357549 | Z33: 0.7729970896 | AB33: 0.7399403221 | AC33: 0.8726806333 | AD33: 0.9802244328 | AE33: 1
B34: 30 | C34: ICA | D34: 0.9309610135 | E34: 0.8181116278 | F34: 1.051328181 | G34: 1.046053967 | H34: 1.16419681 | I34: 1.185677453 | J34: 0.9740941142 | K34: 1.02462287 | L34: 1.09939087 | M34: 1.031175024 | N34: 1.191136972 | O34: 1.033660689 | P34: 1 | Q34: 30 | R34: ICA | S34: 0.991122133 | T34: 0.9492597537 | U34: 1.044035996 | V34: 1.028296437 | W34: 1.066956175 | X34: 1.074708469 | Y34: 1.05933221 | Z34: 0.9906702992 | AA34: 0.9631547967 | AB34: 0.9523201332 | AC34: 1.010363126 | AD34: 1.003154229 | AE34: 1
B35: 31 | C35: ILAVE | D35: 1.011078733 | E35: 0.9583705723 | F35: 1.035998329 | G35: 1.01362299 | H35: 1.106727434 | I35: 1.161274055 | J35: 0.9699876616 | K35: 0.7833713847 | L35: 1.033531488 | M35: 1.050095415 | N35: 1.124763331 | O35: 0.9860980497 | P35: 1 | Q35: 31 | R35: ILAVE | S35: 1.013640526 | T35: 0.9470498067 | U35: 0.9821952668 | V35: 5.582205273 | W35: 1.024477354 | X35: 1.034618588 | Y35: 1.046585847 | Z35: 0.8667000179 | AA35: 1.047729907 | AB35: 1.041714262 | AC35: 1.088509337 | AD35: 1.063794429 | AE35: 1
B36: 32 | C36: ILO | D36: 0.8275340247 | E36: 0.8216550037 | F36: 1.011163642 | G36: 1.081389441 | H36: 1.077667661 | I36: 1.121995373 | J36: 1.098868078 | K36: 1.05567722 | L36: 0.9853623423 | M36: 1.049774889 | N36: 1.030297505 | O36: 0.9629845594 | P36: 1 | Q36: 32 | R36: ILO | S36: 1.047623872 | T36: 1.016887145 | U36: 1.058965271 | V36: 0.9766215513 | W36: 0.999218995 | X36: 1.041963875 | Y36: 1.037275485 | Z36: 1.028366736 | AA36: 0.9668566807 | AB36: 0.9802111184 | AC36: 0.9728109835 | AD36: 0.9624505153 | AE36: 1
B37: 33 | C37: JAHUAY - CHINCHA | D37: 0.8291125404 | E37: 0.8935852745 | F37: 1.017049345 | G37: 0.9967228092 | H37: 1.137316431 | I37: 1.191760034 | J37: 0.948573796 | K37: 1.013720064 | L37: 1.132117117 | M37: 1.034038478 | N37: 1.063355486 | O37: 0.9289268033 | P37: 1 | Q37: 33 | R37: JAHUAY - CHINCHA | S37: 0.9857948578 | T37: 1.016160357 | U37: 1.044058042 | V37: 1.055353204 | W37: 1.054439293 | X37: 1.047955633 | Y37: 1.026212417 | Z37: 0.9754511879 | AA37: 0.9777396548 | AB37: 0.9696600307 | AC37: 0.9511498424 | AD37: 0.9477888395 | AE37: 1
B38: 34 | C38: LOMA LARGA BAJA | D38: 1.023122878 | E38: 1.277111452 | F38: 1.367089644 | G38: 1.284771612 | H38: 1.140754543 | I38: 1.036857848 | J38: 0.8266845005 | K38: 0.9063518594 | L38: 0.9247025894 | M38: 0.892469253 | N38: 0.88257801 | O38: 0.8751709718 | P38: 1 | Q38: 34 | R38: LOMA LARGA BAJA | S38: 0.9981267398 | T38: 1.101624583 | U38: 1.199525965 | V38: 1.227618425 | W38: 1.110304487 | X38: 1.082261871 | Y38: 0.959563497 | Z38: 0.9761156973 | AA38: 0.9482955788 | AB38: 0.9331076469 | AC38: 0.8987193137 | AD38: 0.8943664908 | AE38: 1
B39: 35 | C39: LUNAHUANA | D39: 1.011856844 | E39: 1.030338972 | F39: 1.047494228 | G39: 0.9587487645 | H39: 1.016318675 | I39: 1.13171753 | J39: 0.8233185066 | K39: 0.9366262981 | L39: 1.098764642 | M39: 0.9949495228 | N39: 1.077964063 | O39: 1.063783443 | P39: 1 | Q39: 35 | R39: LUNAHUANA | S39: 1.109498758 | T39: 1.096658352 | U39: 1.05407022 | V39: 1.042978547 | W39: 0.9970558233 | X39: 1.073902678 | Y39: 1.000855827 | Z39: 0.9481709902 | AA39: 0.9827421891 | AB39: 0.9329228081 | AC39: 0.9402706795 | AD39: 0.9907276691 | AE39: 1
B40: 36 | C40: MACUSANI | D40: 1.046511388 | E40: 0.9990407503 | F40: 1.033831973 | G40: 1.094438229 | H40: 1.09790707 | I40: 1.108113507 | J40: 0.9925859672 | K40: 0.9493060404 | L40: 1.02527458 | M40: 0.9651527909 | N40: 1.01580344 | O40: 0.8879338582 | P40: 1 | Q40: 36 | R40: MACUSANI | S40: 1.089519942 | T40: 1.080175345 | U40: 1.066863489 | V40: 1.021929957 | W40: 1.075573729 | X40: 1.020875932 | Y40: 1.174104935 | Z40: 0.9352587178 | AA40: 0.9178512105 | AB40: 0.9386454908 | AC40: 0.9389968138 | AD40: 0.9982789094 | AE40: 1
B41: 37 | C41: MARCONA | D41: 0.9524947119 | E41: 0.9039259752 | F41: 0.9952422152 | G41: 1.010571304 | H41: 1.091083377 | I41: 1.059545968 | J41: 1.034561373 | K41: 1.023204623 | L41: 1.037207405 | M41: 1.029042945 | N41: 0.9989349932 | O41: 0.9110502981 | P41: 1 | Q41: 37 | R41: MARCONA | S41: 1.042967585 | T41: 1.001321549 | U41: 0.9582686755 | V41: 1.029686503 | W41: 1.113398223 | X41: 1.044405802 | Y41: 1.048021902 | Z41: 1.047183214 | AA41: 1.026029299 | AB41: 0.9629400085 | AC41: 0.9464808622 | AD41: 0.9320067419 | AE41: 1
B42: 38 | C42: MATARANI | D42: 0.4810475694 | E42: 0.3997717424 | F42: 0.9717061706 | G42: 1.534301556 | H42: 1.702305558 | I42: 1.671758286 | J42: 1.609237977 | K42: 1.558449921 | L42: 1.582665543 | M42: 1.425709977 | N42: 1.288764298 | O42: 0.9119346164 | P42: 1 | Q42: 38 | R42: MATARANI | S42: 0.9673464105 | T42: 0.8698145921 | U42: 1.029711488 | V42: 1.080189733 | W42: 1.065693952 | X42: 1.02792682 | Y42: 1.025357606 | Z42: 1.044565016 | AA42: 0.9863684709 | AB42: 0.9950128643 | AC42: 0.9821792678 | AD42: 0.9818720804 | AE42: 1
B43: 39 | C43: MENOCUCHO | D43: 1.084976043 | E43: 0.9811567222 | F43: 1.050014041 | G43: 1.081096939 | H43: 1.026611745 | I43: 1.071284965 | J43: 0.95849942 | K43: 0.9192254877 | L43: 1.049806736 | M43: 1.046675658 | N43: 1.045159823 | O43: 0.8579091645 | P43: 1 | Q43: 39 | R43: MENOCUCHO | S43: 1.093258439 | T43: 1.065300708 | U43: 1.142065839 | V43: 1.036376862 | W43: 0.9913141404 | X43: 0.9622203207 | Y43: 0.9504850516 | Z43: 0.9624653548 | AA43: 0.9784633381 | AB43: 0.984097514 | AC43: 0.9862133192 | AD43: 1.014754831 | AE43: 1
B44: 40 | C44: MOCCE | D44: 1.011523495 | E44: 0.9768980903 | F44: 1.06130631 | G44: 1.064999278 | H44: 1.040817524 | I44: 0.9961676336 | J44: 0.9897748027 | K44: 0.905429573 | L44: 1.021323263 | M44: 1.011792208 | N44: 1.0011561 | O44: 0.9247145489 | P44: 1 | Q44: 40 | R44: MOCCE | S44: 0.9510189013 | T44: 0.9816349894 | U44: 1.07696227 | V44: 1.137736792 | W44: 1.076668966 | X44: 0.9654628401 | Y44: 1.038081603 | Z44: 0.9849757531 | AA44: 0.9950384695 | AB44: 0.9640719146 | AC44: 0.9558213352 | AD44: 0.943483913 | AE44: 1
B45: 41 | C45: MONTALVO | D45: 0.9256205719 | E45: 0.8896156969 | F45: 1.050727983 | G45: 1.03512813 | H45: 1.033645975 | I45: 1.101350285 | J45: 1.026057488 | K45: 0.9905325495 | L45: 1.044749227 | M45: 1.06076308 | N45: 1.034604023 | O45: 0.9657753348 | P45: 1 | Q45: 41 | R45: MONTALVO | S45: 0.9753606862 | T45: 0.9558366016 | U45: 1.015527102 | V45: 1.025391214 | W45: 1.009532773 | X45: 1.084400606 | Y45: 1.078483273 | Z45: 1.027501682 | AA45: 1.016732433 | AB45: 0.988834354 | AC45: 0.9673820319 | AD45: 0.9800145002 | AE45: 1
B46: 42 | C46: MORROPE | D46: 0.9290677936 | E46: 0.9180187965 | F46: 1.204232317 | G46: 1.113986599 | H46: 1.125387703 | I46: 1.156586233 | J46: 0.893324697 | K46: 0.9593214065 | L46: 1.080704442 | M46: 0.9811472104 | N46: 1.051247828 | O46: 0.8016214049 | P46: 1 | Q46: 42 | R46: MORROPE | S46: 0.9853991851 | T46: 0.9645084826 | U46: 1.077013547 | V46: 1.06632033 | W46: 1.035775121 | X46: 1.033573708 | Y46: 1.02570051 | Z46: 1.000280841 | AA46: 1.01545597 | AB46: 0.9852706065 | AC46: 0.9451466773 | AD46: 0.9179420278 | AE46: 1
B47: 43 | C47: MOYOBAMBA | D47: 1.017217147 | E47: 0.999261024 | F47: 1.028138046 | G47: 1.021852585 | H47: 0.9909765244 | I47: 0.972426725 | J47: 0.9455608649 | K47: 0.9602660828 | L47: 1.04864509 | M47: 1.081715092 | N47: 1.137335916 | O47: 1.080026042 | P47: 1 | Q47: 43 | R47: MOYOBAMBA | S47: 1.012252388 | T47: 0.9812278458 | U47: 1.012044482 | V47: 1.029906752 | W47: 1.007743629 | X47: 0.9902953568 | Y47: 1.001224252 | Z47: 0.9653133879 | AA47: 0.9860627398 | AB47: 1.008579325 | AC47: 1.012898598 | AD47: 1.03789787 | AE47: 1
B48: 44 | C48: NAZCA | D48: 0.9689639205 | E48: 0.902265311 | F48: 1.049432407 | G48: 1.059472815 | H48: 1.076159627 | I48: 1.090151355 | J48: 0.9243241019 | K48: 0.9305522171 | L48: 1.024513877 | M48: 1.016016098 | N48: 1.067082169 | O48: 0.9917617053 | P48: 1 | Q48: 44 | R48: NAZCA | S48: 1.056179949 | T48: 1.009762195 | U48: 1.032875905 | V48: 1.03283907 | W48: 1.032486838 | X48: 1.026869673 | Y48: 1.012812484 | Z48: 0.9732051531 | AA48: 0.9609257137 | AB48: 0.9601504194 | AC48: 0.9274664353 | AD48: 1.049130264 | AE48: 1
B49: 45 | C49: PACANGUILLA | D49: 0.9538786917 | E49: 0.9606004093 | F49: 1.118850038 | G49: 1.116993393 | H49: 1.142020356 | I49: 1.180760159 | J49: 0.9621675936 | K49: 0.9834363572 | L49: 1.093733025 | M49: 0.9831930064 | N49: 0.9978792084 | O49: 0.7653996066 | P49: 1 | Q49: 45 | R49: PACANGUILLA | S49: 1.005977285 | T49: 0.9821934233 | U49: 1.085839475 | V49: 1.096892114 | W49: 1.076561429 | X49: 1.079812455 | Y49: 1.094094597 | Z49: 1.016588985 | AA49: 0.9911374218 | AB49: 0.9428990897 | AC49: 0.9141759902 | AD49: 0.8904993009 | AE49: 1
B50: 46 | C50: PACRA | D50: 1.009147691 | E50: 0.9570269509 | F50: 1.020880923 | G50: 0.9880789862 | H50: 1.212211635 | I50: 1.075841974 | J50: 0.8771749869 | K50: 0.9346484599 | L50: 1.043492768 | M50: 1.034528144 | N50: 1.085689943 | O50: 0.9794679751 | P50: 1 | Q50: 46 | R50: PACRA | S50: 1.08315107 | T50: 1.009963563 | U50: 1.028611393 | V50: 1.036418212 | W50: 1.108345218 | X50: 1.002900754 | Y50: 0.9686202048 | Z50: 0.9411631012 | AA50: 0.9705579272 | AB50: 0.9519628051 | AC50: 0.985931011 | AD50: 0.9959547245 | AE50: 1
B51: 47 | C51: PAITA | D51: 0.8361714685 | E51: 0.8549500578 | F51: 0.9599731106 | G51: 1.100164328 | H51: 1.132895815 | I51: 1.122825435 | J51: 1.094561616 | K51: 1.08623981 | L51: 1.011325029 | M51: 1.057232589 | N51: 1.034287184 | O51: 0.8542834692 | P51: 1 | Q51: 47 | R51: PAITA | S51: 1.063661404 | T51: 0.9986211581 | U51: 1.033214259 | V51: 1.174172389 | W51: 1.108606073 | X51: 1.071857536 | Y51: 1.138446334 | Z51: 1.066894173 | AA51: 0.9588171838 | AB51: 0.9185059233 | AC51: 0.8558785069 | AD51: 0.9255104537 | AE51: 1
B52: 48 | C52: PAMPA CUELLAR | D52: 1.026781665 | E52: 0.8142450299 | F52: 1.072423077 | G52: 1.080562642 | H52: 1.1616115 | I52: 1.180323216 | J52: 0.9566994599 | K52: 0.7956766989 | L52: 1.064136771 | M52: 1.038006119 | N52: 1.055671215 | O52: 0.9772318283 | P52: 1 | Q52: 48 | R52: PAMPA CUELLAR | S52: 1.108060775 | T52: 1.076992945 | U52: 1.063891175 | V52: 1.008304966 | W52: 1.1112211 | X52: 1.084546775 | Y52: 0.9918474888 | Z52: 0.9561487707 | AA52: 0.9589040026 | AB52: 0.891576851 | AC52: 0.9120619648 | AD52: 0.9503941704 | AE52: 1
B53: 49 | C53: PAMPA GALERA | D53: 0.9640415271 | E53: 1.008690156 | F53: 1.13107398 | G53: 1.121443834 | H53: 1.051777073 | I53: 1.097226928 | J53: 0.8189944033 | K53: 0.781811023 | L53: 1.050494134 | M53: 1.07596972 | N53: 1.13228056 | O53: 0.9585749299 | P53: 1 | Q53: 49 | R53: PAMPA GALERA | S53: 1.105613393 | T53: 1.097269795 | U53: 1.095202564 | V53: 1.065839763 | W53: 1.037796139 | X53: 1.020468567 | Y53: 0.9472180473 | Z53: 0.9310968468 | AA53: 0.9550253399 | AB53: 0.9440971088 | AC53: 0.9360336344 | AD53: 0.9478956858 | AE53: 1
B54: 50 | C54: PAMPAMARCA | D54: 0.9412200837 | E54: 0.9552389992 | F54: 1.096225431 | G54: 1.068129232 | H54: 1.130087723 | I54: 1.113364419 | J54: 0.8653166673 | K54: 0.8837327905 | L54: 1.018767847 | M54: 1.097525813 | N54: 1.115899337 | O54: 0.9829564446 | P54: 1 | Q54: 50 | R54: PAMPAMARCA | S54: 1.0832586 | T54: 1.060791038 | U54: 1.080019378 | V54: 1.071375314 | W54: 1.064023175 | X54: 1.032083176 | Y54: 0.9519392741 | Z54: 0.9426035817 | AA54: 0.9316931773 | AB54: 0.950077572 | AC54: 0.9397763969 | AD54: 0.968790005 | AE54: 1
B55: 51 | C55: PATAHUASI | D55: 1.050515222 | E55: 0.9286950037 | F55: 1.14601989 | G55: 1.087171173 | H55: 1.108628827 | I55: 1.128042905 | J55: 0.9168702638 | K55: 0.8010353146 | L55: 1.042086544 | M55: 0.9869165215 | N55: 1.0074916 | O55: 0.9578852903 | P55: 1 | Q55: 51 | R55: PATAHUASI | S55: 1.066809537 | T55: 1.041764041 | U55: 1.080494495 | V55: 1.064253925 | W55: 1.061552264 | X55: 1.056919704 | Y55: 1.006538368 | Z55: 0.9440343248 | AA55: 0.9475416137 | AB55: 0.9036252281 | AC55: 0.9309043862 | AD55: 0.9274497456 | AE55: 1
B56: 52 | C56: PEDRO RUIZ | D56: 0.9661227148 | E56: 1.027914568 | F56: 1.102193988 | G56: 1.123308751 | H56: 1.112697317 | I56: 1.051453311 | J56: 0.9395632255 | K56: 0.9041000725 | L56: 0.9700092446 | M56: 0.9832167074 | N56: 1.013006532 | O56: 0.8889751024 | P56: 1 | Q56: 52 | R56: PEDRO RUIZ | S56: 1.036074416 | T56: 1.016275133 | U56: 1.048319757 | V56: 1.052930619 | W56: 1.016646275 | X56: 0.9900744268 | Y56: 0.9900392631 | Z56: 0.9412876812 | AA56: 0.9609697074 | AB56: 0.9786510274 | AC56: 0.9826234746 | AD56: 1.021158034 | AE56: 1
B57: 53 | C57: PICHIRHUA | D57: 1.046524208 | E57: 1.089105842 | F57: 1.133264074 | G57: 1.05614533 | H57: 1.038324808 | I57: 1.017298733 | J57: 0.9080735793 | K57: 0.8840017762 | L57: 0.9812163984 | M57: 0.9967660294 | N57: 1.012620314 | O57: 0.915073179 | P57: 1 | Q57: 53 | R57: PICHIRHUA | S57: 1.093591966 | T57: 1.088707796 | U57: 1.108090086 | V57: 1.092506582 | W57: 1.054526063 | X57: 1.025631686 | Y57: 0.9459753617 | Z57: 0.9321344773 | AA57: 0.9382692982 | AB57: 0.946047146 | AC57: 0.9297792273 | AD57: 0.9398654441 | AE57: 1
B58: 54 | C58: PIURA SULLANA | D58: 1.06074557 | E58: 1.053978592 | F58: 1.168822785 | G58: 1.089836179 | H58: 1.055836715 | I58: 1.052798645 | J58: 0.9696699683 | K58: 0.9539028702 | L58: 1.001880154 | M58: 0.9640084525 | N58: 0.9556798774 | O58: 0.8683779353 | P58: 1 | Q58: 54 | R58: PIURA SULLANA | S58: 1.057133599 | T58: 1.040183228 | U58: 1.127683046 | V58: 1.051815834 | W58: 1.040481219 | X58: 1.011925359 | Y58: 1.017930551 | Z58: 0.9762873546 | AA58: 0.9949610861 | AB58: 0.9754735115 | AC58: 0.9426573336 | AD58: 0.9188719997 | AE58: 1
B59: 55 | C59: PLANCHON | D59: 1.03267226 | E59: 1.075569659 | F59: 1.064091739 | G59: 1.061251149 | H59: 1.062771329 | I59: 1.022357898 | J59: 0.9361445885 | K59: 0.9131006512 | L59: 0.9553766682 | M59: 0.9680159491 | N59: 1.041658923 | O59: 0.9385419483 | P59: 1 | Q59: 55 | R59: PLANCHON | S59: 1.372214798 | T59: 1.258509258 | U59: 1.107494266 | V59: 1.169978488 | W59: 1.049608043 | X59: 1.015414244 | Y59: 0.9275337746 | Z59: 0.8806528682 | AA59: 0.8567278968 | AB59: 0.8958620547 | AC59: 0.9614288358 | AD59: 1.023301642 | AE59: 1
B60: 56 | C60: POMAHUACA | D60: 0.9586889392 | E60: 0.9932942391 | F60: 1.165292763 | G60: 1.221307266 | H60: 1.151118804 | I60: 1.088597078 | J60: 0.9286550717 | K60: 0.8480610367 | L60: 1.00020898 | M60: 0.9934141442 | N60: 1.013308035 | O60: 0.8295534057 | P60: 1 | Q60: 56 | R60: POMAHUACA | S60: 1.067365419 | T60: 1.030063746 | U60: 1.1158339 | V60: 1.11091003 | W60: 1.064513086 | X60: 1.023542973 | Y60: 0.9881762988 | Z60: 0.9203188276 | AA60: 0.9521870411 | AB60: 0.9369525356 | AC60: 0.9332306241 | AD60: 0.9668251202 | AE60: 1
B61: 57 | C61: PONGO | D61: 1.026476775 | E61: 1.059093389 | F61: 1.055972373 | G61: 1.078722882 | H61: 1.054582049 | I61: 1.002529176 | J61: 1.074954548 | K61: 0.9103031423 | L61: 0.9691827596 | M61: 0.9654445262 | N61: 0.9778024637 | O61: 0.9307585497 | P61: 1 | Q61: 57 | R61: PONGO | S61: 1.11454585 | T61: 1.070237488 | U61: 1.086762889 | V61: 1.035390652 | W61: 0.9962707297 | X61: 0.9773782791 | Y61: 1.044316867 | Z61: 0.9019778368 | AA61: 0.9204587262 | AB61: 0.9680046492 | AC61: 0.9711884244 | AD61: 1.06687865 | AE61: 1
B62: 58 | C62: POZO REDONDO | D62: 0.8942016745 | E62: 0.8240417285 | F62: 1.01330087 | G62: 1.078311371 | H62: 1.117786729 | I62: 1.0894673 | J62: 1.049364051 | K62: 1.043839074 | L62: 1.116676861 | M62: 1.057852316 | N62: 1.021636643 | O62: 0.8480154286 | P62: 1 | Q62: 58 | R62: POZO REDONDO | S62: 1.015664633 | T62: 0.9825819183 | U62: 1.019531454 | V62: 1.051708347 | W62: 1.053429858 | X62: 1.045890615 | Y62: 1.013955628 | Z62: 0.9923397767 | AA62: 1.034517633 | AB62: 1.001195568 | AC62: 0.943498188 | AD62: 0.8997199277 | AE62: 1
B63: 59 | C63: PUNTA PERDIDA | D63: 0.9543614635 | E63: 0.792153886 | F63: 1.097993178 | G63: 1.199492705 | H63: 1.40007346 | I63: 1.406853248 | J63: 0.8237854662 | K63: 0.6031084137 | L63: 1.176679771 | M63: 1.062848893 | N63: 1.269269 | O63: 1.101414768 | P63: 1 | Q63: 59 | R63: PUNTA PERDIDA | S63: 1.117976823 | T63: 1.121751603 | U63: 1.077392939 | V63: 1.016509039 | W63: 1.24265085 | X63: 1.133326366 | Y63: 1.012009633 | Z63: 0.9370306286 | AA63: 0.9279270147 | AB63: 0.8748696556 | AC63: 0.9203818779 | AD63: 0.9490063734 | AE63: 1
B64: 60 | C64: QUIULLA | D64: 1.097385769 | E64: 1.140833508 | F64: 1.231520482 | G64: 1.045210692 | H64: 1.021192685 | I64: 1.067886021 | J64: 0.8140207739 | K64: 0.8685328018 | L64: 1.000163639 | M64: 1.006342537 | N64: 1.104557068 | O64: 0.9381152664 | P64: 1 | Q64: 60 | R64: QUIULLA | S64: 1.136652628 | T64: 1.081002268 | U64: 1.087398386 | V64: 0.9354598304 | W64: 0.9314323244 | X64: 0.9736323778 | Y64: 0.9528353467 | Z64: 0.9488479189 | AA64: 0.9840875556 | AB64: 1.003764933 | AC64: 1.100737137 | AD64: 1.110868434 | AE64: 1
B65: 61 | C65: RUMICHACA | D65: 1.057655559 | E65: 0.9112343665 | F65: 0.9934261208 | G65: 0.9744530356 | H65: 1.219255943 | I65: 1.205524602 | J65: 0.8747515317 | K65: 0.895537712 | L65: 1.029667962 | M65: 1.076622673 | N65: 1.167050242 | O65: 0.9701124984 | P65: 1 | Q65: 61 | R65: RUMICHACA | S65: 1.08068721 | T65: 1.012168518 | U65: 1.030237865 | V65: 1.088752345 | W65: 1.036615679 | X65: 1.009872701 | Y65: 0.9690480281 | Z65: 0.9188194152 | AA65: 0.9654156202 | AB65: 0.9568591642 | AC65: 1.001286852 | AD65: 0.9971652705 | AE65: 1
B66: 62 | C66: SAN ANTON | D66: 1.069063185 | E66: 1.052315667 | F66: 1.068908107 | G66: 1.131758528 | H66: 1.003532841 | I66: 1.084971146 | J66: 1.054148588 | K66: 1.013766657 | L66: 0.9978319929 | M66: 0.9205969089 | N66: 0.9981185518 | O66: 0.846747776 | P66: 1 | Q66: 62 | R66: SAN ANTON | S66: 1.166699474 | T66: 1.08536604 | U66: 1.036473518 | V66: 1.03030909 | W66: 1.031643857 | X66: 1.042581429 | Y66: 1.028056649 | Z66: 0.9801934822 | AA66: 0.9333236684 | AB66: 0.9278613416 | AC66: 0.9889943088 | AD66: 0.9484979276 | AE66: 1
B67: 63 | C67: SAN GABAN | D67: 1.059351323 | E67: 1.012502244 | F67: 1.08929813 | G67: 1.104253366 | H67: 1.132131244 | I67: 1.092142388 | J67: 0.9727466707 | K67: 0.8971512301 | L67: 0.9272315194 | M67: 0.9528359781 | N67: 0.951166766 | O67: 0.9450645781 | P67: 1 | Q67: 63 | R67: SAN GABAN | S67: 1.127286891 | T67: 1.063472807 | U67: 1.120582263 | V67: 1.084032279 | W67: 1.10292587 | X67: 1.074012741 | Y67: 1.160501613 | Z67: 0.8975743771 | AA67: 0.8571586456 | AB67: 0.907992297 | AC67: 0.9421406752 | AD67: 1.012751441 | AE67: 1
B68: 64 | C68: SAN LORENZO | D68: 1.083900657 | E68: 1.191398468 | F68: 1.122650961 | G68: 1.264654353 | H68: 1.026647194 | I68: 1.037591096 | J68: 0.8703048868 | K68: 0.9258489118 | L68: 0.9435876053 | M68: 0.9609730181 | N68: 1.04421527 | O68: 0.9269815217 | P68: 1 | Q68: 64 | R68: SAN LORENZO | S68: 1.658806403 | T68: 1.563863356 | U68: 1.33380058 | V68: 1.444150183 | W68: 1.05315641 | X68: 1.034973057 | Y68: 0.9248631524 | Z68: 0.9112176723 | AA68: 0.8771240108 | AB68: 0.8163864295 | AC68: 0.8616218249 | AD68: 0.9664500552 | AE68: 1
B69: 65 | C69: SANTA LUCIA | D69: 1.008665545 | E69: 0.8362724895 | F69: 1.121096294 | G69: 1.110596348 | H69: 1.118389635 | I69: 1.176792113 | J69: 0.9560239598 | K69: 0.7673896336 | L69: 1.072436139 | M69: 1.021393295 | N69: 1.052274068 | O69: 0.9794777849 | P69: 1 | Q69: 65 | R69: SANTA LUCIA | S69: 1.035567595 | T69: 1.006883185 | U69: 1.0716466 | V69: 1.068458004 | W69: 1.062097802 | X69: 1.085606546 | Y69: 1.022883134 | Z69: 0.9380631441 | AA69: 0.9410875865 | AB69: 0.9138169728 | AC69: 0.9452581127 | AD69: 0.9391570313 | AE69: 1
B70: 66 | C70: SAYLLA | D70: 1.022204588 | E70: 0.9784635764 | F70: 1.10620721 | G70: 1.085825669 | H70: 1.061250815 | I70: 1.063751437 | J70: 0.9806176064 | K70: 0.9142438241 | L70: 0.9238174741 | M70: 0.9908643981 | N70: 0.9946586052 | O70: 0.9410906495 | P70: 1 | Q70: 66 | R70: SAYLLA | S70: 1.069319774 | T70: 1.02773027 | U70: 1.074338167 | V70: 1.06100017 | W70: 1.037949443 | X70: 1.031698041 | Y70: 0.9661820966 | Z70: 0.9474207506 | AA70: 0.9472134889 | AB70: 0.9579063301 | AC70: 0.9469675443 | AD70: 0.9774009308 | AE70: 1
B71: 67 | C71: SERPENTIN DE PASAMAYO | D71: 1.053548484 | E71: 1.05033654 | F71: 1.088626503 | G71: 1.081369263 | H71: 1.064748085 | I71: 1.046445167 | J71: 0.9694310835 | K71: 0.8540261652 | L71: 1.023839341 | M71: 1.045043044 | N71: 1.026268946 | O71: 1.065422939 | P71: 1 | Q71: 67 | R71: SERPENTIN DE PASAMAYO | S71: 0.9940355032 | T71: 1.007657551 | U71: 1.062349134 | V71: 1.045458901 | W71: 1.025444084 | X71: 1.017143766 | Y71: 1.008623619 | Z71: 0.9839331651 | AA71: 0.9920661277 | AB71: 0.9742676566 | AC71: 0.9581949559 | AD71: 0.9488458927 | AE71: 1
B72: 68 | C72: SICUYANI | D72: 1.029680264 | E72: 0.8278061257 | F72: 1.026117616 | G72: 1.097576615 | H72: 1.134741277 | I72: 1.169140272 | J72: 0.9155095773 | K72: 0.7740215591 | L72: 1.093944561 | M72: 1.046602493 | N72: 1.145491149 | O72: 1.012593053 | P72: 1 | Q72: 68 | R72: SICUYANI | S72: 1.124398575 | T72: 1.016379077 | U72: 1.059825658 | V72: 1.065703565 | W72: 1.098482185 | X72: 1.128637907 | Y72: 1.086054861 | Z72: 0.9970715404 | AA72: 0.9910234919 | AB72: 0.9076816823 | AC72: 0.9308159423 | AD72: 0.9614189921 | AE72: 1
B73: 69 | C73: SOCOS | D73: 1.190295774 | E73: 0.9863012945 | F73: 0.982023873 | G73: 0.9187687526 | H73: 1.094034898 | I73: 1.077226248 | J73: 0.9339821789 | K73: 0.95435904 | L73: 1.009947047 | M73: 1.005706473 | N73: 1.042094 | O73: 0.9406059924 | P73: 1 | Q73: 69 | R73: SOCOS | S73: 1.134706484 | T73: 1.049382751 | U73: 1.001808407 | V73: 1.287763605 | W73: 1.091118428 | X73: 1.052754753 | Y73: 1.02312689 | Z73: 0.9946053669 | AA73: 1.03057136 | AB73: 1.002195345 | AC73: 1.065238351 | AD73: 0.9010151869 | AE73: 1
B74: 70 | C74: TAMBOGRANDE | D74: 0.9297495476 | E74: 0.9679175288 | F74: 1.063793877 | G74: 1.102958004 | H74: 1.222879933 | I74: 1.058709324 | J74: 1.039637111 | K74: 1.033204855 | L74: 1.014398068 | M74: 0.8992890799 | N74: 0.9585021335 | O74: 0.8798702831 | P74: 1 | Q74: 70 | R74: TAMBOGRANDE | S74: 0.6024461469 | T74: 0.750048908 | U74: 1.134233607 | V74: 1.445762353 | W74: 1.510151073 | X74: 1.276640091 | Y74: 1.332811175 | Z74: 1.320403387 | AA74: 1.209057623 | AB74: 1.036876207 | AC74: 0.9407252349 | AD74: 0.7071258714 | AE74: 1
B75: 71 | C75: TOMASIRI | D75: 0.9971980473 | E75: 0.9231672296 | F75: 1.051619558 | G75: 1.080437216 | H75: 1.099960328 | I75: 1.094224727 | J75: 1.02933369 | K75: 0.989977992 | L75: 0.8973314456 | M75: 1.040355341 | N75: 1.038617354 | O75: 0.9031456378 | P75: 1 | Q75: 71 | R75: TOMASIRI | S75: 0.9789186561 | T75: 0.9105951187 | U75: 0.9994982472 | V75: 1.053908216 | W75: 1.051502075 | X75: 1.070216907 | Y75: 1.058007631 | Z75: 1.007543108 | AA75: 0.9690541654 | AB75: 1.006382376 | AC75: 1.006654309 | AD75: 0.996640938 | AE75: 1
B76: 72 | C76: TUNAN | D76: 1.076115245 | E76: 1.051647571 | F76: 1.070336416 | G76: 1.022983478 | H76: 1.117436694 | I76: 1.041286703 | J76: 0.8625527491 | K76: 0.8553647304 | L76: 0.9819162651 | M76: 0.9732827552 | N76: 1.113240488 | O76: 0.9815661898 | P76: 1 | Q76: 72 | R76: TUNAN | S76: 1.064807665 | T76: 1.057847319 | U76: 1.084890082 | V76: 1.064671595 | W76: 1.034074082 | X76: 0.9358910383 | Y76: 0.9355473944 | Z76: 0.9285488179 | AA76: 0.9763257451 | AB76: 0.9640996463 | AC76: 1.021598664 | AD76: 1.003149301 | AE76: 1
B77: 73 | C77: UNION PROGRESO | D77: 1.025583745 | E77: 1.026323992 | F77: 1.072776639 | G77: 1.036577026 | H77: 1.025598948 | I77: 1.011336285 | J77: 0.9543833168 | K77: 0.9354552274 | L77: 0.9696396553 | M77: 1.006085057 | N77: 1.112188011 | O77: 0.9405609824 | P77: 1 | Q77: 73 | R77: UNION PROGRESO | S77: 1.152192675 | T77: 1.128857269 | U77: 1.061284359 | V77: 1.034248567 | W77: 0.9994154264 | X77: 0.9916091219 | Y77: 0.9576692249 | Z77: 0.9143196844 | AA77: 0.9084730215 | AB77: 0.9674787337 | AC77: 1.086131219 | AD77: 0.9949800621 | AE77: 1
B78: 74 | C78: UTCUBAMBA | D78: 1.196907106 | E78: 1.034305696 | F78: 1.095726279 | G78: 1.111342166 | H78: 1.075638028 | I78: 1.047787738 | J78: 0.9555606199 | K78: 0.9123697681 | L78: 0.9571481333 | M78: 0.9880989576 | N78: 0.9317530908 | O78: 0.895198461 | P78: 1 | Q78: 74 | R78: UTCUBAMBA | S78: 1.157737377 | T78: 1.036363346 | U78: 1.066744814 | V78: 1.063069869 | W78: 1.024034468 | X78: 0.9908232794 | Y78: 0.9829283484 | Z78: 0.9363841226 | AA78: 0.9604989718 | AB78: 0.9802015859 | AC78: 0.9216015779 | AD78: 1.014313734 | AE78: 1
B79: 75 | C79: VARIANTE DE PASAMAYO | D79: 0.9444430285 | E79: 0.9203479411 | F79: 1.033688928 | G79: 1.011801011 | H79: 1.080205051 | I79: 1.112121777 | J79: 0.9391965738 | K79: 0.992710358 | L79: 1.074038953 | M79: 1.004945252 | N79: 1.047243325 | O79: 0.9052937128 | P79: 1 | Q79: 75 | R79: VARIANTE DE PASAMAYO | S79: 1.16724034 | T79: 0.9188132198 | U79: 1.015958773 | V79: 1.076805992 | W79: 0.9922137169 | X79: 0.9810756501 | Y79: 1.012971341 | Z79: 0.9895457813 | AA79: 1.058593919 | AB79: 1.011417849 | AC79: 0.9802942028 | AD79: 0.9710670388 | AE79: 1
B80: 76 | C80: VARIANTE DE UCHUMAYO | D80: 0.7411370527 | E80: 0.6766011463 | F80: 1.021807564 | G80: 1.145203732 | H80: 1.192939297 | I80: 1.198954031 | J80: 1.121701941 | K80: 1.076190863 | L80: 1.12859348 | M80: 1.141725282 | N80: 1.123061145 | O80: 0.9589821276 | P80: 1 | Q80: 76 | R80: VARIANTE DE UCHUMAYO | S80: 1.013294225 | T80: 0.9729417094 | U80: 1.044590984 | V80: 1.070271938 | W80: 1.057293152 | X80: 1.042855075 | Y80: 1.027140337 | Z80: 0.9797050197 | AA80: 0.9635177943 | AB80: 0.9527377556 | AC80: 0.9549201931 | AD80: 0.9497665416 | AE80: 1
B81: 77 | C81: VESIQUE | D81: 0.8602420668 | E81: 0.9031226471 | F81: 1.059677858 | G81: 1.085329758 | H81: 1.130172325 | I81: 1.151786978 | J81: 1.006457649 | K81: 1.068366334 | L81: 1.119639427 | M81: 1.010818584 | N81: 1.030472448 | O81: 0.8067175716 | P81: 1 | Q81: 77 | R81: VESIQUE | S81: 1.025491339 | T81: 0.9896468015 | U81: 1.059992963 | V81: 1.090994312 | W81: 1.080461878 | X81: 1.07445571 | Y81: 1.053418625 | Z81: 1.013592849 | AA81: 1.029957503 | AB81: 0.9407867921 | AC81: 0.9230803998 | AD81: 0.8962446421 | AE81: 1
B82: 78 | C82: VIRU | D82: 0.9902621567 | E82: 0.963977989 | F82: 1.077422877 | G82: 1.06044434 | H82: 1.115331942 | I82: 1.122096575 | J82: 0.957316149 | K82: 1.014785086 | L82: 1.209428194 | M82: 0.9743371344 | N82: 0.996092339 | O82: 0.7988845505 | P82: 1 | Q82: 78 | R82: VIRU | S82: 1.033673794 | T82: 0.998600429 | U82: 1.063668164 | V82: 1.087589969 | W82: 1.087885725 | X82: 1.084713601 | Y82: 1.063454748 | Z82: 1.016494609 | AA82: 1.126017143 | AB82: 0.9198916514 | AC82: 0.89310206 | AD82: 0.8926794215 | AE82: 1
B83: 79 | C83: YAUCA | D83: 0.879441633 | E83: 0.7945560703 | F83: 1.051809328 | G83: 1.028484752 | H83: 1.124738144 | I83: 1.12917805 | J83: 0.9652767972 | K83: 0.9838526345 | L83: 1.068390597 | M83: 1.096270873 | N83: 1.130280188 | O83: 0.9048463865 | P83: 1 | Q83: 79 | R83: YAUCA | S83: 1.033124333 | T83: 0.9871035866 | U83: 1.029380819 | V83: 1.033672107 | W83: 1.030033248 | X83: 1.033821586 | Y83: 1.080548032 | Z83: 0.9767368722 | AA83: 0.974654212 | AB83: 1.001028475 | AC83: 0.9280628441 | AD83: 0.9422383804 | AE83: 1
C84: Nota: Los valores presentados, son susceptibles a ser actualizados periódicamente por la OPMI-MTC, sin incurrir en actualización de la Ficha Técnica Estándar. | R84: Nota: Los valores presentados, son susceptibles a ser actualizados periódicamente por la OPMI-MTC, sin incurrir en actualización de la Ficha Técnica Estándar.

Sheet A4. Tasa de Crec
A1: Tasas para la Proyección de la Demanda | F1: FORMATO A5.TC
B3: Tasa de Crecimiento Anual de Vehículos Ligeros | E3: Tasa de Crecimiento Anual de Vehículos Pesados
B4: Amazonas. | C4: 0.01123792212 | E4: Amazonas. | F4: 0.02689375824
B5: Ancash. | C5: 0.02326441903 | E5: Ancash. | F5: 0.01487473689
B6: Apurímac. | C6: 0.01129817921 | E6: Apurímac. | F6: 0.04500572674
B7: Arequipa. | C7: 0.02898711987 | E7: Arequipa. | F7: 0.029654151
B8: Ayacucho. | C8: 0.01831353747 | E8: Ayacucho. | F8: 0.02897966845
B9: Cajamarca. | C9: 0.03049366333 | E9: Cajamarca. | F9: 0.01447305625
B10: Cusco. | C10: 0.02767699129 | E10: Cusco. | F10: 0.03070693579
B11: Huancavelica. | C11: 0.01174744198 | E11: Huancavelica. | F11: 0.02001957263
B12: Huánuco. | C12: 0.0194229821 | E12: Huánuco. | F12: 0.03032838325
B13: Ica. | C13: 0.01103035045 | E13: Ica. | F13: 0.02622535346
B14: Junín. | C14: 0.02035362905 | E14: Junín. | F14: 0.02836884662
B15: La Libertad. | C15: 0.02612847412 | E15: La Libertad. | F15: 0.02210871032
B16: Lambayeque. | C16: 0.02404719846 | E16: Lambayeque. | F16: 0.02541109238
B17: Lima Provincias. | C17: 0.02606822757 | E17: Lima Provincias. | F17: 0.02335041503
B18: Loreto. | C18: 0.001245983325 | E18: Loreto. | F18: 0.01476185396
B19: Madre de Dios. | C19: 0.02218251227 | E19: Madre de Dios. | F19: 0.01383522802
B20: Moquegua. | C20: 0.01971065797 | E20: Moquegua. | F20: 0.005839796386
B21: Pasco. | C21: 0.01720042655 | E21: Pasco. | F21: 0.003897830202
B22: Piura. | C22: 0.02376862409 | E22: Piura. | F22: 0.02365066618
B23: Puno. | C23: 0.02473080704 | E23: Puno. | F23: 0.02584231747
B24: San Martín. | C24: 0.02113096982 | E24: San Martín. | F24: 0.02878924633
B25: Tacna. | C25: 0.02132742142 | E25: Tacna. | F25: 0.02359848772
B26: Tumbes. | C26: 0.008108445553 | E26: Tumbes. | F26: 0.02397951877
B27: Ucayali. | C27: 0.01727236783 | E27: Ucayali. | F27: 0.02250825685
A28: Informacion al 2022, sin contar las distorciones estadísticas provocadas por el impacto económico de la COVID 19
A29: Nota: Los valores presentados, son susceptibles a ser actualizados periódicamente por la OPMI-MTC, sin incurrir en actualización de la Ficha Técnica Estándar.

Sheet B. Situación de la UP
B1: ESTADO SITUACIONAL DE LA UNIDAD PRODUCTORA | E1: HOJA B. Situación de la UP
B3: SITUACION ACTUAL - RESULTADO DE LA VISITA DE CAMPO
B5: Condiciones Iniciales del Proyecto
B6: Estado Actual
B7: Velocidad de Diseño
B9: Características | C9: Situación SIN PROYECTO | D9: Situación CON PROYECTO
B10: SINAC | C10: ='Ficha Estandar'!B81 -> 0 | D10: =+C10 -> 0
B11: Longitud | C11: ='Ficha Estandar'!C86 -> 1 | D11: =+C11 -> 1
B12: IMDa | C12: ='A2.Demanda'!M91 -> 0 | D12: =+'A2.Demanda'!C230 -> 0
B13: Orografía
B14: Velocidad Directriz
B15: ALINEAMIENTO HORIZONTAL
B16: Radio Mínimo
B17: Radio Excepcional
B18: Nro de Curvas Por Kilòmetro
B19: Grados Acumulados/kilometro
B20: ALINEAMIENTO VERTICAL
B21: Pendiente Mínima
B22: Pendiente Máxima
B23: Pendiente Máxima Excepcional
B24: SECCIONES TRANSVERSALES
B25: Número de Carriles | H25: =CONCATENATE("i.- ",B25," (",D25,")") -> i.- Número de Carriles ()
B26: Ancho de Plataforma (expresado en metros) | C26: =SUM(C27:C28) -> 0 | D26: =SUM(D27:D28) -> 0
B27: Ancho de Calzada (expresado en metros) | H27: =CONCATENATE("ii.- Ancho de Calzada"," (",D27," metros)") -> ii.- Ancho de Calzada ( metros)
B28: Ancho de Berma (expresado en metros) | H28: =CONCATENATE("iii.- Ancho de Berma"," (",D28," metros)") -> iii.- Ancho de Berma ( metros)
B29: Tipo de pavimento | H29: =CONCATENATE("iv.- ",B29," (",D29,")") -> iv.- Tipo de pavimento ()
B30: Cunetas | H30: =CONCATENATE("v.- ",B30," (",D30," metros)") -> v.- Cunetas ( metros)
B31: Bombeo | H31: =CONCATENATE("vi.- ",B31," % (",D31,")") -> vi.- Bombeo % ()
B32: Sobreanchos | H32: =CONCATENATE("vii.- ",B32," (",D32," metros)") -> vii.- Sobreanchos ( metros)
B33: Peralte Máximo | H33: =CONCATENATE("viii.- ",B33," % (",D33,")") -> viii.- Peralte Máximo % ()
B34: Plazoletas de Cruce | H34: =CONCATENATE("ix.- ",B34," (",D34,")") -> ix.- Plazoletas de Cruce ()
B35: Talud en relleno | H35: =CONCATENATE("x.- ",B35," (",D35,")") -> x.- Talud en relleno ()

Sheet Tipo de pavimento (hidden)
B1: Tipo de pavimento
B2: Pavimento flexible (asfáltico)
B3: Pavimento semi flexible (intertrabados)
B4: Pavimento rígido (concreto hidráulico)
B5: Solución básica (estabilizado+TSB)
B6: Solución básica (estabilizado+Slurry Seal)
B7: Solución básica (estabilizado+Micropavimento)
B8: Solución básica (solo estabilizado)
B9: Afirmado
B12: Carpeta asfáltica

Sheet 2.Reconocimiento del Trazo (hidden)
A1: RECONOCIMIENTO DEL TRAZO | C1: HOJA N 02
A3: SITUACION ACTUAL - RESULTADO DE LA VISITA DE CAMPO
A6: Condiciones Iniciales del Proyecto | F6: Trocha
A7: Estado Actual | F7: Vía sin afirmar con Inadecuada geometría
A8: Orografía | C8: =IFERROR(VLOOKUP(B8,E12:F15,2,0),"") ->  | F8: Vía no afirmada con inadecuadas condiciones de servicio y con Inadecuada geometría
A9: Velocidad de Diseño | F9: Vía afirmada con inadecuadas condiciones de servicio y con Inadecuada geometría
F10: Vía afirmada con inadecuadas condiciones de servicio y con adecuada geometría
A11: Características | B11: Situación SIN PROYECTO | C11: Situación CON PROYECTO | F11: Vía Pavimenta con inadecuadas condiciones de servicio
A12: SINAC | B12: =+'Ficha Estandar'!B81 -> 0 | C12: =+B12 -> 0 | E12: I | F12: Llano
A13: Longitud | E13: II | F13: Ondulado
A14: IMDa | B14: =+'A2.Demanda'!M91 -> 0 | C14: =+'A2.Demanda'!M230 -> 0 | E14: III | F14: Accidentado
A15: Orografía | E15: IV | F15: Escarpado
A16: Velocidad Directriz
A17: ALINEAMIENTO HORIZONTAL | F17: RVV
A18: Radio Mínimo | F18: RVD
A19: Radio Excepcional | F19: Camino de Herradura
A20: Nro de Curvas Por Kilòmetro
A21: Grados Acumulados/kilometro
A22: ALINEAMIENTO VERTICAL
A23: Pendiente Mínima
A24: Pendiente Máxima
A25: Pendiente Máxima Excepcional
A26: SECCIONES TRANSVERSALES
A27: Número de Carriles
A28: Ancho de Plataforma
A29: Ancho de Calzada
A30: Ancho de Berma
A31: Tipo de pavimento
A32: Cunetas
A33: Bombeo
A34: Sobreanchos
A35: Peralte Máximo
A36: Plazoletas de Cruce
A37: Derecho de Vía
A38: Talud en relleno

Sheet C. Costos
B1: COSTO DE LA INVERSIÓN | J1: HOJA C.Costos | M1: COSTO DE LA INVERSIÓN | U1: HOJA C.Costos
B3: ALTERNATIVA Nº1 | M3: ALTERNATIVA Nº2
B4: Longitud Total proyecto | M4: Longitud Total proyecto
B6: ='Ficha Estandar'!C21 -> DEL SERVICIO DE TRANSITABILIDAD VIAL DEL/LA DEL DISTRITO DE , DE LA PROVINCIA DE , DEL DEPARTAMENTO DE | I6: Región Geográfica | J6: ='Ficha Estandar'!C88 -> 0 | M6: =B6 -> DEL SERVICIO DE TRANSITABILIDAD VIAL DEL/LA DEL DISTRITO DE , DE LA PROVINCIA DE , DEL DEPARTAMENTO DE | T6: Región Geográfica | U6: ='Ficha Estandar'!C88 -> 0
B7: Naturaleza de acción 1/ | C7: Activos | D7: Tipo de factor producción | E7: Unidad física | G7: Dimensión física | I7: Precio unitario (soles/UM) | J7: Costo total (soles) | M7: Naturaleza de acción 1/ | N7: Activos | O7: Tipo de factor producción | P7: Unidad física | R7: Unidad física | T7: Precio unitario (soles/UM) | U7: Costo total (soles)
E8: Unidad de medida | F8: Cantidad | G8: Unidad de medida | H8: Cantidad | P8: Unidad de medida | Q8: Cantidad | R8: Unidad de medida | S8: Cantidad
B9: Tramo 1 | D9: Longitud (km) | J9: =+SUM(J10:J19) -> 0 | M9: Tramo 1 | O9: Longitud (km) | U9: =+SUM(U10:U19) -> 0
B10: Adquisición | C10: Derecho de vía 2/ | D10: Terrenos | E10: Und | G10: m2 | J10: =+F10*H10*I10 -> 0 | N10: Derecho de vía | O10: Terrenos | P10: Und | R10: m2 | U10: =+Q10*S10*T10 -> 0
B11: Construcción | C11: Plataforma | D11: Infraestructura | E11: Und | G11: Km | J11: =+F11*H11*I11 -> 0 | N11: Plataforma | O11: Infraestructura | P11: Und | R11: Km | U11: =+Q11*S11*T11 -> 0
B12: Construcción | C12: Intersección | D12: Infraestructura | E12: Und | G12: m2 | J12: 0 | N12: Intersección | O12: Infraestructura | P12: Und | R12: m2 | U12: 0
B13: Construcción | C13: Protección ribereña vial | D13: Infraestructura | E13: Und | G13: m | J13: 0 | N13: Protección ribereña vial | O13: Infraestructura | P13: Und | R13: m | U13: 0
B14: Construcción | C14: Talud/ muro de contención | D14: Infraestructura | E14: Und | G14: m | J14: 0 | N14: Talud/ muro de contención | O14: Infraestructura | P14: Und | R14: m | U14: 0
B15: Adquisición | C15: Drenaje Transversales | D15: Infraestructura | E15: Und | G15: m | J15: 0 | N15: Drenaje Transversales | O15: Infraestructura | P15: Und | R15: m | U15: 0
B16: Adecuación | C16: Dispositivos de Control de Tránsito | D16: Equipo | E16: Und | G16: Km | J16: 0 | N16: Dispositivos de Control de Tránsito | O16: Equipo | P16: Und | R16: Km | U16: 0
B17: Construcción | C17: Puente Peatonal | D17: Infraestructura | E17: Und | G17: Und | J17: 0 | N17: Puente Peatonal | O17: Infraestructura | P17: Und | R17: Und | U17: 0
B18: Construcción | C18: Estación de Peaje/Pesaje | D18: Infraestructura | E18: Und | G18: Und | J18: 0 | N18: Estación de Peaje/Pesaje | O18: Infraestructura | P18: Und | R18: Und | U18: 0
B19: Reparación | C19: Puente | D19: Infraestructura | E19: Und | G19: m | J19: 0 | N19: Puente | O19: Infraestructura | P19: Und | R19: m | U19: 0
B20: Tramo 2 | D20: Longitud (km) | J20: =+SUM(J21:J30) -> 0 | M20: Tramo 2 | O20: Longitud (km) | U20: =+SUM(U21:U30) -> 0
C21: Derecho de vía | D21: Terrenos | E21: Und | G21: m2 | J21: =+F21*H21*I21 -> 0 | N21: Derecho de vía | O21: Terrenos | P21: Und | R21: m2 | U21: =+Q21*S21*T21 -> 0
C22: Plataforma | D22: Infraestructura | E22: Und | G22: Km | J22: =+F22*H22*I22 -> 0 | N22: Plataforma | O22: Infraestructura | P22: Und | R22: Km | U22: =+Q22*S22*T22 -> 0
C23: Intersección | D23: Infraestructura | E23: Und | G23: m2 | J23: 0 | N23: Intersección | O23: Infraestructura | P23: Und | R23: m2 | U23: 0
C24: Protección ribereña vial | D24: Infraestructura | E24: Und | G24: m | J24: 0 | N24: Protección ribereña vial | O24: Infraestructura | P24: Und | R24: m | U24: 0
C25: Talud/ muro de contención | D25: Infraestructura | E25: Und | G25: m | J25: 0 | N25: Talud/ muro de contención | O25: Infraestructura | P25: Und | R25: m | U25: 0
C26: Drenaje Transversales | D26: Infraestructura | E26: Und | G26: m | J26: 0 | N26: Drenaje Transversales | O26: Infraestructura | P26: Und | R26: m | U26: 0
C27: Dispositivos de Control de Tránsito | D27: Equipo | E27: Und | G27: Km | J27: 0 | N27: Dispositivos de Control de Tránsito | O27: Equipo | P27: Und | R27: Km | U27: 0
C28: Puente Peatonal | D28: Infraestructura | E28: Und | G28: Und | J28: 0 | N28: Puente Peatonal | O28: Infraestructura | P28: Und | R28: Und | U28: 0
C29: Estación de Peaje/Pesaje | D29: Infraestructura | E29: Und | G29: Und | J29: 0 | N29: Estación de Peaje/Pesaje | O29: Infraestructura | P29: Und | R29: Und | U29: 0
C30: Puente | D30: Infraestructura | E30: Und | G30: m | J30: 0 | N30: Puente | O30: Infraestructura | P30: Und | R30: m | U30: 0
B31: Tramo 3 | D31: Longitud (km) | J31: =+SUM(J32:J41) -> 0 | M31: Tramo 3 | O31: Longitud (km) | U31: =+SUM(U32:U41) -> 0
C32: Derecho de vía | D32: Terrenos | E32: Und | G32: m2 | J32: =+F32*H32*I32 -> 0 | N32: Derecho de vía | O32: Terrenos | P32: Und | R32: m2 | U32: =+Q32*S32*T32 -> 0
C33: Plataforma | D33: Infraestructura | E33: Und | G33: Km | J33: =+F33*H33*I33 -> 0 | N33: Plataforma | O33: Infraestructura | P33: Und | R33: Km | U33: =+Q33*S33*T33 -> 0
C34: Intersección | D34: Infraestructura | E34: Und | G34: m2 | J34: 0 | N34: Intersección | O34: Infraestructura | P34: Und | R34: m2 | U34: 0
C35: Protección ribereña vial | D35: Infraestructura | E35: Und | G35: m | J35: 0 | N35: Protección ribereña vial | O35: Infraestructura | P35: Und | R35: m | U35: 0
C36: Talud/ muro de contención | D36: Infraestructura | E36: Und | G36: m | J36: 0 | N36: Talud/ muro de contención | O36: Infraestructura | P36: Und | R36: m | U36: 0
C37: Drenaje Transversales | D37: Infraestructura | E37: Und | G37: m | J37: 0 | N37: Drenaje Transversales | O37: Infraestructura | P37: Und | R37: m | U37: 0
C38: Dispositivos de Control de Tránsito | D38: Equipo | E38: Und | G38: Km | J38: 0 | N38: Dispositivos de Control de Tránsito | O38: Equipo | P38: Und | R38: Km | U38: 0
C39: Puente Peatonal | D39: Infraestructura | E39: Und | G39: Und | J39: 0 | N39: Puente Peatonal | O39: Infraestructura | P39: Und | R39: Und | U39: 0
C40: Estación de Peaje/Pesaje | D40: Infraestructura | E40: Und | G40: Und | J40: 0 | N40: Estación de Peaje/Pesaje | O40: Infraestructura | P40: Und | R40: Und | U40: 0
C41: Puente | D41: Infraestructura | E41: Und | G41: m | J41: 0 | N41: Puente | O41: Infraestructura | P41: Und | R41: m | U41: 0
G43: SUB TOTAL DEL COSTO DIRECTO DE LA INVERSIÓN (A) | J43: =+$J$31+$J$20+$J$9 -> 0 | R43: SUB TOTAL DEL COSTO DIRECTO DE LA INVERSIÓN (A) | U43: =+$U$31+$U$20+$U$9 -> 0
G45: GASTOS GENERALES | R45: GASTOS GENERALES
G46: UTILIDAD | R46: UTILIDAD
G47: IMPUESTOS (IGV) | J47: =($J$43+$J$45+$J$46)*0.18 -> 0 | R47: IMPUESTOS (IGV) | U47: =(U43+U45+U46)*0.18 -> 0
G48: SUB TOTAL COSTOS INDIRECTO (B) | J48: =+SUM(J45:J47) -> 0 | R48: SUB TOTAL COSTOS INDIRECTO (B) | U48: =+SUM(U45:U47) -> 0
G50: SUPERVISIÓN | R50: SUPERVISIÓN
G51: EXPEDIENTE TÉCNICO | R51: EXPEDIENTE TÉCNICO
G52: GESTIÓN DEL PROYECTO | R52: GESTIÓN DEL PROYECTO 2/ | U52: =+$J$48*V52 -> 0
G53: SUBTOTAL OTROS COSTOS (C) | J53: =+SUM(J50:J52) -> 0 | R53: SUBTOTAL OTROS COSTOS (C) | U53: =+SUM(U50:U52) -> 0
G55: COSTO TOTAL DE LA INVERSIÓN (A + B + C) | J55: =+J43+J48+J53 -> 0 | R55: COSTO TOTAL DE LA INVERSIÓN (A + B + C) | U55: =+U43+U48+U53 -> 0
G56: CONTROL CONCURRENTE 3/ | J56: =+J55*0.02 -> 0 | R56: CONTROL CONCURRENTE 3/
G57: 1/ La naturaleza de acción adecuadas deben ser identificados en la Guía General para la Identificación, Formulación y Evaluación de Proyectos de Inversión de la DGPMI. | R57: 1/ La naturaleza de acción adecuadas deben ser identificados en la Guía General para la Identificación, Formulación y Evaluación de Proyectos de Inversión de la DGPMI.
G58: 2/ Activo referido al valor de adquisición del predio. | R58: 2/ Activo referido al valor de adquisición del predio.
G59: 3/ En el marco de la Ley 31358; solo para proyectos con mayor a cinco millones de gasto de inversión. | R59: 3/ En el marco de la Ley 31358; solo para proyectos con mayor a cinco millones de gasto de inversión.
B64: COSTO DE OPERACIÓN Y MANTENIMIENTO REFERENCIALES (*) | M64: COSTO DE OPERACIÓN Y MANTENIMIENTO REFERENCIALES (*)
B66: Descripción | D66: Precios de Mercado S. /Km | E66: Politicas de Operación | M66: Descripción | O66: Precios de Mercado S. /Km | P66: Politicas de Operación
B68: Mant. Periódico Sin Proyecto | E68: 1 años | M68: Mant. Periódico Sin Proyecto | P68: 1 años
B69: Mant. Rutinario Con Proyecto | E69: 1 años * | M69: Mant. Rutinario Con Proyecto | P69: 1 años *
B70: Mant. Periódico Con Proyecto | E70: 3 años * | M70: Mant. Periódico Con Proyecto | P70: 3 años *
B71: * Variable en base a la alternativa tecnológica | M71: * Variable en base a la alternativa tecnológica
B72: Valor resultado de la estructura del Costo de Mantenimiento | M72: Valor resultado de la estructura del Costo de Mantenimiento
B74: Sin Proyecto | J74: Con Proyecto
B75: Descripción | F75: Precios de Mercado S. /Km | J75: Descripción | K75: Precios de Mercado S. /Km | L75: Politicas de Mantenimiento
B77: Mant. Periódico Sin Proyecto | J77: Mant. Rutinario Con Proyecto | L77: 1 años *
B78: Valor resultado de la estructura del Costo de Mantenimiento | J78: Mant. Periódico Con Proyecto | L78: 3 años *
J79: * Variable en base a la alternativa tecnológica
J80: Valor resultado de la estructura del Costo de Mantenimiento

Sheet Hoja9 (hidden)
A1: AMAZONAS. | B1: ANCASH. | C1: APURÍMAC. | D1: AREQUIPA. | E1: AYACUCHO. | F1: CAJAMARCA. | G1: LIMA. | H1: CUSCO. | I1: HUANCAVELICA. | J1: HUANUCO. | K1: ICA. | L1: JUNÍN. | M1: LA LIBERTAD. | N1: LAMBAYEQUE. | O1: LORETO. | P1: MADRE DE DIOS. | Q1: MOQUEGUA. | R1: PASCO. | S1: PIURA. | T1: PUNO. | U1: SAN MARTIN. | V1: TACNA. | W1: TUMBES. | X1: UCAYALI.
A2: CHACHAPOYAS | B2: HUARAZ | C2: ABANCAY | D2: AREQUIPA | E2: HUAMANGA | F2: CAJAMARCA | G2: CALLAO | H2: CUSCO | I2: HUANCAVELICA | J2: HUANUCO | K2: ICA | L2: HUANCAYO | M2: TRUJILLO | N2: CHICLAYO | O2: MAYNAS | P2: TAMBOPATA | Q2: MARISCAL NIETO | R2: PASCO | S2: PIURA | T2: PUNO | U2: MOYOBAMBA | V2: TACNA | W2: TUMBES | X2: CORONEL PORTILLO
A3: BAGUA | B3: AIJA | C3: ANDAHUAYLAS | D3: CAMANÁ | E3: CANGALLO | F3: CAJABAMBA | G3: LIMA | H3: ACOMAYO | I3: ACOBAMBA | J3: AMBO | K3: CHINCHA | L3: CONCEPCIÓN | M3: ASCOPE | N3: FERREÑAFE | O3: ALTO AMAZONAS | P3: MANÚ | Q3: GENERAL SÁNCHEZ CERRO | R3: DANIEL A. CARRIÓN | S3: AYABACA | T3: AZÁNGARO | U3: BELLAVISTA | V3: CANDARAVE | W3: CONTRALMIRANTE VILLAR | X3: ATALAYA
A4: BONGARÁ | B4: ANTONIO RAYMONDI | C4: ANTABAMBA | D4: CARAVELÍ | E4: HUANCA SANCOS | F4: CELENDÍN | G4: BARRANCA | H4: ANTA | I4: ANGARAES | J4: DOS DE MAYO | K4: NAZCA | L4: CHANCHAMAYO | M4: BOLÍVAR | N4: LAMBAYEQUE | O4: LORETO | P4: TAHUAMANÚ | Q4: ILO | R4: OXAPAMPA | S4: HUANCABAMBA | T4: CARABAYA | U4: EL DORADO | V4: JORGE BASADRE | W4: ZARUMILLA | X4: PADRE ABAD
A5: CONDORCANQUI | B5: ASUNCIÓN | C5: AYMARAES | D5: CASTILLA | E5: HUANTA | F5: CHOTA | G5: CAJATAMBO | H5: CALCA | I5: CASTROVIRREYNA | J5: HUACAYBAMBA | K5: PALPA | L5: JAUJA | M5: CHEPÉN | O5: MARISCAL RAMÓN CASTILLA | S5: MORROPÓN | T5: CHUCUITO | U5: HUALLAGA | V5: TARATA | X5: PURÚS
A6: LUYA | B6: BOLOGNESI | C6: COTABAMBAS | D6: CAYLLOMA | E6: LA MAR | F6: CONTUMAZÁ | G6: CANTA | H6: CANAS | I6: CHURCAMPA | J6: HUAMALIES | K6: PISCO | L6: JUNIN | M6: JULCÁN | O6: REQUENA | S6: PAITA | T6: EL COLLAO | U6: LAMAS
A7: RODRÍGUEZ DE MENDOZA | B7: CARHUAZ | C7: CHINCHEROS | D7: CONDESUYOS | E7: LUCANAS | F7: CUTERVO | G7: CAÑETE | H7: CANCHIS | I7: HUAYTARÁ | J7: LEONCIO PRADO | L7: SATIPO | M7: OTUZCO | O7: UCAYALI | S7: SULLANA | T7: HUANCANÉ | U7: MARISCAL CÁCERES
A8: UTCUBAMBA | B8: CARLOS FERMÍN FITZCARRALD | C8: GRAU | D8: CONDESUYOS | E8: PARINACOCHAS | F8: HUALGAYOC | G8: HUARAL | H8: CHUMBIVILCAS | I8: TAYACAJA | J8: MARAÑÓN | L8: TARMA | M8: PACASMAYO | O8: DATEM DEL MARAÑÓN | S8: TALARA | T8: LAMPA | U8: PICOTA
B9: CASMA | D9: ISLAY | E9: PAUCAR DEL SARA SARA | F9: JAÉN | G9: HUAURA | H9: ESPINAR | J9: PACHITEA | L9: YAULI | M9: PATAZ | S9: SECHURA | T9: MELGAR | U9: RIOJA
B10: CORONGO | D10: LA UNIÓN | E10: SUCRE | F10: SAN IGNACIO | G10: OYÓN | H10: LA CONVENCIÓN | J10: PUERTO INCA | L10: CHUPACA | M10: SÁNCHEZ CARRIÓN | T10: MOHO | U10: SAN MARTIN
B11: HUARI | E11: VÍCTOR FAJARDO | F11: SAN MARCOS | G11: YAUYOS | H11: PARURO | J11: LAURICOCHA | M11: SANTIAGO DE CHUCO | T11: SAN ANTONIO DE PUTINA | U11: TOCACHE
B12: HUARMEY | E12: VILCAS HUAMÁN | F12: SAN MIGUEL | H12: PAUCARTAMBO | J12: YAROWILCA | M12: GRAN CHIMÚ | T12: SAN ROMÁN
B13: HUAYLAS | F13: SAN PABLO | H13: QUISPICANCHI | M13: VIRÚ | T13: SANDIA
B14: MARISCAL LUZURIAGA | F14: SANTA CRUZ | H14: URUBAMBA | T14: YUNGUYO
B15: OCROS
B16: PALLASCA
B17: POMABAMBA
B18: RECUAY
B19: SANTA
B20: SIHUAS
B21: YUNGAY | Q21: DEPARTAMENTO | R21: PASCO
Q23: PROVINCIA | R23: DANIEL A. CARRIÓN

Sheet Hoja10 (hidden)
A1: CHACHAPOYAS | B1: BAGUA | C1: BONGARÁ | D1: CONDORCANQUI | E1: LUYA | F1: RODRÍGUEZ DE MENDOZA | G1: UTCUBAMBA | H1: HUARAZ | I1: AIJA | J1: ANTONIO RAYMONDI | K1: ASUNCIÓN | L1: BOLOGNESI | M1: CARHUAZ | N1: CARLOS FERMÍN FITZCARRALD | O1: CASMA | P1: CORONGO | Q1: HUARI | R1: HUARMEY | S1: HUAYLAS | T1: MARISCAL LUZURIAGA | U1: OCROS | V1: PALLASCA | W1: POMABAMBA | X1: RECUAY | Y1: SANTA | Z1: SIHUAS | AA1: YUNGAY | AB1: ABANCAY | AC1: ANDAHUAYLAS | AD1: ANTABAMBA | AE1: AYMARAES | AF1: COTABAMBAS | AG1: CHINCHEROS | AH1: GRAU | AI1: AREQUIPA | AJ1: CAMANÁ | AK1: CARAVELÍ | AL1: CASTILLA | AM1: CAYLLOMA | AN1: CONDESUYOS | AO1: ISLAY | AP1: LA UNIÓN | AQ1: HUAMANGA | AR1: CANGALLO | AS1: HUANCA SANCOS | AT1: HUANTA | AU1: LA MAR | AV1: LUCANAS | AW1: PARINACOCHAS | AX1: PAUCAR DEL SARA SARA | AY1: SUCRE | AZ1: VÍCTOR FAJARDO | BA1: VILCAS HUAMÁN | BB1: CAJAMARCA | BC1: CAJABAMBA | BD1: CELENDÍN | BE1: CHOTA | BF1: CONTUMAZÁ | BG1: CUTERVO | BH1: HUALGAYOC | BI1: JAÉN | BJ1: SAN IGNACIO | BK1: SAN MARCOS | BL1: SAN MIGUEL | BM1: SAN PABLO | BN1: SANTA CRUZ | BO1: CALLAO | BP1: CUSCO | BQ1: ACOMAYO | BR1: ANTA | BS1: CALCA | BT1: CANAS | BU1: CANCHIS | BV1: CHUMBIVILCAS | BW1: ESPINAR | BX1: LA CONVENCIÓN | BY1: PARURO | BZ1: PAUCARTAMBO | CA1: QUISPICANCHI | CB1: URUBAMBA | CC1: HUANCAVELICA | CD1: ACOBAMBA | CE1: ANGARAES | CF1: CASTROVIRREYNA | CG1: CHURCAMPA | CH1: HUAYTARÁ | CI1: TAYACAJA | CJ1: HUANUCO | CK1: AMBO | CL1: DOS DE MAYO | CM1: HUACAYBAMBA | CN1: HUAMALIES | CO1: LEONCIO PRADO | CP1: MARAÑÓN | CQ1: PACHITEA | CR1: PUERTO INCA | CS1: LAURICOCHA | CT1: YAROWILCA | CU1: ICA | CV1: CHINCHA | CW1: NAZCA | CX1: PALPA | CY1: PISCO | CZ1: HUANCAYO | DA1: CONCEPCIÓN | DB1: CHANCHAMAYO | DC1: JAUJA | DD1: JUNIN | DE1: SATIPO | DF1: TARMA | DG1: YAULI | DH1: CHUPACA | DI1: TRUJILLO | DJ1: ASCOPE | DK1: BOLÍVAR | DL1: CHEPÉN | DM1: JULCÁN | DN1: OTUZCO | DO1: PACASMAYO | DP1: PATAZ | DQ1: SÁNCHEZ CARRIÓN | DR1: SANTIAGO DE CHUCO | DS1: GRAN CHIMÚ | DT1: VIRÚ | DU1: CHICLAYO | DV1: FERREÑAFE | DW1: LAMBAYEQUE | DX1: LIMA | DY1: BARRANCA | DZ1: CAJATAMBO | EA1: CANTA | EB1: CAÑETE | EC1: HUARAL | ED1: HUAROCHIRI | EE1: HUAURA | EF1: OYÓN | EG1: YAUYOS | EH1: MAYNAS | EI1: ALTO AMAZONAS | EJ1: LORETO | EK1: MARISCAL RAMÓN CASTILLA | EL1: REQUENA | EM1: UCAYALI | EN1: DATEM DEL MARAÑÓN | EO1: TAMBOPATA | EP1: MANÚ | EQ1: TAHUAMANÚ | ER1: MARISCAL NIETO | ES1: GENERAL SÁNCHEZ CERRO | ET1: ILO | EU1: PASCO | EV1: DANIEL A. CARRIÓN | EW1: OXAPAMPA | EX1: PIURA | EY1: AYABACA | EZ1: HUANCABAMBA | FA1: MORROPÓN | FB1: PAITA | FC1: SULLANA | FD1: TALARA | FE1: SECHURA | FF1: PUNO | FG1: AZÁNGARO | FH1: CARABAYA | FI1: CHUCUITO | FJ1: EL COLLAO | FK1: HUANCANÉ | FL1: LAMPA | FM1: MELGAR | FN1: MOHO | FO1: SAN ANTONIO DE PUTINA | FP1: SAN ROMÁN | FQ1: SANDIA | FR1: YUNGUYO | FS1: MOYOBAMBA | FT1: BELLAVISTA | FU1: EL DORADO | FV1: HUALLAGA | FW1: LAMAS | FX1: MARISCAL CÁCERES | FY1: PICOTA | FZ1: RIOJA | GA1: SAN MARTIN | GB1: TOCACHE | GC1: TACNA | GD1: CANDARAVE | GE1: JORGE BASADRE | GF1: TARATA | GG1: TUMBES | GH1: CONTRALMIRANTE VILLAR | GI1: ZARUMILLA | GJ1: CORONEL PORTILLO | GK1: ATALAYA | GL1: PADRE ABAD | GM1: PURÚS
A2: CHACHAPOYAS | B2: BAGUA | C2: JUMBILLA | D2: NIEVA | E2: LAMUD | F2: SAN NICOLAS | G2: BAGUA GRANDE | H2: HUARAZ | I2: AIJA | J2: LLAMELLIN | K2: CHACAS | L2: CHIQUIAN | M2: CARHUAZ | N2: SAN LUIS | O2: CASMA | P2: CORONGO | Q2: HUARI | R2: HUARMEY | S2: CARAZ | T2: PISCOBAMBA | U2: OCROS | V2: CABANA | W2: POMABAMBA | X2: RECUAY | Y2: CHIMBOTE | Z2: SIHUAS | AA2: YUNGAY | AB2: ABANCAY | AC2: ANDAHUAYLAS | AD2: ANTABAMBA | AE2: CHALHUANCA | AF2: TAMBOBAMBA | AG2: CHINCHEROS | AH2: CHUQUIBAMBILLA | AI2: AREQUIPA | AJ2: CAMANA | AK2: CARAVELI | AL2: APLAO | AM2: CHIVAY | AN2: CHUQUIBAMBA | AO2: MOLLENDO | AP2: COTAHUASI | AQ2: AYACUCHO | AR2: CANGALLO | AS2: SANCOS | AT2: HUANTA | AU2: SAN MIGUEL | AV2: PUQUIO | AW2: CORACORA | AX2: PAUSA | AY2: QUEROBAMBA | AZ2: HUANCAPI | BA2: VILCAS HUAMAN | BB2: CAJAMARCA | BC2: CAJABAMBA | BD2: CELENDIN | BE2: CHOTA | BF2: CONTUMAZA | BG2: CUTERVO | BH2: BAMBAMARCA | BI2: JAEN | BJ2: SAN IGNACIO | BK2: PEDRO GALVEZ | BL2: SAN MIGUEL | BM2: SAN PABLO | BN2: SANTA CRUZ | BO2: CALLAO | BP2: MI PERÚ | BQ2: WANCHAQ | BR2: SANGARARA | BS2: ZURITE | BT2: YANAOCA | BU2: SICUANI | BV2: SANTO TOMAS | BW2: ESPINAR | BX2: SANTA ANA | BY2: PARURO | BZ2: PAUCARTAMBO | CA2: URCOS | CB2: URUBAMBA | CC2: HUANCAVELICA | CD2: ACOBAMBA | CE2: LIRCAY | CF2: CASTROVIRREYNA | CG2: CHURCAMPA | CH2: HUAYTARA | CI2: PAMPAS | CJ2: HUANUCO | CK2: AMBO | CL2: LA UNION | CM2: HUACAYBAMBA | CN2: LLATA | CO2: RUPA-RUPA | CP2: HUACRACHUCO | CQ2: PANAO | CR2: PUERTO INCA | CS2: JESUS | CT2: CHAVINILLO | CU2: ICA | CV2: CHINCHA ALTA | CW2: NAZCA | CX2: PALPA | CY2: PISCO | CZ2: HUANCAYO | DA2: VIQUES | DB2: CHANCHAMAYO | DC2: JAUJA | DD2: JUNIN | DE2: SATIPO | DF2: TARMA | DG2: LA OROYA | DH2: CHUPACA | DI2: TRUJILLO | DJ2: ASCOPE | DK2: BOLIVAR | DL2: CHEPEN | DM2: JULCAN | DN2: OTUZCO | DO2: SAN PEDRO DE LLOC | DP2: TAYABAMBA | DQ2: HUAMACHUCO | DR2: SANTIAGO DE CHUCO | DS2: CASCAS | DT2: VIRU | DU2: CHICLAYO | DV2: FERREÑAFE | DW2: LAMBAYEQUE | DX2: LIMA | DY2: BARRANCA | DZ2: CAJATAMBO | EA2: CANTA | EB2: SAN VICENTE DE CAÑETE | EC2: HUARAL | ED2: MATUCANA | EE2: HUACHO | EF2: OYON | EG2: YAUYOS | EH2: IQUITOS | EI2: YURIMAGUAS | EJ2: NAUTA | EK2: RAMON CASTILLA | EL2: REQUENA | EM2: CONTAMANA | EN2: BARRANCA | EO2: TAMBOPATA | EP2: MANU | EQ2: IÑAPARI | ER2: MOQUEGUA | ES2: OMATE | ET2: ILO | EU2: CHAUPIMARCA | EV2: YANAHUANCA | EW2: OXAPAMPA | EX2: PIURA | EY2: AYABACA | EZ2: HUANCABAMBA | FA2: MORROPON | FB2: PAITA | FC2: SULLANA | FD2: PARIÑAS | FE2: SECHURA | FF2: PUNO | FG2: AZANGARO | FH2: MACUSANI | FI2: JULI | FJ2: ILAVE | FK2: HUANCANE | FL2: LAMPA | FM2: AYAVIRI | FN2: MOHO | FO2: PUTINA | FP2: JULIACA | FQ2: SANDIA | FR2: YUNGUYO | FS2: MOYOBAMBA | FT2: BELLAVISTA | FU2: SAN JOSE DE SISA | FV2: SAPOSOA | FW2: LAMAS | FX2: JUANJUI | FY2: PICOTA | FZ2: RIOJA | GA2: TARAPOTO | GB2: TOCACHE | GC2: TACNA | GD2: CANDARAVE | GE2: LOCUMBA | GF2: TARATA | GG2: TUMBES | GH2: ZORRITOS | GI2: ZARUMILLA | GJ2: CALLERIA | GK2: RAYMONDI | GL2: PADRE ABAD | GM2: PURUS
A3: ASUNCION | B3: ARAMANGO | C3: CHISQUILLA | D3: EL CENEPA | E3: CAMPORREDONDO | F3: CHIRIMOTO | G3: CAJARURO | H3: COCHABAMBA | I3: CORIS | J3: ACZO | K3: ACOCHACA | L3: ABELARDO PARDO LEZAMETA | M3: ACOPAMPA | N3: SAN NICOLAS | O3: BUENA VISTA ALTA | P3: ACO | Q3: ANRA | R3: COCHAPETI | S3: HUALLANCA | T3: CASCA | U3: ACAS | V3: BOLOGNESI | W3: HUAYLLAN | X3: CATAC | Y3: CACERES DEL PERU | Z3: ACOBAMBA | AA3: CASCAPARA | AB3: CHACOCHE | AC3: ANDARAPA | AD3: EL ORO | AE3: CAPAYA | AF3: COTABAMBAS | AG3: ANCO_HUALLO | AH3: CURPAHUASI | AI3: ALTO SELVA ALEGRE | AJ3: JOSE MARIA QUIMPER | AK3: ACARI | AL3: ANDAGUA | AM3: ACHOMA | AN3: ANDARAY | AO3: COCACHACRA | AP3: ALCA | AQ3: ACOCRO | AR3: CHUSCHI | AS3: CARAPO | AT3: AYAHUANCO | AU3: ANCO | AV3: AUCARA | AW3: CHUMPI | AX3: COLTA | AY3: BELEN | AZ3: ALCAMENCA | BA3: ACCOMARCA | BB3: ASUNCION | BC3: CACHACHI | BD3: CHUMUCH | BE3: ANGUIA | BF3: CHILETE | BG3: CALLAYUC | BH3: CHUGUR | BI3: BELLAVISTA | BJ3: CHIRINOS | BK3: CHANCAY | BL3: BOLIVAR | BM3: SAN BERNARDINO | BN3: ANDABAMBA | BO3: BELLAVISTA | BP3: CUSCO | BQ3: ACOMAYO | BR3: ANTA | BS3: CALCA | BT3: CHECCA | BU3: CHECACUPE | BV3: CAPACMARCA | BW3: CONDOROMA | BX3: ECHARATE | BY3: ACCHA | BZ3: CAICAY | CA3: ANDAHUAYLILLAS | CB3: CHINCHERO | CC3: ACOBAMBILLA | CD3: ANDABAMBA | CE3: ANCHONGA | CF3: ARMA | CG3: ANCO | CH3: AYAVI | CI3: ACOSTAMBO | CJ3: AMARILIS | CK3: CAYNA | CL3: CHUQUIS | CM3: CANCHABAMBA | CN3: ARANCAY | CO3: DANIEL ALOMIAS ROBLES | CP3: CHOLON | CQ3: CHAGLLA | CR3: CODO DEL POZUZO | CS3: BAÑOS | CT3: CAHUAC | CU3: LA TINGUIÑA | CV3: ALTO LARAN | CW3: CHANGUILLO | CX3: LLIPATA | CY3: HUANCANO | CZ3: CARHUACALLANGA | DA3: CONCEPCION | DB3: PERENE | DC3: ACOLLA | DD3: CARHUAMAYO | DE3: COVIRIALI | DF3: ACOBAMBA | DG3: CHACAPALPA | DH3: AHUAC | DI3: EL PORVENIR | DJ3: CHICAMA | DK3: BAMBAMARCA | DL3: PACANGA | DM3: CALAMARCA | DN3: AGALLPAMPA | DO3: GUADALUPE | DP3: BULDIBUYO | DQ3: CHUGAY | DR3: ANGASMARCA | DS3: LUCMA | DT3: CHAO | DU3: CHONGOYAPE | DV3: CAÑARIS | DW3: CHOCHOPE | DX3: ANCON | DY3: PARAMONGA | DZ3: COPA | EA3: ARAHUAY | EB3: ASIA | EC3: ATAVILLOS ALTO | ED3: ANTIOQUIA | EE3: AMBAR | EF3: ANDAJES | EG3: ALIS | EH3: ALTO NANAY | EI3: BALSAPUERTO | EJ3: PARINARI | EK3: PEBAS | EL3: ALTO TAPICHE | EM3: INAHUAYA | EN3: CAHUAPANAS | EO3: INAMBARI | EP3: FITZCARRALD | EQ3: IBERIA | ER3: CARUMAS | ES3: CHOJATA | ET3: EL ALGARROBAL | EU3: HUACHON | EV3: CHACAYAN | EW3: CHONTABAMBA | EX3: CASTILLA | EY3: FRIAS | EZ3: CANCHAQUE | FA3: SALITRAL | FB3: AMOTAPE | FC3: BELLAVISTA | FD3: EL ALTO | FE3: BELLAVISTA DE LA UNION | FF3: ACORA | FG3: ACHAYA | FH3: AJOYANI | FI3: DESAGUADERO | FJ3: CAPAZO | FK3: COJATA | FL3: CABANILLA | FM3: ANTAUTA | FN3: CONIMA | FO3: ANANEA | FP3: CABANA | FQ3: CUYOCUYO | FR3: ANAPIA | FS3: CALZADA | FT3: ALTO BIAVO | FU3: AGUA BLANCA | FV3: ALTO SAPOSOA | FW3: ALONSO DE ALVARADO | FX3: CAMPANILLA | FY3: BUENOS AIRES | FZ3: AWAJUN | GA3: ALBERTO LEVEAU | GB3: NUEVO PROGRESO | GC3: ALTO DE LA ALIANZA | GD3: CAIRANI | GE3: ILABAYA | GF3: HEROES ALBARRACIN | GG3: CORRALES | GH3: CASITAS | GI3: AGUAS VERDES | GJ3: CAMPOVERDE | GK3: SEPAHUA | GL3: IRAZOLA
A4: BALSAS | B4: COPALLIN | C4: CHURUJA | D4: RIO SANTIAGO | E4: COCABAMBA | F4: COCHAMAL | G4: CUMBA | H4: COLCABAMBA | I4: HUACLLAN | J4: CHACCHO | L4: ANTONIO RAYMONDI | M4: AMASHCA | N4: YAUYA | O4: COMANDANTE NOEL | P4: BAMBAS | Q4: CAJAY | R4: CULEBRAS | S4: HUATA | T4: ELEAZAR GUZMAN BARRON | U4: CAJAMARQUILLA | V4: CONCHUCOS | W4: PAROBAMBA | X4: COTAPARACO | Y4: COISHCO | Z4: ALFONSO UGARTE | AA4: MANCOS | AB4: CIRCA | AC4: CHIARA | AD4: HUAQUIRCA | AE4: CARAYBAMBA | AF4: COYLLURQUI | AG4: COCHARCAS | AH4: GAMARRA | AI4: CAYMA | AJ4: MARIANO NICOLAS VALCARCEL | AK4: ATICO | AL4: AYO | AM4: CABANACONDE | AN4: CAYARANI | AO4: DEAN VALDIVIA | AP4: CHARCANA | AQ4: ACOS VINCHOS | AR4: LOS MOROCHUCOS | AS4: SACSAMARCA | AT4: HUAMANGUILLA | AU4: AYNA | AV4: CABANA | AW4: CORONEL CASTAÑEDA | AX4: CORCULLA | AY4: CHALCOS | AZ4: APONGO | BA4: CARHUANCA | BB4: CHETILLA | BC4: CONDEBAMBA | BD4: CORTEGANA | BE4: CHADIN | BF4: CUPISNIQUE | BG4: CHOROS | BH4: HUALGAYOC | BI4: CHONTALI | BJ4: HUARANGO | BK4: EDUARDO VILLANUEVA | BL4: CALQUIS | BM4: SAN LUIS | BN4: CATACHE | BO4: CARMEN DE LA LEGUA Y REYNOSO | BP4: CCORCA | BQ4: ACOPIA | BR4: ANCAHUASI | BS4: COYA | BT4: KUNTURKANKI | BU4: COMBAPATA | BV4: CHAMACA | BW4: COPORAQUE | BX4: HUAYOPATA | BY4: CCAPI | BZ4: CHALLABAMBA | CA4: CAMANTI | CB4: HUAYLLABAMBA | CC4: ACORIA | CD4: ANTA | CE4: CALLANMARCA | CF4: AURAHUA | CG4: CHINCHIHUASI | CH4: CORDOVA | CI4: ACRAQUIA | CJ4: CHINCHAO | CK4: COLPAS | CL4: MARIAS | CM4: COCHABAMBA | CN4: CHAVIN DE PARIARCA | CO4: HERMILIO VALDIZAN | CP4: SAN BUENAVENTURA | CQ4: MOLINO | CR4: HONORIA | CS4: JIVIA | CT4: CHACABAMBA | CU4: LOS AQUIJES | CV4: CHAVIN | CW4: EL INGENIO | CX4: RIO GRANDE | CY4: HUMAY | CZ4: CHACAPAMPA | DA4: ACO | DB4: PICHANAQUI | DC4: APATA | DD4: ONDORES | DE4: LLAYLLA | DF4: HUARICOLCA | DG4: HUAY-HUAY | DH4: CHONGOS BAJO | DI4: FLORENCIA DE MORA | DJ4: CHOCOPE | DK4: CONDORMARCA | DL4: PUEBLO NUEVO | DM4: CARABAMBA | DN4: CHARAT | DO4: JEQUETEPEQUE | DP4: CHILLIA | DQ4: COCHORCO | DR4: CACHICADAN | DS4: COMPIN | DT4: GUADALUPITO | DU4: ETEN | DV4: INCAHUASI | DW4: ILLIMO | DX4: ATE | DY4: PATIVILCA | DZ4: GORGOR | EA4: HUAMANTANGA | EB4: CALANGO | EC4: ATAVILLOS BAJO | ED4: CALLAHUANCA | EE4: CALETA DE CARQUIN | EF4: CAUJUL | EG4: AYAUCA | EH4: FERNANDO LORES | EI4: JEBEROS | EJ4: TIGRE | EK4: YAVARI | EL4: CAPELO | EM4: PADRE MARQUEZ | EN4: MANSERICHE | EO4: LAS PIEDRAS | EP4: MADRE DE DIOS | EQ4: TAHUAMANU | ER4: CUCHUMBAYA | ES4: COALAQUE | ET4: PACOCHA | EU4: HUARIACA | EV4: GOYLLARISQUIZGA | EW4: HUANCABAMBA | EX4: CATACAOS | EY4: JILILI | EZ4: EL CARMEN DE LA FRONTERA | FA4: SAN JUAN DE BIGOTE | FB4: ARENAL | FC4: IGNACIO ESCUDERO | FD4: LA BREA | FE4: BERNAL | FF4: AMANTANI | FG4: ARAPA | FH4: AYAPATA | FI4: HUACULLANI | FJ4: PILCUYO | FK4: HUATASANI | FL4: CALAPUJA | FM4: CUPI | FN4: HUAYRAPATA | FO4: PEDRO VILCA APAZA | FP4: CABANILLAS | FQ4: LIMBANI | FR4: COPANI | FS4: HABANA | FT4: BAJO BIAVO | FU4: SAN MARTIN | FV4: EL ESLABON | FW4: BARRANQUITA | FX4: HUICUNGO | FY4: CASPISAPA | FZ4: ELIAS SOPLIN VARGAS | GA4: CACATACHI | GB4: POLVORA | GC4: CALANA | GD4: CAMILACA | GE4: ITE | GF4: ESTIQUE | GG4: LA CRUZ | GH4: CANOAS DE PUNTA SAL | GI4: MATAPALO | GJ4: IPARIA | GK4: TAHUANIA | GL4: CURIMANA
A5: CHETO | B5: EL PARCO | C5: COROSHA | E5: COLCAMAR | F5: HUAMBO | G5: EL MILAGRO | H5: HUANCHAY | I5: LA MERCED | J5: CHINGAS | L5: AQUIA | M5: ANTA | O5: YAUTAN | P5: CUSCA | Q5: CHAVIN DE HUANTAR | R5: HUAYAN | S5: HUAYLAS | T5: FIDEL OLIVAS ESCUDERO | U5: CARHUAPAMPA | V5: HUACASCHUQUE | W5: QUINUABAMBA | X5: HUAYLLAPAMPA | Y5: MACATE | Z5: CASHAPAMPA | AA5: MATACOTO | AB5: CURAHUASI | AC5: HUANCARAMA | AD5: JUAN ESPINOZA MEDRANO | AE5: CHAPIMARCA | AF5: HAQUIRA | AG5: HUACCANA | AH5: HUAYLLATI | AI5: CERRO COLORADO | AJ5: MARISCAL CACERES | AK5: ATIQUIPA | AL5: CHACHAS | AM5: CALLALLI | AN5: CHICHAS | AO5: ISLAY | AP5: HUAYNACOTAS | AQ5: CARMEN ALTO | AR5: MARIA PARADO DE BELLIDO | AS5: SANTIAGO DE LUCANAMARCA | AT5: IGUAIN | AU5: CHILCAS | AV5: CARMEN SALCEDO | AW5: PACAPAUSA | AX5: LAMPA | AY5: CHILCAYOC | AZ5: ASQUIPATA | BA5: CONCEPCION | BB5: COSPAN | BC5: SITACOCHA | BD5: HUASMIN | BE5: CHIGUIRIP | BF5: GUZMANGO | BG5: CUJILLO | BI5: COLASAY | BJ5: LA COIPA | BK5: GREGORIO PITA | BL5: CATILLUC | BM5: TUMBADEN | BN5: CHANCAYBAÑOS | BO5: LA PERLA | BP5: POROY | BQ5: ACOS | BR5: CACHIMAYO | BS5: LAMAY | BT5: LANGUI | BU5: MARANGANI | BV5: COLQUEMARCA | BW5: OCORURO | BX5: MARANURA | BY5: COLCHA | BZ5: COLQUEPATA | CA5: CCARHUAYO | CB5: MACHUPICCHU | CC5: CONAYCA | CD5: CAJA | CE5: CCOCHACCASA | CF5: CAPILLAS | CG5: EL CARMEN | CH5: HUAYACUNDO ARMA | CI5: AHUAYCHA | CJ5: CHURUBAMBA | CK5: CONCHAMARCA | CL5: PACHAS | CM5: PINRA | CN5: JACAS GRANDE | CO5: JOSE CRESPO Y CASTILLO | CP5: LA MORADA | CQ5: UMARI | CR5: TOURNAVISTA | CS5: QUEROPALCA | CT5: APARICIO POMARES | CU5: OCUCAJE | CV5: CHINCHA BAJA | CW5: MARCONA | CX5: SANTA CRUZ | CY5: INDEPENDENCIA | CZ5: CHICCHE | DA5: ANDAMARCA | DB5: SAN LUIS DE SHUARO | DC5: ATAURA | DD5: ULCUMAYO | DE5: MAZAMARI | DF5: HUASAHUASI | DG5: MARCAPOMACOCHA | DH5: HUACHAC | DI5: HUANCHACO | DJ5: MAGDALENA DE CAO | DK5: LONGOTEA | DM5: HUASO | DN5: HUARANCHAL | DO5: PACASMAYO | DP5: HUANCASPATA | DQ5: CURGOS | DR5: MOLLEBAMBA | DS5: SAYAPULLO | DU5: ETEN PUERTO | DV5: MANUEL ANTONIO MESONES MURO | DW5: JAYANCA | DX5: BARRANCO | DY5: SUPE | DZ5: HUANCAPON | EA5: HUAROS | EB5: CERRO AZUL | EC5: AUCALLAMA | ED5: CARAMPOMA | EE5: CHECRAS | EF5: COCHAMARCA | EG5: AYAVIRI | EH5: INDIANA | EI5: LAGUNAS | EJ5: TROMPETEROS | EK5: SAN PABLO | EL5: EMILIO SAN MARTIN | EM5: PAMPA HERMOSA | EN5: MORONA | EO5: LABERINTO | EP5: HUEPETUHE | ER5: SAMEGUA | ES5: ICHUÑA | EU5: HUAYLLAY | EV5: PAUCAR | EW5: PALCAZU | EX5: CURA MORI | EY5: LAGUNAS | EZ5: HUARMACA | FA5: SANTA CATALINA DE MOSSA | FB5: COLAN | FC5: LANCONES | FD5: LOBITOS | FE5: CRISTO NOS VALGA | FF5: ATUNCOLLA | FG5: ASILLO | FH5: COASA | FI5: KELLUYO | FJ5: SANTA ROSA | FK5: INCHUPALLA | FL5: NICASIO | FM5: LLALLI | FN5: TILALI | FO5: QUILCAPUNCU | FP5: CARACOTO | FQ5: PATAMBUCO | FR5: CUTURAPI | FS5: JEPELACIO | FT5: HUALLAGA | FU5: SANTA ROSA | FV5: PISCOYACU | FW5: CAYNARACHI | FX5: PACHIZA | FY5: PILLUANA | FZ5: NUEVA CAJAMARCA | GA5: CHAZUTA | GB5: SHUNTE | GC5: CIUDAD NUEVA | GD5: CURIBAYA | GF5: ESTIQUE-PAMPA | GG5: PAMPAS DE HOSPITAL | GI5: PAPAYAL | GJ5: MASISEA | GK5: YURUA
A6: CHILIQUIN | B6: IMAZA | C6: CUISPES | E6: CONILA | F6: LIMABAMBA | G6: JAMALCA | H6: INDEPENDENCIA | I6: SUCCHA | J6: MIRGAS | L6: CAJACAY | M6: ATAQUERO | P6: LA PAMPA | Q6: HUACACHI | R6: MALVAS | S6: MATO | T6: LLAMA | U6: COCHAS | V6: HUANDOVAL | X6: LLACLLIN | Y6: MORO | Z6: CHINGALPO | AA6: QUILLO | AB6: HUANIPACA | AC6: HUANCARAY | AD6: OROPESA | AE6: COLCABAMBA | AF6: MARA | AG6: OCOBAMBA | AH6: MAMARA | AI6: CHARACATO | AJ6: NICOLAS DE PIEROLA | AK6: BELLA UNION | AL6: CHILCAYMARCA | AM6: CAYLLOMA | AN6: IRAY | AO6: MEJIA | AP6: PAMPAMARCA | AQ6: CHIARA | AR6: PARAS | AT6: LURICOCHA | AU6: CHUNGUI | AV6: CHAVIÑA | AW6: PULLO | AX6: MARCABAMBA | AY6: HUACAÑA | AZ6: CANARIA | BA6: HUAMBALPA | BB6: ENCAÑADA | BD6: JORGE CHAVEZ | BE6: CHIMBAN | BF6: SAN BENITO | BG6: LA RAMADA | BI6: HUABAL | BJ6: NAMBALLE | BK6: ICHOCAN | BL6: EL PRADO | BN6: LA ESPERANZA | BO6: LA PUNTA | BP6: SAN JERONIMO | BQ6: MOSOC LLACTA | BR6: CHINCHAYPUJIO | BS6: LARES | BT6: LAYO | BU6: PITUMARCA | BV6: LIVITACA | BW6: PALLPATA | BX6: OCOBAMBA | BY6: HUANOQUITE | BZ6: HUANCARANI | CA6: CCATCA | CB6: MARAS | CC6: CUENCA | CD6: MARCAS | CE6: CHINCHO | CF6: CHUPAMARCA | CG6: LA MERCED | CH6: LARAMARCA | CI6: COLCABAMBA | CJ6: MARGOS | CK6: HUACAR | CL6: QUIVILLA | CN6: JIRCAN | CO6: LUYANDO | CP6: SANTA ROSA DE ALTO YANAJANCA | CR6: YUYAPICHIS | CS6: RONDOS | CT6: JACAS CHICO | CU6: PACHACUTEC | CV6: EL CARMEN | CW6: VISTA ALEGRE | CX6: TIBILLO | CY6: PARACAS | CZ6: CHILCA | DA6: CHAMBARA | DB6: SAN RAMON | DC6: CANCHAYLLO | DE6: PAMPA HERMOSA | DF6: LA UNION | DG6: MOROCOCHA | DH6: HUAMANCACA CHICO | DI6: LA ESPERANZA | DJ6: PAIJAN | DK6: UCHUMARCA | DN6: LA CUESTA | DO6: SAN JOSE | DP6: HUAYLILLAS | DQ6: MARCABAL | DR6: MOLLEPATA | DU6: JOSE LEONARDO ORTIZ | DV6: PITIPO | DW6: MOCHUMI | DX6: BREÑA | DY6: SUPE PUERTO | DZ6: MANAS | EA6: LACHAQUI | EB6: CHILCA | EC6: CHANCAY | ED6: CHICLA | EE6: HUALMAY | EF6: NAVAN | EG6: AZANGARO | EH6: LAS AMAZONAS | EI6: SANTA CRUZ | EJ6: URARINAS | EL6: MAQUIA | EM6: SARAYACU | EN6: PASTAZA | ER6: SAN CRISTOBAL | ES6: LA CAPILLA | EU6: NINACACA | EV6: SAN PEDRO DE PILLAO | EW6: POZUZO | EX6: EL TALLAN | EY6: MONTERO | EZ6: LALAQUIZ | FA6: SANTO DOMINGO | FB6: LA HUACA | FC6: MARCAVELICA | FD6: LOS ORGANOS | FE6: VICE | FF6: CAPACHICA | FG6: CAMINACA | FH6: CORANI | FI6: PISACOMA | FJ6: CONDURIRI | FK6: PUSI | FL6: OCUVIRI | FM6: MACARI | FO6: SINA | FQ6: PHARA | FR6: OLLARAYA | FS6: SORITOR | FT6: SAN PABLO | FU6: SHATOJA | FV6: SACANCHE | FW6: CUÑUMBUQUI | FX6: PAJARILLO | FY6: PUCACACA | FZ6: PARDO MIGUEL | GA6: CHIPURANA | GB6: UCHIZA | GC6: INCLAN | GD6: HUANUARA | GF6: SITAJARA | GG6: SAN JACINTO | GJ6: YARINACOCHA
A7: CHUQUIBAMBA | B7: LA PECA | C7: FLORIDA | E7: INGUILPATA | F7: LONGAR | G7: LONYA GRANDE | H7: JANGAS | J7: SAN JUAN DE RONTOY | L7: CANIS | M7: MARCARA | P7: YANAC | Q7: HUACCHIS | S7: PAMPAROMAS | T7: LLUMPA | U7: CONGAS | V7: LACABAMBA | X7: MARCA | Y7: NEPEÑA | Z7: HUAYLLABAMBA | AA7: RANRAHIRCA | AB7: LAMBRAMA | AC7: HUAYANA | AD7: PACHACONAS | AE7: COTARUSE | AF7: CHALLHUAHUACHO | AG7: ONGOY | AH7: MICAELA BASTIDAS | AI7: CHIGUATA | AJ7: OCOÑA | AK7: CAHUACHO | AL7: CHOCO | AM7: COPORAQUE | AN7: RIO GRANDE | AO7: PUNTA DE BOMBON | AP7: PUYCA | AQ7: OCROS | AR7: TOTOS | AT7: SANTILLANA | AU7: LUIS CARRANZA | AV7: CHIPAO | AW7: PUYUSCA | AX7: OYOLO | AY7: MORCOLLA | AZ7: CAYARA | BA7: INDEPENDENCIA | BB7: JESUS | BD7: JOSE GALVEZ | BE7: CHOROPAMPA | BF7: SANTA CRUZ DE TOLED | BG7: PIMPINGOS | BI7: LAS PIRIAS | BJ7: SAN JOSE DE LOURDES | BK7: JOSE MANUEL QUIROZ | BL7: LA FLORIDA | BN7: NINABAMBA | BO7: VENTANILLA | BP7: SAN SEBASTIAN | BQ7: POMACANCHI | BR7: HUAROCONDO | BS7: PISAC | BT7: PAMPAMARCA | BU7: SAN PABLO | BV7: LLUSCO | BW7: PICHIGUA | BX7: QUELLOUNO | BY7: OMACHA | BZ7: KOSÑIPATA | CA7: CUSIPATA | CB7: OLLANTAYTAMBO | CC7: HUACHOCOLPA | CD7: PAUCARA | CE7: CONGALLA | CF7: COCAS | CG7: LOCROJA | CH7: OCOYO | CI7: DANIEL HERNANDEZ | CJ7: QUISQUI | CK7: SAN FRANCISCO | CL7: RIPAN | CN7: MIRAFLORES | CO7: MARIANO DAMASO BERAUN | CS7: SAN FRANCISCO DE ASIS | CT7: OBAS | CU7: PARCONA | CV7: GROCIO PRADO | CY7: SAN ANDRES | CZ7: CHONGOS ALTO | DA7: COCHAS | DB7: VITOC | DC7: CURICACA | DE7: PANGOA | DF7: PALCA | DG7: PACCHA | DH7: SAN JUAN DE YSCOS | DI7: LAREDO | DJ7: RAZURI | DK7: UCUNCHA | DN7: MACHE | DP7: HUAYO | DQ7: SANAGORAN | DR7: QUIRUVILCA | DU7: LA VICTORIA | DV7: PUEBLO NUEVO | DW7: MORROPE | DX7: CARABAYLLO | EA7: SAN BUENAVENTURA | EB7: COAYLLO | EC7: IHUARI | ED7: CUENCA | EE7: HUAURA | EF7: PACHANGARA | EG7: CACRA | EH7: MAZAN | EI7: TENIENTE CESAR LOPEZ ROJAS | EL7: PUINAHUA | EM7: VARGAS GUERRA | EN7: ANDOAS | ER7: TORATA | ES7: LLOQUE | EU7: PALLANCHACRA | EV7: SANTA ANA DE TUSI | EW7: PUERTO BERMUDEZ | EX7: LA ARENA | EY7: PACAIPAMPA | EZ7: SAN MIGUEL DE EL FAIQUE | FA7: YAMANGO | FB7: TAMARINDO | FC7: MIGUEL CHECA | FD7: MANCORA | FE7: RINCONADA LLICUAR | FF7: CHUCUITO | FG7: CHUPA | FH7: CRUCERO | FI7: POMATA | FK7: ROSASPATA | FL7: PALCA | FM7: NUÑOA | FQ7: QUIACA | FR7: TINICACHI | FS7: YANTALO | FT7: SAN RAFAEL | FV7: TINGO DE SAPOSOA | FW7: PINTO RECODO | FY7: SAN CRISTOBAL | FZ7: POSIC | GA7: EL PORVENIR | GC7: PACHIA | GD7: QUILAHUANI | GF7: SUSAPAYA | GG7: SAN JUAN DE LA VIRGEN | GJ7: NUEVA REQUENA
A8: GRANADA | C8: JAZAN | E8: LONGUITA | F8: MARISCAL BENAVIDES | G8: YAMON | H8: LA LIBERTAD | L8: COLQUIOC | M8: PARIAHUANCA | P8: YUPAN | Q8: HUACHIS | S8: PUEBLO LIBRE | T8: LUCMA | U8: LLIPA | V8: LLAPO | X8: PAMPAS CHICO | Y8: SAMANCO | Z8: QUICHES | AA8: SHUPLUY | AB8: PICHIRHUA | AC8: KISHUARA | AD8: SABAINO | AE8: HUAYLLO | AG8: URANMARCA | AH8: PATAYPAMPA | AI8: JACOBO HUNTER | AJ8: QUILCA | AK8: CHALA | AL8: HUANCARQUI | AM8: HUAMBO | AN8: SALAMANCA | AP8: QUECHUALLA | AQ8: PACAYCASA | AT8: SIVIA | AU8: SANTA ROSA | AV8: HUAC-HUAS | AW8: SAN FRANCISCO DE RAVACAYCO | AX8: PARARCA | AY8: PAICO | AZ8: COLCA | BA8: SAURAMA | BB8: LLACANORA | BD8: MIGUEL IGLESIAS | BE8: COCHABAMBA | BF8: TANTARICA | BG8: QUEROCOTILLO | BI8: POMAHUACA | BJ8: TABACONAS | BK8: JOSE SABOGAL | BL8: LLAPA | BN8: PULAN | BP8: SANTIAGO | BQ8: RONDOCAN | BR8: LIMATAMBO | BS8: SAN SALVADOR | BT8: QUEHUE | BU8: SAN PEDRO | BV8: QUIÑOTA | BW8: SUYCKUTAMBO | BX8: KIMBIRI | BY8: PACCARITAMBO | CA8: HUARO | CB8: YUCAY | CC8: HUAYLLAHUARA | CD8: POMACOCHA | CE8: HUANCA-HUANCA | CF8: HUACHOS | CG8: PAUCARBAMBA | CH8: PILPICHACA | CI8: HUACHOCOLPA | CJ8: SAN FRANCISCO DE CAYRAN | CK8: SAN RAFAEL | CL8: SHUNQUI | CN8: MONZON | CO8: PUCAYACU | CS8: SAN MIGUEL DE CAURI | CT8: PAMPAMARCA | CU8: PUEBLO NUEVO | CV8: PUEBLO NUEVO | CY8: SAN CLEMENTE | CZ8: CHUPURO | DA8: COMAS | DC8: EL MANTARO | DE8: RIO NEGRO | DF8: PALCAMAYO | DG8: SANTA BARBARA DE CARHUACAYAN | DH8: SAN JUAN DE JARPA | DI8: MOCHE | DJ8: SANTIAGO DE CAO | DN8: PARANDAY | DP8: ONGON | DQ8: SARIN | DR8: SANTA CRUZ DE CHUCA | DU8: LAGUNAS | DW8: MOTUPE | DX8: CHACLACAYO | EA8: SANTA ROSA DE QUIVES | EB8: IMPERIAL | EC8: LAMPIAN | ED8: HUACHUPAMPA | EE8: LEONCIO PRADO | EG8: CARANIA | EH8: NAPO | EL8: SAQUENA | ES8: MATALAQUE | EU8: PAUCARTAMBO | EV8: TAPUC | EW8: VILLA RICA | EX8: LA UNION | EY8: PAIMAS | EZ8: SONDOR | FB8: VICHAYAL | FC8: QUERECOTILLO | FF8: COATA | FG8: JOSE DOMINGO CHOQUEHUANCA | FH8: ITUATA | FI8: ZEPITA | FK8: TARACO | FL8: PARATIA | FM8: ORURILLO | FQ8: SAN JUAN DEL ORO | FR8: UNICACHI | FW8: RUMISAPA | FY8: SAN HILARION | FZ8: SAN FERNANDO | GA8: HUIMBAYOC | GC8: PALCA | GF8: TARUCACHI | GJ8: MANANTAY
A9: HUANCAS | C9: RECTA | E9: LONYA CHICO | F9: MILPUC | H9: OLLEROS | L9: HUALLANCA | M9: SAN MIGUEL DE ACO | Q9: HUANTAR | S9: SANTA CRUZ | T9: MUSGA | U9: SAN CRISTOBAL DE RAJAN | V9: PALLASCA | X9: PARARIN | Y9: SANTA | Z9: RAGASH | AA9: YANAMA | AB9: SAN PEDRO DE CACHORA | AC9: PACOBAMBA | AE9: JUSTO APU SAHUARAURA | AG9: RANRACANCHA | AH9: PROGRESO | AI9: LA JOYA | AJ9: SAMUEL PASTOR | AK9: CHAPARRA | AL9: MACHAGUAY | AM9: HUANCA | AN9: YANAQUIHUA | AP9: SAYLA | AQ9: QUINUA | AT9: LLOCHEGUA | AU9: TAMBO | AV9: LARAMATE | AW9: UPAHUACHO | AX9: SAN JAVIER DE ALPABAMBA | AY9: SAN PEDRO DE LARCAY | AZ9: HUAMANQUIQUIA | BA9: VISCHONGO | BB9: LOS BAÑOS DEL INCA | BD9: OXAMARCA | BE9: CONCHAN | BF9: YONAN | BG9: SAN ANDRES DE CUTERVO | BI9: PUCARA | BL9: NANCHOC | BN9: SAUCEPAMPA | BP9: SAYLLA | BR9: MOLLEPATA | BS9: TARAY | BT9: TUPAC AMARU | BU9: TINTA | BV9: VELILLE | BW9: ALTO PICHIGUA | BX9: SANTA TERESA | BY9: PILLPINTO | CA9: LUCRE | CC9: IZCUCHACA | CD9: ROSARIO | CE9: HUAYLLAY GRANDE | CF9: HUAMATAMBO | CG9: SAN MIGUEL DE MAYOCC | CH9: QUERCO | CI9: HUARIBAMBA | CJ9: SAN PEDRO DE CHAULAN | CK9: TOMAY KICHWA | CL9: SILLAPATA | CN9: PUNCHAO | CO9: CASTILLO GRANDE | CT9: CHORAS | CU9: SALAS | CV9: SAN JUAN DE YANAC | CY9: TUPAC AMARU INCA | CZ9: COLCA | DA9: HEROINAS TOLEDO | DC9: HUAMALI | DE9: RIO TAMBO | DF9: SAN PEDRO DE CAJAS | DG9: SANTA ROSA DE SACCO | DH9: TRES DE DICIEMBRE | DI9: POROTO | DJ9: CASA GRANDE | DN9: SALPO | DP9: PARCOY | DQ9: SARTIMBAMBA | DR9: SITABAMBA | DU9: MONSEFU | DW9: OLMOS | DX9: CHORRILLOS | EB9: LUNAHUANA | EC9: PACARAOS | ED9: HUANZA | EE9: PACCHO | EG9: CATAHUASI | EH9: PUNCHANA | EL9: SOPLIN | ES9: PUQUINA | EU9: SAN FRANCISCO DE ASIS DE YARUSYACAN | EV9: VILCABAMBA | EX9: LAS LOMAS | EY9: SAPILLICA | EZ9: SONDORILLO | FC9: SALITRAL | FF9: HUATA | FG9: MUÑANI | FH9: OLLACHEA | FK9: VILQUE CHICO | FL9: PUCARA | FM9: SANTA ROSA | FQ9: YANAHUAYA | FW9: SAN ROQUE DE CUMBAZA | FY9: SHAMBOYACU | FZ9: YORONGOS | GA9: JUAN GUERRA | GC9: POCOLLAY | GF9: TICACO
A10: LA JALCA | C10: SAN CARLOS | E10: LUYA | F10: OMIA | H10: PAMPAS | L10: HUASTA | M10: SHILLA | Q10: MASIN | S10: SANTO TORIBIO | U10: SAN PEDRO | V10: PAMPAS | X10: TAPACOCHA | Y10: NUEVO CHIMBOTE | Z10: SAN JUAN | AB10: TAMBURCO | AC10: PACUCHA | AE10: LUCRE | AH10: SAN ANTONIO | AI10: MARIANO MELGAR | AK10: HUANUHUANU | AL10: ORCOPAMPA | AM10: ICHUPAMPA | AP10: TAURIA | AQ10: SAN JOSE DE TICLLAS | AV10: LEONCIO PRADO | AX10: SAN JOSE DE USHUA | AY10: SAN SALVADOR DE QUIJE | AZ10: HUANCARAYLLA | BB10: MAGDALENA | BD10: SOROCHUCO | BE10: HUAMBOS | BG10: SAN JUAN DE CUTERVO | BI10: SALLIQUE | BL10: NIEPOS | BN10: SEXI | BR10: PUCYURA | BS10: YANATILE | BX10: VILCABAMBA | BY10: YAURISQUE | CA10: MARCAPATA | CC10: LARIA | CE10: JULCAMARCA | CF10: MOLLEPAMPA | CG10: SAN PEDRO DE CORIS | CH10: QUITO-ARMA | CI10: ÑAHUIMPUQUIO | CJ10: SANTA MARIA DEL VALLE | CL10: YANAS | CN10: PUÑOS | CO10: PUEBLO NUEVO | CU10: SAN JOSE DE LOS MOLINOS | CV10: SAN PEDRO DE HUACARPANA | CZ10: CULLHUAS | DA10: MANZANARES | DC10: HUARIPAMPA | DF10: TAPO | DG10: SUITUCANCHA | DH10: YANACANCHA | DI10: SALAVERRY | DN10: SINSICAP | DP10: PATAZ | DU10: NUEVA ARICA | DW10: PACORA | DX10: CIENEGUILLA | EB10: MALA | EC10: SAN MIGUEL DE ACOS | ED10: HUAROCHIRI | EE10: SANTA LEONOR | EG10: CHOCOS | EH10: PUTUMAYO | EL10: TAPICHE | ES10: QUINISTAQUILLAS | EU10: SIMON BOLIVAR | EX10: TAMBO GRANDE | EY10: SICCHEZ | EZ10: CHULUCANAS | FF10: MAÑAZO | FG10: POTONI | FH10: SAN GABAN | FL10: SANTA LUCIA | FM10: UMACHIRI | FQ10: ALTO INAMBARI | FW10: SHANAO | FY10: TINGO DE PONASA | FZ10: YURACYACU | GA10: LA BANDA DE SHILCAYO | GC10: SAMA
A11: LEIMEBAMBA | C11: SHIPASBAMBA | E11: LUYA VIEJO | F11: SANTA ROSA | H11: PARIACOTO | L11: HUAYLLACAYAN | M11: TINCO | Q11: PAUCAS | S11: YURACMARCA | U11: SANTIAGO DE CHILCAS | V11: SANTA ROSA | X11: TICAPAMPA | Z11: SICSIBAMBA | AC11: PAMPACHIRI | AE11: POCOHUANCA | AH11: SANTA ROSA | AI11: MIRAFLORES | AK11: JAQUI | AL11: PAMPACOLCA | AM11: LARI | AP11: TOMEPAMPA | AQ11: SAN JUAN BAUTISTA | AV11: LLAUTA | AX11: SARA SARA | AY11: SANTIAGO DE PAUCARAY | AZ11: HUAYA | BB11: MATARA | BD11: SUCRE | BE11: LAJAS | BG11: SAN LUIS DE LUCMA | BI11: SAN FELIPE | BL11: SAN GREGORIO | BN11: UTICYACU | BX11: PICHARI | CA11: OCONGATE | CC11: MANTA | CE11: SAN ANTONIO DE ANTAPARCO | CF11: SAN JUAN | CG11: PACHAMARCA | CH11: SAN ANTONIO DE CUSICANCHA | CI11: PAZOS | CJ11: YARUMAYO | CN11: SINGA | CO11: SANTO DOMINGO DE ANDA | CU11: SAN JUAN BAUTISTA | CV11: SUNAMPE | CZ11: EL TAMBO | DA11: MARISCAL CASTILLA | DC11: HUERTAS | DG11: YAULI | DI11: SIMBAL | DN11: USQUIL | DP11: PIAS | DU11: OYOTUN | DW11: SALAS | DX11: COMAS | EB11: NUEVO IMPERIAL | EC11: SANTA CRUZ DE ANDAMARCA | ED11: LAHUAYTAMBO | EE11: SANTA MARIA | EG11: COCHAS | EH11: TORRES CAUSANA | EL11: JENARO HERRERA | ES11: UBINAS | EU11: TICLACAYAN | EY11: SUYO | EZ11: BUENOS AIRES | FF11: PAUCARCOLLA | FG11: SAMAN | FH11: USICAYOS | FL11: VILAVILA | FQ11: SAN PEDRO DE PUTINA PUNCO | FW11: TABALOSOS | FY11: TRES UNIDOS | GA11: MORALES | GC11: CORONEL GREGORIO ALBARRACIN LANCHIPA
A12: LEVANTO | C12: VALERA | E12: MARIA | F12: TOTORA | H12: PIRA | L12: LA PRIMAVERA | M12: YUNGAR | Q12: PONTO | V12: TAUCA | AC12: POMACOCHA | AE12: SAN JUAN DE CHACÑA | AH12: TURPAY | AI12: MOLLEBAYA | AK12: LOMAS | AL12: TIPAN | AM12: LLUTA | AP12: TORO | AQ12: SANTIAGO DE PISCHA | AV12: LUCANAS | AY12: SORAS | AZ12: SARHUA | BB12: NAMORA | BD12: UTCO | BE12: LLAMA | BG12: SANTA CRUZ | BI12: SAN JOSE DEL ALTO | BL12: SAN SILVESTRE DE COCHAN | BN12: YAUYUCAN | CA12: OROPESA | CC12: MARISCAL CACERES | CE12: SANTO TOMAS DE PATA | CF12: SANTA ANA | CH12: SAN FRANCISCO DE SANGAYAICO | CI12: QUISHUAR | CJ12: PILLCO MARCA | CN12: TANTAMAYO | CU12: SANTIAGO | CV12: TAMBO DE MORA | CZ12: HUACRAPUQUIO | DA12: MATAHUASI | DC12: JANJAILLO | DI12: VICTOR LARCO HERRERA | DP12: SANTIAGO DE CHALLAS | DU12: PICSI | DW12: SAN JOSE | DX12: EL AGUSTINO | EB12: PACARAN | EC12: SUMBILCA | ED12: LANGA | EE12: SAYAN | EG12: COLONIA | EH12: BELEN | EL12: YAQUERANA | ES12: YUNGA | EU12: TINYAHUARCO | EZ12: CHALACO | FF12: PICHACANI | FG12: SAN ANTON | FW12: ZAPATERO | GA12: PAPAPLAYA
A13: MAGDALENA | C13: YAMBRASBAMBA | E13: OCALLI | F13: VISTA ALEGRE | H13: TARICA | L13: MANGAS | Q13: RAHUAPAMPA | AC13: SAN ANTONIO DE CACHI | AE13: SAÑAYCA | AH13: VILCABAMBA | AI13: PAUCARPATA | AK13: QUICACHA | AL13: UÑON | AM13: MACA | AQ13: SOCOS | AV13: OCAÑA | AZ13: VILCANCHOS | BB13: SAN JUAN | BD13: LA LIBERTAD DE PALLAN | BE13: MIRACOSTA | BG13: SANTO DOMINGO DE LA CAPILLA | BI13: SANTA ROSA | BL13: TONGOD | CA13: QUIQUIJANA | CC13: MOYA | CE13: SECCLLA | CF13: TANTARA | CH13: SAN ISIDRO | CI13: SALCABAMBA | CJ13: SAN PABLO DE PILLAO | CU13: SUBTANJALLA | CZ13: HUALHUAS | DA13: MITO | DC13: JULCAN | DP13: TAURIJA | DU13: PIMENTEL | DW13: TUCUME | DX13: INDEPENDENCIA | EB13: QUILMANA | EC13: VEINTISIETE DE NOVIEMBRE | ED13: LARAOS | EE13: VEGUETA | EG13: HONGOS | EH13: SAN JUAN BAUTISTA | EU13: VICCO | EZ13: LA MATANZA | FF13: PLATERIA | FG13: SAN JOSE | GA13: SAN ANTONIO
A14: MARISCAL CASTILLA | E14: OCUMAL | L14: PACLLON | Q14: RAPAYAN | AC14: SAN JERONIMO | AE14: SORAYA | AH14: VIRUNDO | AI14: POCSI | AK14: YAUCA | AL14: URACA | AM14: MADRIGAL | AQ14: TAMBILLO | AV14: OTOCA | BE14: PACCHA | BG14: SANTO TOMAS | BL14: UNION AGUA BLANCA | CC14: NUEVO OCCORO | CF14: TICRAPO | CH14: SANTIAGO DE CHOCORVOS | CI14: SALCAHUASI | CU14: TATE | CZ14: HUANCAN | DA14: NUEVE DE JULIO | DC14: LEONOR ORDOÑEZ | DP14: URPAY | DU14: REQUE | DX14: JESUS MARIA | EB14: SAN ANTONIO | ED14: MARIATANA | EG14: HUAMPARA | EH14: TENIENTE MANUEL CLAVERO | EU14: YANACANCHA | FF14: SAN ANTONIO | FG14: SAN JUAN DE SALINAS | GA14: SAUCE
A15: MOLINOPAMPA | E15: PISUQUIA | L15: SAN MIGUEL DE CORPANQUI | Q15: SAN MARCOS | AC15: SAN MIGUEL DE CHACCRAMPA | AE15: TAPAIRIHUA | AH15: CURASCO | AI15: POLOBAYA | AL15: VIRACO | AM15: SAN ANTONIO DE CHUCA | AQ15: VINCHOS | AV15: SAISA | BE15: PION | BG15: SOCOTA | CC15: PALCA | CH15: SANTIAGO DE QUIRAHUARA | CI15: SAN MARCOS DE ROCCHAC | CU15: YAUCA DEL ROSARIO | CZ15: HUASICANCHA | DA15: ORCOTUNA | DC15: LLOCLLAPAMPA | DU15: SANTA ROSA | DX15: LA MOLINA | EB15: SAN LUIS | ED15: RICARDO PALMA | EG15: HUANCAYA | FF15: TIQUILLACA | FG15: SANTIAGO DE PUPUJA | GA15: SHAPAJA
A16: MONTEVIDEO | E16: PROVIDENCIA | L16: TICLLOS | Q16: SAN PEDRO DE CHANA | AC16: SANTA MARIA DE CHICMO | AE16: TINTAY | AI16: QUEQUEÑA | AM16: SIBAYO | AQ16: JESUS NAZARENO | AV16: SAN CRISTOBAL | BE16: QUEROCOTO | BG16: TORIBIO CASANOVA | CC16: PILCHACA | CH16: SANTO DOMINGO DE CAPILLAS | CI16: SURCUBAMBA | CZ16: HUAYUCACHI | DA16: SAN JOSE DE QUERO | DC16: MARCO | DU16: SAÑA | DX16: LA VICTORIA | EB16: SANTA CRUZ DE FLORES | ED16: SAN ANDRES DE TUPICOCHA | EG16: HUANGASCAR | FF16: VILQUE | FG16: TIRAPATA
A17: OLLEROS | E17: SAN CRISTOBAL | Q17: UCO | AC17: TALAVERA | AE17: TORAYA | AI17: SABANDIA | AM17: TAPAY | AV17: SAN JUAN | BE17: SAN JUAN DE LICUPIS | CC17: VILCA | CH17: TAMBO | CI17: TINTAY PUNCU | CZ17: INGENIO | DA17: SANTA ROSA DE OCOPA | DC17: MASMA | DU17: CAYALTI | DX17: LINCE | EB17: ZUÑIGA | ED17: SAN ANTONIO | EG17: HUANTAN
A18: QUINJALCA | E18: SAN FRANCISCO DEL YESO | AC18: TUMAY HUARACA | AE18: YANACA | AI18: SACHACA | AM18: TISCO | AV18: SAN PEDRO | BE18: TACABAMBA | CC18: YAULI | CZ18: PARIAHUANCA | DC18: MASMA CHICCHE | DU18: PATAPO | DX18: LOS OLIVOS | ED18: SAN BARTOLOME | EG18: HUAÑEC
A19: SAN FRANCISCO DE DAGUAS | E19: SAN JERONIMO | AC19: TURPO | AI19: SAN JUAN DE SIGUAS | AM19: TUTI | AV19: SAN PEDRO DE PALCO | BE19: TOCMOCHE | CC19: ASCENSION | CZ19: PILCOMAYO | DC19: MOLINOS | DU19: POMALCA | DX19: LURIGANCHO | ED19: SAN DAMIAN | EG19: LARAOS
A20: SAN ISIDRO DE MAINO | E20: SAN JUAN DE LOPECANCHA | AC20: KAQUIABAMBA | AI20: SAN JUAN DE TARUCANI | AM20: YANQUE | AV20: SANCOS | BE20: CHALAMARCA | CC20: HUANDO | CZ20: PUCARA | DC20: MONOBAMBA | DU20: PUCALA | DX20: LURIN | ED20: SAN JUAN DE IRIS | EG20: LINCHA
A21: SOLOCO | E21: SANTA CATALINA | AI21: SANTA ISABEL DE SIGUAS | AM21: MAJES | AV21: SANTA ANA DE HUAYCAHUACHO | CZ21: QUICHUAY | DC21: MUQUI | DU21: TUMAN | DX21: MAGDALENA DEL MAR | ED21: SAN JUAN DE TANTARANCHE | EG21: MADEAN
A22: SONCHE | E22: SANTO TOMAS | AI22: SANTA RITA DE SIGUAS | AV22: SANTA LUCIA | CZ22: QUILCAS | DC22: MUQUIYAUYO | DX22: PUEBLO LIBRE | ED22: SAN LORENZO DE QUINTI | EG22: MIRAFLORES
E23: TINGO | AI23: SOCABAYA | CZ23: SAN AGUSTIN | DC23: PACA | DX23: MIRAFLORES | ED23: SAN MATEO | EG23: OMAS
E24: TRITA | AI24: TIABAYA | CZ24: SAN JERONIMO DE TUNAN | DC24: PACCHA | DX24: PACHACAMAC | ED24: SAN MATEO DE OTAO | EG24: PUTINZA
AI25: UCHUMAYO | CZ25: SAÑO | DC25: PANCAN | DX25: PUCUSANA | ED25: SAN PEDRO DE CASTA | EG25: QUINCHES
AI26: VITOR | CZ26: SAPALLANGA | DC26: PARCO | DX26: PUENTE PIEDRA | ED26: SAN PEDRO DE HUANCAYRE | EG26: QUINOCAY
AI27: YANAHUARA | CZ27: SICAYA | DC27: POMACANCHA | DX27: PUNTA HERMOSA | ED27: SANGALLAYA | EG27: SAN JOAQUIN
AI28: YARABAMBA | CZ28: SANTO DOMINGO DE ACOBAMBA | DC28: RICRAN | DX28: PUNTA NEGRA | ED28: SANTA CRUZ DE COCACHACRA | EG28: SAN PEDRO DE PILAS
AI29: YURA | DC29: SAN LORENZO | DX29: RIMAC | ED29: SANTA EULALIA | EG29: TANTA
AI30: JOSE LUIS BUSTAMANTE Y RIVERO | DC30: SAN PEDRO DE CHUNAN | DX30: SAN BARTOLO | ED30: SANTIAGO DE ANCHUCAYA | EG30: TAURIPAMPA
DC31: SAUSA | DX31: SAN BORJA | ED31: SANTIAGO DE TUNA | EG31: TOMAS
DC32: SINCOS | DX32: SAN ISIDRO | ED32: SANTO DOMINGO DE LOS OLLEROS | EG32: TUPE
DC33: TUNAN MARCA | DX33: SAN JUAN DE LURIGANCHO | ED33: SURCO | EG33: VIÑAC
DC34: YAULI | DX34: SAN JUAN DE MIRAFLORES | EG34: VITIS
DC35: YAUYOS | DX35: SAN LUIS
DX36: SAN MARTIN DE PORRES
DX37: SAN MIGUEL
DX38: SANTA ANITA
DX39: SANTA MARIA DEL MAR
DX40: SANTA ROSA
DX41: SANTIAGO DE SURCO
DX42: SURQUILLO
DX43: VILLA EL SALVADOR
DX44: VILLA MARIA DEL TRIUNFO

Sheet D1.Evaluación (C-E)
A1: EVALUACION ECONOMICA | F1: HOJA D1.Evaluación | G1: EVALUACION ECONOMICA | L1: HOJA D1.Evaluación
C2: Para IMDA menor o igual a 200 emplear esta metodológia | I2: Para IMDA menor o igual a 200 emplear esta metodológia
A3: ALTERNATIVA Nº1 | G3: ALTERNATIVA Nº2
A5: A) FACTORES DE CONVERSIÓN A PRECIOS SOCIALES | G5: A) FACTORES DE CONVERSIÓN A PRECIOS SOCIALES | N5: 0.1
B6: Obras | C6: Factor | D6: Tasa Social de Descuento | E6: 0.08 | H6: Obras | I6: Factor | J6: Tasa Social de Descuento | K6: 0.08 | N6: 0.25
B7: Inversión | C7: 0.79 | D7: Valor Residual | E7: 0.1 | H7: Inversión | I7: 0.79 | J7: Valor Residual | K7: 0.1 | N7: 0.3
B8: Mantenimiento y Operación | C8: 0.75 | H8: Mantenimiento y Operación | I8: 0.75
A11: B) COSTOS DE INVERSIÓN Y MANTENIMIENTO A PRECIOS DEL MERCADO | G11: B) COSTOS DE INVERSIÓN Y MANTENIMIENTO A PRECIOS DEL MERCADO
A13: Año | B13: Sin Proyecto | C13: Con Proyecto | G13: Año | H13: Sin Proyecto | I13: Con Proyecto
B14: Sin Proyecto | C14: Alternativa Solucion | H14: Sin Proyecto | I14: Alternativa Solucion
C15: Inversión | D15: Mantenimiento* | I15: Inversión | J15: Mantenimiento* | N15: 1 | O15: 2 | P15: 3 | Q15: 4 | R15: 5 | S15: 6 | T15: 7 | U15: 8 | V15: 9 | W15: 10 | X15: 11 | Y15: 12 | Z15: 13 | AA15: 14 | AB15: 15 | AC15: 16 | AD15: 17 | AE15: 18 | AF15: 19 | AG15: 20
A16: 0 | C16: =+'C. Costos'!J55 -> 0 | G16: 0 | I16: =+'C. Costos'!U55 -> 0 | M16: Sin Proyecto | N16: =+B17 -> 0 | O16: =+B18 -> 0 | P16: =+B19 -> 0 | Q16: =+B20 -> 0 | R16: =+B21 -> 0 | S16: =+B22 -> 0 | T16: =+B23 -> 0 | U16: =+B24 -> 0 | V16: =+B25 -> 0 | W16: =+B26 -> 0
A17: 1 | B17: =+'C. Costos'!D68 -> 0 | D17: =+'C. Costos'!D69 -> 0 | G17: 1 | H17: =+'C. Costos'!O68 -> 0 | J17: =+'C. Costos'!O69 -> 0 | M17: Con Proyecto | N17: =D17 -> 0 | O17: =D18 -> 0 | P17: =D19 -> 0 | Q17: =+D20 -> 0 | R17: =+D21 -> 0 | S17: =+D22 -> 0 | T17: =+D23 -> 0 | U17: =+D24 -> 0 | V17: =+D25 -> 0 | W17: =+D26 -> 0
A18: 2 | B18: =+B17 -> 0 | D18: =+'C. Costos'!D69 -> 0 | G18: 2 | H18: =+H17 -> 0 | J18: =+'C. Costos'!O69 -> 0 | M18: Incremental | N18: =+N16-N17 -> 0 | O18: =+O16-O17 -> 0 | P18: 0 | Q18: 0 | R18: 0 | S18: 0 | T18: 0 | U18: 0 | V18: 0 | W18: 0
A19: 3 | B19: =+B18 -> 0 | D19: =+'C. Costos'!D70 -> 0 | G19: 3 | H19: =+H18 -> 0 | J19: =+'C. Costos'!O70 -> 0
A20: 4 | B20: 0 | D20: =+D17 -> 0 | G20: 4 | H20: 0 | J20: =+J17 -> 0
A21: 5 | B21: 0 | D21: 0 | G21: 5 | H21: 0 | J21: 0
A22: 6 | B22: 0 | D22: 0 | G22: 6 | H22: 0 | J22: 0
A23: 7 | B23: 0 | D23: 0 | G23: 7 | H23: 0 | J23: 0
A24: 8 | B24: 0 | D24: 0 | G24: 8 | H24: 0 | J24: 0
A25: 9 | B25: 0 | D25: 0 | G25: 9 | H25: 0 | J25: 0
A26: 10 | B26: 0 | C26: =-C16*E7 -> 0 | D26: 0 | G26: 10 | H26: 0 | I26: =-I16*K7 -> 0 | J26: 0
A27: * Incluye costo de operación, el cual considera un 10% del costo de mantenimiento rutinario. | G27: * Incluye costo de operación, el cual considera un 10% del costo de mantenimiento rutinario.
A29: C) COSTOS DE INVERSIÓN Y MANTENIMIENTO A PRECIOS SOCIALES | G29: C) COSTOS DE INVERSIÓN Y MANTENIMIENTO A PRECIOS SOCIALES
A31: Año | B31: Sin Proyecto | C31: Con Proyecto | G31: Año | H31: Sin Proyecto | I31: Con Proyecto
B32: Sin Proyecto | C32: Alternativa Solucion | H32: Sin Proyecto | I32: Alternativa Solucion
C33: Inversión | D33: Mantenimiento* | I33: Inversión | J33: Mantenimiento*
A34: 0 | C34: =+C16*C7 -> 0 | G34: 0 | I34: =+I16*I7 -> 0
A35: 1 | B35: =+B17*$C$8 -> 0 | D35: =+D17*$C$8 -> 0 | G35: 1 | H35: =+H17*$C$8 -> 0 | J35: =+J17*$C$8 -> 0
A36: 2 | B36: 0 | D36: =+D18*$C$8 -> 0 | G36: 2 | H36: =+H18*$C$8 -> 0 | J36: =+J18*$C$8 -> 0
A37: 3 | B37: 0 | D37: =+D19*$C$8 -> 0 | G37: 3 | H37: 0 | J37: =+J19*$C$8 -> 0
A38: 4 | B38: 0 | D38: =+D20*$C$8 -> 0 | G38: 4 | H38: 0 | J38: =+J20*$C$8 -> 0
A39: 5 | B39: 0 | D39: =+D20*$C$8 -> 0 | G39: 5 | H39: 0 | J39: =+J21*$C$8 -> 0
A40: 6 | B40: 0 | D40: =+D22*$C$8 -> 0 | G40: 6 | H40: 0 | J40: 0
A41: 7 | B41: 0 | D41: 0 | G41: 7 | H41: =+H23*$C$8 -> 0 | J41: 0
A42: 8 | B42: 0 | D42: 0 | G42: 8 | H42: =+H24*$C$8 -> 0 | J42: 0
A43: 9 | B43: 0 | D43: 0 | G43: 9 | H43: 0 | J43: 0
A44: 10 | B44: 0 | C44: =+C26*$C$8 -> 0 | D44: 0 | G44: 10 | H44: 0 | I44: =+I26*$C$8 -> 0 | J44: 0
A46: D) COSTOS INCREMENTALES | G46: D) COSTOS INCREMENTALES
A47: En Soles a Precios Sociales | G47: En Soles a Precios Sociales
A49: Año | B49: Alternativa Soluciòn | G49: Año | H49: Alternativa Soluciòn
B50: Inversión | C50: Mantenimiento* | H50: Inversión | I50: Mantenimiento*
A51: 0 | B51: =+C34 -> 0 | G51: 0 | H51: =+I34 -> 0
A52: =+A51+1 -> 1 | C52: =+D35-B35 -> 0 | G52: =+G51+1 -> 1 | I52: =+J35-H35 -> 0
A53: 2 | C53: 0 | G53: 2 | I53: =+J36-H36 -> 0
A54: 3 | C54: 0 | G54: 3 | I54: 0
A55: 4 | C55: 0 | G55: 4 | I55: 0
A56: 5 | C56: 0 | G56: 5 | I56: 0
A57: 6 | C57: 0 | G57: 6 | I57: 0
A58: 7 | C58: 0 | G58: 7 | I58: 0
A59: 8 | C59: 0 | G59: 8 | I59: 0
A60: 9 | C60: 0 | G60: 9 | I60: 0
A61: 10 | C61: 0 | G61: 10 | I61: 0
B62: Valor Actual de los Costos (VAC) | C62: =NPV($E$6,C52:C61)+B51 -> 0 | H62: Valor Actual de los Costos (VAC) | I62: =NPV($K$6,I52:I61)+H51 -> 0
B63: Ratio C-E | C63: =IFERROR(+C62/'A2.Demanda'!C265,"0") -> 0 | H63: Ratio C-E | I63: =IFERROR(+I62/'A2.Demanda'!C265,"0") -> 0
B64: Costo Anual Equivalente (CAE) | C64: =-PMT($E$6,10,C62) -> 0 | H64: Costo Anual Equivalente (CAE) | I64: =-PMT($K$6,10,I62) -> 0
B65: VAC/Km | C65: =IFERROR(C62/'Ficha Estandar'!C86,"0") -> 0 | H65: VAC/Km | I65: =IFERROR(I62/'Ficha Estandar'!C86,"0") -> 0

Sheet D2.Ratio C-E
I1: HOJA D2. Ratio C-E
C3: RATIO COSTO EFICIENCIA POR KILÓMETRO A PRECIOS SOCIALES SEGÚN ALTERNATIVA TECNOLÓGICA POR REGIÓN
A5: IMDA Proyectado (Veh/día) | B5: Solución Técnica Recomendada | D5: Horizonte (Años) 4/ | E5: Costa | G5: Sierra | I5: Selva
E6: † Plataforma Referencial 5/ (Metros) | F6: Costo/Km VAC (Soles) | G6: † Plataforma Referencial 5/ (Metros) | H6: Costo/Km VAC (Soles) | I6: † Plataforma Referencial 5/ (Metros) | J6: Costo/Km (Soles)
A7: 101 - 200 | B7: Solución Básica (Estabilizado + Micropavimento) 1/ | D7: 10 | E7: 6 | F7: 1072024.715 | G7: 6 | H7: 1312146.342 | I7: 6 | J7: 1232235.225
B8: Solución Básica (Estabilizado + TSB) 1/ | D8: 10 | E8: 6 | F8: 1467937.79 | G8: 6 | H8: 1627295.985 | I8: 6 | J8: 1674153.887
B9: Solución Básica (Estabilizado + Slurry Seal) 1/ | D9: 10 | E9: 6 | F9: 1073480.934 | G9: 6 | H9: 1319321.187 | I9: 6 | J9: 1237503.861
B10: Solución Básica (Solo Estabilizado) 2/ | D10: 10 | E10: 6 | F10: 629454.0972 | G10: 6 | H10: 851846.6417 | I10: 6 | J10: 1227603.281
A11: 000 - 100 | B11: Solución Básica (Estabilizado + TSB) 1/ | D11: 10 | E11: 5 | F11: 1132337.807 | G11: 5 | H11: 1213293.229 | I11: 5 | J11: 1253112.046
B12: Solución Básica (Estabilizado + Slurry Seal) 1/ | D12: 10 | E12: 5 | F12: 736991.0398 | G12: 5 | H12: 900933.8028 | I12: 5 | J12: 813242.5708
B13: Solución Básica (Solo Estabilizado) 2/ | D13: 10 | E13: 5 | F13: 428639.07 | G13: 5 | H13: 576298.7019 | I13: 5 | J13: 806367.1679
B14: Afirmado | D14: 10 | E14: 5 | F14: 336115.1505 | G14: 5 | H14: 386088.7205 | I14: 5 | J14: 526602.6877
A15: Donde:
A16: 1/ Las Alternativas Tecnológicas descritas en esta tabla, representan soluciones convencionales. No obstante, el formulador podrá proponer otra solución tecnológica, tomando en cuenta factores de localización y disponibilidad de materiales, sin que ello implique un cambio en las Líneas de Corte propuesta.
A17: 2/ Para un Número de Ejes Equivalentes Igual o Mayor a: 500,000 EE o 35 (veh. pesados)
A18: 3/ Para un Número de Ejes Equivalentes Igual o Mayor a: 75,000 EE o 4 (veh. pesados)
A19: 4/ El horizonte de evaluación, considera la vida útil de las soluciones técnicas señaladas, siempre y cuando el mantenimiento rutinario y periódico se realice de forma oportuna bajo responsabilidad de la institución responsable de ello.
A20: 5/ Plataforma Referencial = Calzada + berma; expresada en metros. Excepcionalmente podrán utilizarse calzadas de hasta 5 m, con el correspondiente sustento técnico y económico
A21: Para identificar la región natural (Costa, Sierra o Selva) a la que pertenece la UP (carretera interurbana) revisar el siguinte enlace:
A22: https://www.inei.gob.pe/biblioteca-virtual/publicaciones-digitales/

Sheet E1.Evaluación (B-C)
A1: EVALUACION ECONOMICA BENEFICIO - COSTO | O1: HOJA E1.Evaluación | Q1: EVALUACION ECONOMICA BENEFICIO - COSTO | AE1: HOJA E1.Evaluación | AK1: 6 | AL1: =+AK1+1 -> 7 | AM1: 8 | AN1: 9 | AO1: 10 | AP1: 11 | AQ1: 12 | AR1: 13 | AS1: 14 | AT1: 15 | AU1: 16 | AV1: 17 | AW1: 18 | AX1: 19 | AY1: 20 | AZ1: 21 | BA1: 22
D2: ALTERNATIVA 1 | H2: Para IMDA mayores a 200 emplear esta metodológia | T2: ALTERNATIVA 2 | X2: Para IMDA mayores a 200 emplear esta metodológia
A3: Situación Sin Proyecto | Q3: Situación Sin Proyecto
B4: Región | C4: Topografía | D4: Superficie | E4: Estado | I4: Longitud Total proyecto | K4: =+'Ficha Estandar'!C86 -> 1 | L4: Km | M4: T.C. | N4: 3.8 | R4: Región | S4: Topografía | T4: Superficie | U4: Estado | Y4: Longitud Total proyecto | AA4: 12 | AB4: Km | AC4: T.C. | AD4: 3.8
B5: Sierra | C5: Ondulado | D5: Sin Afirmar | E5: Malo | F5: =B5&C5&D5&E5 -> SierraOnduladoSin AfirmarMalo | I5: Horizonte de evaluación | K5: =+'A2.Demanda'!C10 -> 10 | L5: años | R5: Sierra | S5: Ondulado | T5: Sin Afirmar | U5: Malo | V5: =R5&S5&T5&U5 -> SierraOnduladoSin AfirmarMalo
A6: COV Sin Proyecto | Q6: COV Sin Proyecto
B7: Auto | C7: Station Wagon | D7: Camioneta | E7: Camioneta Rural | F7: Microbús | G7: Bus 2 Ejes | H7: Bus 3 Ejes | I7: Bus 4 Ejes | J7: Camión 2 Ejes | K7: Camión 3 Ejes | L7: Camión 4 Ejes | M7: Semitrailer 2 Ejes | N7: Semitrailer 3 Ejes | O7: Articulado | R7: Auto | S7: Station Wagon | T7: Camioneta | U7: Camioneta Rural | V7: Microbús | W7: Bus 2 Ejes | X7: Bus 3 Ejes | Y7: Bus 4 Ejes | Z7: Camión 2 Ejes | AA7: Camión 3 Ejes | AB7: Camión 4 Ejes | AC7: Semitrailer 2 Ejes | AD7: Semitrailer 3 Ejes | AE7: Articulado
B8: AU | C8: SW | D8: CA | E8: CR | F8: MB | G8: B2 | H8: B3 | I8: B4 | J8: C2 | K8: C3 | L8: C4 | M8: S2 | N8: S3 | O8: TR | R8: AU | S8: SW | T8: CA | U8: CR | V8: MB | W8: B2 | X8: B3 | Y8: B4 | Z8: C2 | AA8: C3 | AB8: C4 | AC8: S2 | AD8: S3 | AE8: TR
B9: $/veh-km | C9: $/veh-km | D9: $/veh-km | E9: $/veh-km | F9: $/veh-km | G9: $/veh-km | H9: $/veh-km | I9: $/veh-km | J9: $/veh-km | K9: $/veh-km | L9: $/veh-km | M9: $/veh-km | N9: $/veh-km | O9: $/veh-km | R9: $/veh-km | S9: $/veh-km | T9: $/veh-km | U9: $/veh-km | V9: $/veh-km | W9: $/veh-km | X9: $/veh-km | Y9: $/veh-km | Z9: $/veh-km | AA9: $/veh-km | AB9: $/veh-km | AC9: $/veh-km | AD9: $/veh-km | AE9: $/veh-km
B10: =VLOOKUP($F$5,'E2. COV Interurbano'!$A$6:$S$149,AK$1,0) -> 0.578648545 | C10: =VLOOKUP($F$5,'E2. COV Interurbano'!$A$6:$S$149,AL$1,0) -> 0.5681187221 | D10: =VLOOKUP($F$5,'E2. COV Interurbano'!$A$6:$S$149,AM$1,0) -> 1.102460074 | E10: =VLOOKUP($F$5,'E2. COV Interurbano'!$A$6:$S$149,AN$1,0) -> 1.079212542 | F10: =VLOOKUP($F$5,'E2. COV Interurbano'!$A$6:$S$149,AO$1,0) -> 1.726884917 | G10: =VLOOKUP($F$5,'E2. COV Interurbano'!$A$6:$S$149,AP$1,0) -> 2.836545338 | H10: =VLOOKUP($F$5,'E2. COV Interurbano'!$A$6:$S$149,AQ$1,0) -> 2.908206128 | I10: =VLOOKUP($F$5,'E2. COV Interurbano'!$A$6:$S$149,AR$1,0) -> 3.345443767 | J10: =VLOOKUP($F$5,'E2. COV Interurbano'!$A$6:$S$149,AS$1,0) -> 1.131564791 | K10: =VLOOKUP($F$5,'E2. COV Interurbano'!$A$6:$S$149,AT$1,0) -> 1.587840022 | L10: =VLOOKUP($F$5,'E2. COV Interurbano'!$A$6:$S$149,AU$1,0) -> 2.243126073 | M10: =VLOOKUP($F$5,'E2. COV Interurbano'!$A$6:$S$149,AV$1,0) -> 2.600229372 | N10: =VLOOKUP($F$5,'E2. COV Interurbano'!$A$6:$S$149,AW$1,0) -> 2.69930965 | O10: =VLOOKUP($F$5,'E2. COV Interurbano'!$A$6:$S$149,AX$1,0) -> 2.943354042 | R10: =VLOOKUP($F$5,'E2. COV Interurbano'!$A$6:$S$149,AK$1,0) -> 0.578648545 | S10: =VLOOKUP($F$5,'E2. COV Interurbano'!$A$6:$S$149,AL$1,0) -> 0.5681187221 | T10: =VLOOKUP($F$5,'E2. COV Interurbano'!$A$6:$S$149,AM$1,0) -> 1.102460074 | U10: =VLOOKUP($F$5,'E2. COV Interurbano'!$A$6:$S$149,AN$1,0) -> 1.079212542 | V10: =VLOOKUP($F$5,'E2. COV Interurbano'!$A$6:$S$149,AO$1,0) -> 1.726884917 | W10: =VLOOKUP($F$5,'E2. COV Interurbano'!$A$6:$S$149,AP$1,0) -> 2.836545338 | X10: =VLOOKUP($F$5,'E2. COV Interurbano'!$A$6:$S$149,AQ$1,0) -> 2.908206128 | Y10: =VLOOKUP($F$5,'E2. COV Interurbano'!$A$6:$S$149,AR$1,0) -> 3.345443767 | Z10: =VLOOKUP($F$5,'E2. COV Interurbano'!$A$6:$S$149,AS$1,0) -> 1.131564791 | AA10: =VLOOKUP($F$5,'E2. COV Interurbano'!$A$6:$S$149,AT$1,0) -> 1.587840022 | AB10: =VLOOKUP($F$5,'E2. COV Interurbano'!$A$6:$S$149,AU$1,0) -> 2.243126073 | AC10: =VLOOKUP($F$5,'E2. COV Interurbano'!$A$6:$S$149,AV$1,0) -> 2.600229372 | AD10: =VLOOKUP($F$5,'E2. COV Interurbano'!$A$6:$S$149,AW$1,0) -> 2.69930965 | AE10: =VLOOKUP($F$5,'E2. COV Interurbano'!$A$6:$S$149,AX$1,0) -> 2.943354042
A12: Situación Con Proyecto | Q12: Situación Con Proyecto
B13: Región | C13: Topografía | D13: Superficie | E13: Estado | J13: Recorrido reducido por el tráfico desviado | K13: 3 | L13: (De corresponder, sino considerar "cero") | R13: Región | S13: Topografía | T13: Superficie | U13: Estado | Z13: Recorrido reducido por el tráfico desviado | AA13: 3 | AB13: (De corresponder, sino considerar "cero")
B14: Sierra | C14: Ondulado | D14: Afirmado | E14: Bueno | F14: =B14&C14&D14&E14 -> SierraOnduladoAfirmadoBueno | R14: Sierra | S14: Ondulado | T14: Asfaltado | U14: Bueno | V14: =R14&S14&T14&U14 -> SierraOnduladoAsfaltadoBueno
A15: COV Con proyecto | D15: =VLOOKUP('E1.Evaluación (B-C)'!D14,'E2. COV Interurbano'!$X$2:$Z$7,3,0) -> Nota: Para Afirmado el horizonte de evaluación es hasta de 10 años como máximo | Q15: COV Con proyecto | T15: =VLOOKUP('E1.Evaluación (B-C)'!T14,'E2. COV Interurbano'!$X$2:$Z$7,3,0) -> 
B16: Auto | C16: Station Wagon | D16: Camioneta | E16: Camioneta Rural | F16: Microbús | G16: Bus 2 Ejes | H16: Bus 3 Ejes | I16: Bus 4 Ejes | J16: Camión 2 Ejes | K16: Camión 3 Ejes | L16: Camión 4 Ejes | M16: Semitrailer 2 Ejes | N16: Semitrailer 3 Ejes | O16: Articulado | R16: Auto | S16: Station Wagon | T16: Camioneta | U16: Camioneta Rural | V16: Microbús | W16: Bus 2 Ejes | X16: Bus 3 Ejes | Y16: Bus 4 Ejes | Z16: Camión 2 Ejes | AA16: Camión 3 Ejes | AB16: Camión 4 Ejes | AC16: Semitrailer 2 Ejes | AD16: Semitrailer 3 Ejes | AE16: Articulado
B17: AU | C17: SW | D17: CA | E17: CR | F17: MB | G17: B2 | H17: B3 | I17: B4 | J17: C2 | K17: C3 | L17: C4 | M17: S2 | N17: S3 | O17: TR | R17: AU | S17: SW | T17: CA | U17: CR | V17: MB | W17: B2 | X17: B3 | Y17: B4 | Z17: C2 | AA17: C3 | AB17: C4 | AC17: S2 | AD17: S3 | AE17: TR
B18: $/veh-km | C18: $/veh-km | D18: $/veh-km | E18: $/veh-km | F18: $/veh-km | G18: $/veh-km | H18: $/veh-km | I18: $/veh-km | J18: $/veh-km | K18: $/veh-km | L18: $/veh-km | M18: $/veh-km | N18: $/veh-km | O18: $/veh-km | R18: $/veh-km | S18: $/veh-km | T18: $/veh-km | U18: $/veh-km | V18: $/veh-km | W18: $/veh-km | X18: $/veh-km | Y18: $/veh-km | Z18: $/veh-km | AA18: $/veh-km | AB18: $/veh-km | AC18: $/veh-km | AD18: $/veh-km | AE18: $/veh-km
B19: =VLOOKUP($F$14,'E2. COV Interurbano'!$A$6:$S$149,AK$1,0) -> 0.4483890522 | C19: =VLOOKUP($F$14,'E2. COV Interurbano'!$A$6:$S$149,AL$1,0) -> 0.4414356148 | D19: =VLOOKUP($F$14,'E2. COV Interurbano'!$A$6:$S$149,AM$1,0) -> 0.843373826 | E19: =VLOOKUP($F$14,'E2. COV Interurbano'!$A$6:$S$149,AN$1,0) -> 0.8197365015 | F19: =VLOOKUP($F$14,'E2. COV Interurbano'!$A$6:$S$149,AO$1,0) -> 1.272729653 | G19: =VLOOKUP($F$14,'E2. COV Interurbano'!$A$6:$S$149,AP$1,0) -> 2.195675527 | H19: =VLOOKUP($F$14,'E2. COV Interurbano'!$A$6:$S$149,AQ$1,0) -> 2.247762069 | I19: =VLOOKUP($F$14,'E2. COV Interurbano'!$A$6:$S$149,AR$1,0) -> 2.593206551 | J19: =VLOOKUP($F$14,'E2. COV Interurbano'!$A$6:$S$149,AS$1,0) -> 0.8159667903 | K19: =VLOOKUP($F$14,'E2. COV Interurbano'!$A$6:$S$149,AT$1,0) -> 1.198335686 | L19: =VLOOKUP($F$14,'E2. COV Interurbano'!$A$6:$S$149,AU$1,0) -> 1.674965055 | M19: =VLOOKUP($F$14,'E2. COV Interurbano'!$A$6:$S$149,AV$1,0) -> 1.972807634 | N19: =VLOOKUP($F$14,'E2. COV Interurbano'!$A$6:$S$149,AW$1,0) -> 2.034289757 | O19: =VLOOKUP($F$14,'E2. COV Interurbano'!$A$6:$S$149,AX$1,0) -> 2.201605206 | R19: =VLOOKUP($V$14,'E2. COV Interurbano'!$A$6:$S$149,AK$1,0) -> 0.4069842223 | S19: =VLOOKUP($V$14,'E2. COV Interurbano'!$A$6:$S$149,AL$1,0) -> 0.3960284592 | T19: =VLOOKUP($V$14,'E2. COV Interurbano'!$A$6:$S$149,AM$1,0) -> 0.7657353726 | U19: =VLOOKUP($V$14,'E2. COV Interurbano'!$A$6:$S$149,AN$1,0) -> 0.7636188164 | V19: =VLOOKUP($V$14,'E2. COV Interurbano'!$A$6:$S$149,AO$1,0) -> 1.214634467 | W19: =VLOOKUP($V$14,'E2. COV Interurbano'!$A$6:$S$149,AP$1,0) -> 2.113587127 | X19: =VLOOKUP($V$14,'E2. COV Interurbano'!$A$6:$S$149,AQ$1,0) -> 2.163160055 | Y19: =VLOOKUP($V$14,'E2. COV Interurbano'!$A$6:$S$149,AR$1,0) -> 2.475032244 | Z19: =VLOOKUP($V$14,'E2. COV Interurbano'!$A$6:$S$149,AS$1,0) -> 0.6570880058 | AA19: =VLOOKUP($V$14,'E2. COV Interurbano'!$A$6:$S$149,AT$1,0) -> 0.9937779405 | AB19: =VLOOKUP($V$14,'E2. COV Interurbano'!$A$6:$S$149,AU$1,0) -> 1.371387754 | AC19: =VLOOKUP($V$14,'E2. COV Interurbano'!$A$6:$S$149,AV$1,0) -> 1.670181913 | AD19: =VLOOKUP($V$14,'E2. COV Interurbano'!$A$6:$S$149,AW$1,0) -> 1.717958197 | AE19: =VLOOKUP($V$14,'E2. COV Interurbano'!$A$6:$S$149,AX$1,0) -> 1.84473161
A20: ∆COV | B20: =+B10-B19 -> 0.1302594929 | C20: 0.1266831074 | D20: 0.2590862481 | E20: 0.2594760407 | F20: 0.4541552634 | G20: 0.6408698108 | H20: 0.6604440586 | I20: 0.7522372158 | J20: 0.3155980008 | K20: 0.3895043359 | L20: 0.5681610183 | M20: 0.6274217376 | N20: 0.6650198931 | O20: 0.7417488356 | Q20: ∆COV | R20: =+R10-R19 -> 0.1716643227 | S20: 0.172090263 | T20: 0.3367247014 | U20: 0.3155937258 | V20: 0.5122504501 | W20: 0.7229582113 | X20: 0.7450460724 | Y20: 0.8704115225 | Z20: 0.4744767853 | AA20: 0.5940620819 | AB20: 0.8717383191 | AC20: 0.9300474592 | AD20: 0.9813514531 | AE20: 1.098622432
A22: BENEFICIOS | Q22: BENEFICIOS
A23: Tráfico Normal
A24: 1 | B24: =+'A2.Demanda'!C292*365*$K$4*$N$4*B$20 -> 0 | C24: =+'A2.Demanda'!D292*365*$K$4*$N$4*C$20 -> 0 | D24: =+'A2.Demanda'!E292*365*$K$4*$N$4*D$20 -> 0 | E24: =+'A2.Demanda'!F292*365*$K$4*$N$4*E$20 -> 0 | F24: =+'A2.Demanda'!G292*365*$K$4*$N$4*F$20 -> 0 | G24: =+'A2.Demanda'!H292*365*$K$4*$N$4*G$20 -> 0 | H24: =+'A2.Demanda'!I292*365*$K$4*$N$4*H$20 -> 0 | I24: =+'A2.Demanda'!J292*365*$K$4*$N$4*I$20 -> 0 | J24: =+'A2.Demanda'!K292*365*$K$4*$N$4*J$20 -> 0 | K24: =+'A2.Demanda'!L292*365*$K$4*$N$4*K$20 -> 0 | L24: =+'A2.Demanda'!M292*365*$K$4*$N$4*L$20 -> 0 | M24: =+'A2.Demanda'!N292*365*$K$4*$N$4*M$20 -> 0 | N24: =+'A2.Demanda'!O292*365*$K$4*$N$4*N$20 -> 0 | O24: =+'A2.Demanda'!P292*365*$K$4*$N$4*O$20 -> 0 | P24: =SUM(B24:O24) -> 0 | Q24: Año 1 | R24: =+'A2.Demanda'!C292*365*$AA$4*$AD$4*R$20 -> 0 | S24: =+'A2.Demanda'!D292*365*$AA$4*$AD$4*S$20 -> 0 | T24: =+'A2.Demanda'!E292*365*$AA$4*$AD$4*T$20 -> 0 | U24: =+'A2.Demanda'!F292*365*$AA$4*$AD$4*U$20 -> 0 | V24: =+'A2.Demanda'!G292*365*$AA$4*$AD$4*V$20 -> 0 | W24: =+'A2.Demanda'!H292*365*$AA$4*$AD$4*W$20 -> 0 | X24: =+'A2.Demanda'!I292*365*$AA$4*$AD$4*X$20 -> 0 | Y24: =+'A2.Demanda'!J292*365*$AA$4*$AD$4*Y$20 -> 0 | Z24: =+'A2.Demanda'!K292*365*$AA$4*$AD$4*Z$20 -> 0 | AA24: =+'A2.Demanda'!L292*365*$AA$4*$AD$4*AA$20 -> 0 | AB24: =+'A2.Demanda'!M292*365*$AA$4*$AD$4*AB$20 -> 0 | AC24: =+'A2.Demanda'!N292*365*$AA$4*$AD$4*AC$20 -> 0 | AD24: =+'A2.Demanda'!O292*365*$AA$4*$AD$4*AD$20 -> 0 | AE24: =+'A2.Demanda'!P292*365*$AA$4*$AD$4*AE$20 -> 0 | AF24: =SUM(R24:AE24) -> 0
A25: =+A24+1 -> 2 | B25: =+'A2.Demanda'!C293*365*$K$4*$N$4*B$20 -> 0 | C25: =+'A2.Demanda'!D293*365*$K$4*$N$4*C$20 -> 0 | D25: =+'A2.Demanda'!E293*365*$K$4*$N$4*D$20 -> 0 | E25: =+'A2.Demanda'!F293*365*$K$4*$N$4*E$20 -> 0 | F25: =+'A2.Demanda'!G293*365*$K$4*$N$4*F$20 -> 0 | G25: =+'A2.Demanda'!H293*365*$K$4*$N$4*G$20 -> 0 | H25: =+'A2.Demanda'!I293*365*$K$4*$N$4*H$20 -> 0 | I25: =+'A2.Demanda'!J293*365*$K$4*$N$4*I$20 -> 0 | J25: =+'A2.Demanda'!K293*365*$K$4*$N$4*J$20 -> 0 | K25: =+'A2.Demanda'!L293*365*$K$4*$N$4*K$20 -> 0 | L25: =+'A2.Demanda'!M293*365*$K$4*$N$4*L$20 -> 0 | M25: =+'A2.Demanda'!N293*365*$K$4*$N$4*M$20 -> 0 | N25: =+'A2.Demanda'!O293*365*$K$4*$N$4*N$20 -> 0 | O25: =+'A2.Demanda'!P293*365*$K$4*$N$4*O$20 -> 0 | P25: 0 | Q25: Año 2 | R25: =+'A2.Demanda'!C293*365*$AA$4*$AD$4*R$20 -> 0 | S25: =+'A2.Demanda'!D293*365*$AA$4*$AD$4*S$20 -> 0 | T25: =+'A2.Demanda'!E293*365*$AA$4*$AD$4*T$20 -> 0 | U25: =+'A2.Demanda'!F293*365*$AA$4*$AD$4*U$20 -> 0 | V25: =+'A2.Demanda'!G293*365*$AA$4*$AD$4*V$20 -> 0 | W25: =+'A2.Demanda'!H293*365*$AA$4*$AD$4*W$20 -> 0 | X25: =+'A2.Demanda'!I293*365*$AA$4*$AD$4*X$20 -> 0 | Y25: =+'A2.Demanda'!J293*365*$AA$4*$AD$4*Y$20 -> 0 | Z25: =+'A2.Demanda'!K293*365*$AA$4*$AD$4*Z$20 -> 0 | AA25: =+'A2.Demanda'!L293*365*$AA$4*$AD$4*AA$20 -> 0 | AB25: =+'A2.Demanda'!M293*365*$AA$4*$AD$4*AB$20 -> 0 | AC25: =+'A2.Demanda'!N293*365*$AA$4*$AD$4*AC$20 -> 0 | AD25: =+'A2.Demanda'!O293*365*$AA$4*$AD$4*AD$20 -> 0 | AE25: =+'A2.Demanda'!P293*365*$AA$4*$AD$4*AE$20 -> 0 | AF25: 0
A26: =+A25+1 -> 3 | B26: =+'A2.Demanda'!C294*365*$K$4*$N$4*B$20 -> 0 | C26: =+'A2.Demanda'!D294*365*$K$4*$N$4*C$20 -> 0 | D26: =+'A2.Demanda'!E294*365*$K$4*$N$4*D$20 -> 0 | E26: =+'A2.Demanda'!F294*365*$K$4*$N$4*E$20 -> 0 | F26: =+'A2.Demanda'!G294*365*$K$4*$N$4*F$20 -> 0 | G26: =+'A2.Demanda'!H294*365*$K$4*$N$4*G$20 -> 0 | H26: =+'A2.Demanda'!I294*365*$K$4*$N$4*H$20 -> 0 | I26: =+'A2.Demanda'!J294*365*$K$4*$N$4*I$20 -> 0 | J26: =+'A2.Demanda'!K294*365*$K$4*$N$4*J$20 -> 0 | K26: =+'A2.Demanda'!L294*365*$K$4*$N$4*K$20 -> 0 | L26: =+'A2.Demanda'!M294*365*$K$4*$N$4*L$20 -> 0 | M26: =+'A2.Demanda'!N294*365*$K$4*$N$4*M$20 -> 0 | N26: =+'A2.Demanda'!O294*365*$K$4*$N$4*N$20 -> 0 | O26: =+'A2.Demanda'!P294*365*$K$4*$N$4*O$20 -> 0 | P26: 0 | Q26: Año 3 | R26: =+'A2.Demanda'!C294*365*$AA$4*$AD$4*R$20 -> 0 | S26: =+'A2.Demanda'!D294*365*$AA$4*$AD$4*S$20 -> 0 | T26: =+'A2.Demanda'!E294*365*$AA$4*$AD$4*T$20 -> 0 | U26: =+'A2.Demanda'!F294*365*$AA$4*$AD$4*U$20 -> 0 | V26: =+'A2.Demanda'!G294*365*$AA$4*$AD$4*V$20 -> 0 | W26: =+'A2.Demanda'!H294*365*$AA$4*$AD$4*W$20 -> 0 | X26: =+'A2.Demanda'!I294*365*$AA$4*$AD$4*X$20 -> 0 | Y26: =+'A2.Demanda'!J294*365*$AA$4*$AD$4*Y$20 -> 0 | Z26: =+'A2.Demanda'!K294*365*$AA$4*$AD$4*Z$20 -> 0 | AA26: =+'A2.Demanda'!L294*365*$AA$4*$AD$4*AA$20 -> 0 | AB26: =+'A2.Demanda'!M294*365*$AA$4*$AD$4*AB$20 -> 0 | AC26: =+'A2.Demanda'!N294*365*$AA$4*$AD$4*AC$20 -> 0 | AD26: =+'A2.Demanda'!O294*365*$AA$4*$AD$4*AD$20 -> 0 | AE26: =+'A2.Demanda'!P294*365*$AA$4*$AD$4*AE$20 -> 0 | AF26: 0
A27: 4 | B27: =+'A2.Demanda'!C295*365*$K$4*$N$4*B$20 -> 0 | C27: =+'A2.Demanda'!D295*365*$K$4*$N$4*C$20 -> 0 | D27: =+'A2.Demanda'!E295*365*$K$4*$N$4*D$20 -> 0 | E27: =+'A2.Demanda'!F295*365*$K$4*$N$4*E$20 -> 0 | F27: =+'A2.Demanda'!G295*365*$K$4*$N$4*F$20 -> 0 | G27: =+'A2.Demanda'!H295*365*$K$4*$N$4*G$20 -> 0 | H27: =+'A2.Demanda'!I295*365*$K$4*$N$4*H$20 -> 0 | I27: =+'A2.Demanda'!J295*365*$K$4*$N$4*I$20 -> 0 | J27: =+'A2.Demanda'!K295*365*$K$4*$N$4*J$20 -> 0 | K27: =+'A2.Demanda'!L295*365*$K$4*$N$4*K$20 -> 0 | L27: =+'A2.Demanda'!M295*365*$K$4*$N$4*L$20 -> 0 | M27: =+'A2.Demanda'!N295*365*$K$4*$N$4*M$20 -> 0 | N27: =+'A2.Demanda'!O295*365*$K$4*$N$4*N$20 -> 0 | O27: =+'A2.Demanda'!P295*365*$K$4*$N$4*O$20 -> 0 | P27: 0 | Q27: Año 4 | R27: =+'A2.Demanda'!C295*365*$AA$4*$AD$4*R$20 -> 0 | S27: =+'A2.Demanda'!D295*365*$AA$4*$AD$4*S$20 -> 0 | T27: =+'A2.Demanda'!E295*365*$AA$4*$AD$4*T$20 -> 0 | U27: =+'A2.Demanda'!F295*365*$AA$4*$AD$4*U$20 -> 0 | V27: =+'A2.Demanda'!G295*365*$AA$4*$AD$4*V$20 -> 0 | W27: =+'A2.Demanda'!H295*365*$AA$4*$AD$4*W$20 -> 0 | X27: =+'A2.Demanda'!I295*365*$AA$4*$AD$4*X$20 -> 0 | Y27: =+'A2.Demanda'!J295*365*$AA$4*$AD$4*Y$20 -> 0 | Z27: =+'A2.Demanda'!K295*365*$AA$4*$AD$4*Z$20 -> 0 | AA27: =+'A2.Demanda'!L295*365*$AA$4*$AD$4*AA$20 -> 0 | AB27: =+'A2.Demanda'!M295*365*$AA$4*$AD$4*AB$20 -> 0 | AC27: =+'A2.Demanda'!N295*365*$AA$4*$AD$4*AC$20 -> 0 | AD27: =+'A2.Demanda'!O295*365*$AA$4*$AD$4*AD$20 -> 0 | AE27: =+'A2.Demanda'!P295*365*$AA$4*$AD$4*AE$20 -> 0 | AF27: 0
A28: 5 | B28: =+'A2.Demanda'!C296*365*$K$4*$N$4*B$20 -> 0 | C28: =+'A2.Demanda'!D296*365*$K$4*$N$4*C$20 -> 0 | D28: =+'A2.Demanda'!E296*365*$K$4*$N$4*D$20 -> 0 | E28: =+'A2.Demanda'!F296*365*$K$4*$N$4*E$20 -> 0 | F28: =+'A2.Demanda'!G296*365*$K$4*$N$4*F$20 -> 0 | G28: =+'A2.Demanda'!H296*365*$K$4*$N$4*G$20 -> 0 | H28: =+'A2.Demanda'!I296*365*$K$4*$N$4*H$20 -> 0 | I28: =+'A2.Demanda'!J296*365*$K$4*$N$4*I$20 -> 0 | J28: =+'A2.Demanda'!K296*365*$K$4*$N$4*J$20 -> 0 | K28: =+'A2.Demanda'!L296*365*$K$4*$N$4*K$20 -> 0 | L28: =+'A2.Demanda'!M296*365*$K$4*$N$4*L$20 -> 0 | M28: =+'A2.Demanda'!N296*365*$K$4*$N$4*M$20 -> 0 | N28: =+'A2.Demanda'!O296*365*$K$4*$N$4*N$20 -> 0 | O28: =+'A2.Demanda'!P296*365*$K$4*$N$4*O$20 -> 0 | P28: 0 | Q28: Año 5 | R28: =+'A2.Demanda'!C296*365*$AA$4*$AD$4*R$20 -> 0 | S28: =+'A2.Demanda'!D296*365*$AA$4*$AD$4*S$20 -> 0 | T28: =+'A2.Demanda'!E296*365*$AA$4*$AD$4*T$20 -> 0 | U28: =+'A2.Demanda'!F296*365*$AA$4*$AD$4*U$20 -> 0 | V28: =+'A2.Demanda'!G296*365*$AA$4*$AD$4*V$20 -> 0 | W28: =+'A2.Demanda'!H296*365*$AA$4*$AD$4*W$20 -> 0 | X28: =+'A2.Demanda'!I296*365*$AA$4*$AD$4*X$20 -> 0 | Y28: =+'A2.Demanda'!J296*365*$AA$4*$AD$4*Y$20 -> 0 | Z28: =+'A2.Demanda'!K296*365*$AA$4*$AD$4*Z$20 -> 0 | AA28: =+'A2.Demanda'!L296*365*$AA$4*$AD$4*AA$20 -> 0 | AB28: =+'A2.Demanda'!M296*365*$AA$4*$AD$4*AB$20 -> 0 | AC28: =+'A2.Demanda'!N296*365*$AA$4*$AD$4*AC$20 -> 0 | AD28: =+'A2.Demanda'!O296*365*$AA$4*$AD$4*AD$20 -> 0 | AE28: =+'A2.Demanda'!P296*365*$AA$4*$AD$4*AE$20 -> 0 | AF28: 0
A29: 6 | B29: =+'A2.Demanda'!C297*365*$K$4*$N$4*B$20 -> 0 | C29: =+'A2.Demanda'!D297*365*$K$4*$N$4*C$20 -> 0 | D29: =+'A2.Demanda'!E297*365*$K$4*$N$4*D$20 -> 0 | E29: =+'A2.Demanda'!F297*365*$K$4*$N$4*E$20 -> 0 | F29: =+'A2.Demanda'!G297*365*$K$4*$N$4*F$20 -> 0 | G29: =+'A2.Demanda'!H297*365*$K$4*$N$4*G$20 -> 0 | H29: =+'A2.Demanda'!I297*365*$K$4*$N$4*H$20 -> 0 | I29: =+'A2.Demanda'!J297*365*$K$4*$N$4*I$20 -> 0 | J29: =+'A2.Demanda'!K297*365*$K$4*$N$4*J$20 -> 0 | K29: =+'A2.Demanda'!L297*365*$K$4*$N$4*K$20 -> 0 | L29: =+'A2.Demanda'!M297*365*$K$4*$N$4*L$20 -> 0 | M29: =+'A2.Demanda'!N297*365*$K$4*$N$4*M$20 -> 0 | N29: =+'A2.Demanda'!O297*365*$K$4*$N$4*N$20 -> 0 | O29: =+'A2.Demanda'!P297*365*$K$4*$N$4*O$20 -> 0 | P29: 0 | Q29: Año 6 | R29: =+'A2.Demanda'!C297*365*$AA$4*$AD$4*R$20 -> 0 | S29: =+'A2.Demanda'!D297*365*$AA$4*$AD$4*S$20 -> 0 | T29: =+'A2.Demanda'!E297*365*$AA$4*$AD$4*T$20 -> 0 | U29: =+'A2.Demanda'!F297*365*$AA$4*$AD$4*U$20 -> 0 | V29: =+'A2.Demanda'!G297*365*$AA$4*$AD$4*V$20 -> 0 | W29: =+'A2.Demanda'!H297*365*$AA$4*$AD$4*W$20 -> 0 | X29: =+'A2.Demanda'!I297*365*$AA$4*$AD$4*X$20 -> 0 | Y29: =+'A2.Demanda'!J297*365*$AA$4*$AD$4*Y$20 -> 0 | Z29: =+'A2.Demanda'!K297*365*$AA$4*$AD$4*Z$20 -> 0 | AA29: =+'A2.Demanda'!L297*365*$AA$4*$AD$4*AA$20 -> 0 | AB29: =+'A2.Demanda'!M297*365*$AA$4*$AD$4*AB$20 -> 0 | AC29: =+'A2.Demanda'!N297*365*$AA$4*$AD$4*AC$20 -> 0 | AD29: =+'A2.Demanda'!O297*365*$AA$4*$AD$4*AD$20 -> 0 | AE29: =+'A2.Demanda'!P297*365*$AA$4*$AD$4*AE$20 -> 0 | AF29: 0
A30: 7 | B30: =+'A2.Demanda'!C298*365*$K$4*$N$4*B$20 -> 0 | C30: =+'A2.Demanda'!D298*365*$K$4*$N$4*C$20 -> 0 | D30: =+'A2.Demanda'!E298*365*$K$4*$N$4*D$20 -> 0 | E30: =+'A2.Demanda'!F298*365*$K$4*$N$4*E$20 -> 0 | F30: =+'A2.Demanda'!G298*365*$K$4*$N$4*F$20 -> 0 | G30: =+'A2.Demanda'!H298*365*$K$4*$N$4*G$20 -> 0 | H30: =+'A2.Demanda'!I298*365*$K$4*$N$4*H$20 -> 0 | I30: =+'A2.Demanda'!J298*365*$K$4*$N$4*I$20 -> 0 | J30: =+'A2.Demanda'!K298*365*$K$4*$N$4*J$20 -> 0 | K30: =+'A2.Demanda'!L298*365*$K$4*$N$4*K$20 -> 0 | L30: =+'A2.Demanda'!M298*365*$K$4*$N$4*L$20 -> 0 | M30: =+'A2.Demanda'!N298*365*$K$4*$N$4*M$20 -> 0 | N30: =+'A2.Demanda'!O298*365*$K$4*$N$4*N$20 -> 0 | O30: =+'A2.Demanda'!P298*365*$K$4*$N$4*O$20 -> 0 | P30: 0 | Q30: Año 7 | R30: =+'A2.Demanda'!C298*365*$AA$4*$AD$4*R$20 -> 0 | S30: =+'A2.Demanda'!D298*365*$AA$4*$AD$4*S$20 -> 0 | T30: =+'A2.Demanda'!E298*365*$AA$4*$AD$4*T$20 -> 0 | U30: =+'A2.Demanda'!F298*365*$AA$4*$AD$4*U$20 -> 0 | V30: =+'A2.Demanda'!G298*365*$AA$4*$AD$4*V$20 -> 0 | W30: =+'A2.Demanda'!H298*365*$AA$4*$AD$4*W$20 -> 0 | X30: =+'A2.Demanda'!I298*365*$AA$4*$AD$4*X$20 -> 0 | Y30: =+'A2.Demanda'!J298*365*$AA$4*$AD$4*Y$20 -> 0 | Z30: =+'A2.Demanda'!K298*365*$AA$4*$AD$4*Z$20 -> 0 | AA30: =+'A2.Demanda'!L298*365*$AA$4*$AD$4*AA$20 -> 0 | AB30: =+'A2.Demanda'!M298*365*$AA$4*$AD$4*AB$20 -> 0 | AC30: =+'A2.Demanda'!N298*365*$AA$4*$AD$4*AC$20 -> 0 | AD30: =+'A2.Demanda'!O298*365*$AA$4*$AD$4*AD$20 -> 0 | AE30: =+'A2.Demanda'!P298*365*$AA$4*$AD$4*AE$20 -> 0 | AF30: 0
A31: 8 | B31: =+'A2.Demanda'!C299*365*$K$4*$N$4*B$20 -> 0 | C31: =+'A2.Demanda'!D299*365*$K$4*$N$4*C$20 -> 0 | D31: =+'A2.Demanda'!E299*365*$K$4*$N$4*D$20 -> 0 | E31: =+'A2.Demanda'!F299*365*$K$4*$N$4*E$20 -> 0 | F31: =+'A2.Demanda'!G299*365*$K$4*$N$4*F$20 -> 0 | G31: =+'A2.Demanda'!H299*365*$K$4*$N$4*G$20 -> 0 | H31: =+'A2.Demanda'!I299*365*$K$4*$N$4*H$20 -> 0 | I31: =+'A2.Demanda'!J299*365*$K$4*$N$4*I$20 -> 0 | J31: =+'A2.Demanda'!K299*365*$K$4*$N$4*J$20 -> 0 | K31: =+'A2.Demanda'!L299*365*$K$4*$N$4*K$20 -> 0 | L31: =+'A2.Demanda'!M299*365*$K$4*$N$4*L$20 -> 0 | M31: =+'A2.Demanda'!N299*365*$K$4*$N$4*M$20 -> 0 | N31: =+'A2.Demanda'!O299*365*$K$4*$N$4*N$20 -> 0 | O31: =+'A2.Demanda'!P299*365*$K$4*$N$4*O$20 -> 0 | P31: 0 | Q31: Año 8 | R31: =+'A2.Demanda'!C299*365*$AA$4*$AD$4*R$20 -> 0 | S31: =+'A2.Demanda'!D299*365*$AA$4*$AD$4*S$20 -> 0 | T31: =+'A2.Demanda'!E299*365*$AA$4*$AD$4*T$20 -> 0 | U31: =+'A2.Demanda'!F299*365*$AA$4*$AD$4*U$20 -> 0 | V31: =+'A2.Demanda'!G299*365*$AA$4*$AD$4*V$20 -> 0 | W31: =+'A2.Demanda'!H299*365*$AA$4*$AD$4*W$20 -> 0 | X31: =+'A2.Demanda'!I299*365*$AA$4*$AD$4*X$20 -> 0 | Y31: =+'A2.Demanda'!J299*365*$AA$4*$AD$4*Y$20 -> 0 | Z31: =+'A2.Demanda'!K299*365*$AA$4*$AD$4*Z$20 -> 0 | AA31: =+'A2.Demanda'!L299*365*$AA$4*$AD$4*AA$20 -> 0 | AB31: =+'A2.Demanda'!M299*365*$AA$4*$AD$4*AB$20 -> 0 | AC31: =+'A2.Demanda'!N299*365*$AA$4*$AD$4*AC$20 -> 0 | AD31: =+'A2.Demanda'!O299*365*$AA$4*$AD$4*AD$20 -> 0 | AE31: =+'A2.Demanda'!P299*365*$AA$4*$AD$4*AE$20 -> 0 | AF31: 0
A32: 9 | B32: =+'A2.Demanda'!C300*365*$K$4*$N$4*B$20 -> 0 | C32: =+'A2.Demanda'!D300*365*$K$4*$N$4*C$20 -> 0 | D32: =+'A2.Demanda'!E300*365*$K$4*$N$4*D$20 -> 0 | E32: =+'A2.Demanda'!F300*365*$K$4*$N$4*E$20 -> 0 | F32: =+'A2.Demanda'!G300*365*$K$4*$N$4*F$20 -> 0 | G32: =+'A2.Demanda'!H300*365*$K$4*$N$4*G$20 -> 0 | H32: =+'A2.Demanda'!I300*365*$K$4*$N$4*H$20 -> 0 | I32: =+'A2.Demanda'!J300*365*$K$4*$N$4*I$20 -> 0 | J32: =+'A2.Demanda'!K300*365*$K$4*$N$4*J$20 -> 0 | K32: =+'A2.Demanda'!L300*365*$K$4*$N$4*K$20 -> 0 | L32: =+'A2.Demanda'!M300*365*$K$4*$N$4*L$20 -> 0 | M32: =+'A2.Demanda'!N300*365*$K$4*$N$4*M$20 -> 0 | N32: =+'A2.Demanda'!O300*365*$K$4*$N$4*N$20 -> 0 | O32: =+'A2.Demanda'!P300*365*$K$4*$N$4*O$20 -> 0 | P32: 0 | Q32: Año 9 | R32: =+'A2.Demanda'!C300*365*$AA$4*$AD$4*R$20 -> 0 | S32: =+'A2.Demanda'!D300*365*$AA$4*$AD$4*S$20 -> 0 | T32: =+'A2.Demanda'!E300*365*$AA$4*$AD$4*T$20 -> 0 | U32: =+'A2.Demanda'!F300*365*$AA$4*$AD$4*U$20 -> 0 | V32: =+'A2.Demanda'!G300*365*$AA$4*$AD$4*V$20 -> 0 | W32: =+'A2.Demanda'!H300*365*$AA$4*$AD$4*W$20 -> 0 | X32: =+'A2.Demanda'!I300*365*$AA$4*$AD$4*X$20 -> 0 | Y32: =+'A2.Demanda'!J300*365*$AA$4*$AD$4*Y$20 -> 0 | Z32: =+'A2.Demanda'!K300*365*$AA$4*$AD$4*Z$20 -> 0 | AA32: =+'A2.Demanda'!L300*365*$AA$4*$AD$4*AA$20 -> 0 | AB32: =+'A2.Demanda'!M300*365*$AA$4*$AD$4*AB$20 -> 0 | AC32: =+'A2.Demanda'!N300*365*$AA$4*$AD$4*AC$20 -> 0 | AD32: =+'A2.Demanda'!O300*365*$AA$4*$AD$4*AD$20 -> 0 | AE32: =+'A2.Demanda'!P300*365*$AA$4*$AD$4*AE$20 -> 0 | AF32: 0
A33: 10 | B33: =+'A2.Demanda'!C301*365*$K$4*$N$4*B$20 -> 0 | C33: =+'A2.Demanda'!D301*365*$K$4*$N$4*C$20 -> 0 | D33: =+'A2.Demanda'!E301*365*$K$4*$N$4*D$20 -> 0 | E33: =+'A2.Demanda'!F301*365*$K$4*$N$4*E$20 -> 0 | F33: =+'A2.Demanda'!G301*365*$K$4*$N$4*F$20 -> 0 | G33: =+'A2.Demanda'!H301*365*$K$4*$N$4*G$20 -> 0 | H33: =+'A2.Demanda'!I301*365*$K$4*$N$4*H$20 -> 0 | I33: =+'A2.Demanda'!J301*365*$K$4*$N$4*I$20 -> 0 | J33: =+'A2.Demanda'!K301*365*$K$4*$N$4*J$20 -> 0 | K33: =+'A2.Demanda'!L301*365*$K$4*$N$4*K$20 -> 0 | L33: =+'A2.Demanda'!M301*365*$K$4*$N$4*L$20 -> 0 | M33: =+'A2.Demanda'!N301*365*$K$4*$N$4*M$20 -> 0 | N33: =+'A2.Demanda'!O301*365*$K$4*$N$4*N$20 -> 0 | O33: =+'A2.Demanda'!P301*365*$K$4*$N$4*O$20 -> 0 | P33: 0 | Q33: Año 10 | R33: =+'A2.Demanda'!C301*365*$AA$4*$AD$4*R$20 -> 0 | S33: =+'A2.Demanda'!D301*365*$AA$4*$AD$4*S$20 -> 0 | T33: =+'A2.Demanda'!E301*365*$AA$4*$AD$4*T$20 -> 0 | U33: =+'A2.Demanda'!F301*365*$AA$4*$AD$4*U$20 -> 0 | V33: =+'A2.Demanda'!G301*365*$AA$4*$AD$4*V$20 -> 0 | W33: =+'A2.Demanda'!H301*365*$AA$4*$AD$4*W$20 -> 0 | X33: =+'A2.Demanda'!I301*365*$AA$4*$AD$4*X$20 -> 0 | Y33: =+'A2.Demanda'!J301*365*$AA$4*$AD$4*Y$20 -> 0 | Z33: =+'A2.Demanda'!K301*365*$AA$4*$AD$4*Z$20 -> 0 | AA33: =+'A2.Demanda'!L301*365*$AA$4*$AD$4*AA$20 -> 0 | AB33: =+'A2.Demanda'!M301*365*$AA$4*$AD$4*AB$20 -> 0 | AC33: =+'A2.Demanda'!N301*365*$AA$4*$AD$4*AC$20 -> 0 | AD33: =+'A2.Demanda'!O301*365*$AA$4*$AD$4*AD$20 -> 0 | AE33: =+'A2.Demanda'!P301*365*$AA$4*$AD$4*AE$20 -> 0 | AF33: 0
A34: 11 | B34: =+'A2.Demanda'!C302*365*$K$4*$N$4*B$20 -> 0 | C34: =+'A2.Demanda'!D302*365*$K$4*$N$4*C$20 -> 0 | D34: =+'A2.Demanda'!E302*365*$K$4*$N$4*D$20 -> 0 | E34: =+'A2.Demanda'!F302*365*$K$4*$N$4*E$20 -> 0 | F34: =+'A2.Demanda'!G302*365*$K$4*$N$4*F$20 -> 0 | G34: =+'A2.Demanda'!H302*365*$K$4*$N$4*G$20 -> 0 | H34: =+'A2.Demanda'!I302*365*$K$4*$N$4*H$20 -> 0 | I34: =+'A2.Demanda'!J302*365*$K$4*$N$4*I$20 -> 0 | J34: =+'A2.Demanda'!K302*365*$K$4*$N$4*J$20 -> 0 | K34: =+'A2.Demanda'!L302*365*$K$4*$N$4*K$20 -> 0 | L34: =+'A2.Demanda'!M302*365*$K$4*$N$4*L$20 -> 0 | M34: =+'A2.Demanda'!N302*365*$K$4*$N$4*M$20 -> 0 | N34: =+'A2.Demanda'!O302*365*$K$4*$N$4*N$20 -> 0 | O34: =+'A2.Demanda'!P302*365*$K$4*$N$4*O$20 -> 0 | P34: 0 | Q34: Año 11 | R34: =+'A2.Demanda'!C302*365*$AA$4*$AD$4*R$20 -> 0 | S34: =+'A2.Demanda'!D302*365*$AA$4*$AD$4*S$20 -> 0 | T34: =+'A2.Demanda'!E302*365*$AA$4*$AD$4*T$20 -> 0 | U34: =+'A2.Demanda'!F302*365*$AA$4*$AD$4*U$20 -> 0 | V34: =+'A2.Demanda'!G302*365*$AA$4*$AD$4*V$20 -> 0 | W34: =+'A2.Demanda'!H302*365*$AA$4*$AD$4*W$20 -> 0 | X34: =+'A2.Demanda'!I302*365*$AA$4*$AD$4*X$20 -> 0 | Y34: =+'A2.Demanda'!J302*365*$AA$4*$AD$4*Y$20 -> 0 | Z34: =+'A2.Demanda'!K302*365*$AA$4*$AD$4*Z$20 -> 0 | AA34: =+'A2.Demanda'!L302*365*$AA$4*$AD$4*AA$20 -> 0 | AB34: =+'A2.Demanda'!M302*365*$AA$4*$AD$4*AB$20 -> 0 | AC34: =+'A2.Demanda'!N302*365*$AA$4*$AD$4*AC$20 -> 0 | AD34: =+'A2.Demanda'!O302*365*$AA$4*$AD$4*AD$20 -> 0 | AE34: =+'A2.Demanda'!P302*365*$AA$4*$AD$4*AE$20 -> 0 | AF34: 0
A35: 12 | B35: =+'A2.Demanda'!C303*365*$K$4*$N$4*B$20 -> 0 | C35: =+'A2.Demanda'!D303*365*$K$4*$N$4*C$20 -> 0 | D35: =+'A2.Demanda'!E303*365*$K$4*$N$4*D$20 -> 0 | E35: =+'A2.Demanda'!F303*365*$K$4*$N$4*E$20 -> 0 | F35: =+'A2.Demanda'!G303*365*$K$4*$N$4*F$20 -> 0 | G35: =+'A2.Demanda'!H303*365*$K$4*$N$4*G$20 -> 0 | H35: =+'A2.Demanda'!I303*365*$K$4*$N$4*H$20 -> 0 | I35: =+'A2.Demanda'!J303*365*$K$4*$N$4*I$20 -> 0 | J35: =+'A2.Demanda'!K303*365*$K$4*$N$4*J$20 -> 0 | K35: =+'A2.Demanda'!L303*365*$K$4*$N$4*K$20 -> 0 | L35: =+'A2.Demanda'!M303*365*$K$4*$N$4*L$20 -> 0 | M35: =+'A2.Demanda'!N303*365*$K$4*$N$4*M$20 -> 0 | N35: =+'A2.Demanda'!O303*365*$K$4*$N$4*N$20 -> 0 | O35: =+'A2.Demanda'!P303*365*$K$4*$N$4*O$20 -> 0 | P35: 0 | Q35: Año 12 | R35: =+'A2.Demanda'!C303*365*$AA$4*$AD$4*R$20 -> 0 | S35: =+'A2.Demanda'!D303*365*$AA$4*$AD$4*S$20 -> 0 | T35: =+'A2.Demanda'!E303*365*$AA$4*$AD$4*T$20 -> 0 | U35: =+'A2.Demanda'!F303*365*$AA$4*$AD$4*U$20 -> 0 | V35: =+'A2.Demanda'!G303*365*$AA$4*$AD$4*V$20 -> 0 | W35: =+'A2.Demanda'!H303*365*$AA$4*$AD$4*W$20 -> 0 | X35: =+'A2.Demanda'!I303*365*$AA$4*$AD$4*X$20 -> 0 | Y35: =+'A2.Demanda'!J303*365*$AA$4*$AD$4*Y$20 -> 0 | Z35: =+'A2.Demanda'!K303*365*$AA$4*$AD$4*Z$20 -> 0 | AA35: =+'A2.Demanda'!L303*365*$AA$4*$AD$4*AA$20 -> 0 | AB35: =+'A2.Demanda'!M303*365*$AA$4*$AD$4*AB$20 -> 0 | AC35: =+'A2.Demanda'!N303*365*$AA$4*$AD$4*AC$20 -> 0 | AD35: =+'A2.Demanda'!O303*365*$AA$4*$AD$4*AD$20 -> 0 | AE35: =+'A2.Demanda'!P303*365*$AA$4*$AD$4*AE$20 -> 0 | AF35: 0
A36: 13 | B36: =+'A2.Demanda'!C304*365*$K$4*$N$4*B$20 -> 0 | C36: =+'A2.Demanda'!D304*365*$K$4*$N$4*C$20 -> 0 | D36: =+'A2.Demanda'!E304*365*$K$4*$N$4*D$20 -> 0 | E36: =+'A2.Demanda'!F304*365*$K$4*$N$4*E$20 -> 0 | F36: =+'A2.Demanda'!G304*365*$K$4*$N$4*F$20 -> 0 | G36: =+'A2.Demanda'!H304*365*$K$4*$N$4*G$20 -> 0 | H36: =+'A2.Demanda'!I304*365*$K$4*$N$4*H$20 -> 0 | I36: =+'A2.Demanda'!J304*365*$K$4*$N$4*I$20 -> 0 | J36: =+'A2.Demanda'!K304*365*$K$4*$N$4*J$20 -> 0 | K36: =+'A2.Demanda'!L304*365*$K$4*$N$4*K$20 -> 0 | L36: =+'A2.Demanda'!M304*365*$K$4*$N$4*L$20 -> 0 | M36: =+'A2.Demanda'!N304*365*$K$4*$N$4*M$20 -> 0 | N36: =+'A2.Demanda'!O304*365*$K$4*$N$4*N$20 -> 0 | O36: =+'A2.Demanda'!P304*365*$K$4*$N$4*O$20 -> 0 | P36: 0 | Q36: Año 13 | R36: =+'A2.Demanda'!C304*365*$AA$4*$AD$4*R$20 -> 0 | S36: =+'A2.Demanda'!D304*365*$AA$4*$AD$4*S$20 -> 0 | T36: =+'A2.Demanda'!E304*365*$AA$4*$AD$4*T$20 -> 0 | U36: =+'A2.Demanda'!F304*365*$AA$4*$AD$4*U$20 -> 0 | V36: =+'A2.Demanda'!G304*365*$AA$4*$AD$4*V$20 -> 0 | W36: =+'A2.Demanda'!H304*365*$AA$4*$AD$4*W$20 -> 0 | X36: =+'A2.Demanda'!I304*365*$AA$4*$AD$4*X$20 -> 0 | Y36: =+'A2.Demanda'!J304*365*$AA$4*$AD$4*Y$20 -> 0 | Z36: =+'A2.Demanda'!K304*365*$AA$4*$AD$4*Z$20 -> 0 | AA36: =+'A2.Demanda'!L304*365*$AA$4*$AD$4*AA$20 -> 0 | AB36: =+'A2.Demanda'!M304*365*$AA$4*$AD$4*AB$20 -> 0 | AC36: =+'A2.Demanda'!N304*365*$AA$4*$AD$4*AC$20 -> 0 | AD36: =+'A2.Demanda'!O304*365*$AA$4*$AD$4*AD$20 -> 0 | AE36: =+'A2.Demanda'!P304*365*$AA$4*$AD$4*AE$20 -> 0 | AF36: 0
A37: 14 | B37: =+'A2.Demanda'!C305*365*$K$4*$N$4*B$20 -> 0 | C37: =+'A2.Demanda'!D305*365*$K$4*$N$4*C$20 -> 0 | D37: =+'A2.Demanda'!E305*365*$K$4*$N$4*D$20 -> 0 | E37: =+'A2.Demanda'!F305*365*$K$4*$N$4*E$20 -> 0 | F37: =+'A2.Demanda'!G305*365*$K$4*$N$4*F$20 -> 0 | G37: =+'A2.Demanda'!H305*365*$K$4*$N$4*G$20 -> 0 | H37: =+'A2.Demanda'!I305*365*$K$4*$N$4*H$20 -> 0 | I37: =+'A2.Demanda'!J305*365*$K$4*$N$4*I$20 -> 0 | J37: =+'A2.Demanda'!K305*365*$K$4*$N$4*J$20 -> 0 | K37: =+'A2.Demanda'!L305*365*$K$4*$N$4*K$20 -> 0 | L37: =+'A2.Demanda'!M305*365*$K$4*$N$4*L$20 -> 0 | M37: =+'A2.Demanda'!N305*365*$K$4*$N$4*M$20 -> 0 | N37: =+'A2.Demanda'!O305*365*$K$4*$N$4*N$20 -> 0 | O37: =+'A2.Demanda'!P305*365*$K$4*$N$4*O$20 -> 0 | P37: 0 | Q37: Año 14 | R37: =+'A2.Demanda'!C305*365*$AA$4*$AD$4*R$20 -> 0 | S37: =+'A2.Demanda'!D305*365*$AA$4*$AD$4*S$20 -> 0 | T37: =+'A2.Demanda'!E305*365*$AA$4*$AD$4*T$20 -> 0 | U37: =+'A2.Demanda'!F305*365*$AA$4*$AD$4*U$20 -> 0 | V37: =+'A2.Demanda'!G305*365*$AA$4*$AD$4*V$20 -> 0 | W37: =+'A2.Demanda'!H305*365*$AA$4*$AD$4*W$20 -> 0 | X37: =+'A2.Demanda'!I305*365*$AA$4*$AD$4*X$20 -> 0 | Y37: =+'A2.Demanda'!J305*365*$AA$4*$AD$4*Y$20 -> 0 | Z37: =+'A2.Demanda'!K305*365*$AA$4*$AD$4*Z$20 -> 0 | AA37: =+'A2.Demanda'!L305*365*$AA$4*$AD$4*AA$20 -> 0 | AB37: =+'A2.Demanda'!M305*365*$AA$4*$AD$4*AB$20 -> 0 | AC37: =+'A2.Demanda'!N305*365*$AA$4*$AD$4*AC$20 -> 0 | AD37: =+'A2.Demanda'!O305*365*$AA$4*$AD$4*AD$20 -> 0 | AE37: =+'A2.Demanda'!P305*365*$AA$4*$AD$4*AE$20 -> 0 | AF37: 0
A38: 15 | B38: =+'A2.Demanda'!C306*365*$K$4*$N$4*B$20 -> 0 | C38: =+'A2.Demanda'!D306*365*$K$4*$N$4*C$20 -> 0 | D38: =+'A2.Demanda'!E306*365*$K$4*$N$4*D$20 -> 0 | E38: =+'A2.Demanda'!F306*365*$K$4*$N$4*E$20 -> 0 | F38: =+'A2.Demanda'!G306*365*$K$4*$N$4*F$20 -> 0 | G38: =+'A2.Demanda'!H306*365*$K$4*$N$4*G$20 -> 0 | H38: =+'A2.Demanda'!I306*365*$K$4*$N$4*H$20 -> 0 | I38: =+'A2.Demanda'!J306*365*$K$4*$N$4*I$20 -> 0 | J38: =+'A2.Demanda'!K306*365*$K$4*$N$4*J$20 -> 0 | K38: =+'A2.Demanda'!L306*365*$K$4*$N$4*K$20 -> 0 | L38: =+'A2.Demanda'!M306*365*$K$4*$N$4*L$20 -> 0 | M38: =+'A2.Demanda'!N306*365*$K$4*$N$4*M$20 -> 0 | N38: =+'A2.Demanda'!O306*365*$K$4*$N$4*N$20 -> 0 | O38: =+'A2.Demanda'!P306*365*$K$4*$N$4*O$20 -> 0 | P38: 0 | Q38: Año 15 | R38: =+'A2.Demanda'!C306*365*$AA$4*$AD$4*R$20 -> 0 | S38: =+'A2.Demanda'!D306*365*$AA$4*$AD$4*S$20 -> 0 | T38: =+'A2.Demanda'!E306*365*$AA$4*$AD$4*T$20 -> 0 | U38: =+'A2.Demanda'!F306*365*$AA$4*$AD$4*U$20 -> 0 | V38: =+'A2.Demanda'!G306*365*$AA$4*$AD$4*V$20 -> 0 | W38: =+'A2.Demanda'!H306*365*$AA$4*$AD$4*W$20 -> 0 | X38: =+'A2.Demanda'!I306*365*$AA$4*$AD$4*X$20 -> 0 | Y38: =+'A2.Demanda'!J306*365*$AA$4*$AD$4*Y$20 -> 0 | Z38: =+'A2.Demanda'!K306*365*$AA$4*$AD$4*Z$20 -> 0 | AA38: =+'A2.Demanda'!L306*365*$AA$4*$AD$4*AA$20 -> 0 | AB38: =+'A2.Demanda'!M306*365*$AA$4*$AD$4*AB$20 -> 0 | AC38: =+'A2.Demanda'!N306*365*$AA$4*$AD$4*AC$20 -> 0 | AD38: =+'A2.Demanda'!O306*365*$AA$4*$AD$4*AD$20 -> 0 | AE38: =+'A2.Demanda'!P306*365*$AA$4*$AD$4*AE$20 -> 0 | AF38: 0
A39: 16 | B39: =+'A2.Demanda'!C307*365*$K$4*$N$4*B$20 -> 0 | C39: =+'A2.Demanda'!D307*365*$K$4*$N$4*C$20 -> 0 | D39: =+'A2.Demanda'!E307*365*$K$4*$N$4*D$20 -> 0 | E39: =+'A2.Demanda'!F307*365*$K$4*$N$4*E$20 -> 0 | F39: =+'A2.Demanda'!G307*365*$K$4*$N$4*F$20 -> 0 | G39: =+'A2.Demanda'!H307*365*$K$4*$N$4*G$20 -> 0 | H39: =+'A2.Demanda'!I307*365*$K$4*$N$4*H$20 -> 0 | I39: =+'A2.Demanda'!J307*365*$K$4*$N$4*I$20 -> 0 | J39: =+'A2.Demanda'!K307*365*$K$4*$N$4*J$20 -> 0 | K39: =+'A2.Demanda'!L307*365*$K$4*$N$4*K$20 -> 0 | L39: =+'A2.Demanda'!M307*365*$K$4*$N$4*L$20 -> 0 | M39: =+'A2.Demanda'!N307*365*$K$4*$N$4*M$20 -> 0 | N39: =+'A2.Demanda'!O307*365*$K$4*$N$4*N$20 -> 0 | O39: =+'A2.Demanda'!P307*365*$K$4*$N$4*O$20 -> 0 | P39: 0 | Q39: Año 16 | R39: =+'A2.Demanda'!C307*365*$AA$4*$AD$4*R$20 -> 0 | S39: =+'A2.Demanda'!D307*365*$AA$4*$AD$4*S$20 -> 0 | T39: =+'A2.Demanda'!E307*365*$AA$4*$AD$4*T$20 -> 0 | U39: =+'A2.Demanda'!F307*365*$AA$4*$AD$4*U$20 -> 0 | V39: =+'A2.Demanda'!G307*365*$AA$4*$AD$4*V$20 -> 0 | W39: =+'A2.Demanda'!H307*365*$AA$4*$AD$4*W$20 -> 0 | X39: =+'A2.Demanda'!I307*365*$AA$4*$AD$4*X$20 -> 0 | Y39: =+'A2.Demanda'!J307*365*$AA$4*$AD$4*Y$20 -> 0 | Z39: =+'A2.Demanda'!K307*365*$AA$4*$AD$4*Z$20 -> 0 | AA39: =+'A2.Demanda'!L307*365*$AA$4*$AD$4*AA$20 -> 0 | AB39: =+'A2.Demanda'!M307*365*$AA$4*$AD$4*AB$20 -> 0 | AC39: =+'A2.Demanda'!N307*365*$AA$4*$AD$4*AC$20 -> 0 | AD39: =+'A2.Demanda'!O307*365*$AA$4*$AD$4*AD$20 -> 0 | AE39: =+'A2.Demanda'!P307*365*$AA$4*$AD$4*AE$20 -> 0 | AF39: 0
A40: 17 | B40: =+'A2.Demanda'!C308*365*$K$4*$N$4*B$20 -> 0 | C40: =+'A2.Demanda'!D308*365*$K$4*$N$4*C$20 -> 0 | D40: =+'A2.Demanda'!E308*365*$K$4*$N$4*D$20 -> 0 | E40: =+'A2.Demanda'!F308*365*$K$4*$N$4*E$20 -> 0 | F40: =+'A2.Demanda'!G308*365*$K$4*$N$4*F$20 -> 0 | G40: =+'A2.Demanda'!H308*365*$K$4*$N$4*G$20 -> 0 | H40: =+'A2.Demanda'!I308*365*$K$4*$N$4*H$20 -> 0 | I40: =+'A2.Demanda'!J308*365*$K$4*$N$4*I$20 -> 0 | J40: =+'A2.Demanda'!K308*365*$K$4*$N$4*J$20 -> 0 | K40: =+'A2.Demanda'!L308*365*$K$4*$N$4*K$20 -> 0 | L40: =+'A2.Demanda'!M308*365*$K$4*$N$4*L$20 -> 0 | M40: =+'A2.Demanda'!N308*365*$K$4*$N$4*M$20 -> 0 | N40: =+'A2.Demanda'!O308*365*$K$4*$N$4*N$20 -> 0 | O40: =+'A2.Demanda'!P308*365*$K$4*$N$4*O$20 -> 0 | P40: 0 | Q40: Año 17 | R40: =+'A2.Demanda'!C308*365*$AA$4*$AD$4*R$20 -> 0 | S40: =+'A2.Demanda'!D308*365*$AA$4*$AD$4*S$20 -> 0 | T40: =+'A2.Demanda'!E308*365*$AA$4*$AD$4*T$20 -> 0 | U40: =+'A2.Demanda'!F308*365*$AA$4*$AD$4*U$20 -> 0 | V40: =+'A2.Demanda'!G308*365*$AA$4*$AD$4*V$20 -> 0 | W40: =+'A2.Demanda'!H308*365*$AA$4*$AD$4*W$20 -> 0 | X40: =+'A2.Demanda'!I308*365*$AA$4*$AD$4*X$20 -> 0 | Y40: =+'A2.Demanda'!J308*365*$AA$4*$AD$4*Y$20 -> 0 | Z40: =+'A2.Demanda'!K308*365*$AA$4*$AD$4*Z$20 -> 0 | AA40: =+'A2.Demanda'!L308*365*$AA$4*$AD$4*AA$20 -> 0 | AB40: =+'A2.Demanda'!M308*365*$AA$4*$AD$4*AB$20 -> 0 | AC40: =+'A2.Demanda'!N308*365*$AA$4*$AD$4*AC$20 -> 0 | AD40: =+'A2.Demanda'!O308*365*$AA$4*$AD$4*AD$20 -> 0 | AE40: =+'A2.Demanda'!P308*365*$AA$4*$AD$4*AE$20 -> 0 | AF40: 0
A41: 18 | B41: =+'A2.Demanda'!C309*365*$K$4*$N$4*B$20 -> 0 | C41: =+'A2.Demanda'!D309*365*$K$4*$N$4*C$20 -> 0 | D41: =+'A2.Demanda'!E309*365*$K$4*$N$4*D$20 -> 0 | E41: =+'A2.Demanda'!F309*365*$K$4*$N$4*E$20 -> 0 | F41: =+'A2.Demanda'!G309*365*$K$4*$N$4*F$20 -> 0 | G41: =+'A2.Demanda'!H309*365*$K$4*$N$4*G$20 -> 0 | H41: =+'A2.Demanda'!I309*365*$K$4*$N$4*H$20 -> 0 | I41: =+'A2.Demanda'!J309*365*$K$4*$N$4*I$20 -> 0 | J41: =+'A2.Demanda'!K309*365*$K$4*$N$4*J$20 -> 0 | K41: =+'A2.Demanda'!L309*365*$K$4*$N$4*K$20 -> 0 | L41: =+'A2.Demanda'!M309*365*$K$4*$N$4*L$20 -> 0 | M41: =+'A2.Demanda'!N309*365*$K$4*$N$4*M$20 -> 0 | N41: =+'A2.Demanda'!O309*365*$K$4*$N$4*N$20 -> 0 | O41: =+'A2.Demanda'!P309*365*$K$4*$N$4*O$20 -> 0 | P41: 0 | Q41: Año 18 | R41: =+'A2.Demanda'!C309*365*$AA$4*$AD$4*R$20 -> 0 | S41: =+'A2.Demanda'!D309*365*$AA$4*$AD$4*S$20 -> 0 | T41: =+'A2.Demanda'!E309*365*$AA$4*$AD$4*T$20 -> 0 | U41: =+'A2.Demanda'!F309*365*$AA$4*$AD$4*U$20 -> 0 | V41: =+'A2.Demanda'!G309*365*$AA$4*$AD$4*V$20 -> 0 | W41: =+'A2.Demanda'!H309*365*$AA$4*$AD$4*W$20 -> 0 | X41: =+'A2.Demanda'!I309*365*$AA$4*$AD$4*X$20 -> 0 | Y41: =+'A2.Demanda'!J309*365*$AA$4*$AD$4*Y$20 -> 0 | Z41: =+'A2.Demanda'!K309*365*$AA$4*$AD$4*Z$20 -> 0 | AA41: =+'A2.Demanda'!L309*365*$AA$4*$AD$4*AA$20 -> 0 | AB41: =+'A2.Demanda'!M309*365*$AA$4*$AD$4*AB$20 -> 0 | AC41: =+'A2.Demanda'!N309*365*$AA$4*$AD$4*AC$20 -> 0 | AD41: =+'A2.Demanda'!O309*365*$AA$4*$AD$4*AD$20 -> 0 | AE41: =+'A2.Demanda'!P309*365*$AA$4*$AD$4*AE$20 -> 0 | AF41: 0
A42: 19 | B42: =+'A2.Demanda'!C310*365*$K$4*$N$4*B$20 -> 0 | C42: =+'A2.Demanda'!D310*365*$K$4*$N$4*C$20 -> 0 | D42: =+'A2.Demanda'!E310*365*$K$4*$N$4*D$20 -> 0 | E42: =+'A2.Demanda'!F310*365*$K$4*$N$4*E$20 -> 0 | F42: =+'A2.Demanda'!G310*365*$K$4*$N$4*F$20 -> 0 | G42: =+'A2.Demanda'!H310*365*$K$4*$N$4*G$20 -> 0 | H42: =+'A2.Demanda'!I310*365*$K$4*$N$4*H$20 -> 0 | I42: =+'A2.Demanda'!J310*365*$K$4*$N$4*I$20 -> 0 | J42: =+'A2.Demanda'!K310*365*$K$4*$N$4*J$20 -> 0 | K42: =+'A2.Demanda'!L310*365*$K$4*$N$4*K$20 -> 0 | L42: =+'A2.Demanda'!M310*365*$K$4*$N$4*L$20 -> 0 | M42: =+'A2.Demanda'!N310*365*$K$4*$N$4*M$20 -> 0 | N42: =+'A2.Demanda'!O310*365*$K$4*$N$4*N$20 -> 0 | O42: =+'A2.Demanda'!P310*365*$K$4*$N$4*O$20 -> 0 | P42: 0 | Q42: Año 19 | R42: =+'A2.Demanda'!C310*365*$AA$4*$AD$4*R$20 -> 0 | S42: =+'A2.Demanda'!D310*365*$AA$4*$AD$4*S$20 -> 0 | T42: =+'A2.Demanda'!E310*365*$AA$4*$AD$4*T$20 -> 0 | U42: =+'A2.Demanda'!F310*365*$AA$4*$AD$4*U$20 -> 0 | V42: =+'A2.Demanda'!G310*365*$AA$4*$AD$4*V$20 -> 0 | W42: =+'A2.Demanda'!H310*365*$AA$4*$AD$4*W$20 -> 0 | X42: =+'A2.Demanda'!I310*365*$AA$4*$AD$4*X$20 -> 0 | Y42: =+'A2.Demanda'!J310*365*$AA$4*$AD$4*Y$20 -> 0 | Z42: =+'A2.Demanda'!K310*365*$AA$4*$AD$4*Z$20 -> 0 | AA42: =+'A2.Demanda'!L310*365*$AA$4*$AD$4*AA$20 -> 0 | AB42: =+'A2.Demanda'!M310*365*$AA$4*$AD$4*AB$20 -> 0 | AC42: =+'A2.Demanda'!N310*365*$AA$4*$AD$4*AC$20 -> 0 | AD42: =+'A2.Demanda'!O310*365*$AA$4*$AD$4*AD$20 -> 0 | AE42: =+'A2.Demanda'!P310*365*$AA$4*$AD$4*AE$20 -> 0 | AF42: 0
A43: 20 | B43: =+'A2.Demanda'!C311*365*$K$4*$N$4*B$20 -> 0 | C43: =+'A2.Demanda'!D311*365*$K$4*$N$4*C$20 -> 0 | D43: =+'A2.Demanda'!E311*365*$K$4*$N$4*D$20 -> 0 | E43: =+'A2.Demanda'!F311*365*$K$4*$N$4*E$20 -> 0 | F43: =+'A2.Demanda'!G311*365*$K$4*$N$4*F$20 -> 0 | G43: =+'A2.Demanda'!H311*365*$K$4*$N$4*G$20 -> 0 | H43: =+'A2.Demanda'!I311*365*$K$4*$N$4*H$20 -> 0 | I43: =+'A2.Demanda'!J311*365*$K$4*$N$4*I$20 -> 0 | J43: =+'A2.Demanda'!K311*365*$K$4*$N$4*J$20 -> 0 | K43: =+'A2.Demanda'!L311*365*$K$4*$N$4*K$20 -> 0 | L43: =+'A2.Demanda'!M311*365*$K$4*$N$4*L$20 -> 0 | M43: =+'A2.Demanda'!N311*365*$K$4*$N$4*M$20 -> 0 | N43: =+'A2.Demanda'!O311*365*$K$4*$N$4*N$20 -> 0 | O43: =+'A2.Demanda'!P311*365*$K$4*$N$4*O$20 -> 0 | P43: 0 | Q43: Año 20 | R43: =+'A2.Demanda'!C311*365*$AA$4*$AD$4*R$20 -> 0 | S43: =+'A2.Demanda'!D311*365*$AA$4*$AD$4*S$20 -> 0 | T43: =+'A2.Demanda'!E311*365*$AA$4*$AD$4*T$20 -> 0 | U43: =+'A2.Demanda'!F311*365*$AA$4*$AD$4*U$20 -> 0 | V43: =+'A2.Demanda'!G311*365*$AA$4*$AD$4*V$20 -> 0 | W43: =+'A2.Demanda'!H311*365*$AA$4*$AD$4*W$20 -> 0 | X43: =+'A2.Demanda'!I311*365*$AA$4*$AD$4*X$20 -> 0 | Y43: =+'A2.Demanda'!J311*365*$AA$4*$AD$4*Y$20 -> 0 | Z43: =+'A2.Demanda'!K311*365*$AA$4*$AD$4*Z$20 -> 0 | AA43: =+'A2.Demanda'!L311*365*$AA$4*$AD$4*AA$20 -> 0 | AB43: =+'A2.Demanda'!M311*365*$AA$4*$AD$4*AB$20 -> 0 | AC43: =+'A2.Demanda'!N311*365*$AA$4*$AD$4*AC$20 -> 0 | AD43: =+'A2.Demanda'!O311*365*$AA$4*$AD$4*AD$20 -> 0 | AE43: =+'A2.Demanda'!P311*365*$AA$4*$AD$4*AE$20 -> 0 | AF43: 0
A44: Beneficios | B44: =SUM(B24:B43) -> 0 | C44: =SUM(C24:C43) -> 0 | D44: 0 | E44: 0 | F44: 0 | G44: 0 | H44: 0 | I44: 0 | J44: 0 | K44: 0 | L44: 0 | M44: 0 | N44: 0 | O44: 0 | P44: =SUM(B44:O44) -> 0 | Q44: Beneficios | R44: =SUM(R24:R43) -> 0 | S44: =SUM(S24:S43) -> 0 | T44: 0 | U44: 0 | V44: 0 | W44: 0 | X44: 0 | Y44: 0 | Z44: 0 | AA44: 0 | AB44: 0 | AC44: 0 | AD44: 0 | AE44: 0 | AF44: =SUM(R44:AE44) -> 0
B47: Auto | C47: Station Wagon | D47: Camioneta | E47: Camioneta Rural | F47: Microbús | G47: Bus 2 Ejes | H47: Bus 3 Ejes | I47: Bus 4 Ejes | J47: Camión 2 Ejes | K47: Camión 3 Ejes | L47: Camión 4 Ejes | M47: Semitrailer 2 Ejes | N47: Semitrailer 3 Ejes | O47: Articulado | R47: Auto | S47: Station Wagon | T47: Camioneta | U47: Camioneta Rural | V47: Microbús | W47: Bus 2 Ejes | X47: Bus 3 Ejes | Y47: Bus 4 Ejes | Z47: Camión 2 Ejes | AA47: Camión 3 Ejes | AB47: Camión 4 Ejes | AC47: Semitrailer 2 Ejes | AD47: Semitrailer 3 Ejes | AE47: Articulado
B48: AU | C48: SW | D48: CA | E48: CR | F48: MB | G48: B2 | H48: B3 | I48: B4 | J48: C2 | K48: C3 | L48: C4 | M48: S2 | N48: S3 | O48: TR | R48: AU | S48: SW | T48: CA | U48: CR | V48: MB | W48: B2 | X48: B3 | Y48: B4 | Z48: C2 | AA48: C3 | AB48: C4 | AC48: S2 | AD48: S3 | AE48: TR
A49: Tráfico Generado | B49: $/veh-km | C49: $/veh-km | D49: $/veh-km | E49: $/veh-km | F49: $/veh-km | G49: $/veh-km | H49: $/veh-km | I49: $/veh-km | J49: $/veh-km | K49: $/veh-km | L49: $/veh-km | M49: $/veh-km | N49: $/veh-km | O49: $/veh-km | Q49: Tráfico Generado | R49: $/veh-km | S49: $/veh-km | T49: $/veh-km | U49: $/veh-km | V49: $/veh-km | W49: $/veh-km | X49: $/veh-km | Y49: $/veh-km | Z49: $/veh-km | AA49: $/veh-km | AB49: $/veh-km | AC49: $/veh-km | AD49: $/veh-km | AE49: $/veh-km
A50: Año 1 | B50: ='A2.Demanda'!C336*365*$K$4*$N$4*B$20*0.5 -> 0 | C50: ='A2.Demanda'!D336*365*$K$4*$N$4*C$20*0.5 -> 0 | D50: ='A2.Demanda'!E336*365*$K$4*$N$4*D$20*0.5 -> 0 | E50: ='A2.Demanda'!F336*365*$K$4*$N$4*E$20*0.5 -> 0 | F50: ='A2.Demanda'!G336*365*$K$4*$N$4*F$20*0.5 -> 0 | G50: ='A2.Demanda'!H336*365*$K$4*$N$4*G$20*0.5 -> 0 | H50: ='A2.Demanda'!I336*365*$K$4*$N$4*H$20*0.5 -> 0 | I50: ='A2.Demanda'!J336*365*$K$4*$N$4*I$20*0.5 -> 0 | J50: ='A2.Demanda'!K336*365*$K$4*$N$4*J$20*0.5 -> 0 | K50: ='A2.Demanda'!L336*365*$K$4*$N$4*K$20*0.5 -> 0 | L50: ='A2.Demanda'!M336*365*$K$4*$N$4*L$20*0.5 -> 0 | M50: ='A2.Demanda'!N336*365*$K$4*$N$4*M$20*0.5 -> 0 | N50: ='A2.Demanda'!O336*365*$K$4*$N$4*N$20*0.5 -> 0 | O50: ='A2.Demanda'!P336*365*$K$4*$N$4*O$20*0.5 -> 0 | P50: =SUM(B50:O50) -> 0 | Q50: Año 1 | R50: =+'A2.Demanda'!C336*365*$K$4*$N$4*R$20*0.5 -> 0 | S50: =+'A2.Demanda'!D336*365*$K$4*$N$4*S$20*0.5 -> 0 | T50: =+'A2.Demanda'!E336*365*$K$4*$N$4*T$20*0.5 -> 0 | U50: =+'A2.Demanda'!F336*365*$K$4*$N$4*U$20*0.5 -> 0 | V50: =+'A2.Demanda'!G336*365*$K$4*$N$4*V$20*0.5 -> 0 | W50: =+'A2.Demanda'!H336*365*$K$4*$N$4*W$20*0.5 -> 0 | X50: =+'A2.Demanda'!I336*365*$K$4*$N$4*X$20*0.5 -> 0 | Y50: =+'A2.Demanda'!J336*365*$K$4*$N$4*Y$20*0.5 -> 0 | Z50: =+'A2.Demanda'!K336*365*$K$4*$N$4*Z$20*0.5 -> 0 | AA50: =+'A2.Demanda'!L336*365*$K$4*$N$4*AA$20*0.5 -> 0 | AB50: =+'A2.Demanda'!M336*365*$K$4*$N$4*AB$20*0.5 -> 0 | AC50: =+'A2.Demanda'!N336*365*$K$4*$N$4*AC$20*0.5 -> 0 | AD50: =+'A2.Demanda'!O336*365*$K$4*$N$4*AD$20*0.5 -> 0 | AE50: =+'A2.Demanda'!P336*365*$K$4*$N$4*AE$20*0.5 -> 0 | AF50: =SUM(R50:AE50) -> 0
A51: Año 2 | B51: ='A2.Demanda'!C337*365*$K$4*$N$4*B$20*0.5 -> 0 | C51: ='A2.Demanda'!D337*365*$K$4*$N$4*C$20*0.5 -> 0 | D51: ='A2.Demanda'!E337*365*$K$4*$N$4*D$20*0.5 -> 0 | E51: ='A2.Demanda'!F337*365*$K$4*$N$4*E$20*0.5 -> 0 | F51: ='A2.Demanda'!G337*365*$K$4*$N$4*F$20*0.5 -> 0 | G51: ='A2.Demanda'!H337*365*$K$4*$N$4*G$20*0.5 -> 0 | H51: ='A2.Demanda'!I337*365*$K$4*$N$4*H$20*0.5 -> 0 | I51: ='A2.Demanda'!J337*365*$K$4*$N$4*I$20*0.5 -> 0 | J51: ='A2.Demanda'!K337*365*$K$4*$N$4*J$20*0.5 -> 0 | K51: ='A2.Demanda'!L337*365*$K$4*$N$4*K$20*0.5 -> 0 | L51: ='A2.Demanda'!M337*365*$K$4*$N$4*L$20*0.5 -> 0 | M51: ='A2.Demanda'!N337*365*$K$4*$N$4*M$20*0.5 -> 0 | N51: ='A2.Demanda'!O337*365*$K$4*$N$4*N$20*0.5 -> 0 | O51: ='A2.Demanda'!P337*365*$K$4*$N$4*O$20*0.5 -> 0 | P51: 0 | Q51: Año 2 | R51: =+'A2.Demanda'!C337*365*$K$4*$N$4*R$20*0.5 -> 0 | S51: =+'A2.Demanda'!D337*365*$K$4*$N$4*S$20*0.5 -> 0 | T51: =+'A2.Demanda'!E337*365*$K$4*$N$4*T$20*0.5 -> 0 | U51: =+'A2.Demanda'!F337*365*$K$4*$N$4*U$20*0.5 -> 0 | V51: =+'A2.Demanda'!G337*365*$K$4*$N$4*V$20*0.5 -> 0 | W51: =+'A2.Demanda'!H337*365*$K$4*$N$4*W$20*0.5 -> 0 | X51: =+'A2.Demanda'!I337*365*$K$4*$N$4*X$20*0.5 -> 0 | Y51: =+'A2.Demanda'!J337*365*$K$4*$N$4*Y$20*0.5 -> 0 | Z51: =+'A2.Demanda'!K337*365*$K$4*$N$4*Z$20*0.5 -> 0 | AA51: =+'A2.Demanda'!L337*365*$K$4*$N$4*AA$20*0.5 -> 0 | AB51: =+'A2.Demanda'!M337*365*$K$4*$N$4*AB$20*0.5 -> 0 | AC51: =+'A2.Demanda'!N337*365*$K$4*$N$4*AC$20*0.5 -> 0 | AD51: =+'A2.Demanda'!O337*365*$K$4*$N$4*AD$20*0.5 -> 0 | AE51: =+'A2.Demanda'!P337*365*$K$4*$N$4*AE$20*0.5 -> 0 | AF51: 0
A52: Año 3 | B52: ='A2.Demanda'!C338*365*$K$4*$N$4*B$20*0.5 -> 0 | C52: ='A2.Demanda'!D338*365*$K$4*$N$4*C$20*0.5 -> 0 | D52: ='A2.Demanda'!E338*365*$K$4*$N$4*D$20*0.5 -> 0 | E52: ='A2.Demanda'!F338*365*$K$4*$N$4*E$20*0.5 -> 0 | F52: ='A2.Demanda'!G338*365*$K$4*$N$4*F$20*0.5 -> 0 | G52: ='A2.Demanda'!H338*365*$K$4*$N$4*G$20*0.5 -> 0 | H52: ='A2.Demanda'!I338*365*$K$4*$N$4*H$20*0.5 -> 0 | I52: ='A2.Demanda'!J338*365*$K$4*$N$4*I$20*0.5 -> 0 | J52: ='A2.Demanda'!K338*365*$K$4*$N$4*J$20*0.5 -> 0 | K52: ='A2.Demanda'!L338*365*$K$4*$N$4*K$20*0.5 -> 0 | L52: ='A2.Demanda'!M338*365*$K$4*$N$4*L$20*0.5 -> 0 | M52: ='A2.Demanda'!N338*365*$K$4*$N$4*M$20*0.5 -> 0 | N52: ='A2.Demanda'!O338*365*$K$4*$N$4*N$20*0.5 -> 0 | O52: ='A2.Demanda'!P338*365*$K$4*$N$4*O$20*0.5 -> 0 | P52: 0 | Q52: Año 3 | R52: =+'A2.Demanda'!C338*365*$K$4*$N$4*R$20*0.5 -> 0 | S52: =+'A2.Demanda'!D338*365*$K$4*$N$4*S$20*0.5 -> 0 | T52: =+'A2.Demanda'!E338*365*$K$4*$N$4*T$20*0.5 -> 0 | U52: =+'A2.Demanda'!F338*365*$K$4*$N$4*U$20*0.5 -> 0 | V52: =+'A2.Demanda'!G338*365*$K$4*$N$4*V$20*0.5 -> 0 | W52: =+'A2.Demanda'!H338*365*$K$4*$N$4*W$20*0.5 -> 0 | X52: =+'A2.Demanda'!I338*365*$K$4*$N$4*X$20*0.5 -> 0 | Y52: =+'A2.Demanda'!J338*365*$K$4*$N$4*Y$20*0.5 -> 0 | Z52: =+'A2.Demanda'!K338*365*$K$4*$N$4*Z$20*0.5 -> 0 | AA52: =+'A2.Demanda'!L338*365*$K$4*$N$4*AA$20*0.5 -> 0 | AB52: =+'A2.Demanda'!M338*365*$K$4*$N$4*AB$20*0.5 -> 0 | AC52: =+'A2.Demanda'!N338*365*$K$4*$N$4*AC$20*0.5 -> 0 | AD52: =+'A2.Demanda'!O338*365*$K$4*$N$4*AD$20*0.5 -> 0 | AE52: =+'A2.Demanda'!P338*365*$K$4*$N$4*AE$20*0.5 -> 0 | AF52: 0
A53: Año 4 | B53: ='A2.Demanda'!C339*365*$K$4*$N$4*B$20*0.5 -> 0 | C53: ='A2.Demanda'!D339*365*$K$4*$N$4*C$20*0.5 -> 0 | D53: ='A2.Demanda'!E339*365*$K$4*$N$4*D$20*0.5 -> 0 | E53: ='A2.Demanda'!F339*365*$K$4*$N$4*E$20*0.5 -> 0 | F53: ='A2.Demanda'!G339*365*$K$4*$N$4*F$20*0.5 -> 0 | G53: ='A2.Demanda'!H339*365*$K$4*$N$4*G$20*0.5 -> 0 | H53: ='A2.Demanda'!I339*365*$K$4*$N$4*H$20*0.5 -> 0 | I53: ='A2.Demanda'!J339*365*$K$4*$N$4*I$20*0.5 -> 0 | J53: ='A2.Demanda'!K339*365*$K$4*$N$4*J$20*0.5 -> 0 | K53: ='A2.Demanda'!L339*365*$K$4*$N$4*K$20*0.5 -> 0 | L53: ='A2.Demanda'!M339*365*$K$4*$N$4*L$20*0.5 -> 0 | M53: ='A2.Demanda'!N339*365*$K$4*$N$4*M$20*0.5 -> 0 | N53: ='A2.Demanda'!O339*365*$K$4*$N$4*N$20*0.5 -> 0 | O53: ='A2.Demanda'!P339*365*$K$4*$N$4*O$20*0.5 -> 0 | P53: 0 | Q53: Año 4 | R53: =+'A2.Demanda'!C339*365*$K$4*$N$4*R$20*0.5 -> 0 | S53: =+'A2.Demanda'!D339*365*$K$4*$N$4*S$20*0.5 -> 0 | T53: =+'A2.Demanda'!E339*365*$K$4*$N$4*T$20*0.5 -> 0 | U53: =+'A2.Demanda'!F339*365*$K$4*$N$4*U$20*0.5 -> 0 | V53: =+'A2.Demanda'!G339*365*$K$4*$N$4*V$20*0.5 -> 0 | W53: =+'A2.Demanda'!H339*365*$K$4*$N$4*W$20*0.5 -> 0 | X53: =+'A2.Demanda'!I339*365*$K$4*$N$4*X$20*0.5 -> 0 | Y53: =+'A2.Demanda'!J339*365*$K$4*$N$4*Y$20*0.5 -> 0 | Z53: =+'A2.Demanda'!K339*365*$K$4*$N$4*Z$20*0.5 -> 0 | AA53: =+'A2.Demanda'!L339*365*$K$4*$N$4*AA$20*0.5 -> 0 | AB53: =+'A2.Demanda'!M339*365*$K$4*$N$4*AB$20*0.5 -> 0 | AC53: =+'A2.Demanda'!N339*365*$K$4*$N$4*AC$20*0.5 -> 0 | AD53: =+'A2.Demanda'!O339*365*$K$4*$N$4*AD$20*0.5 -> 0 | AE53: =+'A2.Demanda'!P339*365*$K$4*$N$4*AE$20*0.5 -> 0 | AF53: 0
A54: Año 5 | B54: ='A2.Demanda'!C340*365*$K$4*$N$4*B$20*0.5 -> 0 | C54: ='A2.Demanda'!D340*365*$K$4*$N$4*C$20*0.5 -> 0 | D54: ='A2.Demanda'!E340*365*$K$4*$N$4*D$20*0.5 -> 0 | E54: ='A2.Demanda'!F340*365*$K$4*$N$4*E$20*0.5 -> 0 | F54: ='A2.Demanda'!G340*365*$K$4*$N$4*F$20*0.5 -> 0 | G54: ='A2.Demanda'!H340*365*$K$4*$N$4*G$20*0.5 -> 0 | H54: ='A2.Demanda'!I340*365*$K$4*$N$4*H$20*0.5 -> 0 | I54: ='A2.Demanda'!J340*365*$K$4*$N$4*I$20*0.5 -> 0 | J54: ='A2.Demanda'!K340*365*$K$4*$N$4*J$20*0.5 -> 0 | K54: ='A2.Demanda'!L340*365*$K$4*$N$4*K$20*0.5 -> 0 | L54: ='A2.Demanda'!M340*365*$K$4*$N$4*L$20*0.5 -> 0 | M54: ='A2.Demanda'!N340*365*$K$4*$N$4*M$20*0.5 -> 0 | N54: ='A2.Demanda'!O340*365*$K$4*$N$4*N$20*0.5 -> 0 | O54: ='A2.Demanda'!P340*365*$K$4*$N$4*O$20*0.5 -> 0 | P54: 0 | Q54: Año 5 | R54: =+'A2.Demanda'!C340*365*$K$4*$N$4*R$20*0.5 -> 0 | S54: =+'A2.Demanda'!D340*365*$K$4*$N$4*S$20*0.5 -> 0 | T54: =+'A2.Demanda'!E340*365*$K$4*$N$4*T$20*0.5 -> 0 | U54: =+'A2.Demanda'!F340*365*$K$4*$N$4*U$20*0.5 -> 0 | V54: =+'A2.Demanda'!G340*365*$K$4*$N$4*V$20*0.5 -> 0 | W54: =+'A2.Demanda'!H340*365*$K$4*$N$4*W$20*0.5 -> 0 | X54: =+'A2.Demanda'!I340*365*$K$4*$N$4*X$20*0.5 -> 0 | Y54: =+'A2.Demanda'!J340*365*$K$4*$N$4*Y$20*0.5 -> 0 | Z54: =+'A2.Demanda'!K340*365*$K$4*$N$4*Z$20*0.5 -> 0 | AA54: =+'A2.Demanda'!L340*365*$K$4*$N$4*AA$20*0.5 -> 0 | AB54: =+'A2.Demanda'!M340*365*$K$4*$N$4*AB$20*0.5 -> 0 | AC54: =+'A2.Demanda'!N340*365*$K$4*$N$4*AC$20*0.5 -> 0 | AD54: =+'A2.Demanda'!O340*365*$K$4*$N$4*AD$20*0.5 -> 0 | AE54: =+'A2.Demanda'!P340*365*$K$4*$N$4*AE$20*0.5 -> 0 | AF54: 0
A55: Año 6 | B55: ='A2.Demanda'!C341*365*$K$4*$N$4*B$20*0.5 -> 0 | C55: ='A2.Demanda'!D341*365*$K$4*$N$4*C$20*0.5 -> 0 | D55: ='A2.Demanda'!E341*365*$K$4*$N$4*D$20*0.5 -> 0 | E55: ='A2.Demanda'!F341*365*$K$4*$N$4*E$20*0.5 -> 0 | F55: ='A2.Demanda'!G341*365*$K$4*$N$4*F$20*0.5 -> 0 | G55: ='A2.Demanda'!H341*365*$K$4*$N$4*G$20*0.5 -> 0 | H55: ='A2.Demanda'!I341*365*$K$4*$N$4*H$20*0.5 -> 0 | I55: ='A2.Demanda'!J341*365*$K$4*$N$4*I$20*0.5 -> 0 | J55: ='A2.Demanda'!K341*365*$K$4*$N$4*J$20*0.5 -> 0 | K55: ='A2.Demanda'!L341*365*$K$4*$N$4*K$20*0.5 -> 0 | L55: ='A2.Demanda'!M341*365*$K$4*$N$4*L$20*0.5 -> 0 | M55: ='A2.Demanda'!N341*365*$K$4*$N$4*M$20*0.5 -> 0 | N55: ='A2.Demanda'!O341*365*$K$4*$N$4*N$20*0.5 -> 0 | O55: ='A2.Demanda'!P341*365*$K$4*$N$4*O$20*0.5 -> 0 | P55: 0 | Q55: Año 6 | R55: =+'A2.Demanda'!C341*365*$K$4*$N$4*R$20*0.5 -> 0 | S55: =+'A2.Demanda'!D341*365*$K$4*$N$4*S$20*0.5 -> 0 | T55: =+'A2.Demanda'!E341*365*$K$4*$N$4*T$20*0.5 -> 0 | U55: =+'A2.Demanda'!F341*365*$K$4*$N$4*U$20*0.5 -> 0 | V55: =+'A2.Demanda'!G341*365*$K$4*$N$4*V$20*0.5 -> 0 | W55: =+'A2.Demanda'!H341*365*$K$4*$N$4*W$20*0.5 -> 0 | X55: =+'A2.Demanda'!I341*365*$K$4*$N$4*X$20*0.5 -> 0 | Y55: =+'A2.Demanda'!J341*365*$K$4*$N$4*Y$20*0.5 -> 0 | Z55: =+'A2.Demanda'!K341*365*$K$4*$N$4*Z$20*0.5 -> 0 | AA55: =+'A2.Demanda'!L341*365*$K$4*$N$4*AA$20*0.5 -> 0 | AB55: =+'A2.Demanda'!M341*365*$K$4*$N$4*AB$20*0.5 -> 0 | AC55: =+'A2.Demanda'!N341*365*$K$4*$N$4*AC$20*0.5 -> 0 | AD55: =+'A2.Demanda'!O341*365*$K$4*$N$4*AD$20*0.5 -> 0 | AE55: =+'A2.Demanda'!P341*365*$K$4*$N$4*AE$20*0.5 -> 0 | AF55: 0
A56: Año 7 | B56: ='A2.Demanda'!C342*365*$K$4*$N$4*B$20*0.5 -> 0 | C56: ='A2.Demanda'!D342*365*$K$4*$N$4*C$20*0.5 -> 0 | D56: ='A2.Demanda'!E342*365*$K$4*$N$4*D$20*0.5 -> 0 | E56: ='A2.Demanda'!F342*365*$K$4*$N$4*E$20*0.5 -> 0 | F56: ='A2.Demanda'!G342*365*$K$4*$N$4*F$20*0.5 -> 0 | G56: ='A2.Demanda'!H342*365*$K$4*$N$4*G$20*0.5 -> 0 | H56: ='A2.Demanda'!I342*365*$K$4*$N$4*H$20*0.5 -> 0 | I56: ='A2.Demanda'!J342*365*$K$4*$N$4*I$20*0.5 -> 0 | J56: ='A2.Demanda'!K342*365*$K$4*$N$4*J$20*0.5 -> 0 | K56: ='A2.Demanda'!L342*365*$K$4*$N$4*K$20*0.5 -> 0 | L56: ='A2.Demanda'!M342*365*$K$4*$N$4*L$20*0.5 -> 0 | M56: ='A2.Demanda'!N342*365*$K$4*$N$4*M$20*0.5 -> 0 | N56: ='A2.Demanda'!O342*365*$K$4*$N$4*N$20*0.5 -> 0 | O56: ='A2.Demanda'!P342*365*$K$4*$N$4*O$20*0.5 -> 0 | P56: 0 | Q56: Año 7 | R56: =+'A2.Demanda'!C342*365*$K$4*$N$4*R$20*0.5 -> 0 | S56: =+'A2.Demanda'!D342*365*$K$4*$N$4*S$20*0.5 -> 0 | T56: =+'A2.Demanda'!E342*365*$K$4*$N$4*T$20*0.5 -> 0 | U56: =+'A2.Demanda'!F342*365*$K$4*$N$4*U$20*0.5 -> 0 | V56: =+'A2.Demanda'!G342*365*$K$4*$N$4*V$20*0.5 -> 0 | W56: =+'A2.Demanda'!H342*365*$K$4*$N$4*W$20*0.5 -> 0 | X56: =+'A2.Demanda'!I342*365*$K$4*$N$4*X$20*0.5 -> 0 | Y56: =+'A2.Demanda'!J342*365*$K$4*$N$4*Y$20*0.5 -> 0 | Z56: =+'A2.Demanda'!K342*365*$K$4*$N$4*Z$20*0.5 -> 0 | AA56: =+'A2.Demanda'!L342*365*$K$4*$N$4*AA$20*0.5 -> 0 | AB56: =+'A2.Demanda'!M342*365*$K$4*$N$4*AB$20*0.5 -> 0 | AC56: =+'A2.Demanda'!N342*365*$K$4*$N$4*AC$20*0.5 -> 0 | AD56: =+'A2.Demanda'!O342*365*$K$4*$N$4*AD$20*0.5 -> 0 | AE56: =+'A2.Demanda'!P342*365*$K$4*$N$4*AE$20*0.5 -> 0 | AF56: 0
A57: Año 8 | B57: ='A2.Demanda'!C343*365*$K$4*$N$4*B$20*0.5 -> 0 | C57: ='A2.Demanda'!D343*365*$K$4*$N$4*C$20*0.5 -> 0 | D57: ='A2.Demanda'!E343*365*$K$4*$N$4*D$20*0.5 -> 0 | E57: ='A2.Demanda'!F343*365*$K$4*$N$4*E$20*0.5 -> 0 | F57: ='A2.Demanda'!G343*365*$K$4*$N$4*F$20*0.5 -> 0 | G57: ='A2.Demanda'!H343*365*$K$4*$N$4*G$20*0.5 -> 0 | H57: ='A2.Demanda'!I343*365*$K$4*$N$4*H$20*0.5 -> 0 | I57: ='A2.Demanda'!J343*365*$K$4*$N$4*I$20*0.5 -> 0 | J57: ='A2.Demanda'!K343*365*$K$4*$N$4*J$20*0.5 -> 0 | K57: ='A2.Demanda'!L343*365*$K$4*$N$4*K$20*0.5 -> 0 | L57: ='A2.Demanda'!M343*365*$K$4*$N$4*L$20*0.5 -> 0 | M57: ='A2.Demanda'!N343*365*$K$4*$N$4*M$20*0.5 -> 0 | N57: ='A2.Demanda'!O343*365*$K$4*$N$4*N$20*0.5 -> 0 | O57: ='A2.Demanda'!P343*365*$K$4*$N$4*O$20*0.5 -> 0 | P57: 0 | Q57: Año 8 | R57: =+'A2.Demanda'!C343*365*$K$4*$N$4*R$20*0.5 -> 0 | S57: =+'A2.Demanda'!D343*365*$K$4*$N$4*S$20*0.5 -> 0 | T57: =+'A2.Demanda'!E343*365*$K$4*$N$4*T$20*0.5 -> 0 | U57: =+'A2.Demanda'!F343*365*$K$4*$N$4*U$20*0.5 -> 0 | V57: =+'A2.Demanda'!G343*365*$K$4*$N$4*V$20*0.5 -> 0 | W57: =+'A2.Demanda'!H343*365*$K$4*$N$4*W$20*0.5 -> 0 | X57: =+'A2.Demanda'!I343*365*$K$4*$N$4*X$20*0.5 -> 0 | Y57: =+'A2.Demanda'!J343*365*$K$4*$N$4*Y$20*0.5 -> 0 | Z57: =+'A2.Demanda'!K343*365*$K$4*$N$4*Z$20*0.5 -> 0 | AA57: =+'A2.Demanda'!L343*365*$K$4*$N$4*AA$20*0.5 -> 0 | AB57: =+'A2.Demanda'!M343*365*$K$4*$N$4*AB$20*0.5 -> 0 | AC57: =+'A2.Demanda'!N343*365*$K$4*$N$4*AC$20*0.5 -> 0 | AD57: =+'A2.Demanda'!O343*365*$K$4*$N$4*AD$20*0.5 -> 0 | AE57: =+'A2.Demanda'!P343*365*$K$4*$N$4*AE$20*0.5 -> 0 | AF57: 0
A58: Año 9 | B58: ='A2.Demanda'!C344*365*$K$4*$N$4*B$20*0.5 -> 0 | C58: ='A2.Demanda'!D344*365*$K$4*$N$4*C$20*0.5 -> 0 | D58: ='A2.Demanda'!E344*365*$K$4*$N$4*D$20*0.5 -> 0 | E58: ='A2.Demanda'!F344*365*$K$4*$N$4*E$20*0.5 -> 0 | F58: ='A2.Demanda'!G344*365*$K$4*$N$4*F$20*0.5 -> 0 | G58: ='A2.Demanda'!H344*365*$K$4*$N$4*G$20*0.5 -> 0 | H58: ='A2.Demanda'!I344*365*$K$4*$N$4*H$20*0.5 -> 0 | I58: ='A2.Demanda'!J344*365*$K$4*$N$4*I$20*0.5 -> 0 | J58: ='A2.Demanda'!K344*365*$K$4*$N$4*J$20*0.5 -> 0 | K58: ='A2.Demanda'!L344*365*$K$4*$N$4*K$20*0.5 -> 0 | L58: ='A2.Demanda'!M344*365*$K$4*$N$4*L$20*0.5 -> 0 | M58: ='A2.Demanda'!N344*365*$K$4*$N$4*M$20*0.5 -> 0 | N58: ='A2.Demanda'!O344*365*$K$4*$N$4*N$20*0.5 -> 0 | O58: ='A2.Demanda'!P344*365*$K$4*$N$4*O$20*0.5 -> 0 | P58: 0 | Q58: Año 9 | R58: =+'A2.Demanda'!C344*365*$K$4*$N$4*R$20*0.5 -> 0 | S58: =+'A2.Demanda'!D344*365*$K$4*$N$4*S$20*0.5 -> 0 | T58: =+'A2.Demanda'!E344*365*$K$4*$N$4*T$20*0.5 -> 0 | U58: =+'A2.Demanda'!F344*365*$K$4*$N$4*U$20*0.5 -> 0 | V58: =+'A2.Demanda'!G344*365*$K$4*$N$4*V$20*0.5 -> 0 | W58: =+'A2.Demanda'!H344*365*$K$4*$N$4*W$20*0.5 -> 0 | X58: =+'A2.Demanda'!I344*365*$K$4*$N$4*X$20*0.5 -> 0 | Y58: =+'A2.Demanda'!J344*365*$K$4*$N$4*Y$20*0.5 -> 0 | Z58: =+'A2.Demanda'!K344*365*$K$4*$N$4*Z$20*0.5 -> 0 | AA58: =+'A2.Demanda'!L344*365*$K$4*$N$4*AA$20*0.5 -> 0 | AB58: =+'A2.Demanda'!M344*365*$K$4*$N$4*AB$20*0.5 -> 0 | AC58: =+'A2.Demanda'!N344*365*$K$4*$N$4*AC$20*0.5 -> 0 | AD58: =+'A2.Demanda'!O344*365*$K$4*$N$4*AD$20*0.5 -> 0 | AE58: =+'A2.Demanda'!P344*365*$K$4*$N$4*AE$20*0.5 -> 0 | AF58: 0
A59: Año 10 | B59: ='A2.Demanda'!C345*365*$K$4*$N$4*B$20*0.5 -> 0 | C59: ='A2.Demanda'!D345*365*$K$4*$N$4*C$20*0.5 -> 0 | D59: ='A2.Demanda'!E345*365*$K$4*$N$4*D$20*0.5 -> 0 | E59: ='A2.Demanda'!F345*365*$K$4*$N$4*E$20*0.5 -> 0 | F59: ='A2.Demanda'!G345*365*$K$4*$N$4*F$20*0.5 -> 0 | G59: ='A2.Demanda'!H345*365*$K$4*$N$4*G$20*0.5 -> 0 | H59: ='A2.Demanda'!I345*365*$K$4*$N$4*H$20*0.5 -> 0 | I59: ='A2.Demanda'!J345*365*$K$4*$N$4*I$20*0.5 -> 0 | J59: ='A2.Demanda'!K345*365*$K$4*$N$4*J$20*0.5 -> 0 | K59: ='A2.Demanda'!L345*365*$K$4*$N$4*K$20*0.5 -> 0 | L59: ='A2.Demanda'!M345*365*$K$4*$N$4*L$20*0.5 -> 0 | M59: ='A2.Demanda'!N345*365*$K$4*$N$4*M$20*0.5 -> 0 | N59: ='A2.Demanda'!O345*365*$K$4*$N$4*N$20*0.5 -> 0 | O59: ='A2.Demanda'!P345*365*$K$4*$N$4*O$20*0.5 -> 0 | P59: 0 | Q59: Año 10 | R59: =+'A2.Demanda'!C345*365*$K$4*$N$4*R$20*0.5 -> 0 | S59: =+'A2.Demanda'!D345*365*$K$4*$N$4*S$20*0.5 -> 0 | T59: =+'A2.Demanda'!E345*365*$K$4*$N$4*T$20*0.5 -> 0 | U59: =+'A2.Demanda'!F345*365*$K$4*$N$4*U$20*0.5 -> 0 | V59: =+'A2.Demanda'!G345*365*$K$4*$N$4*V$20*0.5 -> 0 | W59: =+'A2.Demanda'!H345*365*$K$4*$N$4*W$20*0.5 -> 0 | X59: =+'A2.Demanda'!I345*365*$K$4*$N$4*X$20*0.5 -> 0 | Y59: =+'A2.Demanda'!J345*365*$K$4*$N$4*Y$20*0.5 -> 0 | Z59: =+'A2.Demanda'!K345*365*$K$4*$N$4*Z$20*0.5 -> 0 | AA59: =+'A2.Demanda'!L345*365*$K$4*$N$4*AA$20*0.5 -> 0 | AB59: =+'A2.Demanda'!M345*365*$K$4*$N$4*AB$20*0.5 -> 0 | AC59: =+'A2.Demanda'!N345*365*$K$4*$N$4*AC$20*0.5 -> 0 | AD59: =+'A2.Demanda'!O345*365*$K$4*$N$4*AD$20*0.5 -> 0 | AE59: =+'A2.Demanda'!P345*365*$K$4*$N$4*AE$20*0.5 -> 0 | AF59: 0
A60: Año 11 | B60: ='A2.Demanda'!C346*365*$K$4*$N$4*B$20*0.5 -> 0 | C60: ='A2.Demanda'!D346*365*$K$4*$N$4*C$20*0.5 -> 0 | D60: ='A2.Demanda'!E346*365*$K$4*$N$4*D$20*0.5 -> 0 | E60: ='A2.Demanda'!F346*365*$K$4*$N$4*E$20*0.5 -> 0 | F60: ='A2.Demanda'!G346*365*$K$4*$N$4*F$20*0.5 -> 0 | G60: ='A2.Demanda'!H346*365*$K$4*$N$4*G$20*0.5 -> 0 | H60: ='A2.Demanda'!I346*365*$K$4*$N$4*H$20*0.5 -> 0 | I60: ='A2.Demanda'!J346*365*$K$4*$N$4*I$20*0.5 -> 0 | J60: ='A2.Demanda'!K346*365*$K$4*$N$4*J$20*0.5 -> 0 | K60: ='A2.Demanda'!L346*365*$K$4*$N$4*K$20*0.5 -> 0 | L60: ='A2.Demanda'!M346*365*$K$4*$N$4*L$20*0.5 -> 0 | M60: ='A2.Demanda'!N346*365*$K$4*$N$4*M$20*0.5 -> 0 | N60: ='A2.Demanda'!O346*365*$K$4*$N$4*N$20*0.5 -> 0 | O60: ='A2.Demanda'!P346*365*$K$4*$N$4*O$20*0.5 -> 0 | P60: 0 | Q60: Año 11 | R60: =+'A2.Demanda'!C346*365*$K$4*$N$4*R$20*0.5 -> 0 | S60: =+'A2.Demanda'!D346*365*$K$4*$N$4*S$20*0.5 -> 0 | T60: =+'A2.Demanda'!E346*365*$K$4*$N$4*T$20*0.5 -> 0 | U60: =+'A2.Demanda'!F346*365*$K$4*$N$4*U$20*0.5 -> 0 | V60: =+'A2.Demanda'!G346*365*$K$4*$N$4*V$20*0.5 -> 0 | W60: =+'A2.Demanda'!H346*365*$K$4*$N$4*W$20*0.5 -> 0 | X60: =+'A2.Demanda'!I346*365*$K$4*$N$4*X$20*0.5 -> 0 | Y60: =+'A2.Demanda'!J346*365*$K$4*$N$4*Y$20*0.5 -> 0 | Z60: =+'A2.Demanda'!K346*365*$K$4*$N$4*Z$20*0.5 -> 0 | AA60: =+'A2.Demanda'!L346*365*$K$4*$N$4*AA$20*0.5 -> 0 | AB60: =+'A2.Demanda'!M346*365*$K$4*$N$4*AB$20*0.5 -> 0 | AC60: =+'A2.Demanda'!N346*365*$K$4*$N$4*AC$20*0.5 -> 0 | AD60: =+'A2.Demanda'!O346*365*$K$4*$N$4*AD$20*0.5 -> 0 | AE60: =+'A2.Demanda'!P346*365*$K$4*$N$4*AE$20*0.5 -> 0 | AF60: 0
A61: Año 12 | B61: ='A2.Demanda'!C347*365*$K$4*$N$4*B$20*0.5 -> 0 | C61: ='A2.Demanda'!D347*365*$K$4*$N$4*C$20*0.5 -> 0 | D61: ='A2.Demanda'!E347*365*$K$4*$N$4*D$20*0.5 -> 0 | E61: ='A2.Demanda'!F347*365*$K$4*$N$4*E$20*0.5 -> 0 | F61: ='A2.Demanda'!G347*365*$K$4*$N$4*F$20*0.5 -> 0 | G61: ='A2.Demanda'!H347*365*$K$4*$N$4*G$20*0.5 -> 0 | H61: ='A2.Demanda'!I347*365*$K$4*$N$4*H$20*0.5 -> 0 | I61: ='A2.Demanda'!J347*365*$K$4*$N$4*I$20*0.5 -> 0 | J61: ='A2.Demanda'!K347*365*$K$4*$N$4*J$20*0.5 -> 0 | K61: ='A2.Demanda'!L347*365*$K$4*$N$4*K$20*0.5 -> 0 | L61: ='A2.Demanda'!M347*365*$K$4*$N$4*L$20*0.5 -> 0 | M61: ='A2.Demanda'!N347*365*$K$4*$N$4*M$20*0.5 -> 0 | N61: ='A2.Demanda'!O347*365*$K$4*$N$4*N$20*0.5 -> 0 | O61: ='A2.Demanda'!P347*365*$K$4*$N$4*O$20*0.5 -> 0 | P61: 0 | Q61: Año 12 | R61: =+'A2.Demanda'!C347*365*$K$4*$N$4*R$20*0.5 -> 0 | S61: =+'A2.Demanda'!D347*365*$K$4*$N$4*S$20*0.5 -> 0 | T61: =+'A2.Demanda'!E347*365*$K$4*$N$4*T$20*0.5 -> 0 | U61: =+'A2.Demanda'!F347*365*$K$4*$N$4*U$20*0.5 -> 0 | V61: =+'A2.Demanda'!G347*365*$K$4*$N$4*V$20*0.5 -> 0 | W61: =+'A2.Demanda'!H347*365*$K$4*$N$4*W$20*0.5 -> 0 | X61: =+'A2.Demanda'!I347*365*$K$4*$N$4*X$20*0.5 -> 0 | Y61: =+'A2.Demanda'!J347*365*$K$4*$N$4*Y$20*0.5 -> 0 | Z61: =+'A2.Demanda'!K347*365*$K$4*$N$4*Z$20*0.5 -> 0 | AA61: =+'A2.Demanda'!L347*365*$K$4*$N$4*AA$20*0.5 -> 0 | AB61: =+'A2.Demanda'!M347*365*$K$4*$N$4*AB$20*0.5 -> 0 | AC61: =+'A2.Demanda'!N347*365*$K$4*$N$4*AC$20*0.5 -> 0 | AD61: =+'A2.Demanda'!O347*365*$K$4*$N$4*AD$20*0.5 -> 0 | AE61: =+'A2.Demanda'!P347*365*$K$4*$N$4*AE$20*0.5 -> 0 | AF61: 0
A62: Año 13 | B62: ='A2.Demanda'!C348*365*$K$4*$N$4*B$20*0.5 -> 0 | C62: ='A2.Demanda'!D348*365*$K$4*$N$4*C$20*0.5 -> 0 | D62: ='A2.Demanda'!E348*365*$K$4*$N$4*D$20*0.5 -> 0 | E62: ='A2.Demanda'!F348*365*$K$4*$N$4*E$20*0.5 -> 0 | F62: ='A2.Demanda'!G348*365*$K$4*$N$4*F$20*0.5 -> 0 | G62: ='A2.Demanda'!H348*365*$K$4*$N$4*G$20*0.5 -> 0 | H62: ='A2.Demanda'!I348*365*$K$4*$N$4*H$20*0.5 -> 0 | I62: ='A2.Demanda'!J348*365*$K$4*$N$4*I$20*0.5 -> 0 | J62: ='A2.Demanda'!K348*365*$K$4*$N$4*J$20*0.5 -> 0 | K62: ='A2.Demanda'!L348*365*$K$4*$N$4*K$20*0.5 -> 0 | L62: ='A2.Demanda'!M348*365*$K$4*$N$4*L$20*0.5 -> 0 | M62: ='A2.Demanda'!N348*365*$K$4*$N$4*M$20*0.5 -> 0 | N62: ='A2.Demanda'!O348*365*$K$4*$N$4*N$20*0.5 -> 0 | O62: ='A2.Demanda'!P348*365*$K$4*$N$4*O$20*0.5 -> 0 | P62: 0 | Q62: Año 13 | R62: =+'A2.Demanda'!C348*365*$K$4*$N$4*R$20*0.5 -> 0 | S62: =+'A2.Demanda'!D348*365*$K$4*$N$4*S$20*0.5 -> 0 | T62: =+'A2.Demanda'!E348*365*$K$4*$N$4*T$20*0.5 -> 0 | U62: =+'A2.Demanda'!F348*365*$K$4*$N$4*U$20*0.5 -> 0 | V62: =+'A2.Demanda'!G348*365*$K$4*$N$4*V$20*0.5 -> 0 | W62: =+'A2.Demanda'!H348*365*$K$4*$N$4*W$20*0.5 -> 0 | X62: =+'A2.Demanda'!I348*365*$K$4*$N$4*X$20*0.5 -> 0 | Y62: =+'A2.Demanda'!J348*365*$K$4*$N$4*Y$20*0.5 -> 0 | Z62: =+'A2.Demanda'!K348*365*$K$4*$N$4*Z$20*0.5 -> 0 | AA62: =+'A2.Demanda'!L348*365*$K$4*$N$4*AA$20*0.5 -> 0 | AB62: =+'A2.Demanda'!M348*365*$K$4*$N$4*AB$20*0.5 -> 0 | AC62: =+'A2.Demanda'!N348*365*$K$4*$N$4*AC$20*0.5 -> 0 | AD62: =+'A2.Demanda'!O348*365*$K$4*$N$4*AD$20*0.5 -> 0 | AE62: =+'A2.Demanda'!P348*365*$K$4*$N$4*AE$20*0.5 -> 0 | AF62: 0
